Workbook

Sheet Notes

Sheet Age profile chart

Sheet Forecast Ch1

Sheet Age profile summary
A1: Asset calcs | R1: Remaining life | W1: RC ($ millions) | AB1: RC (%)
R2: Very old | S2: Old | T2: moderate | U2: young | V2: new | W2: =R2 -> Very old | X2: =S2 -> Old | Y2: moderate | Z2: young | AA2: new | AB2: Very old | AC2: Old | AD2: moderate | AE2: young | AF2: new
M3: WARL | O3: WAL | Q3: WAA | R3: > | S3: > | T3: > | U3: > | V3: <=0.2 | W3: =R3 -> > | X3: > | Y3: > | Z3: > | AA3: <=0.2 | AB3: > | AC3: > | AD3: > | AE3: > | AF3: <=0.2
F4: Quantity | G4: Unit | H4: RC | I4: prop total | J4: Rank | K4: prop cat | L4: RC / unit | M4: (Rep life) | O4: Rep life | Q4: % Rep life | R4: =W4 -> 0.9 | S4: =X4 -> 0.8 | T4: =Y4 -> 0.4 | U4: =Z4 -> 0.2 | W4: 0.9 | X4: 0.8 | Y4: 0.4 | Z4: 0.2 | AA4: 0 | AB4: 0.9 | AC4: 0.8 | AD4: 0.4 | AE4: 0.2 | AF4: 0 | AG4: Std life | AH4: Std life | AI4: rep life
G5: Cost | H5: $ millions | I5: % | J5: total | K5: % | L5: $ ('000) | AG5: max | AH5: min
A6: 1 | D6: =VLOOKUP(A6,IDtable,2) -> POLES | F6: =SUMIF($A$21:$A$205,$A6,F$21:F$205) -> 1325986 | H6: =SUMIF($A$21:$A$205,$A6,H$21:H$205)/1000 -> 5361.129592 | I6: =H6/($H$18) -> 0.1953278198 | J6: =RANK(I6,I$6:I$17) -> 2 | L6: =H6*1000/(F6+0.001) -> 4.043126841 | M6: =SUMIF($A$21:$A$205,$A6,N$21:N$205)/(H6*1000+0.000001) -> 31.26368989 | O6: =SUMIF($A$21:$A$205,$A6,P$21:P$205)/(H6*1000+0.000001) -> 60.65759807 | Q6: =(O6-M6)/(O6+0.000001) -> 0.4845873993 | R6: =$O6-R$4*$O6 -> 6.065759807 | S6: =$O6-S$4*$O6 -> 12.13151961 | T6: =$O6-T$4*$O6 -> 36.39455884 | U6: =$O6-U$4*$O6 -> 48.52607846 | V6: =$O6-V$4*$O6 -> 60.65759807 | W6: =SUMIF($A$21:$A$205,$A6,W$21:W$205)/1000 -> 215.7815993 | X6: 249.3694997 | Y6: 2862.385132 | Z6: 1123.852904 | AA6: 909.7404564 | AB6: =IF($H6=0,0,W6/$H6) -> 0.04024927875 | AC6: =IF($H6=0,0,X6/$H6) -> 0.04651435774 | AD6: =IF($H6=0,0,Y6/$H6) -> 0.5339145573 | AE6: =IF($H6=0,0,Z6/$H6) -> 0.2096298708 | AF6: =IF($H6=0,0,AA6/$H6) -> 0.1696919354 | AG6: =MAX(IF($A$21:$A$205=$A6,$O$21:$O$205)) -> 87.01765002 | AH6: =MIN(IF($A$21:$A$205=$A6,$O$21:$O$205)) -> 9.092886853 | AI6: =IF(H6=0,0,SUMIF($A$21:$A$205,$A6,$AJ$21:$AJ$205)/(H6*1000)) -> 60.65759807
A7: 2 | D7: OVERHEAD CONDUCTORS | F7: =SUMIF($A$21:$A$205,$A7,F$21:F$205) -> 185285.32 | H7: =SUMIF($A$21:$A$205,$A7,H$21:H$205)/1000 -> 13602.73168 | I7: =H7/($H$18) -> 0.4956030025 | J7: 1 | L7: 73.4150531 | M7: 43.67703029 | O7: 86.33592395 | Q7: 0.494103627 | R7: =$O7-R$4*$O7 -> 8.633592395 | S7: 17.26718479 | T7: 51.80155437 | U7: 69.06873916 | V7: 86.33592395 | W7: 174.2768405 | X7: 1008.245497 | Y7: 8497.053194 | Z7: 1804.497627 | AA7: 2118.65852 | AB7: =IF($H7=0,0,W7/$H7) -> 0.01281190018 | AC7: =IF($H7=0,0,X7/$H7) -> 0.07412081049 | AD7: =IF($H7=0,0,Y7/$H7) -> 0.6246578551 | AE7: =IF($H7=0,0,Z7/$H7) -> 0.1326570037 | AF7: =IF($H7=0,0,AA7/$H7) -> 0.1557524305 | AG7: =MAX(IF($A$21:$A$205=$A7,$O$21:$O$205)) -> 102.7406311 | AH7: =MIN(IF($A$21:$A$205=$A7,$O$21:$O$205)) -> 54.9 | AI7: =IF(H7=0,0,SUMIF($A$21:$A$205,$A7,$AJ$21:$AJ$205)/(H7*1000)) -> 86.33592395
A8: 3 | D8: UNDERGROUND CABLES | F8: 8137.51 | H8: 2551.827387 | I8: 0.09297348096 | J8: 4 | L8: 313.588195 | M8: 54.21314489 | O8: 65.95118443 | Q8: 0.177980721 | R8: 6.595118443 | S8: 13.19023689 | T8: 39.57071066 | U8: 52.76094754 | V8: 65.95118443 | W8: 3.378303889 | X8: 9.002099035 | Y8: 304.9219858 | Z8: 340.096431 | AA8: 1894.428567 | AB8: 0.001323876335 | AC8: 0.003527706883 | AD8: 0.119491619 | AE8: 0.1332756411 | AF8: 0.7423811567 | AG8: =MAX(IF($A$21:$A$205=$A8,$O$21:$O$205)) -> 73.82129211 | AH8: =MIN(IF($A$21:$A$205=$A8,$O$21:$O$205)) -> 45.08567255 | AI8: 65.95118443
A9: 4 | D9: SERVICE LINES | F9: 16418.77116 | H9: 13.38493157 | I9: 0.0004876676562 | J9: 6 | L9: 0.8152212259 | M9: 33.19215114 | O9: 60.10310186 | Q9: 0.4477464464 | R9: 6.010310186 | S9: 12.02062037 | T9: 36.06186112 | U9: 48.08248149 | V9: 60.10310186 | W9: 0.9997600499 | X9: 0.8833253833 | Y9: 5.270867211 | Z9: 1.589677806 | AA9: 4.641301121 | AB9: 0.07469295189 | AC9: 0.06599401563 | AD9: 0.3937911212 | AE9: 0.1187662259 | AF9: 0.3467556854 | AG9: =MAX(IF($A$21:$A$205=$A9,$O$21:$O$205)) -> 61.00035839 | AH9: =MIN(IF($A$21:$A$205=$A9,$O$21:$O$205)) -> 53.8 | AI9: 60.10310187
A10: 5 | D10: TRANSFORMERS | F10: 137210 | H10: 2485.606117 | I10: 0.09056077 | J10: 5 | L10: 18.11534217 | M10: 34.47102778 | O10: 58.59484394 | Q10: 0.4117054356 | R10: 5.859484394 | S10: 11.71896879 | T10: 35.15690637 | U10: 46.87587515 | V10: 58.59484394 | W10: 138.549426 | X10: 156.0809825 | Y10: 846.2423685 | Z10: 573.5050107 | AA10: 771.2283298 | AB10: 0.05574070042 | AC10: 0.06279393241 | AD10: 0.3404571475 | AE10: 0.2307304471 | AF10: 0.3102777726 | AG10: =MAX(IF($A$21:$A$205=$A10,$O$21:$O$205)) -> 70.18998587 | AH10: =MIN(IF($A$21:$A$205=$A10,$O$21:$O$205)) -> 42.1445124 | AI10: 58.59484394
A11: 6 | D11: SWITCHGEAR | F11: 469243 | H11: 3432.150941 | I11: 0.125047259 | J11: 3 | L11: 7.314229373 | M11: 39.61016237 | O11: 60.41108568 | Q11: 0.3443229455 | R11: 6.041108568 | S11: 12.08221714 | T11: 36.24665141 | U11: 48.32886854 | V11: 60.41108568 | W11: 118.0020381 | X11: 143.264613 | Y11: 1014.187567 | Z11: 618.5194766 | AA11: 1538.177246 | AB11: 0.03438136613 | AC11: 0.04174193253 | AD11: 0.2954962017 | AE11: 0.1802133668 | AF11: 0.4481671328 | AG11: =MAX(IF($A$21:$A$205=$A11,$O$21:$O$205)) -> 73.17544123 | AH11: =MIN(IF($A$21:$A$205=$A11,$O$21:$O$205)) -> 38.33129117 | AI11: 60.41108568
A12: 7 | D12: PUBLIC LIGHTING | F12: 0 | H12: 0 | I12: 0 | J12: 7 | L12: 0 | M12: 0 | O12: 0 | Q12: 0 | R12: 0 | S12: 0 | T12: 0 | U12: 0 | V12: 0 | W12: 0 | X12: 0 | Y12: 0 | Z12: 0 | AA12: 0 | AB12: 0 | AC12: 0 | AD12: 0 | AE12: 0 | AF12: 0 | AG12: =MAX(IF($A$21:$A$205=$A12,$O$21:$O$205)) -> 0 | AH12: =MIN(IF($A$21:$A$205=$A12,$O$21:$O$205)) -> 0 | AI12: 0
A13: 8 | D13: SCADA, NETWORK CONTROL AND PROTECTION | F13: 0 | H13: 0 | I13: 0 | J13: 7 | L13: 0 | M13: 0 | O13: 0 | Q13: 0 | R13: 0 | S13: 0 | T13: 0 | U13: 0 | V13: 0 | W13: 0 | X13: 0 | Y13: 0 | Z13: 0 | AA13: 0 | AB13: 0 | AC13: 0 | AD13: 0 | AE13: 0 | AF13: 0 | AG13: =MAX(IF($A$21:$A$205=$A13,$O$21:$O$205)) -> 0 | AH13: =MIN(IF($A$21:$A$205=$A13,$O$21:$O$205)) -> 0 | AI13: 0
A14: 9 | D14: =VLOOKUP(A14,IDtable,2) -> OTHER | F14: =SUMIF($A$21:$A$205,$A14,F$21:F$205) -> 0 | H14: =SUMIF($A$21:$A$205,$A14,H$21:H$205)/1000 -> 0 | I14: =H14/($H$18) -> 0 | J14: 7 | L14: 0 | M14: 0 | O14: 0 | Q14: 0 | R14: =$O14-R$4*$O14 -> 0 | S14: 0 | T14: 0 | U14: 0 | V14: 0 | W14: 0 | X14: 0 | Y14: 0 | Z14: 0 | AA14: 0 | AB14: 0 | AC14: 0 | AD14: 0 | AE14: 0 | AF14: 0 | AG14: =MAX(IF($A$21:$A$205=$A14,$O$21:$O$205)) -> 0 | AH14: =MIN(IF($A$21:$A$205=$A14,$O$21:$O$205)) -> 0 | AI14: 0
A15: 10 | D15: =VLOOKUP(A15,IDtable,2) -> unused | F15: =SUMIF($A$21:$A$205,$A15,F$21:F$205) -> 0 | H15: =SUMIF($A$21:$A$205,$A15,H$21:H$205)/1000 -> 0 | I15: =H15/($H$18) -> 0 | J15: 7 | L15: 0 | M15: 0 | O15: 0 | Q15: 0 | R15: 0 | S15: 0 | T15: 0 | U15: 0 | V15: 0 | W15: 0 | X15: 0 | Y15: 0 | Z15: 0 | AA15: 0 | AB15: 0 | AC15: 0 | AD15: 0 | AE15: 0 | AF15: 0 | AG15: =MAX(IF($A$21:$A$205=$A15,$O$21:$O$205)) -> 0 | AH15: =MIN(IF($A$21:$A$205=$A15,$O$21:$O$205)) -> 0 | AI15: 0
A16: 11 | D16: =VLOOKUP(A16,IDtable,2) -> unused | F16: =SUMIF($A$21:$A$205,$A16,F$21:F$205) -> 0 | H16: =SUMIF($A$21:$A$205,$A16,H$21:H$205)/1000 -> 0 | I16: =H16/($H$18) -> 0 | J16: 7 | L16: 0 | M16: 0 | O16: 0 | Q16: 0 | R16: 0 | S16: 0 | T16: 0 | U16: 0 | V16: 0 | W16: 0 | X16: 0 | Y16: 0 | Z16: 0 | AA16: 0 | AB16: 0 | AC16: 0 | AD16: 0 | AE16: 0 | AF16: 0 | AG16: =MAX(IF($A$21:$A$205=$A16,$O$21:$O$205)) -> 0 | AH16: =MIN(IF($A$21:$A$205=$A16,$O$21:$O$205)) -> 0 | AI16: 0
A17: 12 | D17: =VLOOKUP(A17,IDtable,2) -> unused | F17: =SUMIF($A$21:$A$205,$A17,F$21:F$205) -> 0 | H17: =SUMIF($A$21:$A$205,$A17,H$21:H$205)/1000 -> 0 | I17: =H17/($H$18) -> 0 | J17: =RANK(I17,I$6:I$17) -> 7 | L17: =H17*1000/(F17+0.001) -> 0 | M17: =SUMIF($A$21:$A$205,$A17,N$21:N$205)/(H17*1000+0.000001) -> 0 | O17: =SUMIF($A$21:$A$205,$A17,P$21:P$205)/(H17*1000+0.000001) -> 0 | Q17: =(O17-M17)/(O17+0.000001) -> 0 | R17: 0 | S17: 0 | T17: 0 | U17: 0 | V17: 0 | W17: 0 | X17: 0 | Y17: 0 | Z17: 0 | AA17: 0 | AB17: 0 | AC17: 0 | AD17: 0 | AE17: 0 | AF17: 0 | AG17: =MAX(IF($A$21:$A$205=$A17,$O$21:$O$205)) -> 0 | AH17: =MIN(IF($A$21:$A$205=$A17,$O$21:$O$205)) -> 0 | AI17: 0
D18: Total | H18: =SUM(H6:H17) -> 27446.83065 | M18: =SUMPRODUCT(M6:M17,$H6:$H17)/$H18 -> 40.88457233 | O18: =SUMPRODUCT(O6:O17,$H6:$H17)/$H18 -> 73.65811592 | Q18: =SUMPRODUCT(Q6:Q17,$H6:$H17)/$H18 -> 0.4366394818 | W18: =SUM(W6:W17) -> 650.9879678 | X18: =SUM(X6:X17) -> 1566.846017 | Y18: =SUM(Y6:Y17) -> 13530.06111 | Z18: =SUM(Z6:Z17) -> 4462.061127 | AA18: =SUM(AA6:AA17) -> 7236.874421 | AB18: =W18/$H18 -> 0.02371814714 | AC18: =X18/$H18 -> 0.05708659177 | AD18: =Y18/$H18 -> 0.4929553174 | AE18: =Z18/$H18 -> 0.1625710882 | AF18: =AA18/$H18 -> 0.2636688554
D20: EDB categories
A21: ='Asset data'!A21 -> 0 | B21: ='Asset data'!B21 -> 0 | C21: ='Asset data'!C21 -> 0 | D21: ='Asset data'!E21 -> 0 | E21: =IF(A21>0,VLOOKUP(A21,IDtable,2),0) -> 0 | F21: =IF(A21>0,SUM('Asset data'!J21:CV21),0) -> 0 | G21: =IF(A21>0,'Asset data'!F21,0) -> 0 | H21: =IF(A21>0,SUM('Asset data'!CX21:GJ21),0) -> 0 | I21: =H21/$H$18/1000 -> 0 | J21: =IF(RANK(0,I$21:I$205)=RANK(I21,I$21:I$205),0,RANK(I21,I$21:I$205)) -> 0 | K21: =IF(A21>0,H21/(VLOOKUP(A21,$A$6:$H$17,8)*1000),0) -> 0 | L21: =IF($A21>0,H21/F21,0) -> 0 | M21: =IF($A21>0,SUMPRODUCT('Age profile (years)'!$CT21:$GF21,'Asset data'!$CX21:$GJ21)/H21-0.5,0) -> 0 | N21: =IF($A21>0,M21*H21,0) -> 0 | O21: =IF($A21>0,'Asset data'!G21,0) -> 0 | P21: =IF($A21>0,H21*O21,0) -> 0 | Q21: =IF($A21>0,(O21-M21)/O21,0) -> 0 | R21: =IF($A21>0,$O21-R$4*$O21,0) -> 0 | S21: 0 | T21: 0 | U21: 0 | W21: =IF($A21>0,SUMIF('Age profile (years)'!$CT21:$GF21,"<" & R21+0.5,'Asset data'!$CX21:$GJ21),0) -> 0 | X21: =IF($A21>0,SUMIF('Age profile (years)'!$CT21:$GF21,"<" & S21+0.5,'Asset data'!$CX21:$GJ21)-W21,0) -> 0 | Y21: =IF($A21>0,SUMIF('Age profile (years)'!$CT21:$GF21,"<" & T21+0.5,'Asset data'!$CX21:$GJ21)-X21-W21,0) -> 0 | Z21: =IF($A21>0,SUMIF('Age profile (years)'!$CT21:$GF21,"<" & U21+0.5,'Asset data'!$CX21:$GJ21)-Y21-X21-W21,0) -> 0 | AA21: =IF($A21>0,H21-Z21-Y21-X21-W21,0) -> 0 | AB21: =IF($A21>0,W21/$H21,0) -> 0 | AC21: 0 | AD21: 0 | AE21: 0 | AF21: 0 | AI21: =IF($A21>0,'RRR hist-forc'!K21,0) -> 0 | AJ21: =IF($A21>0,AI21*H21,0) -> 0
A22: ='Asset data'!A22 -> 1 | B22: ='Asset data'!B22 -> 0 | C22: ='Asset data'!C22 -> 0 | D22: ='Asset data'!E22 -> STAKING OF A WOODEN POLE | E22: POLES | F22: =IF(A22>0,SUM('Asset data'!J22:CV22),0) -> 18077 | G22: =IF(A22>0,'Asset data'!F22,0) -> 7.690046183 | H22: =IF(A22>0,SUM('Asset data'!CX22:GJ22),0) -> 139012.9649 | I22: 0.005064809363 | J22: 29 | K22: =IF(A22>0,H22/(VLOOKUP(A22,$A$6:$H$17,8)*1000),0) -> 0.02592979007 | L22: =IF($A22>0,H22/F22,0) -> 7.690046183 | M22: =IF($A22>0,SUMPRODUCT('Age profile (years)'!$CT22:$GF22,'Asset data'!$CX22:$GJ22)/H22-0.5,0) -> 10.60245063 | N22: =IF($A22>0,M22*H22,0) -> 1473878.096 | O22: =IF($A22>0,'Asset data'!G22,0) -> 23.3787276 | P22: =IF($A22>0,H22*O22,0) -> 3249946.237 | Q22: =IF($A22>0,(O22-M22)/O22,0) -> 0.5464915452 | R22: 2.33787276 | S22: 4.675745519 | T22: 14.02723656 | U22: 18.70298208 | W22: =IF($A22>0,SUMIF('Age profile (years)'!$CT22:$GF22,"<" & R22+0.5,'Asset data'!$CX22:$GJ22),0) -> 17834.75511 | X22: =IF($A22>0,SUMIF('Age profile (years)'!$CT22:$GF22,"<" & S22+0.5,'Asset data'!$CX22:$GJ22)-W22,0) -> 17834.75511 | Y22: =IF($A22>0,SUMIF('Age profile (years)'!$CT22:$GF22,"<" & T22+0.5,'Asset data'!$CX22:$GJ22)-X22-W22,0) -> 53504.26532 | Z22: =IF($A22>0,SUMIF('Age profile (years)'!$CT22:$GF22,"<" & U22+0.5,'Asset data'!$CX22:$GJ22)-Y22-X22-W22,0) -> 32913.39766 | AA22: =IF($A22>0,H22-Z22-Y22-X22-W22,0) -> 16925.79165 | AB22: 0.1282956243 | AC22: 0.1282956243 | AD22: 0.3848868728 | AE22: 0.2367649499 | AF22: 0.1217569287 | AI22: =IF($A22>0,'RRR hist-forc'!K22,0) -> 23.3787276 | AJ22: =IF($A22>0,AI22*H22,0) -> 3249946.237
A23: ='Asset data'!A23 -> 1 | B23: ='Asset data'!B23 -> 0 | C23: ='Asset data'!C23 -> 0 | D23: ='Asset data'!E23 -> ˂ = 1 KV; WOOD | E23: =IF(A23>0,VLOOKUP(A23,IDtable,2),0) -> POLES | F23: =IF(A23>0,SUM('Asset data'!J23:CV23),0) -> 343974 | G23: =IF(A23>0,'Asset data'!F23,0) -> 4.413900573 | H23: =IF(A23>0,SUM('Asset data'!CX23:GJ23),0) -> 1518267.036 | I23: =H23/$H$18/1000 -> 0.05531666134 | J23: =IF(RANK(0,I$21:I$205)=RANK(I23,I$21:I$205),0,RANK(I23,I$21:I$205)) -> 6 | K23: =IF(A23>0,H23/(VLOOKUP(A23,$A$6:$H$17,8)*1000),0) -> 0.2831990926 | L23: =IF($A23>0,H23/F23,0) -> 4.413900573 | M23: =IF($A23>0,SUMPRODUCT('Age profile (years)'!$CT23:$GF23,'Asset data'!$CX23:$GJ23)/H23-0.5,0) -> 34.32839691 | N23: =IF($A23>0,M23*H23,0) -> 52119673.43 | O23: =IF($A23>0,'Asset data'!G23,0) -> 70.44302896 | P23: =IF($A23>0,H23*O23,0) -> 106951328.8 | Q23: =IF($A23>0,(O23-M23)/O23,0) -> 0.5126785798 | R23: 7.044302896 | S23: 14.08860579 | T23: 42.26581738 | U23: 56.35442317 | W23: =IF($A23>0,SUMIF('Age profile (years)'!$CT23:$GF23,"<" & R23+0.5,'Asset data'!$CX23:$GJ23),0) -> 73270.74952 | X23: =IF($A23>0,SUMIF('Age profile (years)'!$CT23:$GF23,"<" & S23+0.5,'Asset data'!$CX23:$GJ23)-W23,0) -> 76117.71539 | Y23: =IF($A23>0,SUMIF('Age profile (years)'!$CT23:$GF23,"<" & T23+0.5,'Asset data'!$CX23:$GJ23)-X23-W23,0) -> 839700.4451 | Z23: =IF($A23>0,SUMIF('Age profile (years)'!$CT23:$GF23,"<" & U23+0.5,'Asset data'!$CX23:$GJ23)-Y23-X23-W23,0) -> 358700.044 | AA23: =IF($A23>0,H23-Z23-Y23-X23-W23,0) -> 170478.0818 | AB23: =IF($A23>0,W23/$H23,0) -> 0.04825946147 | AC23: =IF($A23>0,X23/$H23,0) -> 0.0501346032 | AD23: =IF($A23>0,Y23/$H23,0) -> 0.5530650572 | AE23: =IF($A23>0,Z23/$H23,0) -> 0.2362562287 | AF23: =IF($A23>0,AA23/$H23,0) -> 0.1122846494 | AI23: =IF($A23>0,'RRR hist-forc'!K23,0) -> 70.44302896 | AJ23: =IF($A23>0,AI23*H23,0) -> 106951328.8
A24: ='Asset data'!A24 -> 1 | B24: ='Asset data'!B24 -> 0 | C24: ='Asset data'!C24 -> 0 | D24: ='Asset data'!E24 -> > 1 KV & < = 11 KV; WOOD | E24: POLES | F24: =IF(A24>0,SUM('Asset data'!J24:CV24),0) -> 457414 | G24: =IF(A24>0,'Asset data'!F24,0) -> 4.075240477 | H24: =IF(A24>0,SUM('Asset data'!CX24:GJ24),0) -> 1864072.048 | I24: 0.06791574851 | J24: 3 | K24: 0.3477013596 | L24: 4.075240477 | M24: =IF($A24>0,SUMPRODUCT('Age profile (years)'!$CT24:$GF24,'Asset data'!$CX24:$GJ24)/H24-0.5,0) -> 35.02150131 | N24: 65282601.66 | O24: =IF($A24>0,'Asset data'!G24,0) -> 69.29253284 | P24: 129166273.6 | Q24: 0.4945847717 | R24: 6.929253284 | S24: 13.85850657 | T24: 41.57551971 | U24: 55.43402627 | W24: =IF($A24>0,SUMIF('Age profile (years)'!$CT24:$GF24,"<" & R24+0.5,'Asset data'!$CX24:$GJ24),0) -> 95116.11274 | X24: =IF($A24>0,SUMIF('Age profile (years)'!$CT24:$GF24,"<" & S24+0.5,'Asset data'!$CX24:$GJ24)-W24,0) -> 123104.8643 | Y24: =IF($A24>0,SUMIF('Age profile (years)'!$CT24:$GF24,"<" & T24+0.5,'Asset data'!$CX24:$GJ24)-X24-W24,0) -> 945859.2396 | Z24: =IF($A24>0,SUMIF('Age profile (years)'!$CT24:$GF24,"<" & U24+0.5,'Asset data'!$CX24:$GJ24)-Y24-X24-W24,0) -> 369905.5029 | AA24: 330086.3282 | AB24: 0.05102598521 | AC24: 0.06604082953 | AD24: 0.5074156016 | AE24: 0.1984394881 | AF24: 0.1770780956 | AI24: =IF($A24>0,'RRR hist-forc'!K24,0) -> 69.29253284 | AJ24: 129166273.6
A25: ='Asset data'!A25 -> 1 | B25: ='Asset data'!B25 -> 0 | C25: ='Asset data'!C25 -> 0 | D25: ='Asset data'!E25 -> ˃ 11 KV & < = 22 KV; WOOD | E25: POLES | F25: =IF(A25>0,SUM('Asset data'!J25:CV25),0) -> 287215 | G25: =IF(A25>0,'Asset data'!F25,0) -> 0.5085474211 | H25: =IF(A25>0,SUM('Asset data'!CX25:GJ25),0) -> 146062.4475 | I25: 0.005321650773 | J25: 28 | K25: 0.02724471495 | L25: 0.5085474211 | M25: =IF($A25>0,SUMPRODUCT('Age profile (years)'!$CT25:$GF25,'Asset data'!$CX25:$GJ25)/H25-0.5,0) -> 36.95461066 | N25: 5397680.881 | O25: =IF($A25>0,'Asset data'!G25,0) -> 72.77223043 | P25: 10629290.09 | Q25: 0.4921880168 | R25: 7.277223043 | S25: 14.55444609 | T25: 43.66333826 | U25: 58.21778435 | W25: =IF($A25>0,SUMIF('Age profile (years)'!$CT25:$GF25,"<" & R25+0.5,'Asset data'!$CX25:$GJ25),0) -> 1833.822 | X25: =IF($A25>0,SUMIF('Age profile (years)'!$CT25:$GF25,"<" & S25+0.5,'Asset data'!$CX25:$GJ25)-W25,0) -> 8562.921476 | Y25: =IF($A25>0,SUMIF('Age profile (years)'!$CT25:$GF25,"<" & T25+0.5,'Asset data'!$CX25:$GJ25)-X25-W25,0) -> 85780.76189 | Z25: =IF($A25>0,SUMIF('Age profile (years)'!$CT25:$GF25,"<" & U25+0.5,'Asset data'!$CX25:$GJ25)-Y25-X25-W25,0) -> 30672.52915 | AA25: 19212.41302 | AB25: 0.01255505458 | AC25: 0.05862507181 | AD25: 0.5872882684 | AE25: 0.209995996 | AF25: 0.1315356092 | AI25: =IF($A25>0,'RRR hist-forc'!K25,0) -> 72.77223043 | AJ25: 10629290.09
A26: ='Asset data'!A26 -> 1 | B26: ='Asset data'!B26 -> 0 | C26: ='Asset data'!C26 -> 0 | D26: ='Asset data'!E26 -> > 22 KV & < = 66 KV; WOOD | E26: POLES | F26: =IF(A26>0,SUM('Asset data'!J26:CV26),0) -> 25172 | G26: =IF(A26>0,'Asset data'!F26,0) -> 0.5085474211 | H26: =IF(A26>0,SUM('Asset data'!CX26:GJ26),0) -> 12801.15568 | I26: 0.0004663983193 | J26: 54 | K26: 0.002387772104 | L26: 0.5085474211 | M26: =IF($A26>0,SUMPRODUCT('Age profile (years)'!$CT26:$GF26,'Asset data'!$CX26:$GJ26)/H26-0.5,0) -> 26.66073415 | N26: 341288.2085 | O26: =IF($A26>0,'Asset data'!G26,0) -> 62.40175378 | P26: 798814.565 | Q26: 0.5727566529 | R26: 6.240175378 | S26: 12.48035076 | T26: 37.44105227 | U26: 49.92140302 | W26: =IF($A26>0,SUMIF('Age profile (years)'!$CT26:$GF26,"<" & R26+0.5,'Asset data'!$CX26:$GJ26),0) -> 562.9619951 | X26: =IF($A26>0,SUMIF('Age profile (years)'!$CT26:$GF26,"<" & S26+0.5,'Asset data'!$CX26:$GJ26)-W26,0) -> 1434.612275 | Y26: =IF($A26>0,SUMIF('Age profile (years)'!$CT26:$GF26,"<" & T26+0.5,'Asset data'!$CX26:$GJ26)-X26-W26,0) -> 7680.083153 | Z26: =IF($A26>0,SUMIF('Age profile (years)'!$CT26:$GF26,"<" & U26+0.5,'Asset data'!$CX26:$GJ26)-Y26-X26-W26,0) -> 1882.134005 | AA26: 1241.364255 | AB26: 0.04397743525 | AC26: 0.1120689655 | AD26: 0.599952328 | AE26: 0.1470284443 | AF26: 0.09697282695 | AI26: =IF($A26>0,'RRR hist-forc'!K26,0) -> 62.40175378 | AJ26: 798814.565
A27: ='Asset data'!A27 -> 1 | B27: ='Asset data'!B27 -> 0 | C27: ='Asset data'!C27 -> 0 | D27: ='Asset data'!E27 -> > 66 KV & < = 132 KV; WOOD | E27: POLES | F27: =IF(A27>0,SUM('Asset data'!J27:CV27),0) -> 48817 | G27: =IF(A27>0,'Asset data'!F27,0) -> 0.5085474211 | H27: =IF(A27>0,SUM('Asset data'!CX27:GJ27),0) -> 24825.75945 | I27: 0.0009045036847 | J27: 46 | K27: 0.004630695645 | L27: 0.5085474211 | M27: =IF($A27>0,SUMPRODUCT('Age profile (years)'!$CT27:$GF27,'Asset data'!$CX27:$GJ27)/H27-0.5,0) -> 45.88826638 | N27: 1139211.063 | O27: =IF($A27>0,'Asset data'!G27,0) -> 87.01765002 | P27: 2160279.248 | Q27: 0.4726556466 | R27: 8.701765002 | S27: 17.40353 | T27: 52.21059001 | U27: 69.61412002 | W27: =IF($A27>0,SUMIF('Age profile (years)'!$CT27:$GF27,"<" & R27+0.5,'Asset data'!$CX27:$GJ27),0) -> 457.1841315 | X27: =IF($A27>0,SUMIF('Age profile (years)'!$CT27:$GF27,"<" & S27+0.5,'Asset data'!$CX27:$GJ27)-W27,0) -> 117.9830017 | Y27: =IF($A27>0,SUMIF('Age profile (years)'!$CT27:$GF27,"<" & T27+0.5,'Asset data'!$CX27:$GJ27)-X27-W27,0) -> 16351.32523 | Z27: =IF($A27>0,SUMIF('Age profile (years)'!$CT27:$GF27,"<" & U27+0.5,'Asset data'!$CX27:$GJ27)-Y27-X27-W27,0) -> 5840.667131 | AA27: 2058.59996 | AB27: 0.01841571584 | AC27: 0.004752442797 | AD27: 0.6586435053 | AE27: 0.2352664031 | AF27: 0.08292193293 | AI27: =IF($A27>0,'RRR hist-forc'!K27,0) -> 87.01765002 | AJ27: 2160279.248
A28: ='Asset data'!A28 -> 1 | B28: ='Asset data'!B28 -> 0 | C28: ='Asset data'!C28 -> 0 | D28: ='Asset data'!E28 -> > 132 KV; WOOD | E28: POLES | F28: =IF(A28>0,SUM('Asset data'!J28:CV28),0) -> 23 | G28: =IF(A28>0,'Asset data'!F28,0) -> 9.50423381 | H28: =IF(A28>0,SUM('Asset data'!CX28:GJ28),0) -> 218.5973776 | I28: 7.964394157e-06 | J28: 73 | K28: 4.077449983e-05 | L28: 9.50423381 | M28: =IF($A28>0,SUMPRODUCT('Age profile (years)'!$CT28:$GF28,'Asset data'!$CX28:$GJ28)/H28-0.5,0) -> 21.41304348 | N28: 4680.835152 | O28: =IF($A28>0,'Asset data'!G28,0) -> 53.8 | P28: 11760.53892 | Q28: 0.6019880394 | R28: 5.38 | S28: 10.76 | T28: 32.28 | U28: 43.04 | W28: =IF($A28>0,SUMIF('Age profile (years)'!$CT28:$GF28,"<" & R28+0.5,'Asset data'!$CX28:$GJ28),0) -> 66.52963667 | X28: =IF($A28>0,SUMIF('Age profile (years)'!$CT28:$GF28,"<" & S28+0.5,'Asset data'!$CX28:$GJ28)-W28,0) -> 9.50423381 | Y28: =IF($A28>0,SUMIF('Age profile (years)'!$CT28:$GF28,"<" & T28+0.5,'Asset data'!$CX28:$GJ28)-X28-W28,0) -> 76.03387048 | Z28: =IF($A28>0,SUMIF('Age profile (years)'!$CT28:$GF28,"<" & U28+0.5,'Asset data'!$CX28:$GJ28)-Y28-X28-W28,0) -> 38.01693524 | AA28: 28.51270143 | AB28: 0.3043478261 | AC28: 0.04347826087 | AD28: 0.347826087 | AE28: 0.1739130435 | AF28: 0.1304347826 | AI28: =IF($A28>0,'RRR hist-forc'!K28,0) -> 53.8 | AJ28: 11760.53892
A29: ='Asset data'!A29 -> 1 | B29: ='Asset data'!B29 -> 0 | C29: ='Asset data'!C29 -> 0 | D29: ='Asset data'!E29 -> ˂ = 1 KV; CONCRETE | E29: POLES | F29: =IF(A29>0,SUM('Asset data'!J29:CV29),0) -> 11385 | G29: =IF(A29>0,'Asset data'!F29,0) -> 9.643251227 | H29: =IF(A29>0,SUM('Asset data'!CX29:GJ29),0) -> 109788.4152 | I29: 0.004000039809 | J29: 33 | K29: 0.02047859753 | L29: 9.643251227 | M29: =IF($A29>0,SUMPRODUCT('Age profile (years)'!$CT29:$GF29,'Asset data'!$CX29:$GJ29)/H29-0.5,0) -> 25.40417216 | N29: 2789083.801 | O29: =IF($A29>0,'Asset data'!G29,0) -> 42.98224653 | P29: 4718952.729 | Q29: 0.4089612757 | R29: 4.298224653 | S29: 8.596449306 | T29: 25.78934792 | U29: 34.38579722 | W29: =IF($A29>0,SUMIF('Age profile (years)'!$CT29:$GF29,"<" & R29+0.5,'Asset data'!$CX29:$GJ29),0) -> 2806.186107 | X29: =IF($A29>0,SUMIF('Age profile (years)'!$CT29:$GF29,"<" & S29+0.5,'Asset data'!$CX29:$GJ29)-W29,0) -> 597.8815761 | Y29: =IF($A29>0,SUMIF('Age profile (years)'!$CT29:$GF29,"<" & T29+0.5,'Asset data'!$CX29:$GJ29)-X29-W29,0) -> 59296.3518 | Z29: =IF($A29>0,SUMIF('Age profile (years)'!$CT29:$GF29,"<" & U29+0.5,'Asset data'!$CX29:$GJ29)-Y29-X29-W29,0) -> 24378.1391 | AA29: 22709.85664 | AB29: 0.0255599473 | AC29: 0.005445761968 | AD29: 0.5400966184 | AE29: 0.2220465525 | AF29: 0.2068511199 | AI29: =IF($A29>0,'RRR hist-forc'!K29,0) -> 42.98224653 | AJ29: 4718952.729
A30: ='Asset data'!A30 -> 1 | B30: ='Asset data'!B30 -> 0 | C30: ='Asset data'!C30 -> 0 | D30: ='Asset data'!E30 -> > 1 KV & < = 11 KV; CONCRETE | E30: POLES | F30: =IF(A30>0,SUM('Asset data'!J30:CV30),0) -> 22549 | G30: =IF(A30>0,'Asset data'!F30,0) -> 11.4509847 | H30: =IF(A30>0,SUM('Asset data'!CX30:GJ30),0) -> 258208.2539 | I30: 0.009407579959 | J30: 18 | K30: 0.0481630316 | L30: 11.4509847 | M30: =IF($A30>0,SUMPRODUCT('Age profile (years)'!$CT30:$GF30,'Asset data'!$CX30:$GJ30)/H30-0.5,0) -> 26.9651204 | N30: 6962616.657 | O30: =IF($A30>0,'Asset data'!G30,0) -> 45.29859293 | P30: 11696470.59 | Q30: 0.4047249891 | R30: 4.529859293 | S30: 9.059718587 | T30: 27.17915576 | U30: 36.23887435 | W30: =IF($A30>0,SUMIF('Age profile (years)'!$CT30:$GF30,"<" & R30+0.5,'Asset data'!$CX30:$GJ30),0) -> 2668.079434 | X30: =IF($A30>0,SUMIF('Age profile (years)'!$CT30:$GF30,"<" & S30+0.5,'Asset data'!$CX30:$GJ30)-W30,0) -> 160.3137858 | Y30: =IF($A30>0,SUMIF('Age profile (years)'!$CT30:$GF30,"<" & T30+0.5,'Asset data'!$CX30:$GJ30)-X30-W30,0) -> 144923.6623 | Z30: =IF($A30>0,SUMIF('Age profile (years)'!$CT30:$GF30,"<" & U30+0.5,'Asset data'!$CX30:$GJ30)-Y30-X30-W30,0) -> 63564.41605 | AA30: 46891.78233 | AB30: 0.01033305246 | AC30: 0.0006208701051 | AD30: 0.561266575 | AE30: 0.2461749967 | AF30: 0.1816045057 | AI30: =IF($A30>0,'RRR hist-forc'!K30,0) -> 45.29859293 | AJ30: 11696470.59
A31: ='Asset data'!A31 -> 1 | B31: ='Asset data'!B31 -> 0 | C31: ='Asset data'!C31 -> 0 | D31: ='Asset data'!E31 -> ˃ 11 KV & < = 22 KV; CONCRETE | E31: POLES | F31: =IF(A31>0,SUM('Asset data'!J31:CV31),0) -> 45757 | G31: =IF(A31>0,'Asset data'!F31,0) -> 12.04637442 | H31: =IF(A31>0,SUM('Asset data'!CX31:GJ31),0) -> 551205.9543 | I31: 0.02008268136 | J31: 14 | K31: 0.102815264 | L31: 12.04637442 | M31: =IF($A31>0,SUMPRODUCT('Age profile (years)'!$CT31:$GF31,'Asset data'!$CX31:$GJ31)/H31-0.5,0) -> 23.18109797 | N31: 12777559.23 | O31: =IF($A31>0,'Asset data'!G31,0) -> 43.4453513 | P31: 23947336.32 | Q31: 0.4664308773 | R31: 4.34453513 | S31: 8.689070259 | T31: 26.06721078 | U31: 34.75628104 | W31: =IF($A31>0,SUMIF('Age profile (years)'!$CT31:$GF31,"<" & R31+0.5,'Asset data'!$CX31:$GJ31),0) -> 5565.424981 | X31: =IF($A31>0,SUMIF('Age profile (years)'!$CT31:$GF31,"<" & S31+0.5,'Asset data'!$CX31:$GJ31)-W31,0) -> 770.9679628 | Y31: =IF($A31>0,SUMIF('Age profile (years)'!$CT31:$GF31,"<" & T31+0.5,'Asset data'!$CX31:$GJ31)-X31-W31,0) -> 387278.8912 | Z31: =IF($A31>0,SUMIF('Age profile (years)'!$CT31:$GF31,"<" & U31+0.5,'Asset data'!$CX31:$GJ31)-Y31-X31-W31,0) -> 93817.16397 | AA31: 63773.50617 | AB31: 0.01009681579 | AC31: 0.001398693096 | AD31: 0.7026028804 | AE31: 0.1702034661 | AF31: 0.1156981445 | AI31: =IF($A31>0,'RRR hist-forc'!K31,0) -> 43.4453513 | AJ31: 23947336.32
A32: ='Asset data'!A32 -> 1 | B32: ='Asset data'!B32 -> 0 | C32: ='Asset data'!C32 -> 0 | D32: ='Asset data'!E32 -> > 22 KV & < = 66 KV; CONCRETE | E32: POLES | F32: =IF(A32>0,SUM('Asset data'!J32:CV32),0) -> 10068 | G32: =IF(A32>0,'Asset data'!F32,0) -> 20.18874088 | H32: =IF(A32>0,SUM('Asset data'!CX32:GJ32),0) -> 203260.2432 | I32: 0.007405599787 | J32: 22 | K32: 0.03791369705 | L32: 20.18874088 | M32: =IF($A32>0,SUMPRODUCT('Age profile (years)'!$CT32:$GF32,'Asset data'!$CX32:$GJ32)/H32-0.5,0) -> 22.18245928 | N32: 4508812.067 | O32: =IF($A32>0,'Asset data'!G32,0) -> 39.98179659 | P32: 8126709.699 | Q32: 0.4451860304 | R32: 3.998179659 | S32: 7.996359318 | T32: 23.98907795 | U32: 31.98543727 | W32: =IF($A32>0,SUMIF('Age profile (years)'!$CT32:$GF32,"<" & R32+0.5,'Asset data'!$CX32:$GJ32),0) -> 928.6820805 | X32: =IF($A32>0,SUMIF('Age profile (years)'!$CT32:$GF32,"<" & S32+0.5,'Asset data'!$CX32:$GJ32)-W32,0) -> 262.4536315 | Y32: =IF($A32>0,SUMIF('Age profile (years)'!$CT32:$GF32,"<" & T32+0.5,'Asset data'!$CX32:$GJ32)-X32-W32,0) -> 127613.0311 | Z32: =IF($A32>0,SUMIF('Age profile (years)'!$CT32:$GF32,"<" & U32+0.5,'Asset data'!$CX32:$GJ32)-Y32-X32-W32,0) -> 39307.4785 | AA32: 35148.59787 | AB32: 0.004568931267 | AC32: 0.001291219706 | AD32: 0.6278307509 | AE32: 0.1933849821 | AF32: 0.172924116 | AI32: =IF($A32>0,'RRR hist-forc'!K32,0) -> 39.98179659 | AJ32: 8126709.699
A33: ='Asset data'!A33 -> 1 | B33: ='Asset data'!B33 -> 0 | C33: ='Asset data'!C33 -> 0 | D33: ='Asset data'!E33 -> > 66 KV & < = 132 KV; CONCRETE | E33: POLES | F33: =IF(A33>0,SUM('Asset data'!J33:CV33),0) -> 11342 | G33: =IF(A33>0,'Asset data'!F33,0) -> 14.41742799 | H33: =IF(A33>0,SUM('Asset data'!CX33:GJ33),0) -> 163522.4683 | I33: 0.005957790551 | J33: 26 | K33: 0.03050149516 | L33: 14.41742799 | M33: =IF($A33>0,SUMPRODUCT('Age profile (years)'!$CT33:$GF33,'Asset data'!$CX33:$GJ33)/H33-0.5,0) -> 19.64239111 | N33: 3211972.278 | O33: =IF($A33>0,'Asset data'!G33,0) -> 38.67900718 | P33: 6324886.726 | Q33: 0.4921692013 | R33: 3.867900718 | S33: 7.735801437 | T33: 23.20740431 | U33: 30.94320575 | W33: =IF($A33>0,SUMIF('Age profile (years)'!$CT33:$GF33,"<" & R33+0.5,'Asset data'!$CX33:$GJ33),0) -> 634.3668317 | X33: =IF($A33>0,SUMIF('Age profile (years)'!$CT33:$GF33,"<" & S33+0.5,'Asset data'!$CX33:$GJ33)-W33,0) -> 9356.910767 | Y33: =IF($A33>0,SUMIF('Age profile (years)'!$CT33:$GF33,"<" & T33+0.5,'Asset data'!$CX33:$GJ33)-X33-W33,0) -> 102334.9039 | Z33: =IF($A33>0,SUMIF('Age profile (years)'!$CT33:$GF33,"<" & U33+0.5,'Asset data'!$CX33:$GJ33)-Y33-X33-W33,0) -> 25071.90728 | AA33: 26124.37952 | AB33: 0.003879386352 | AC33: 0.05722094869 | AD33: 0.6258155528 | AE33: 0.1533239288 | AF33: 0.1597601834 | AI33: =IF($A33>0,'RRR hist-forc'!K33,0) -> 38.67900718 | AJ33: 6324886.726
A34: ='Asset data'!A34 -> 0 | B34: ='Asset data'!B34 -> 0 | C34: ='Asset data'!C34 -> 0 | D34: ='Asset data'!E34 -> > 132 KV; CONCRETE | E34: 0 | F34: =IF(A34>0,SUM('Asset data'!J34:CV34),0) -> 0 | G34: =IF(A34>0,'Asset data'!F34,0) -> 0 | H34: =IF(A34>0,SUM('Asset data'!CX34:GJ34),0) -> 0 | I34: 0 | J34: 0 | K34: 0 | L34: 0 | M34: =IF($A34>0,SUMPRODUCT('Age profile (years)'!$CT34:$GF34,'Asset data'!$CX34:$GJ34)/H34-0.5,0) -> 0 | N34: 0 | O34: =IF($A34>0,'Asset data'!G34,0) -> 0 | P34: 0 | Q34: 0 | R34: 0 | S34: 0 | T34: 0 | U34: 0 | W34: =IF($A34>0,SUMIF('Age profile (years)'!$CT34:$GF34,"<" & R34+0.5,'Asset data'!$CX34:$GJ34),0) -> 0 | X34: =IF($A34>0,SUMIF('Age profile (years)'!$CT34:$GF34,"<" & S34+0.5,'Asset data'!$CX34:$GJ34)-W34,0) -> 0 | Y34: =IF($A34>0,SUMIF('Age profile (years)'!$CT34:$GF34,"<" & T34+0.5,'Asset data'!$CX34:$GJ34)-X34-W34,0) -> 0 | Z34: =IF($A34>0,SUMIF('Age profile (years)'!$CT34:$GF34,"<" & U34+0.5,'Asset data'!$CX34:$GJ34)-Y34-X34-W34,0) -> 0 | AA34: 0 | AB34: 0 | AC34: 0 | AD34: 0 | AE34: 0 | AF34: 0 | AI34: =IF($A34>0,'RRR hist-forc'!K34,0) -> 0 | AJ34: 0
A35: ='Asset data'!A35 -> 1 | B35: ='Asset data'!B35 -> 0 | C35: ='Asset data'!C35 -> 0 | D35: ='Asset data'!E35 -> ˂ = 1 KV; STEEL | E35: POLES | F35: =IF(A35>0,SUM('Asset data'!J35:CV35),0) -> 13802 | G35: =IF(A35>0,'Asset data'!F35,0) -> 8.35319239 | H35: =IF(A35>0,SUM('Asset data'!CX35:GJ35),0) -> 115290.7614 | I35: 0.004200512724 | J35: 31 | K35: 0.02150493835 | L35: 8.35319239 | M35: =IF($A35>0,SUMPRODUCT('Age profile (years)'!$CT35:$GF35,'Asset data'!$CX35:$GJ35)/H35-0.5,0) -> 47.98471236 | N35: 5532194.022 | O35: =IF($A35>0,'Asset data'!G35,0) -> 72.04154775 | P35: 8305724.891 | Q35: 0.3339300187 | R35: 7.204154775 | S35: 14.40830955 | T35: 43.22492865 | U35: 57.6332382 | W35: =IF($A35>0,SUMIF('Age profile (years)'!$CT35:$GF35,"<" & R35+0.5,'Asset data'!$CX35:$GJ35),0) -> 4343.660043 | X35: =IF($A35>0,SUMIF('Age profile (years)'!$CT35:$GF35,"<" & S35+0.5,'Asset data'!$CX35:$GJ35)-W35,0) -> 4134.830233 | Y35: =IF($A35>0,SUMIF('Age profile (years)'!$CT35:$GF35,"<" & T35+0.5,'Asset data'!$CX35:$GJ35)-X35-W35,0) -> 29595.36064 | Z35: =IF($A35>0,SUMIF('Age profile (years)'!$CT35:$GF35,"<" & U35+0.5,'Asset data'!$CX35:$GJ35)-Y35-X35-W35,0) -> 28567.91797 | AA35: 48648.99248 | AB35: 0.03767569917 | AC35: 0.03586436748 | AD35: 0.2567019273 | AE35: 0.2477901753 | AF35: 0.4219678307 | AI35: =IF($A35>0,'RRR hist-forc'!K35,0) -> 72.04154775 | AJ35: 8305724.891
A36: ='Asset data'!A36 -> 1 | B36: ='Asset data'!B36 -> 0 | C36: ='Asset data'!C36 -> 0 | D36: ='Asset data'!E36 -> > 1 KV & < = 11 KV; STEEL | E36: POLES | F36: =IF(A36>0,SUM('Asset data'!J36:CV36),0) -> 5913 | G36: =IF(A36>0,'Asset data'!F36,0) -> 8.502050356 | H36: =IF(A36>0,SUM('Asset data'!CX36:GJ36),0) -> 50272.62376 | I36: 0.001831636753 | J36: 42 | K36: 0.009377244646 | L36: 8.502050356 | M36: =IF($A36>0,SUMPRODUCT('Age profile (years)'!$CT36:$GF36,'Asset data'!$CX36:$GJ36)/H36-0.5,0) -> 25.33696939 | N36: 1273755.929 | O36: =IF($A36>0,'Asset data'!G36,0) -> 29.86838242 | P36: 1501561.951 | Q36: 0.1517127029 | R36: 2.986838242 | S36: 5.973676483 | T36: 17.92102945 | U36: 23.89470593 | W36: =IF($A36>0,SUMIF('Age profile (years)'!$CT36:$GF36,"<" & R36+0.5,'Asset data'!$CX36:$GJ36),0) -> 1606.887517 | X36: =IF($A36>0,SUMIF('Age profile (years)'!$CT36:$GF36,"<" & S36+0.5,'Asset data'!$CX36:$GJ36)-W36,0) -> 93.52255392 | Y36: =IF($A36>0,SUMIF('Age profile (years)'!$CT36:$GF36,"<" & T36+0.5,'Asset data'!$CX36:$GJ36)-X36-W36,0) -> 705.6701796 | Z36: =IF($A36>0,SUMIF('Age profile (years)'!$CT36:$GF36,"<" & U36+0.5,'Asset data'!$CX36:$GJ36)-Y36-X36-W36,0) -> 2992.721725 | AA36: 44873.82178 | AB36: 0.03196347032 | AC36: 0.001860307796 | AD36: 0.01403686792 | AE36: 0.05952984948 | AF36: 0.8926095045 | AI36: =IF($A36>0,'RRR hist-forc'!K36,0) -> 29.86838242 | AJ36: 1501561.951
A37: ='Asset data'!A37 -> 1 | B37: ='Asset data'!B37 -> 0 | C37: ='Asset data'!C37 -> 0 | D37: ='Asset data'!E37 -> ˃ 11 KV & < = 22 KV; STEEL | E37: POLES | F37: =IF(A37>0,SUM('Asset data'!J37:CV37),0) -> 9171 | G37: =IF(A37>0,'Asset data'!F37,0) -> 9.224428936 | H37: =IF(A37>0,SUM('Asset data'!CX37:GJ37),0) -> 84597.23777 | I37: 0.003082222456 | J37: 37 | K37: 0.01577974125 | L37: 9.224428936 | M37: =IF($A37>0,SUMPRODUCT('Age profile (years)'!$CT37:$GF37,'Asset data'!$CX37:$GJ37)/H37-0.5,0) -> 5.007033039 | N37: 423581.1645 | O37: =IF($A37>0,'Asset data'!G37,0) -> 9.092886853 | P37: 769233.1111 | Q37: 0.4493461626 | R37: =IF($A37>0,$O37-R$4*$O37,0) -> 0.9092886853 | S37: 1.818577371 | T37: 5.455732112 | U37: 7.274309483 | W37: =IF($A37>0,SUMIF('Age profile (years)'!$CT37:$GF37,"<" & R37+0.5,'Asset data'!$CX37:$GJ37),0) -> 2831.899683 | X37: =IF($A37>0,SUMIF('Age profile (years)'!$CT37:$GF37,"<" & S37+0.5,'Asset data'!$CX37:$GJ37)-W37,0) -> 2029.374366 | Y37: =IF($A37>0,SUMIF('Age profile (years)'!$CT37:$GF37,"<" & T37+0.5,'Asset data'!$CX37:$GJ37)-X37-W37,0) -> 21751.20343 | Z37: =IF($A37>0,SUMIF('Age profile (years)'!$CT37:$GF37,"<" & U37+0.5,'Asset data'!$CX37:$GJ37)-Y37-X37-W37,0) -> 23024.17462 | AA37: 34960.58567 | AB37: 0.03347508451 | AC37: 0.02398865991 | AD37: 0.2571148184 | AE37: 0.2721622506 | AF37: 0.4132591866 | AI37: =IF($A37>0,'RRR hist-forc'!K37,0) -> 9.092886853 | AJ37: 769233.1111
A38: ='Asset data'!A38 -> 1 | B38: ='Asset data'!B38 -> 0 | C38: ='Asset data'!C38 -> 0 | D38: ='Asset data'!E38 -> > 22 KV & < = 66 KV; STEEL | E38: POLES | F38: =IF(A38>0,SUM('Asset data'!J38:CV38),0) -> 1011 | G38: =IF(A38>0,'Asset data'!F38,0) -> 19.83449594 | H38: =IF(A38>0,SUM('Asset data'!CX38:GJ38),0) -> 20052.6754 | I38: 0.0007306007625 | J38: 51 | K38: 0.003740382518 | L38: 19.83449594 | M38: =IF($A38>0,SUMPRODUCT('Age profile (years)'!$CT38:$GF38,'Asset data'!$CX38:$GJ38)/H38-0.5,0) -> 3.71859545 | N38: 74567.7875 | O38: =IF($A38>0,'Asset data'!G38,0) -> 9.162386895 | P38: 183730.3703 | Q38: 0.5941455548 | R38: 0.9162386895 | S38: 1.832477379 | T38: 5.497432137 | U38: 7.329909516 | W38: =IF($A38>0,SUMIF('Age profile (years)'!$CT38:$GF38,"<" & R38+0.5,'Asset data'!$CX38:$GJ38),0) -> 1368.58022 | X38: =IF($A38>0,SUMIF('Age profile (years)'!$CT38:$GF38,"<" & S38+0.5,'Asset data'!$CX38:$GJ38)-W38,0) -> 1705.766651 | Y38: =IF($A38>0,SUMIF('Age profile (years)'!$CT38:$GF38,"<" & T38+0.5,'Asset data'!$CX38:$GJ38)-X38-W38,0) -> 6664.390637 | Z38: =IF($A38>0,SUMIF('Age profile (years)'!$CT38:$GF38,"<" & U38+0.5,'Asset data'!$CX38:$GJ38)-Y38-X38-W38,0) -> 6545.383661 | AA38: 3768.554229 | AB38: 0.06824925816 | AC38: 0.08506429278 | AD38: 0.3323442136 | AE38: 0.3264094955 | AF38: 0.1879327399 | AI38: =IF($A38>0,'RRR hist-forc'!K38,0) -> 9.162386895 | AJ38: 183730.3703
A39: ='Asset data'!A39 -> 1 | B39: ='Asset data'!B39 -> 0 | C39: ='Asset data'!C39 -> 0 | D39: ='Asset data'!E39 -> > 66 KV & < = 132 KV; STEEL | E39: POLES | F39: =IF(A39>0,SUM('Asset data'!J39:CV39),0) -> 2384 | G39: =IF(A39>0,'Asset data'!F39,0) -> 15.08079068 | H39: =IF(A39>0,SUM('Asset data'!CX39:GJ39),0) -> 35952.60499 | I39: 0.001309900056 | J39: 45 | K39: 0.00670616227 | L39: 15.08079068 | M39: =IF($A39>0,SUMPRODUCT('Age profile (years)'!$CT39:$GF39,'Asset data'!$CX39:$GJ39)/H39-0.5,0) -> 55.9807047 | N39: 2012652.163 | O39: =IF($A39>0,'Asset data'!G39,0) -> 63.07717371 | P39: 2267788.71 | Q39: 0.1125045495 | R39: 6.307717371 | S39: 12.61543474 | T39: 37.84630423 | U39: 50.46173897 | W39: =IF($A39>0,SUMIF('Age profile (years)'!$CT39:$GF39,"<" & R39+0.5,'Asset data'!$CX39:$GJ39),0) -> 1236.624836 | X39: =IF($A39>0,SUMIF('Age profile (years)'!$CT39:$GF39,"<" & S39+0.5,'Asset data'!$CX39:$GJ39)-W39,0) -> 211.1310696 | Y39: =IF($A39>0,SUMIF('Age profile (years)'!$CT39:$GF39,"<" & T39+0.5,'Asset data'!$CX39:$GJ39)-X39-W39,0) -> 754.0395342 | Z39: =IF($A39>0,SUMIF('Age profile (years)'!$CT39:$GF39,"<" & U39+0.5,'Asset data'!$CX39:$GJ39)-Y39-X39-W39,0) -> 603.2316273 | AA39: 33147.57792 | AB39: 0.03439597315 | AC39: 0.005872483221 | AD39: 0.02097315436 | AE39: 0.01677852349 | AF39: 0.9219798658 | AI39: =IF($A39>0,'RRR hist-forc'!K39,0) -> 63.07717371 | AJ39: 2267788.71
A40: ='Asset data'!A40 -> 1 | B40: ='Asset data'!B40 -> 0 | C40: ='Asset data'!C40 -> 0 | D40: ='Asset data'!E40 -> > 132 KV; STEEL | E40: POLES | F40: =IF(A40>0,SUM('Asset data'!J40:CV40),0) -> 10 | G40: =IF(A40>0,'Asset data'!F40,0) -> 15.08079068 | H40: =IF(A40>0,SUM('Asset data'!CX40:GJ40),0) -> 150.8079068 | I40: 5.494547213e-06 | J40: 76 | K40: 2.812987529e-05 | L40: 15.08079068 | M40: =IF($A40>0,SUMPRODUCT('Age profile (years)'!$CT40:$GF40,'Asset data'!$CX40:$GJ40)/H40-0.5,0) -> 5.5 | N40: 829.4434876 | O40: =IF($A40>0,'Asset data'!G40,0) -> 53.8 | P40: 8113.465388 | Q40: 0.8977695167 | R40: 5.38 | S40: 10.76 | T40: 32.28 | U40: 43.04 | W40: =IF($A40>0,SUMIF('Age profile (years)'!$CT40:$GF40,"<" & R40+0.5,'Asset data'!$CX40:$GJ40),0) -> 0 | X40: =IF($A40>0,SUMIF('Age profile (years)'!$CT40:$GF40,"<" & S40+0.5,'Asset data'!$CX40:$GJ40)-W40,0) -> 150.8079068 | Y40: =IF($A40>0,SUMIF('Age profile (years)'!$CT40:$GF40,"<" & T40+0.5,'Asset data'!$CX40:$GJ40)-X40-W40,0) -> 0 | Z40: =IF($A40>0,SUMIF('Age profile (years)'!$CT40:$GF40,"<" & U40+0.5,'Asset data'!$CX40:$GJ40)-Y40-X40-W40,0) -> 0 | AA40: 0 | AB40: 0 | AC40: 1 | AD40: 0 | AE40: 0 | AF40: 0 | AI40: =IF($A40>0,'RRR hist-forc'!K40,0) -> 53.8 | AJ40: 8113.465388
A41: ='Asset data'!A41 -> 1 | B41: ='Asset data'!B41 -> 0 | C41: ='Asset data'!C41 -> 0 | D41: ='Asset data'!E41 -> OTHER - BOLLARDS | E41: POLES | F41: =IF(A41>0,SUM('Asset data'!J41:CV41),0) -> 11902 | G41: =IF(A41>0,'Asset data'!F41,0) -> 5.340912193 | H41: =IF(A41>0,SUM('Asset data'!CX41:GJ41),0) -> 63567.53693 | I41: 0.002316024671 | J41: 40 | K41: 0.01185711627 | L41: 5.340912193 | M41: =IF($A41>0,SUMPRODUCT('Age profile (years)'!$CT41:$GF41,'Asset data'!$CX41:$GJ41)/H41-0.5,0) -> 35.89968073 | N41: 2282054.28 | O41: =IF($A41>0,'Asset data'!G41,0) -> 68.82510457 | P41: 4375042.376 | Q41: 0.4783926454 | R41: 6.882510457 | S41: 13.76502091 | T41: 41.29506274 | U41: 55.06008365 | W41: =IF($A41>0,SUMIF('Age profile (years)'!$CT41:$GF41,"<" & R41+0.5,'Asset data'!$CX41:$GJ41),0) -> 2649.092448 | X41: =IF($A41>0,SUMIF('Age profile (years)'!$CT41:$GF41,"<" & S41+0.5,'Asset data'!$CX41:$GJ41)-W41,0) -> 2713.183394 | Y41: =IF($A41>0,SUMIF('Age profile (years)'!$CT41:$GF41,"<" & T41+0.5,'Asset data'!$CX41:$GJ41)-X41-W41,0) -> 32515.47343 | Z41: =IF($A41>0,SUMIF('Age profile (years)'!$CT41:$GF41,"<" & U41+0.5,'Asset data'!$CX41:$GJ41)-Y41-X41-W41,0) -> 16028.07749 | AA41: 9661.710158 | AB41: 0.04167366829 | AC41: 0.0426819022 | AD41: 0.5115106705 | AE41: 0.2521424971 | AF41: 0.151991262 | AI41: =IF($A41>0,'RRR hist-forc'!K41,0) -> 68.82510457 | AJ41: 4375042.376
A42: ='Asset data'!A42 -> 2 | B42: ='Asset data'!B42 -> 0 | C42: ='Asset data'!C42 -> 0 | D42: ='Asset data'!E42 -> ˂ = 1 KV | E42: OVERHEAD CONDUCTORS | F42: =IF(A42>0,SUM('Asset data'!J42:CV42),0) -> 28247.724 | G42: =IF(A42>0,'Asset data'!F42,0) -> 58.89030058 | H42: =IF(A42>0,SUM('Asset data'!CX42:GJ42),0) -> 1663516.957 | I42: 0.06060870847 | J42: 4 | K42: 0.1222928597 | L42: 58.89030058 | M42: =IF($A42>0,SUMPRODUCT('Age profile (years)'!$CT42:$GF42,'Asset data'!$CX42:$GJ42)/H42-0.5,0) -> 49.01285718 | N42: 81533719.03 | O42: =IF($A42>0,'Asset data'!G42,0) -> 76.11975903 | P42: 126626509.9 | Q42: 0.3561086135 | R42: 7.611975903 | S42: 15.22395181 | T42: 45.67185542 | U42: 60.89580722 | W42: =IF($A42>0,SUMIF('Age profile (years)'!$CT42:$GF42,"<" & R42+0.5,'Asset data'!$CX42:$GJ42),0) -> 5645.82222 | X42: =IF($A42>0,SUMIF('Age profile (years)'!$CT42:$GF42,"<" & S42+0.5,'Asset data'!$CX42:$GJ42)-W42,0) -> 32446.09557 | Y42: =IF($A42>0,SUMIF('Age profile (years)'!$CT42:$GF42,"<" & T42+0.5,'Asset data'!$CX42:$GJ42)-X42-W42,0) -> 658819.5708 | Z42: =IF($A42>0,SUMIF('Age profile (years)'!$CT42:$GF42,"<" & U42+0.5,'Asset data'!$CX42:$GJ42)-Y42-X42-W42,0) -> 452547.1623 | AA42: 514058.3061 | AB42: 0.003393907226 | AC42: 0.01950451748 | AD42: 0.3960401895 | AE42: 0.2720424101 | AF42: 0.3090189757 | AI42: =IF($A42>0,'RRR hist-forc'!K42,0) -> 76.11975903 | AJ42: 126626509.9
A43: ='Asset data'!A43 -> 2 | B43: ='Asset data'!B43 -> 0 | C43: ='Asset data'!C43 -> 0 | D43: ='Asset data'!E43 -> > 1 KV & < = 11 KV | E43: OVERHEAD CONDUCTORS | F43: =IF(A43>0,SUM('Asset data'!J43:CV43),0) -> 70308.85451 | G43: =IF(A43>0,'Asset data'!F43,0) -> 70.16466111 | H43: =IF(A43>0,SUM('Asset data'!CX43:GJ43),0) -> 4933196.949 | I43: 0.1797364881 | J43: 1 | K43: 0.3626622259 | L43: 70.16466111 | M43: =IF($A43>0,SUMPRODUCT('Age profile (years)'!$CT43:$GF43,'Asset data'!$CX43:$GJ43)/H43-0.5,0) -> 31.92241968 | N43: 157479583.4 | O43: =IF($A43>0,'Asset data'!G43,0) -> 78.44010057 | P43: 386960464.8 | Q43: 0.5930344371 | R43: 7.844010057 | S43: 15.68802011 | T43: 47.06406034 | U43: 62.75208045 | W43: =IF($A43>0,SUMIF('Age profile (years)'!$CT43:$GF43,"<" & R43+0.5,'Asset data'!$CX43:$GJ43),0) -> 83838.78659 | X43: =IF($A43>0,SUMIF('Age profile (years)'!$CT43:$GF43,"<" & S43+0.5,'Asset data'!$CX43:$GJ43)-W43,0) -> 818371.7967 | Y43: =IF($A43>0,SUMIF('Age profile (years)'!$CT43:$GF43,"<" & T43+0.5,'Asset data'!$CX43:$GJ43)-X43-W43,0) -> 3139207.498 | Z43: =IF($A43>0,SUMIF('Age profile (years)'!$CT43:$GF43,"<" & U43+0.5,'Asset data'!$CX43:$GJ43)-Y43-X43-W43,0) -> 222769.0384 | AA43: 669009.83 | AB43: 0.01699481846 | AC43: 0.1658907611 | AD43: 0.6363434361 | AE43: 0.04515713454 | AF43: 0.1356138498 | AI43: =IF($A43>0,'RRR hist-forc'!K43,0) -> 78.44010057 | AJ43: 386960464.8
A44: ='Asset data'!A44 -> 2 | B44: ='Asset data'!B44 -> 0 | C44: ='Asset data'!C44 -> 0 | D44: ='Asset data'!E44 -> ˃ 11 KV & < = 22 KV ; SWER | E44: OVERHEAD CONDUCTORS | F44: =IF(A44>0,SUM('Asset data'!J44:CV44),0) -> 29698.62961 | G44: =IF(A44>0,'Asset data'!F44,0) -> 36.24075581 | H44: =IF(A44>0,SUM('Asset data'!CX44:GJ44),0) -> 1076300.784 | I44: 0.03921402793 | J44: 11 | K44: 0.07912387077 | L44: 36.24075581 | M44: =IF($A44>0,SUMPRODUCT('Age profile (years)'!$CT44:$GF44,'Asset data'!$CX44:$GJ44)/H44-0.5,0) -> 51.62073918 | N44: 55559442.03 | O44: =IF($A44>0,'Asset data'!G44,0) -> 93.91419993 | P44: 101079927 | Q44: 0.4503414902 | R44: 9.391419993 | S44: 18.78283999 | T44: 56.34851996 | U44: 75.13135994 | W44: =IF($A44>0,SUMIF('Age profile (years)'!$CT44:$GF44,"<" & R44+0.5,'Asset data'!$CX44:$GJ44),0) -> 0 | X44: =IF($A44>0,SUMIF('Age profile (years)'!$CT44:$GF44,"<" & S44+0.5,'Asset data'!$CX44:$GJ44)-W44,0) -> 7469.791355 | Y44: =IF($A44>0,SUMIF('Age profile (years)'!$CT44:$GF44,"<" & T44+0.5,'Asset data'!$CX44:$GJ44)-X44-W44,0) -> 681989.7125 | Z44: =IF($A44>0,SUMIF('Age profile (years)'!$CT44:$GF44,"<" & U44+0.5,'Asset data'!$CX44:$GJ44)-Y44-X44-W44,0) -> 282376.1087 | AA44: 104465.171 | AB44: 0 | AC44: 0.006940245208 | AD44: 0.633642308 | AE44: 0.2623579886 | AF44: 0.09705945829 | AI44: =IF($A44>0,'RRR hist-forc'!K44,0) -> 93.91419993 | AJ44: 101079927
A45: ='Asset data'!A45 -> 2 | B45: ='Asset data'!B45 -> 0 | C45: ='Asset data'!C45 -> 0 | D45: ='Asset data'!E45 -> ˃ 11 KV & < = 22 KV ; SINGLE-PHASE | E45: OVERHEAD CONDUCTORS | F45: =IF(A45>0,SUM('Asset data'!J45:CV45),0) -> 21121.31165 | G45: =IF(A45>0,'Asset data'!F45,0) -> 73.23463169 | H45: =IF(A45>0,SUM('Asset data'!CX45:GJ45),0) -> 1546811.48 | I45: 0.05635665188 | J45: 5 | K45: 0.1137132979 | L45: 73.23463169 | M45: =IF($A45>0,SUMPRODUCT('Age profile (years)'!$CT45:$GF45,'Asset data'!$CX45:$GJ45)/H45-0.5,0) -> 36.60811808 | N45: 56625857.31 | O45: =IF($A45>0,'Asset data'!G45,0) -> 86.33438851 | P45: 133543023.3 | Q45: 0.5759729267 | R45: 8.633438851 | S45: 17.2668777 | T45: 51.80063311 | U45: 69.06751081 | W45: =IF($A45>0,SUMIF('Age profile (years)'!$CT45:$GF45,"<" & R45+0.5,'Asset data'!$CX45:$GJ45),0) -> 46695.14732 | X45: =IF($A45>0,SUMIF('Age profile (years)'!$CT45:$GF45,"<" & S45+0.5,'Asset data'!$CX45:$GJ45)-W45,0) -> 21950.44125 | Y45: =IF($A45>0,SUMIF('Age profile (years)'!$CT45:$GF45,"<" & T45+0.5,'Asset data'!$CX45:$GJ45)-X45-W45,0) -> 1268498.934 | Z45: =IF($A45>0,SUMIF('Age profile (years)'!$CT45:$GF45,"<" & U45+0.5,'Asset data'!$CX45:$GJ45)-Y45-X45-W45,0) -> 99477.12036 | AA45: 110189.8367 | AB45: 0.03018800153 | AC45: 0.01419076696 | AD45: 0.8200733902 | AE45: 0.06431108229 | AF45: 0.07123675903 | AI45: =IF($A45>0,'RRR hist-forc'!K45,0) -> 86.33438851 | AJ45: 133543023.3
A46: ='Asset data'!A46 -> 2 | B46: ='Asset data'!B46 -> 0 | C46: ='Asset data'!C46 -> 0 | D46: ='Asset data'!E46 -> ˃ 11 KV & < = 22 KV ; MULTIPLE-PHASE | E46: OVERHEAD CONDUCTORS | F46: =IF(A46>0,SUM('Asset data'!J46:CV46),0) -> 21039.04631 | G46: =IF(A46>0,'Asset data'!F46,0) -> 62.52225782 | H46: =IF(A46>0,SUM('Asset data'!CX46:GJ46),0) -> 1315408.678 | I46: 0.04792570386 | J46: 7 | K46: 0.09670180289 | L46: 62.52225782 | M46: =IF($A46>0,SUMPRODUCT('Age profile (years)'!$CT46:$GF46,'Asset data'!$CX46:$GJ46)/H46-0.5,0) -> 39.60616727 | N46: 52098296.12 | O46: =IF($A46>0,'Asset data'!G46,0) -> 86.33438851 | P46: 113565003.8 | Q46: 0.5412469127 | R46: 8.633438851 | S46: 17.2668777 | T46: 51.80063311 | U46: 69.06751081 | W46: =IF($A46>0,SUMIF('Age profile (years)'!$CT46:$GF46,"<" & R46+0.5,'Asset data'!$CX46:$GJ46),0) -> 38097.08436 | X46: =IF($A46>0,SUMIF('Age profile (years)'!$CT46:$GF46,"<" & S46+0.5,'Asset data'!$CX46:$GJ46)-W46,0) -> 67799.05949 | Y46: =IF($A46>0,SUMIF('Age profile (years)'!$CT46:$GF46,"<" & T46+0.5,'Asset data'!$CX46:$GJ46)-X46-W46,0) -> 956526.3308 | Z46: =IF($A46>0,SUMIF('Age profile (years)'!$CT46:$GF46,"<" & U46+0.5,'Asset data'!$CX46:$GJ46)-Y46-X46-W46,0) -> 81950.1784 | AA46: 171036.0246 | AB46: 0.02896216591 | AC46: 0.05154220178 | AD46: 0.7271704582 | AE46: 0.06230016556 | AF46: 0.1300250086 | AI46: =IF($A46>0,'RRR hist-forc'!K46,0) -> 86.33438851 | AJ46: 113565003.8
A47: ='Asset data'!A47 -> 2 | B47: ='Asset data'!B47 -> 0 | C47: ='Asset data'!C47 -> 0 | D47: ='Asset data'!E47 -> > 22 KV & < = 66 KV | E47: OVERHEAD CONDUCTORS | F47: =IF(A47>0,SUM('Asset data'!J47:CV47),0) -> 12933.05965 | G47: =IF(A47>0,'Asset data'!F47,0) -> 228.5221839 | H47: =IF(A47>0,SUM('Asset data'!CX47:GJ47),0) -> 2955491.034 | I47: 0.1076805943 | J47: 2 | K47: 0.2172718763 | L47: 228.5221839 | M47: =IF($A47>0,SUMPRODUCT('Age profile (years)'!$CT47:$GF47,'Asset data'!$CX47:$GJ47)/H47-0.5,0) -> 62.67220843 | N47: 185227150.1 | O47: =IF($A47>0,'Asset data'!G47,0) -> 102.7406311 | P47: 303649014 | Q47: 0.3899958782 | R47: 10.27406311 | S47: 20.54812621 | T47: 61.64437864 | U47: 82.19250486 | W47: =IF($A47>0,SUMIF('Age profile (years)'!$CT47:$GF47,"<" & R47+0.5,'Asset data'!$CX47:$GJ47),0) -> 0 | X47: =IF($A47>0,SUMIF('Age profile (years)'!$CT47:$GF47,"<" & S47+0.5,'Asset data'!$CX47:$GJ47)-W47,0) -> 60208.31263 | Y47: =IF($A47>0,SUMIF('Age profile (years)'!$CT47:$GF47,"<" & T47+0.5,'Asset data'!$CX47:$GJ47)-X47-W47,0) -> 1751622.554 | Z47: =IF($A47>0,SUMIF('Age profile (years)'!$CT47:$GF47,"<" & U47+0.5,'Asset data'!$CX47:$GJ47)-Y47-X47-W47,0) -> 610514.7843 | AA47: 533145.3834 | AB47: 0 | AC47: 0.02037167832 | AD47: 0.5926671858 | AE47: 0.2065696621 | AF47: 0.1803914737 | AI47: =IF($A47>0,'RRR hist-forc'!K47,0) -> 102.7406311 | AJ47: 303649014
A48: ='Asset data'!A48 -> 2 | B48: ='Asset data'!B48 -> 0 | C48: ='Asset data'!C48 -> 0 | D48: ='Asset data'!E48 -> > 66 KV & < = 132 KV | E48: OVERHEAD CONDUCTORS | F48: =IF(A48>0,SUM('Asset data'!J48:CV48),0) -> 1933.722273 | G48: =IF(A48>0,'Asset data'!F48,0) -> 57.83349437 | H48: =IF(A48>0,SUM('Asset data'!CX48:GJ48),0) -> 111833.9162 | I48: 0.004074565753 | J48: 32 | K48: 0.008221430726 | L48: 57.83349437 | M48: =IF($A48>0,SUMPRODUCT('Age profile (years)'!$CT48:$GF48,'Asset data'!$CX48:$GJ48)/H48-0.5,0) -> 50.05770233 | N48: 5598148.887 | O48: =IF($A48>0,'Asset data'!G48,0) -> 80.21742442 | P48: 8971028.719 | Q48: 0.3759747001 | R48: 8.021742442 | S48: 16.04348488 | T48: 48.13045465 | U48: 64.17393953 | W48: =IF($A48>0,SUMIF('Age profile (years)'!$CT48:$GF48,"<" & R48+0.5,'Asset data'!$CX48:$GJ48),0) -> 0 | X48: =IF($A48>0,SUMIF('Age profile (years)'!$CT48:$GF48,"<" & S48+0.5,'Asset data'!$CX48:$GJ48)-W48,0) -> 0 | Y48: =IF($A48>0,SUMIF('Age profile (years)'!$CT48:$GF48,"<" & T48+0.5,'Asset data'!$CX48:$GJ48)-X48-W48,0) -> 40216.71247 | Z48: =IF($A48>0,SUMIF('Age profile (years)'!$CT48:$GF48,"<" & U48+0.5,'Asset data'!$CX48:$GJ48)-Y48-X48-W48,0) -> 54863.23502 | AA48: 16753.9687 | AB48: 0 | AC48: 0 | AD48: 0.3596110539 | AE48: 0.4905777861 | AF48: 0.1498111599 | AI48: =IF($A48>0,'RRR hist-forc'!K48,0) -> 80.21742442 | AJ48: 8971028.719
A49: ='Asset data'!A49 -> 2 | B49: ='Asset data'!B49 -> 0 | C49: ='Asset data'!C49 -> 0 | D49: ='Asset data'!E49 -> > 132 KV | E49: OVERHEAD CONDUCTORS | F49: =IF(A49>0,SUM('Asset data'!J49:CV49),0) -> 2.972 | G49: =IF(A49>0,'Asset data'!F49,0) -> 57.83349437 | H49: =IF(A49>0,SUM('Asset data'!CX49:GJ49),0) -> 171.8811453 | I49: 6.26233125e-06 | J49: 75 | K49: 1.26357815e-05 | L49: 57.83349437 | M49: =IF($A49>0,SUMPRODUCT('Age profile (years)'!$CT49:$GF49,'Asset data'!$CX49:$GJ49)/H49-0.5,0) -> 27.5 | N49: 4726.731495 | O49: =IF($A49>0,'Asset data'!G49,0) -> 54.9 | P49: 9436.274876 | Q49: 0.4990892532 | R49: 5.49 | S49: 10.98 | T49: 32.94 | U49: 43.92 | W49: =IF($A49>0,SUMIF('Age profile (years)'!$CT49:$GF49,"<" & R49+0.5,'Asset data'!$CX49:$GJ49),0) -> 0 | X49: =IF($A49>0,SUMIF('Age profile (years)'!$CT49:$GF49,"<" & S49+0.5,'Asset data'!$CX49:$GJ49)-W49,0) -> 0 | Y49: =IF($A49>0,SUMIF('Age profile (years)'!$CT49:$GF49,"<" & T49+0.5,'Asset data'!$CX49:$GJ49)-X49-W49,0) -> 171.8811453 | Z49: =IF($A49>0,SUMIF('Age profile (years)'!$CT49:$GF49,"<" & U49+0.5,'Asset data'!$CX49:$GJ49)-Y49-X49-W49,0) -> 0 | AA49: 0 | AB49: 0 | AC49: 0 | AD49: 1 | AE49: 0 | AF49: 0 | AI49: =IF($A49>0,'RRR hist-forc'!K49,0) -> 54.9 | AJ49: 9436.274876
A50: ='Asset data'!A50 -> 0 | B50: ='Asset data'!B50 -> 0 | C50: ='Asset data'!C50 -> 0 | D50: ='Asset data'!E50 -> OTHER - PLEASE ADD A ROW IF NECESSARY AND NOMINATE THE CATEGORY | E50: 0 | F50: =IF(A50>0,SUM('Asset data'!J50:CV50),0) -> 0 | G50: =IF(A50>0,'Asset data'!F50,0) -> 0 | H50: =IF(A50>0,SUM('Asset data'!CX50:GJ50),0) -> 0 | I50: 0 | J50: 0 | K50: 0 | L50: 0 | M50: =IF($A50>0,SUMPRODUCT('Age profile (years)'!$CT50:$GF50,'Asset data'!$CX50:$GJ50)/H50-0.5,0) -> 0 | N50: 0 | O50: =IF($A50>0,'Asset data'!G50,0) -> 0 | P50: 0 | Q50: 0 | R50: 0 | S50: 0 | T50: 0 | U50: 0 | W50: =IF($A50>0,SUMIF('Age profile (years)'!$CT50:$GF50,"<" & R50+0.5,'Asset data'!$CX50:$GJ50),0) -> 0 | X50: =IF($A50>0,SUMIF('Age profile (years)'!$CT50:$GF50,"<" & S50+0.5,'Asset data'!$CX50:$GJ50)-W50,0) -> 0 | Y50: =IF($A50>0,SUMIF('Age profile (years)'!$CT50:$GF50,"<" & T50+0.5,'Asset data'!$CX50:$GJ50)-X50-W50,0) -> 0 | Z50: =IF($A50>0,SUMIF('Age profile (years)'!$CT50:$GF50,"<" & U50+0.5,'Asset data'!$CX50:$GJ50)-Y50-X50-W50,0) -> 0 | AA50: 0 | AB50: 0 | AC50: 0 | AD50: 0 | AE50: 0 | AF50: 0 | AI50: =IF($A50>0,'RRR hist-forc'!K50,0) -> 0 | AJ50: 0
A51: ='Asset data'!A51 -> 3 | B51: ='Asset data'!B51 -> 0 | C51: ='Asset data'!C51 -> 0 | D51: ='Asset data'!E51 -> ˂ = 1 KV | E51: UNDERGROUND CABLES | F51: =IF(A51>0,SUM('Asset data'!J51:CV51),0) -> 5798.394 | G51: =IF(A51>0,'Asset data'!F51,0) -> 206.7605506 | H51: =IF(A51>0,SUM('Asset data'!CX51:GJ51),0) -> 1198879.136 | I51: 0.04368005733 | J51: 9 | K51: 0.4698120031 | L51: 206.7605506 | M51: =IF($A51>0,SUMPRODUCT('Age profile (years)'!$CT51:$GF51,'Asset data'!$CX51:$GJ51)/H51-0.5,0) -> 59.03415671 | N51: 70774818.8 | O51: =IF($A51>0,'Asset data'!G51,0) -> 73.82129211 | P51: 88502806.92 | Q51: 0.2003098968 | R51: 7.382129211 | S51: 14.76425842 | T51: 44.29277527 | U51: 59.05703369 | W51: =IF($A51>0,SUMIF('Age profile (years)'!$CT51:$GF51,"<" & R51+0.5,'Asset data'!$CX51:$GJ51),0) -> 419.5063688 | X51: =IF($A51>0,SUMIF('Age profile (years)'!$CT51:$GF51,"<" & S51+0.5,'Asset data'!$CX51:$GJ51)-W51,0) -> 5809.113732 | Y51: =IF($A51>0,SUMIF('Age profile (years)'!$CT51:$GF51,"<" & T51+0.5,'Asset data'!$CX51:$GJ51)-X51-W51,0) -> 202696.6767 | Z51: =IF($A51>0,SUMIF('Age profile (years)'!$CT51:$GF51,"<" & U51+0.5,'Asset data'!$CX51:$GJ51)-Y51-X51-W51,0) -> 195533.3644 | AA51: 794420.475 | AB51: 0.0003499154804 | AC51: 0.004845454021 | AD51: 0.1690718193 | AE51: 0.1630968114 | AF51: 0.6626359998 | AI51: =IF($A51>0,'RRR hist-forc'!K51,0) -> 73.82129211 | AJ51: 88502806.92
A52: ='Asset data'!A52 -> 3 | B52: ='Asset data'!B52 -> 0 | C52: ='Asset data'!C52 -> 0 | D52: ='Asset data'!E52 -> > 1 KV & < = 11 KV | E52: UNDERGROUND CABLES | F52: =IF(A52>0,SUM('Asset data'!J52:CV52),0) -> 1951.77005 | G52: =IF(A52>0,'Asset data'!F52,0) -> 572.790279 | H52: =IF(A52>0,SUM('Asset data'!CX52:GJ52),0) -> 1117954.911 | I52: 0.04073165772 | J52: 10 | K52: 0.4380997387 | L52: 572.790279 | M52: =IF($A52>0,SUMPRODUCT('Age profile (years)'!$CT52:$GF52,'Asset data'!$CX52:$GJ52)/H52-0.5,0) -> 52.37453647 | N52: 58552370.28 | O52: =IF($A52>0,'Asset data'!G52,0) -> 61.25949713 | P52: 68485355.68 | Q52: 0.1450380933 | R52: 6.125949713 | S52: 12.25189943 | T52: 36.75569828 | U52: 49.0075977 | W52: =IF($A52>0,SUMIF('Age profile (years)'!$CT52:$GF52,"<" & R52+0.5,'Asset data'!$CX52:$GJ52),0) -> 2505.084361 | X52: =IF($A52>0,SUMIF('Age profile (years)'!$CT52:$GF52,"<" & S52+0.5,'Asset data'!$CX52:$GJ52)-W52,0) -> 53.92437915 | Y52: =IF($A52>0,SUMIF('Age profile (years)'!$CT52:$GF52,"<" & T52+0.5,'Asset data'!$CX52:$GJ52)-X52-W52,0) -> 68712.01908 | Z52: =IF($A52>0,SUMIF('Age profile (years)'!$CT52:$GF52,"<" & U52+0.5,'Asset data'!$CX52:$GJ52)-Y52-X52-W52,0) -> 120750.4616 | AA52: 925933.4219 | AB52: 0.002240774056 | AC52: 4.823484257e-05 | AD52: 0.06146224537 | AE52: 0.1080101356 | AF52: 0.8282386101 | AI52: =IF($A52>0,'RRR hist-forc'!K52,0) -> 61.25949713 | AJ52: 68485355.68
A53: ='Asset data'!A53 -> 3 | B53: ='Asset data'!B53 -> 0 | C53: ='Asset data'!C53 -> 0 | D53: ='Asset data'!E53 -> > 11 KV & < = 22 KV | E53: UNDERGROUND CABLES | F53: =IF(A53>0,SUM('Asset data'!J53:CV53),0) -> 306.7008936 | G53: =IF(A53>0,'Asset data'!F53,0) -> 588.1384003 | H53: =IF(A53>0,SUM('Asset data'!CX53:GJ53),0) -> 180382.5729 | I53: 0.006572072938 | J53: 24 | K53: 0.07068760759 | L53: 588.1384003 | M53: =IF($A53>0,SUMPRODUCT('Age profile (years)'!$CT53:$GF53,'Asset data'!$CX53:$GJ53)/H53-0.5,0) -> 36.04505965 | N53: 6501900.601 | O53: =IF($A53>0,'Asset data'!G53,0) -> 45.49129639 | P53: 8205837.089 | Q53: 0.2076493196 | R53: 4.549129639 | S53: 9.098259278 | T53: 27.29477783 | U53: 36.39303711 | W53: =IF($A53>0,SUMIF('Age profile (years)'!$CT53:$GF53,"<" & R53+0.5,'Asset data'!$CX53:$GJ53),0) -> 189.3918006 | X53: =IF($A53>0,SUMIF('Age profile (years)'!$CT53:$GF53,"<" & S53+0.5,'Asset data'!$CX53:$GJ53)-W53,0) -> 2622.653775 | Y53: =IF($A53>0,SUMIF('Age profile (years)'!$CT53:$GF53,"<" & T53+0.5,'Asset data'!$CX53:$GJ53)-X53-W53,0) -> 26996.48424 | Z53: =IF($A53>0,SUMIF('Age profile (years)'!$CT53:$GF53,"<" & U53+0.5,'Asset data'!$CX53:$GJ53)-Y53-X53-W53,0) -> 16334.52752 | AA53: 134239.5156 | AB53: 0.001049945111 | AC53: 0.01453939664 | AD53: 0.1496623748 | AE53: 0.09055490922 | AF53: 0.7441933742 | AI53: =IF($A53>0,'RRR hist-forc'!K53,0) -> 45.49129639 | AJ53: 8205837.089
A54: ='Asset data'!A54 -> 3 | B54: ='Asset data'!B54 -> 0 | C54: ='Asset data'!C54 -> 0 | D54: ='Asset data'!E54 -> > 22 KV & < = 33 KV | E54: UNDERGROUND CABLES | F54: =IF(A54>0,SUM('Asset data'!J54:CV54),0) -> 47.86573207 | G54: =IF(A54>0,'Asset data'!F54,0) -> 488.4063137 | H54: =IF(A54>0,SUM('Asset data'!CX54:GJ54),0) -> 23377.92575 | I54: 0.000851753197 | J54: 47 | K54: 0.009161248866 | L54: 488.4063137 | M54: =IF($A54>0,SUMPRODUCT('Age profile (years)'!$CT54:$GF54,'Asset data'!$CX54:$GJ54)/H54-0.5,0) -> 49.18016508 | N54: 1149730.248 | O54: =IF($A54>0,'Asset data'!G54,0) -> 63.84500055 | P54: 1492563.682 | Q54: 0.2296943432 | R54: 6.384500055 | S54: 12.76900011 | T54: 38.30700033 | U54: 51.07600044 | W54: =IF($A54>0,SUMIF('Age profile (years)'!$CT54:$GF54,"<" & R54+0.5,'Asset data'!$CX54:$GJ54),0) -> 0 | X54: =IF($A54>0,SUMIF('Age profile (years)'!$CT54:$GF54,"<" & S54+0.5,'Asset data'!$CX54:$GJ54)-W54,0) -> 54.71187316 | Y54: =IF($A54>0,SUMIF('Age profile (years)'!$CT54:$GF54,"<" & T54+0.5,'Asset data'!$CX54:$GJ54)-X54-W54,0) -> 5883.324866 | Z54: =IF($A54>0,SUMIF('Age profile (years)'!$CT54:$GF54,"<" & U54+0.5,'Asset data'!$CX54:$GJ54)-Y54-X54-W54,0) -> 1946.079927 | AA54: 15493.80909 | AB54: 0 | AC54: 0.002340321966 | AD54: 0.251661543 | AE54: 0.08324433688 | AF54: 0.6627537982 | AI54: =IF($A54>0,'RRR hist-forc'!K54,0) -> 63.84500055 | AJ54: 1492563.682
A55: ='Asset data'!A55 -> 3 | B55: ='Asset data'!B55 -> 0 | C55: ='Asset data'!C55 -> 0 | D55: ='Asset data'!E55 -> > 33 KV & < = 66 KV | E55: UNDERGROUND CABLES | F55: =IF(A55>0,SUM('Asset data'!J55:CV55),0) -> 23.04733221 | G55: =IF(A55>0,'Asset data'!F55,0) -> 890.0393333 | H55: =IF(A55>0,SUM('Asset data'!CX55:GJ55),0) -> 20513.03219 | I55: 0.0007473734384 | J55: 49 | K55: 0.008038565736 | L55: 890.0393333 | M55: =IF($A55>0,SUMPRODUCT('Age profile (years)'!$CT55:$GF55,'Asset data'!$CX55:$GJ55)/H55-0.5,0) -> 46.87746484 | N55: 961598.9453 | O55: =IF($A55>0,'Asset data'!G55,0) -> 54.9 | P55: 1126165.467 | Q55: 0.1461299666 | R55: 5.49 | S55: 10.98 | T55: 32.94 | U55: 43.92 | W55: =IF($A55>0,SUMIF('Age profile (years)'!$CT55:$GF55,"<" & R55+0.5,'Asset data'!$CX55:$GJ55),0) -> 264.3213577 | X55: =IF($A55>0,SUMIF('Age profile (years)'!$CT55:$GF55,"<" & S55+0.5,'Asset data'!$CX55:$GJ55)-W55,0) -> 461.6952767 | Y55: =IF($A55>0,SUMIF('Age profile (years)'!$CT55:$GF55,"<" & T55+0.5,'Asset data'!$CX55:$GJ55)-X55-W55,0) -> 633.4810041 | Z55: =IF($A55>0,SUMIF('Age profile (years)'!$CT55:$GF55,"<" & U55+0.5,'Asset data'!$CX55:$GJ55)-Y55-X55-W55,0) -> 853.0923246 | AA55: 18300.44223 | AB55: 0.01288553322 | AC55: 0.02250741247 | AD55: 0.03088188027 | AE55: 0.04158782166 | AF55: 0.8921373524 | AI55: =IF($A55>0,'RRR hist-forc'!K55,0) -> 54.9 | AJ55: 1126165.467
A56: ='Asset data'!A56 -> 3 | B56: ='Asset data'!B56 -> 0 | C56: ='Asset data'!C56 -> 0 | D56: ='Asset data'!E56 -> > 66 KV & < = 132 KV | E56: UNDERGROUND CABLES | F56: =IF(A56>0,SUM('Asset data'!J56:CV56),0) -> 9.731992436 | G56: =IF(A56>0,'Asset data'!F56,0) -> 1101.501908 | H56: =IF(A56>0,SUM('Asset data'!CX56:GJ56),0) -> 10719.80824 | I56: 0.0003905663418 | J56: 57 | K56: 0.004200835957 | L56: 1101.501908 | M56: =IF($A56>0,SUMPRODUCT('Age profile (years)'!$CT56:$GF56,'Asset data'!$CX56:$GJ56)/H56-0.5,0) -> 37.51643444 | N56: 402168.9831 | O56: =IF($A56>0,'Asset data'!G56,0) -> 45.08567255 | P56: 483309.7642 | Q56: 0.1678856648 | R56: 4.508567255 | S56: 9.017134511 | T56: 27.05140353 | U56: 36.06853804 | W56: =IF($A56>0,SUMIF('Age profile (years)'!$CT56:$GF56,"<" & R56+0.5,'Asset data'!$CX56:$GJ56),0) -> 0 | X56: =IF($A56>0,SUMIF('Age profile (years)'!$CT56:$GF56,"<" & S56+0.5,'Asset data'!$CX56:$GJ56)-W56,0) -> 0 | Y56: =IF($A56>0,SUMIF('Age profile (years)'!$CT56:$GF56,"<" & T56+0.5,'Asset data'!$CX56:$GJ56)-X56-W56,0) -> 0 | Z56: =IF($A56>0,SUMIF('Age profile (years)'!$CT56:$GF56,"<" & U56+0.5,'Asset data'!$CX56:$GJ56)-Y56-X56-W56,0) -> 4678.905226 | AA56: 6040.903015 | AB56: 0 | AC56: 0 | AD56: 0 | AE56: 0.4364728473 | AF56: 0.5635271527 | AI56: =IF($A56>0,'RRR hist-forc'!K56,0) -> 45.08567255 | AJ56: 483309.7642
A57: ='Asset data'!A57 -> 0 | B57: ='Asset data'!B57 -> 0 | C57: ='Asset data'!C57 -> 0 | D57: ='Asset data'!E57 -> > 132 KV | E57: 0 | F57: =IF(A57>0,SUM('Asset data'!J57:CV57),0) -> 0 | G57: =IF(A57>0,'Asset data'!F57,0) -> 0 | H57: =IF(A57>0,SUM('Asset data'!CX57:GJ57),0) -> 0 | I57: 0 | J57: 0 | K57: 0 | L57: 0 | M57: =IF($A57>0,SUMPRODUCT('Age profile (years)'!$CT57:$GF57,'Asset data'!$CX57:$GJ57)/H57-0.5,0) -> 0 | N57: 0 | O57: =IF($A57>0,'Asset data'!G57,0) -> 0 | P57: 0 | Q57: 0 | R57: 0 | S57: 0 | T57: 0 | U57: 0 | W57: =IF($A57>0,SUMIF('Age profile (years)'!$CT57:$GF57,"<" & R57+0.5,'Asset data'!$CX57:$GJ57),0) -> 0 | X57: =IF($A57>0,SUMIF('Age profile (years)'!$CT57:$GF57,"<" & S57+0.5,'Asset data'!$CX57:$GJ57)-W57,0) -> 0 | Y57: =IF($A57>0,SUMIF('Age profile (years)'!$CT57:$GF57,"<" & T57+0.5,'Asset data'!$CX57:$GJ57)-X57-W57,0) -> 0 | Z57: =IF($A57>0,SUMIF('Age profile (years)'!$CT57:$GF57,"<" & U57+0.5,'Asset data'!$CX57:$GJ57)-Y57-X57-W57,0) -> 0 | AA57: 0 | AB57: 0 | AC57: 0 | AD57: 0 | AE57: 0 | AF57: 0 | AI57: =IF($A57>0,'RRR hist-forc'!K57,0) -> 0 | AJ57: 0
A58: ='Asset data'!A58 -> 0 | B58: ='Asset data'!B58 -> 0 | C58: ='Asset data'!C58 -> 0 | D58: ='Asset data'!E58 -> OTHER - PLEASE ADD A ROW IF NECESSARY AND NOMINATE THE CATEGORY | E58: 0 | F58: =IF(A58>0,SUM('Asset data'!J58:CV58),0) -> 0 | G58: =IF(A58>0,'Asset data'!F58,0) -> 0 | H58: =IF(A58>0,SUM('Asset data'!CX58:GJ58),0) -> 0 | I58: 0 | J58: 0 | K58: 0 | L58: 0 | M58: =IF($A58>0,SUMPRODUCT('Age profile (years)'!$CT58:$GF58,'Asset data'!$CX58:$GJ58)/H58-0.5,0) -> 0 | N58: 0 | O58: =IF($A58>0,'Asset data'!G58,0) -> 0 | P58: 0 | Q58: 0 | R58: 0 | S58: 0 | T58: 0 | U58: 0 | W58: =IF($A58>0,SUMIF('Age profile (years)'!$CT58:$GF58,"<" & R58+0.5,'Asset data'!$CX58:$GJ58),0) -> 0 | X58: =IF($A58>0,SUMIF('Age profile (years)'!$CT58:$GF58,"<" & S58+0.5,'Asset data'!$CX58:$GJ58)-W58,0) -> 0 | Y58: =IF($A58>0,SUMIF('Age profile (years)'!$CT58:$GF58,"<" & T58+0.5,'Asset data'!$CX58:$GJ58)-X58-W58,0) -> 0 | Z58: =IF($A58>0,SUMIF('Age profile (years)'!$CT58:$GF58,"<" & U58+0.5,'Asset data'!$CX58:$GJ58)-Y58-X58-W58,0) -> 0 | AA58: 0 | AB58: 0 | AC58: 0 | AD58: 0 | AE58: 0 | AF58: 0 | AI58: =IF($A58>0,'RRR hist-forc'!K58,0) -> 0 | AJ58: 0
A59: ='Asset data'!A59 -> 4 | B59: ='Asset data'!B59 -> 0 | C59: ='Asset data'!C59 -> 0 | D59: ='Asset data'!E59 -> ˂ = 11 KV ; RESIDENTIAL ; SIMPLE TYPE | E59: SERVICE LINES | F59: =IF(A59>0,SUM('Asset data'!J59:CV59),0) -> 13787.12509 | G59: =IF(A59>0,'Asset data'!F59,0) -> 0.8119375765 | H59: =IF(A59>0,SUM('Asset data'!CX59:GJ59),0) -> 11194.28493 | I59: 0.0004078534632 | J59: 55 | K59: 0.8363348646 | L59: 0.8119375765 | M59: =IF($A59>0,SUMPRODUCT('Age profile (years)'!$CT59:$GF59,'Asset data'!$CX59:$GJ59)/H59-0.5,0) -> 34.6187063 | N59: 387531.6623 | O59: =IF($A59>0,'Asset data'!G59,0) -> 61.00035839 | P59: 682855.3929 | Q59: 0.432483559 | R59: 6.100035839 | S59: 12.20007168 | T59: 36.60021504 | U59: 48.80028672 | W59: =IF($A59>0,SUMIF('Age profile (years)'!$CT59:$GF59,"<" & R59+0.5,'Asset data'!$CX59:$GJ59),0) -> 655.8882665 | X59: =IF($A59>0,SUMIF('Age profile (years)'!$CT59:$GF59,"<" & S59+0.5,'Asset data'!$CX59:$GJ59)-W59,0) -> 633.1430227 | Y59: =IF($A59>0,SUMIF('Age profile (years)'!$CT59:$GF59,"<" & T59+0.5,'Asset data'!$CX59:$GJ59)-X59-W59,0) -> 4516.531754 | Z59: =IF($A59>0,SUMIF('Age profile (years)'!$CT59:$GF59,"<" & U59+0.5,'Asset data'!$CX59:$GJ59)-Y59-X59-W59,0) -> 1324.072655 | AA59: 4064.649236 | AB59: 0.05859134999 | AC59: 0.05655948785 | AD59: 0.4034676427 | AE59: 0.1182811285 | AF59: 0.3631003909 | AI59: =IF($A59>0,'RRR hist-forc'!K59,0) -> 61.00035839 | AJ59: 682855.3929
A60: ='Asset data'!A60 -> 4 | B60: ='Asset data'!B60 -> 0 | C60: ='Asset data'!C60 -> 0 | D60: ='Asset data'!E60 -> ˂ = 11 KV ; COMMERCIAL & INDUSTRIAL ; SIMPLE TYPE | E60: SERVICE LINES | F60: =IF(A60>0,SUM('Asset data'!J60:CV60),0) -> 1660.053468 | G60: =IF(A60>0,'Asset data'!F60,0) -> 0.8444150262 | H60: =IF(A60>0,SUM('Asset data'!CX60:GJ60),0) -> 1401.774093 | I60: 5.107234824e-05 | J60: 67 | K60: 0.1047277743 | L60: 0.8444150262 | M60: =IF($A60>0,SUMPRODUCT('Age profile (years)'!$CT60:$GF60,'Asset data'!$CX60:$GJ60)/H60-0.5,0) -> 29.21806049 | N60: 40957.12023 | O60: =IF($A60>0,'Asset data'!G60,0) -> 56.48497163 | P60: 79179.16986 | Q60: 0.4827285976 | R60: 5.648497163 | S60: 11.29699433 | T60: 33.89098298 | U60: 45.1879773 | W60: =IF($A60>0,SUMIF('Age profile (years)'!$CT60:$GF60,"<" & R60+0.5,'Asset data'!$CX60:$GJ60),0) -> 163.5855839 | X60: =IF($A60>0,SUMIF('Age profile (years)'!$CT60:$GF60,"<" & S60+0.5,'Asset data'!$CX60:$GJ60)-W60,0) -> 118.5149077 | Y60: =IF($A60>0,SUMIF('Age profile (years)'!$CT60:$GF60,"<" & T60+0.5,'Asset data'!$CX60:$GJ60)-X60-W60,0) -> 495.6429328 | Z60: =IF($A60>0,SUMIF('Age profile (years)'!$CT60:$GF60,"<" & U60+0.5,'Asset data'!$CX60:$GJ60)-Y60-X60-W60,0) -> 193.0089684 | AA60: 431.0217 | AB60: 0.1166989636 | AC60: 0.0845463676 | AD60: 0.3535826032 | AE60: 0.137689068 | AF60: 0.3074829976 | AI60: =IF($A60>0,'RRR hist-forc'!K60,0) -> 56.48497163 | AJ60: 79179.16986
A61: ='Asset data'!A61 -> 4 | B61: ='Asset data'!B61 -> 0 | C61: ='Asset data'!C61 -> 0 | D61: ='Asset data'!E61 -> ˂ = 11 KV ; RESIDENTIAL ; COMPLEX TYPE | E61: SERVICE LINES | F61: =IF(A61>0,SUM('Asset data'!J61:CV61),0) -> 971.5926049 | G61: =IF(A61>0,'Asset data'!F61,0) -> 0.8119375765 | H61: =IF(A61>0,SUM('Asset data'!CX61:GJ61),0) -> 788.872545 | I61: 2.874184474e-05 | J61: 68 | K61: 0.05893736108 | L61: 0.8119375765 | M61: =IF($A61>0,SUMPRODUCT('Age profile (years)'!$CT61:$GF61,'Asset data'!$CX61:$GJ61)/H61-0.5,0) -> 20.01069661 | N61: 15785.88916 | O61: =IF($A61>0,'Asset data'!G61,0) -> 53.8 | P61: 42441.34292 | Q61: 0.6280539664 | R61: 5.38 | S61: 10.76 | T61: 32.28 | U61: 43.04 | W61: =IF($A61>0,SUMIF('Age profile (years)'!$CT61:$GF61,"<" & R61+0.5,'Asset data'!$CX61:$GJ61),0) -> 180.2861995 | X61: =IF($A61>0,SUMIF('Age profile (years)'!$CT61:$GF61,"<" & S61+0.5,'Asset data'!$CX61:$GJ61)-W61,0) -> 131.6674528 | Y61: =IF($A61>0,SUMIF('Age profile (years)'!$CT61:$GF61,"<" & T61+0.5,'Asset data'!$CX61:$GJ61)-X61-W61,0) -> 258.6925246 | Z61: =IF($A61>0,SUMIF('Age profile (years)'!$CT61:$GF61,"<" & U61+0.5,'Asset data'!$CX61:$GJ61)-Y61-X61-W61,0) -> 72.5961827 | AA61: 145.6301854 | AB61: 0.228536537 | AC61: 0.1669058628 | AD61: 0.3279268954 | AE61: 0.09202523672 | AF61: 0.184605468 | AI61: =IF($A61>0,'RRR hist-forc'!K61,0) -> 53.8 | AJ61: 42441.34292
A62: ='Asset data'!A62 -> 0 | B62: ='Asset data'!B62 -> 0 | C62: ='Asset data'!C62 -> 0 | D62: ='Asset data'!E62 -> ˂ = 11 KV ; COMMERCIAL & INDUSTRIAL ; COMPLEX TYPE | E62: 0 | F62: =IF(A62>0,SUM('Asset data'!J62:CV62),0) -> 0 | G62: =IF(A62>0,'Asset data'!F62,0) -> 0 | H62: =IF(A62>0,SUM('Asset data'!CX62:GJ62),0) -> 0 | I62: 0 | J62: 0 | K62: 0 | L62: 0 | M62: =IF($A62>0,SUMPRODUCT('Age profile (years)'!$CT62:$GF62,'Asset data'!$CX62:$GJ62)/H62-0.5,0) -> 0 | N62: 0 | O62: =IF($A62>0,'Asset data'!G62,0) -> 0 | P62: 0 | Q62: 0 | R62: 0 | S62: 0 | T62: 0 | U62: 0 | W62: =IF($A62>0,SUMIF('Age profile (years)'!$CT62:$GF62,"<" & R62+0.5,'Asset data'!$CX62:$GJ62),0) -> 0 | X62: =IF($A62>0,SUMIF('Age profile (years)'!$CT62:$GF62,"<" & S62+0.5,'Asset data'!$CX62:$GJ62)-W62,0) -> 0 | Y62: =IF($A62>0,SUMIF('Age profile (years)'!$CT62:$GF62,"<" & T62+0.5,'Asset data'!$CX62:$GJ62)-X62-W62,0) -> 0 | Z62: =IF($A62>0,SUMIF('Age profile (years)'!$CT62:$GF62,"<" & U62+0.5,'Asset data'!$CX62:$GJ62)-Y62-X62-W62,0) -> 0 | AA62: 0 | AB62: 0 | AC62: 0 | AD62: 0 | AE62: 0 | AF62: 0 | AI62: =IF($A62>0,'RRR hist-forc'!K62,0) -> 0 | AJ62: 0
A63: ='Asset data'!A63 -> 0 | B63: ='Asset data'!B63 -> 0 | C63: ='Asset data'!C63 -> 0 | D63: ='Asset data'!E63 -> ˂ = 11 KV ; SUBDIVISION ; COMPLEX TYPE | E63: 0 | F63: =IF(A63>0,SUM('Asset data'!J63:CV63),0) -> 0 | G63: =IF(A63>0,'Asset data'!F63,0) -> 0 | H63: =IF(A63>0,SUM('Asset data'!CX63:GJ63),0) -> 0 | I63: 0 | J63: 0 | K63: 0 | L63: 0 | M63: =IF($A63>0,SUMPRODUCT('Age profile (years)'!$CT63:$GF63,'Asset data'!$CX63:$GJ63)/H63-0.5,0) -> 0 | N63: 0 | O63: =IF($A63>0,'Asset data'!G63,0) -> 0 | P63: 0 | Q63: 0 | R63: 0 | S63: 0 | T63: 0 | U63: 0 | W63: =IF($A63>0,SUMIF('Age profile (years)'!$CT63:$GF63,"<" & R63+0.5,'Asset data'!$CX63:$GJ63),0) -> 0 | X63: =IF($A63>0,SUMIF('Age profile (years)'!$CT63:$GF63,"<" & S63+0.5,'Asset data'!$CX63:$GJ63)-W63,0) -> 0 | Y63: =IF($A63>0,SUMIF('Age profile (years)'!$CT63:$GF63,"<" & T63+0.5,'Asset data'!$CX63:$GJ63)-X63-W63,0) -> 0 | Z63: =IF($A63>0,SUMIF('Age profile (years)'!$CT63:$GF63,"<" & U63+0.5,'Asset data'!$CX63:$GJ63)-Y63-X63-W63,0) -> 0 | AA63: 0 | AB63: 0 | AC63: 0 | AD63: 0 | AE63: 0 | AF63: 0 | AI63: =IF($A63>0,'RRR hist-forc'!K63,0) -> 0 | AJ63: 0
A64: ='Asset data'!A64 -> 0 | B64: ='Asset data'!B64 -> 0 | C64: ='Asset data'!C64 -> 0 | D64: ='Asset data'!E64 -> > 11 KV & < = 22 KV ; COMMERCIAL & INDUSTRIAL | E64: 0 | F64: =IF(A64>0,SUM('Asset data'!J64:CV64),0) -> 0 | G64: =IF(A64>0,'Asset data'!F64,0) -> 0 | H64: =IF(A64>0,SUM('Asset data'!CX64:GJ64),0) -> 0 | I64: 0 | J64: 0 | K64: 0 | L64: 0 | M64: =IF($A64>0,SUMPRODUCT('Age profile (years)'!$CT64:$GF64,'Asset data'!$CX64:$GJ64)/H64-0.5,0) -> 0 | N64: 0 | O64: =IF($A64>0,'Asset data'!G64,0) -> 0 | P64: 0 | Q64: 0 | R64: 0 | S64: 0 | T64: 0 | U64: 0 | W64: =IF($A64>0,SUMIF('Age profile (years)'!$CT64:$GF64,"<" & R64+0.5,'Asset data'!$CX64:$GJ64),0) -> 0 | X64: =IF($A64>0,SUMIF('Age profile (years)'!$CT64:$GF64,"<" & S64+0.5,'Asset data'!$CX64:$GJ64)-W64,0) -> 0 | Y64: =IF($A64>0,SUMIF('Age profile (years)'!$CT64:$GF64,"<" & T64+0.5,'Asset data'!$CX64:$GJ64)-X64-W64,0) -> 0 | Z64: =IF($A64>0,SUMIF('Age profile (years)'!$CT64:$GF64,"<" & U64+0.5,'Asset data'!$CX64:$GJ64)-Y64-X64-W64,0) -> 0 | AA64: 0 | AB64: 0 | AC64: 0 | AD64: 0 | AE64: 0 | AF64: 0 | AI64: =IF($A64>0,'RRR hist-forc'!K64,0) -> 0 | AJ64: 0
A65: ='Asset data'!A65 -> 0 | B65: ='Asset data'!B65 -> 0 | C65: ='Asset data'!C65 -> 0 | D65: ='Asset data'!E65 -> > 11 KV & < = 22 KV ; SUBDIVISION | E65: 0 | F65: =IF(A65>0,SUM('Asset data'!J65:CV65),0) -> 0 | G65: =IF(A65>0,'Asset data'!F65,0) -> 0 | H65: =IF(A65>0,SUM('Asset data'!CX65:GJ65),0) -> 0 | I65: 0 | J65: 0 | K65: 0 | L65: 0 | M65: =IF($A65>0,SUMPRODUCT('Age profile (years)'!$CT65:$GF65,'Asset data'!$CX65:$GJ65)/H65-0.5,0) -> 0 | N65: 0 | O65: =IF($A65>0,'Asset data'!G65,0) -> 0 | P65: 0 | Q65: 0 | R65: 0 | S65: 0 | T65: 0 | U65: 0 | W65: =IF($A65>0,SUMIF('Age profile (years)'!$CT65:$GF65,"<" & R65+0.5,'Asset data'!$CX65:$GJ65),0) -> 0 | X65: =IF($A65>0,SUMIF('Age profile (years)'!$CT65:$GF65,"<" & S65+0.5,'Asset data'!$CX65:$GJ65)-W65,0) -> 0 | Y65: =IF($A65>0,SUMIF('Age profile (years)'!$CT65:$GF65,"<" & T65+0.5,'Asset data'!$CX65:$GJ65)-X65-W65,0) -> 0 | Z65: =IF($A65>0,SUMIF('Age profile (years)'!$CT65:$GF65,"<" & U65+0.5,'Asset data'!$CX65:$GJ65)-Y65-X65-W65,0) -> 0 | AA65: 0 | AB65: 0 | AC65: 0 | AD65: 0 | AE65: 0 | AF65: 0 | AI65: =IF($A65>0,'RRR hist-forc'!K65,0) -> 0 | AJ65: 0
A66: ='Asset data'!A66 -> 0 | B66: ='Asset data'!B66 -> 0 | C66: ='Asset data'!C66 -> 0 | D66: ='Asset data'!E66 -> > 22 KV & < = 33 KV ; COMMERCIAL & INDUSTRIAL | E66: 0 | F66: =IF(A66>0,SUM('Asset data'!J66:CV66),0) -> 0 | G66: =IF(A66>0,'Asset data'!F66,0) -> 0 | H66: =IF(A66>0,SUM('Asset data'!CX66:GJ66),0) -> 0 | I66: 0 | J66: 0 | K66: 0 | L66: 0 | M66: =IF($A66>0,SUMPRODUCT('Age profile (years)'!$CT66:$GF66,'Asset data'!$CX66:$GJ66)/H66-0.5,0) -> 0 | N66: 0 | O66: =IF($A66>0,'Asset data'!G66,0) -> 0 | P66: 0 | Q66: 0 | R66: 0 | S66: 0 | T66: 0 | U66: 0 | W66: =IF($A66>0,SUMIF('Age profile (years)'!$CT66:$GF66,"<" & R66+0.5,'Asset data'!$CX66:$GJ66),0) -> 0 | X66: =IF($A66>0,SUMIF('Age profile (years)'!$CT66:$GF66,"<" & S66+0.5,'Asset data'!$CX66:$GJ66)-W66,0) -> 0 | Y66: =IF($A66>0,SUMIF('Age profile (years)'!$CT66:$GF66,"<" & T66+0.5,'Asset data'!$CX66:$GJ66)-X66-W66,0) -> 0 | Z66: =IF($A66>0,SUMIF('Age profile (years)'!$CT66:$GF66,"<" & U66+0.5,'Asset data'!$CX66:$GJ66)-Y66-X66-W66,0) -> 0 | AA66: 0 | AB66: 0 | AC66: 0 | AD66: 0 | AE66: 0 | AF66: 0 | AI66: =IF($A66>0,'RRR hist-forc'!K66,0) -> 0 | AJ66: 0
A67: ='Asset data'!A67 -> 0 | B67: ='Asset data'!B67 -> 0 | C67: ='Asset data'!C67 -> 0 | D67: ='Asset data'!E67 -> > 22 KV & < = 33 KV ; SUBDIVISION | E67: 0 | F67: =IF(A67>0,SUM('Asset data'!J67:CV67),0) -> 0 | G67: =IF(A67>0,'Asset data'!F67,0) -> 0 | H67: =IF(A67>0,SUM('Asset data'!CX67:GJ67),0) -> 0 | I67: 0 | J67: 0 | K67: 0 | L67: 0 | M67: =IF($A67>0,SUMPRODUCT('Age profile (years)'!$CT67:$GF67,'Asset data'!$CX67:$GJ67)/H67-0.5,0) -> 0 | N67: 0 | O67: =IF($A67>0,'Asset data'!G67,0) -> 0 | P67: 0 | Q67: 0 | R67: 0 | S67: 0 | T67: 0 | U67: 0 | W67: =IF($A67>0,SUMIF('Age profile (years)'!$CT67:$GF67,"<" & R67+0.5,'Asset data'!$CX67:$GJ67),0) -> 0 | X67: =IF($A67>0,SUMIF('Age profile (years)'!$CT67:$GF67,"<" & S67+0.5,'Asset data'!$CX67:$GJ67)-W67,0) -> 0 | Y67: =IF($A67>0,SUMIF('Age profile (years)'!$CT67:$GF67,"<" & T67+0.5,'Asset data'!$CX67:$GJ67)-X67-W67,0) -> 0 | Z67: =IF($A67>0,SUMIF('Age profile (years)'!$CT67:$GF67,"<" & U67+0.5,'Asset data'!$CX67:$GJ67)-Y67-X67-W67,0) -> 0 | AA67: 0 | AB67: 0 | AC67: 0 | AD67: 0 | AE67: 0 | AF67: 0 | AI67: =IF($A67>0,'RRR hist-forc'!K67,0) -> 0 | AJ67: 0
A68: ='Asset data'!A68 -> 0 | B68: ='Asset data'!B68 -> 0 | C68: ='Asset data'!C68 -> 0 | D68: ='Asset data'!E68 -> > 33 KV & < = 66 KV ; COMMERCIAL & INDUSTRIAL | E68: 0 | F68: =IF(A68>0,SUM('Asset data'!J68:CV68),0) -> 0 | G68: =IF(A68>0,'Asset data'!F68,0) -> 0 | H68: =IF(A68>0,SUM('Asset data'!CX68:GJ68),0) -> 0 | I68: 0 | J68: 0 | K68: 0 | L68: 0 | M68: =IF($A68>0,SUMPRODUCT('Age profile (years)'!$CT68:$GF68,'Asset data'!$CX68:$GJ68)/H68-0.5,0) -> 0 | N68: 0 | O68: =IF($A68>0,'Asset data'!G68,0) -> 0 | P68: 0 | Q68: 0 | R68: 0 | S68: 0 | T68: 0 | U68: 0 | W68: =IF($A68>0,SUMIF('Age profile (years)'!$CT68:$GF68,"<" & R68+0.5,'Asset data'!$CX68:$GJ68),0) -> 0 | X68: =IF($A68>0,SUMIF('Age profile (years)'!$CT68:$GF68,"<" & S68+0.5,'Asset data'!$CX68:$GJ68)-W68,0) -> 0 | Y68: =IF($A68>0,SUMIF('Age profile (years)'!$CT68:$GF68,"<" & T68+0.5,'Asset data'!$CX68:$GJ68)-X68-W68,0) -> 0 | Z68: =IF($A68>0,SUMIF('Age profile (years)'!$CT68:$GF68,"<" & U68+0.5,'Asset data'!$CX68:$GJ68)-Y68-X68-W68,0) -> 0 | AA68: 0 | AB68: 0 | AC68: 0 | AD68: 0 | AE68: 0 | AF68: 0 | AI68: =IF($A68>0,'RRR hist-forc'!K68,0) -> 0 | AJ68: 0
A69: ='Asset data'!A69 -> 0 | B69: ='Asset data'!B69 -> 0 | C69: ='Asset data'!C69 -> 0 | D69: ='Asset data'!E69 -> > 33 KV & < = 66 KV ; SUBDIVISION | E69: 0 | F69: =IF(A69>0,SUM('Asset data'!J69:CV69),0) -> 0 | G69: =IF(A69>0,'Asset data'!F69,0) -> 0 | H69: =IF(A69>0,SUM('Asset data'!CX69:GJ69),0) -> 0 | I69: 0 | J69: 0 | K69: 0 | L69: 0 | M69: =IF($A69>0,SUMPRODUCT('Age profile (years)'!$CT69:$GF69,'Asset data'!$CX69:$GJ69)/H69-0.5,0) -> 0 | N69: 0 | O69: =IF($A69>0,'Asset data'!G69,0) -> 0 | P69: 0 | Q69: 0 | R69: 0 | S69: 0 | T69: 0 | U69: 0 | W69: =IF($A69>0,SUMIF('Age profile (years)'!$CT69:$GF69,"<" & R69+0.5,'Asset data'!$CX69:$GJ69),0) -> 0 | X69: =IF($A69>0,SUMIF('Age profile (years)'!$CT69:$GF69,"<" & S69+0.5,'Asset data'!$CX69:$GJ69)-W69,0) -> 0 | Y69: =IF($A69>0,SUMIF('Age profile (years)'!$CT69:$GF69,"<" & T69+0.5,'Asset data'!$CX69:$GJ69)-X69-W69,0) -> 0 | Z69: =IF($A69>0,SUMIF('Age profile (years)'!$CT69:$GF69,"<" & U69+0.5,'Asset data'!$CX69:$GJ69)-Y69-X69-W69,0) -> 0 | AA69: 0 | AB69: 0 | AC69: 0 | AD69: 0 | AE69: 0 | AF69: 0 | AI69: =IF($A69>0,'RRR hist-forc'!K69,0) -> 0 | AJ69: 0
A70: ='Asset data'!A70 -> 0 | B70: ='Asset data'!B70 -> 0 | C70: ='Asset data'!C70 -> 0 | D70: ='Asset data'!E70 -> > 66 KV & < = 132 KV ; COMMERCIAL & INDUSTRIAL | E70: 0 | F70: =IF(A70>0,SUM('Asset data'!J70:CV70),0) -> 0 | G70: =IF(A70>0,'Asset data'!F70,0) -> 0 | H70: =IF(A70>0,SUM('Asset data'!CX70:GJ70),0) -> 0 | I70: 0 | J70: 0 | K70: 0 | L70: 0 | M70: =IF($A70>0,SUMPRODUCT('Age profile (years)'!$CT70:$GF70,'Asset data'!$CX70:$GJ70)/H70-0.5,0) -> 0 | N70: 0 | O70: =IF($A70>0,'Asset data'!G70,0) -> 0 | P70: 0 | Q70: 0 | R70: 0 | S70: 0 | T70: 0 | U70: 0 | W70: =IF($A70>0,SUMIF('Age profile (years)'!$CT70:$GF70,"<" & R70+0.5,'Asset data'!$CX70:$GJ70),0) -> 0 | X70: =IF($A70>0,SUMIF('Age profile (years)'!$CT70:$GF70,"<" & S70+0.5,'Asset data'!$CX70:$GJ70)-W70,0) -> 0 | Y70: =IF($A70>0,SUMIF('Age profile (years)'!$CT70:$GF70,"<" & T70+0.5,'Asset data'!$CX70:$GJ70)-X70-W70,0) -> 0 | Z70: =IF($A70>0,SUMIF('Age profile (years)'!$CT70:$GF70,"<" & U70+0.5,'Asset data'!$CX70:$GJ70)-Y70-X70-W70,0) -> 0 | AA70: 0 | AB70: 0 | AC70: 0 | AD70: 0 | AE70: 0 | AF70: 0 | AI70: =IF($A70>0,'RRR hist-forc'!K70,0) -> 0 | AJ70: 0
A71: ='Asset data'!A71 -> 0 | B71: ='Asset data'!B71 -> 0 | C71: ='Asset data'!C71 -> 0 | D71: ='Asset data'!E71 -> > 66 KV & < = 132 KV ; SUBDIVISION | E71: 0 | F71: =IF(A71>0,SUM('Asset data'!J71:CV71),0) -> 0 | G71: =IF(A71>0,'Asset data'!F71,0) -> 0 | H71: =IF(A71>0,SUM('Asset data'!CX71:GJ71),0) -> 0 | I71: 0 | J71: 0 | K71: 0 | L71: 0 | M71: =IF($A71>0,SUMPRODUCT('Age profile (years)'!$CT71:$GF71,'Asset data'!$CX71:$GJ71)/H71-0.5,0) -> 0 | N71: 0 | O71: =IF($A71>0,'Asset data'!G71,0) -> 0 | P71: 0 | Q71: 0 | R71: 0 | S71: 0 | T71: 0 | U71: 0 | W71: =IF($A71>0,SUMIF('Age profile (years)'!$CT71:$GF71,"<" & R71+0.5,'Asset data'!$CX71:$GJ71),0) -> 0 | X71: =IF($A71>0,SUMIF('Age profile (years)'!$CT71:$GF71,"<" & S71+0.5,'Asset data'!$CX71:$GJ71)-W71,0) -> 0 | Y71: =IF($A71>0,SUMIF('Age profile (years)'!$CT71:$GF71,"<" & T71+0.5,'Asset data'!$CX71:$GJ71)-X71-W71,0) -> 0 | Z71: =IF($A71>0,SUMIF('Age profile (years)'!$CT71:$GF71,"<" & U71+0.5,'Asset data'!$CX71:$GJ71)-Y71-X71-W71,0) -> 0 | AA71: 0 | AB71: 0 | AC71: 0 | AD71: 0 | AE71: 0 | AF71: 0 | AI71: =IF($A71>0,'RRR hist-forc'!K71,0) -> 0 | AJ71: 0
A72: ='Asset data'!A72 -> 0 | B72: ='Asset data'!B72 -> 0 | C72: ='Asset data'!C72 -> 0 | D72: ='Asset data'!E72 -> > 132 KV ; COMMERCIAL & INDUSTRIAL | E72: 0 | F72: =IF(A72>0,SUM('Asset data'!J72:CV72),0) -> 0 | G72: =IF(A72>0,'Asset data'!F72,0) -> 0 | H72: =IF(A72>0,SUM('Asset data'!CX72:GJ72),0) -> 0 | I72: 0 | J72: 0 | K72: 0 | L72: 0 | M72: =IF($A72>0,SUMPRODUCT('Age profile (years)'!$CT72:$GF72,'Asset data'!$CX72:$GJ72)/H72-0.5,0) -> 0 | N72: 0 | O72: =IF($A72>0,'Asset data'!G72,0) -> 0 | P72: 0 | Q72: 0 | R72: 0 | S72: 0 | T72: 0 | U72: 0 | W72: =IF($A72>0,SUMIF('Age profile (years)'!$CT72:$GF72,"<" & R72+0.5,'Asset data'!$CX72:$GJ72),0) -> 0 | X72: =IF($A72>0,SUMIF('Age profile (years)'!$CT72:$GF72,"<" & S72+0.5,'Asset data'!$CX72:$GJ72)-W72,0) -> 0 | Y72: =IF($A72>0,SUMIF('Age profile (years)'!$CT72:$GF72,"<" & T72+0.5,'Asset data'!$CX72:$GJ72)-X72-W72,0) -> 0 | Z72: =IF($A72>0,SUMIF('Age profile (years)'!$CT72:$GF72,"<" & U72+0.5,'Asset data'!$CX72:$GJ72)-Y72-X72-W72,0) -> 0 | AA72: 0 | AB72: 0 | AC72: 0 | AD72: 0 | AE72: 0 | AF72: 0 | AI72: =IF($A72>0,'RRR hist-forc'!K72,0) -> 0 | AJ72: 0
A73: ='Asset data'!A73 -> 0 | B73: ='Asset data'!B73 -> 0 | C73: ='Asset data'!C73 -> 0 | D73: ='Asset data'!E73 -> > 132 KV ; SUBDIVISION | E73: 0 | F73: =IF(A73>0,SUM('Asset data'!J73:CV73),0) -> 0 | G73: =IF(A73>0,'Asset data'!F73,0) -> 0 | H73: =IF(A73>0,SUM('Asset data'!CX73:GJ73),0) -> 0 | I73: 0 | J73: 0 | K73: 0 | L73: 0 | M73: =IF($A73>0,SUMPRODUCT('Age profile (years)'!$CT73:$GF73,'Asset data'!$CX73:$GJ73)/H73-0.5,0) -> 0 | N73: 0 | O73: =IF($A73>0,'Asset data'!G73,0) -> 0 | P73: 0 | Q73: 0 | R73: 0 | S73: 0 | T73: 0 | U73: 0 | W73: =IF($A73>0,SUMIF('Age profile (years)'!$CT73:$GF73,"<" & R73+0.5,'Asset data'!$CX73:$GJ73),0) -> 0 | X73: =IF($A73>0,SUMIF('Age profile (years)'!$CT73:$GF73,"<" & S73+0.5,'Asset data'!$CX73:$GJ73)-W73,0) -> 0 | Y73: =IF($A73>0,SUMIF('Age profile (years)'!$CT73:$GF73,"<" & T73+0.5,'Asset data'!$CX73:$GJ73)-X73-W73,0) -> 0 | Z73: =IF($A73>0,SUMIF('Age profile (years)'!$CT73:$GF73,"<" & U73+0.5,'Asset data'!$CX73:$GJ73)-Y73-X73-W73,0) -> 0 | AA73: 0 | AB73: 0 | AC73: 0 | AD73: 0 | AE73: 0 | AF73: 0 | AI73: =IF($A73>0,'RRR hist-forc'!K73,0) -> 0 | AJ73: 0
A74: ='Asset data'!A74 -> 0 | B74: ='Asset data'!B74 -> 0 | C74: ='Asset data'!C74 -> 0 | D74: ='Asset data'!E74 -> OTHER - PLEASE ADD A ROW IF NECESSARY AND NOMINATE THE CATEGORY | E74: 0 | F74: =IF(A74>0,SUM('Asset data'!J74:CV74),0) -> 0 | G74: =IF(A74>0,'Asset data'!F74,0) -> 0 | H74: =IF(A74>0,SUM('Asset data'!CX74:GJ74),0) -> 0 | I74: 0 | J74: 0 | K74: 0 | L74: 0 | M74: =IF($A74>0,SUMPRODUCT('Age profile (years)'!$CT74:$GF74,'Asset data'!$CX74:$GJ74)/H74-0.5,0) -> 0 | N74: 0 | O74: =IF($A74>0,'Asset data'!G74,0) -> 0 | P74: 0 | Q74: 0 | R74: 0 | S74: 0 | T74: 0 | U74: 0 | W74: =IF($A74>0,SUMIF('Age profile (years)'!$CT74:$GF74,"<" & R74+0.5,'Asset data'!$CX74:$GJ74),0) -> 0 | X74: =IF($A74>0,SUMIF('Age profile (years)'!$CT74:$GF74,"<" & S74+0.5,'Asset data'!$CX74:$GJ74)-W74,0) -> 0 | Y74: =IF($A74>0,SUMIF('Age profile (years)'!$CT74:$GF74,"<" & T74+0.5,'Asset data'!$CX74:$GJ74)-X74-W74,0) -> 0 | Z74: =IF($A74>0,SUMIF('Age profile (years)'!$CT74:$GF74,"<" & U74+0.5,'Asset data'!$CX74:$GJ74)-Y74-X74-W74,0) -> 0 | AA74: 0 | AB74: 0 | AC74: 0 | AD74: 0 | AE74: 0 | AF74: 0 | AI74: =IF($A74>0,'RRR hist-forc'!K74,0) -> 0 | AJ74: 0
A75: ='Asset data'!A75 -> 5 | B75: ='Asset data'!B75 -> 0 | C75: ='Asset data'!C75 -> 0 | D75: ='Asset data'!E75 -> POLE MOUNTED ; < = 22KV ; < = 60 KVA ; SINGLE PHASE | E75: TRANSFORMERS | F75: =IF(A75>0,SUM('Asset data'!J75:CV75),0) -> 81627 | G75: =IF(A75>0,'Asset data'!F75,0) -> 5.67663416 | H75: =IF(A75>0,SUM('Asset data'!CX75:GJ75),0) -> 463366.6166 | I75: 0.01688233598 | J75: 15 | K75: 0.1864199695 | L75: 5.67663416 | M75: =IF($A75>0,SUMPRODUCT('Age profile (years)'!$CT75:$GF75,'Asset data'!$CX75:$GJ75)/H75-0.5,0) -> 41.5765188 | N75: 19265170.84 | O75: =IF($A75>0,'Asset data'!G75,0) -> 70.12261003 | P75: 32492476.56 | Q75: 0.407088259 | R75: 7.012261003 | S75: 14.02452201 | T75: 42.07356602 | U75: 56.09808803 | W75: =IF($A75>0,SUMIF('Age profile (years)'!$CT75:$GF75,"<" & R75+0.5,'Asset data'!$CX75:$GJ75),0) -> 10796.95817 | X75: =IF($A75>0,SUMIF('Age profile (years)'!$CT75:$GF75,"<" & S75+0.5,'Asset data'!$CX75:$GJ75)-W75,0) -> 14339.17789 | Y75: =IF($A75>0,SUMIF('Age profile (years)'!$CT75:$GF75,"<" & T75+0.5,'Asset data'!$CX75:$GJ75)-X75-W75,0) -> 188310.985 | Z75: =IF($A75>0,SUMIF('Age profile (years)'!$CT75:$GF75,"<" & U75+0.5,'Asset data'!$CX75:$GJ75)-Y75-X75-W75,0) -> 141263.0411 | AA75: 108656.4545 | AB75: 0.0233011136 | AC75: 0.03094564299 | AD75: 0.406397393 | AE75: 0.3048623617 | AF75: 0.2344934887 | AI75: =IF($A75>0,'RRR hist-forc'!K75,0) -> 70.12261003 | AJ75: 32492476.56
A76: ='Asset data'!A76 -> 5 | B76: ='Asset data'!B76 -> 0 | C76: ='Asset data'!C76 -> 0 | D76: ='Asset data'!E76 -> POLE MOUNTED ; < = 22KV ; > 60 KVA AND < = 600 KVA ; SINGLE PHASE | E76: TRANSFORMERS | F76: =IF(A76>0,SUM('Asset data'!J76:CV76),0) -> 976 | G76: =IF(A76>0,'Asset data'!F76,0) -> 11.09258886 | H76: =IF(A76>0,SUM('Asset data'!CX76:GJ76),0) -> 10826.36672 | I76: 0.000394448702 | J76: 56 | K76: 0.004355624428 | L76: 11.09258886 | M76: =IF($A76>0,SUMPRODUCT('Age profile (years)'!$CT76:$GF76,'Asset data'!$CX76:$GJ76)/H76-0.5,0) -> 46.47336066 | N76: 503137.6453 | O76: =IF($A76>0,'Asset data'!G76,0) -> 66.84266059 | P76: 723663.1564 | Q76: 0.3047350264 | R76: 6.684266059 | S76: 13.36853212 | T76: 40.10559636 | U76: 53.47412848 | W76: =IF($A76>0,SUMIF('Age profile (years)'!$CT76:$GF76,"<" & R76+0.5,'Asset data'!$CX76:$GJ76),0) -> 99.83329971 | X76: =IF($A76>0,SUMIF('Age profile (years)'!$CT76:$GF76,"<" & S76+0.5,'Asset data'!$CX76:$GJ76)-W76,0) -> 188.5740106 | Y76: =IF($A76>0,SUMIF('Age profile (years)'!$CT76:$GF76,"<" & T76+0.5,'Asset data'!$CX76:$GJ76)-X76-W76,0) -> 2407.091782 | Z76: =IF($A76>0,SUMIF('Age profile (years)'!$CT76:$GF76,"<" & U76+0.5,'Asset data'!$CX76:$GJ76)-Y76-X76-W76,0) -> 3538.535845 | AA76: 4592.331787 | AB76: 0.009221311475 | AC76: 0.01741803279 | AD76: 0.2223360656 | AE76: 0.3268442623 | AF76: 0.4241803279 | AI76: =IF($A76>0,'RRR hist-forc'!K76,0) -> 66.84266059 | AJ76: 723663.1564
A77: ='Asset data'!A77 -> 5 | B77: ='Asset data'!B77 -> 0 | C77: ='Asset data'!C77 -> 0 | D77: ='Asset data'!E77 -> POLE MOUNTED ; < = 22KV ; > 600 KVA ; SINGLE PHASE | E77: TRANSFORMERS | F77: =IF(A77>0,SUM('Asset data'!J77:CV77),0) -> 2 | G77: =IF(A77>0,'Asset data'!F77,0) -> 17.94662312 | H77: =IF(A77>0,SUM('Asset data'!CX77:GJ77),0) -> 35.89324625 | I77: 1.307737374e-06 | J77: 80 | K77: 1.44404401e-05 | L77: 17.94662312 | M77: =IF($A77>0,SUMPRODUCT('Age profile (years)'!$CT77:$GF77,'Asset data'!$CX77:$GJ77)/H77-0.5,0) -> 35.5 | N77: 1274.210242 | O77: =IF($A77>0,'Asset data'!G77,0) -> 45.8 | P77: 1643.910678 | Q77: 0.2248908297 | R77: 4.58 | S77: 9.16 | T77: 27.48 | U77: 36.64 | W77: =IF($A77>0,SUMIF('Age profile (years)'!$CT77:$GF77,"<" & R77+0.5,'Asset data'!$CX77:$GJ77),0) -> 0 | X77: =IF($A77>0,SUMIF('Age profile (years)'!$CT77:$GF77,"<" & S77+0.5,'Asset data'!$CX77:$GJ77)-W77,0) -> 0 | Y77: =IF($A77>0,SUMIF('Age profile (years)'!$CT77:$GF77,"<" & T77+0.5,'Asset data'!$CX77:$GJ77)-X77-W77,0) -> 17.94662312 | Z77: =IF($A77>0,SUMIF('Age profile (years)'!$CT77:$GF77,"<" & U77+0.5,'Asset data'!$CX77:$GJ77)-Y77-X77-W77,0) -> 0 | AA77: 17.94662312 | AB77: 0 | AC77: 0 | AD77: 0.5 | AE77: 0 | AF77: 0.5 | AI77: =IF($A77>0,'RRR hist-forc'!K77,0) -> 45.8 | AJ77: 1643.910678
A78: ='Asset data'!A78 -> 5 | B78: ='Asset data'!B78 -> 0 | C78: ='Asset data'!C78 -> 0 | D78: ='Asset data'!E78 -> POLE MOUNTED ; < = 22KV ; < = 60 KVA ; MULTIPLE PHASE | E78: TRANSFORMERS | F78: =IF(A78>0,SUM('Asset data'!J78:CV78),0) -> 23644 | G78: =IF(A78>0,'Asset data'!F78,0) -> 8.386676959 | H78: =IF(A78>0,SUM('Asset data'!CX78:GJ78),0) -> 198294.59 | I78: 0.007224680786 | J78: 23 | K78: 0.07977715722 | L78: 8.386676959 | M78: =IF($A78>0,SUMPRODUCT('Age profile (years)'!$CT78:$GF78,'Asset data'!$CX78:$GJ78)/H78-0.5,0) -> 42.0644561 | N78: 8341154.076 | O78: =IF($A78>0,'Asset data'!G78,0) -> 70.18998587 | P78: 13918294.47 | Q78: 0.4007057335 | R78: 7.018998587 | S78: 14.03799717 | T78: 42.11399152 | U78: 56.1519887 | W78: =IF($A78>0,SUMIF('Age profile (years)'!$CT78:$GF78,"<" & R78+0.5,'Asset data'!$CX78:$GJ78),0) -> 4193.338479 | X78: =IF($A78>0,SUMIF('Age profile (years)'!$CT78:$GF78,"<" & S78+0.5,'Asset data'!$CX78:$GJ78)-W78,0) -> 3597.884415 | Y78: =IF($A78>0,SUMIF('Age profile (years)'!$CT78:$GF78,"<" & T78+0.5,'Asset data'!$CX78:$GJ78)-X78-W78,0) -> 76796.80091 | Z78: =IF($A78>0,SUMIF('Age profile (years)'!$CT78:$GF78,"<" & U78+0.5,'Asset data'!$CX78:$GJ78)-Y78-X78-W78,0) -> 74524.01146 | AA78: 39182.55475 | AB78: 0.02114701404 | AC78: 0.01814413805 | AD78: 0.3872864152 | AE78: 0.3758247335 | AF78: 0.1975976992 | AI78: =IF($A78>0,'RRR hist-forc'!K78,0) -> 70.18998587 | AJ78: 13918294.47
A79: ='Asset data'!A79 -> 5 | B79: ='Asset data'!B79 -> 0 | C79: ='Asset data'!C79 -> 0 | D79: ='Asset data'!E79 -> POLE MOUNTED ; < = 22KV ; > 60 KVA AND < = 600 KVA ; MULTIPLE PHASE | E79: TRANSFORMERS | F79: =IF(A79>0,SUM('Asset data'!J79:CV79),0) -> 21208 | G79: =IF(A79>0,'Asset data'!F79,0) -> 17.94662312 | H79: =IF(A79>0,SUM('Asset data'!CX79:GJ79),0) -> 380611.9832 | I79: 0.01386724712 | J79: 16 | K79: 0.1531264268 | L79: 17.94662312 | M79: =IF($A79>0,SUMPRODUCT('Age profile (years)'!$CT79:$GF79,'Asset data'!$CX79:$GJ79)/H79-0.5,0) -> 37.63990004 | N79: 14326197 | O79: =IF($A79>0,'Asset data'!G79,0) -> 60.31361808 | P79: 22956085.79 | Q79: 0.3759303249 | R79: 6.031361808 | S79: 12.06272362 | T79: 36.18817085 | U79: 48.25089446 | W79: =IF($A79>0,SUMIF('Age profile (years)'!$CT79:$GF79,"<" & R79+0.5,'Asset data'!$CX79:$GJ79),0) -> 10121.89544 | X79: =IF($A79>0,SUMIF('Age profile (years)'!$CT79:$GF79,"<" & S79+0.5,'Asset data'!$CX79:$GJ79)-W79,0) -> 14267.56538 | Y79: =IF($A79>0,SUMIF('Age profile (years)'!$CT79:$GF79,"<" & T79+0.5,'Asset data'!$CX79:$GJ79)-X79-W79,0) -> 132410.1854 | Z79: =IF($A79>0,SUMIF('Age profile (years)'!$CT79:$GF79,"<" & U79+0.5,'Asset data'!$CX79:$GJ79)-Y79-X79-W79,0) -> 98096.24199 | AA79: 125716.095 | AB79: 0.02659373821 | AC79: 0.03748585439 | AD79: 0.3478875896 | AE79: 0.257732931 | AF79: 0.3302998868 | AI79: =IF($A79>0,'RRR hist-forc'!K79,0) -> 60.31361808 | AJ79: 22956085.79
A80: ='Asset data'!A80 -> 5 | B80: ='Asset data'!B80 -> 0 | C80: ='Asset data'!C80 -> 0 | D80: ='Asset data'!E80 -> POLE MOUNTED ; < = 22KV ; > 600 KVA ; MULTIPLE PHASE | E80: TRANSFORMERS | F80: =IF(A80>0,SUM('Asset data'!J80:CV80),0) -> 38 | G80: =IF(A80>0,'Asset data'!F80,0) -> 73.14890012 | H80: =IF(A80>0,SUM('Asset data'!CX80:GJ80),0) -> 2779.658205 | I80: 0.000101274287 | J80: 65 | K80: 0.001118301965 | L80: 73.14890012 | M80: =IF($A80>0,SUMPRODUCT('Age profile (years)'!$CT80:$GF80,'Asset data'!$CX80:$GJ80)/H80-0.5,0) -> 28.18421053 | N80: 78342.47203 | O80: =IF($A80>0,'Asset data'!G80,0) -> 53.82751509 | P80: 149622.0939 | Q80: 0.4763977033 | R80: 5.382751509 | S80: 10.76550302 | T80: 32.29650905 | U80: 43.06201207 | W80: =IF($A80>0,SUMIF('Age profile (years)'!$CT80:$GF80,"<" & R80+0.5,'Asset data'!$CX80:$GJ80),0) -> 146.2978002 | X80: =IF($A80>0,SUMIF('Age profile (years)'!$CT80:$GF80,"<" & S80+0.5,'Asset data'!$CX80:$GJ80)-W80,0) -> 292.5956005 | Y80: =IF($A80>0,SUMIF('Age profile (years)'!$CT80:$GF80,"<" & T80+0.5,'Asset data'!$CX80:$GJ80)-X80-W80,0) -> 804.6379014 | Z80: =IF($A80>0,SUMIF('Age profile (years)'!$CT80:$GF80,"<" & U80+0.5,'Asset data'!$CX80:$GJ80)-Y80-X80-W80,0) -> 1243.531302 | AA80: 292.5956005 | AB80: 0.05263157895 | AC80: 0.1052631579 | AD80: 0.2894736842 | AE80: 0.4473684211 | AF80: 0.1052631579 | AI80: =IF($A80>0,'RRR hist-forc'!K80,0) -> 53.82751509 | AJ80: 149622.0939
A81: ='Asset data'!A81 -> 5 | B81: ='Asset data'!B81 -> 0 | C81: ='Asset data'!C81 -> 0 | D81: ='Asset data'!E81 -> POLE MOUNTED ; > 22 KV ; < = 60 KVA | E81: TRANSFORMERS | F81: =IF(A81>0,SUM('Asset data'!J81:CV81),0) -> 614 | G81: =IF(A81>0,'Asset data'!F81,0) -> 10.36579849 | H81: =IF(A81>0,SUM('Asset data'!CX81:GJ81),0) -> 6364.600275 | I81: 0.0002318883501 | J81: 61 | K81: 0.002560582801 | L81: 10.36579849 | M81: =IF($A81>0,SUMPRODUCT('Age profile (years)'!$CT81:$GF81,'Asset data'!$CX81:$GJ81)/H81-0.5,0) -> 32.36482085 | N81: 205989.1477 | O81: =IF($A81>0,'Asset data'!G81,0) -> 56.59236437 | P81: 360187.7778 | Q81: 0.4281062259 | R81: 5.659236437 | S81: 11.31847287 | T81: 33.95541862 | U81: 45.2738915 | W81: =IF($A81>0,SUMIF('Age profile (years)'!$CT81:$GF81,"<" & R81+0.5,'Asset data'!$CX81:$GJ81),0) -> 528.6557232 | X81: =IF($A81>0,SUMIF('Age profile (years)'!$CT81:$GF81,"<" & S81+0.5,'Asset data'!$CX81:$GJ81)-W81,0) -> 238.4133654 | Y81: =IF($A81>0,SUMIF('Age profile (years)'!$CT81:$GF81,"<" & T81+0.5,'Asset data'!$CX81:$GJ81)-X81-W81,0) -> 1845.112132 | Z81: =IF($A81>0,SUMIF('Age profile (years)'!$CT81:$GF81,"<" & U81+0.5,'Asset data'!$CX81:$GJ81)-Y81-X81-W81,0) -> 2570.718026 | AA81: 1181.701028 | AB81: 0.08306188925 | AC81: 0.03745928339 | AD81: 0.2899022801 | AE81: 0.4039087948 | AF81: 0.1856677524 | AI81: =IF($A81>0,'RRR hist-forc'!K81,0) -> 56.59236437 | AJ81: 360187.7778
A82: ='Asset data'!A82 -> 5 | B82: ='Asset data'!B82 -> 0 | C82: ='Asset data'!C82 -> 0 | D82: ='Asset data'!E82 -> POLE MOUNTED ; > 22 KV ; > 60 KVA AND < = 600 KVA | E82: TRANSFORMERS | F82: =IF(A82>0,SUM('Asset data'!J82:CV82),0) -> 682 | G82: =IF(A82>0,'Asset data'!F82,0) -> 13.505149 | H82: =IF(A82>0,SUM('Asset data'!CX82:GJ82),0) -> 9210.511616 | I82: 0.0003355765091 | J82: 58 | K82: 0.003705539486 | L82: 13.505149 | M82: =IF($A82>0,SUMPRODUCT('Age profile (years)'!$CT82:$GF82,'Asset data'!$CX82:$GJ82)/H82-0.5,0) -> 32.30498534 | N82: 297545.4427 | O82: =IF($A82>0,'Asset data'!G82,0) -> 52.31144299 | P82: 481815.1533 | Q82: 0.3824489732 | R82: 5.231144299 | S82: 10.4622886 | T82: 31.3868658 | U82: 41.8491544 | W82: =IF($A82>0,SUMIF('Age profile (years)'!$CT82:$GF82,"<" & R82+0.5,'Asset data'!$CX82:$GJ82),0) -> 391.6493209 | X82: =IF($A82>0,SUMIF('Age profile (years)'!$CT82:$GF82,"<" & S82+0.5,'Asset data'!$CX82:$GJ82)-W82,0) -> 445.6699169 | Y82: =IF($A82>0,SUMIF('Age profile (years)'!$CT82:$GF82,"<" & T82+0.5,'Asset data'!$CX82:$GJ82)-X82-W82,0) -> 2647.009203 | Z82: =IF($A82>0,SUMIF('Age profile (years)'!$CT82:$GF82,"<" & U82+0.5,'Asset data'!$CX82:$GJ82)-Y82-X82-W82,0) -> 3187.215163 | AA82: 2538.968011 | AB82: 0.04252199413 | AC82: 0.04838709677 | AD82: 0.2873900293 | AE82: 0.3460410557 | AF82: 0.275659824 | AI82: =IF($A82>0,'RRR hist-forc'!K82,0) -> 52.31144299 | AJ82: 481815.1533
A83: ='Asset data'!A83 -> 5 | B83: ='Asset data'!B83 -> 0 | C83: ='Asset data'!C83 -> 0 | D83: ='Asset data'!E83 -> POLE MOUNTED ; > 22 KV ; > 600 KVA | E83: TRANSFORMERS | F83: =IF(A83>0,SUM('Asset data'!J83:CV83),0) -> 10 | G83: =IF(A83>0,'Asset data'!F83,0) -> 73.14890012 | H83: =IF(A83>0,SUM('Asset data'!CX83:GJ83),0) -> 731.4890012 | I83: 2.665112816e-05 | J83: 69 | K83: 0.0002942899907 | L83: 73.14890012 | M83: =IF($A83>0,SUMPRODUCT('Age profile (years)'!$CT83:$GF83,'Asset data'!$CX83:$GJ83)/H83-0.5,0) -> 25.3 | N83: 18506.67173 | O83: =IF($A83>0,'Asset data'!G83,0) -> 45.8 | P83: 33502.19626 | Q83: 0.4475982533 | R83: 4.58 | S83: 9.16 | T83: 27.48 | U83: 36.64 | W83: =IF($A83>0,SUMIF('Age profile (years)'!$CT83:$GF83,"<" & R83+0.5,'Asset data'!$CX83:$GJ83),0) -> 73.14890012 | X83: =IF($A83>0,SUMIF('Age profile (years)'!$CT83:$GF83,"<" & S83+0.5,'Asset data'!$CX83:$GJ83)-W83,0) -> 0 | Y83: =IF($A83>0,SUMIF('Age profile (years)'!$CT83:$GF83,"<" & T83+0.5,'Asset data'!$CX83:$GJ83)-X83-W83,0) -> 292.5956005 | Z83: =IF($A83>0,SUMIF('Age profile (years)'!$CT83:$GF83,"<" & U83+0.5,'Asset data'!$CX83:$GJ83)-Y83-X83-W83,0) -> 365.7445006 | AA83: -1.421085472e-14 | AB83: 0.1 | AC83: 0 | AD83: 0.4 | AE83: 0.5 | AF83: -1.942729787e-17 | AI83: =IF($A83>0,'RRR hist-forc'!K83,0) -> 45.8 | AJ83: 33502.19626
A84: ='Asset data'!A84 -> 0 | B84: ='Asset data'!B84 -> 0 | C84: ='Asset data'!C84 -> 0 | D84: ='Asset data'!E84 -> POLE MOUNTED ; > 22 KV ; < = 60 KVA | E84: 0 | F84: =IF(A84>0,SUM('Asset data'!J84:CV84),0) -> 0 | G84: =IF(A84>0,'Asset data'!F84,0) -> 0 | H84: =IF(A84>0,SUM('Asset data'!CX84:GJ84),0) -> 0 | I84: 0 | J84: 0 | K84: 0 | L84: 0 | M84: =IF($A84>0,SUMPRODUCT('Age profile (years)'!$CT84:$GF84,'Asset data'!$CX84:$GJ84)/H84-0.5,0) -> 0 | N84: 0 | O84: =IF($A84>0,'Asset data'!G84,0) -> 0 | P84: 0 | Q84: 0 | R84: 0 | S84: 0 | T84: 0 | U84: 0 | W84: =IF($A84>0,SUMIF('Age profile (years)'!$CT84:$GF84,"<" & R84+0.5,'Asset data'!$CX84:$GJ84),0) -> 0 | X84: =IF($A84>0,SUMIF('Age profile (years)'!$CT84:$GF84,"<" & S84+0.5,'Asset data'!$CX84:$GJ84)-W84,0) -> 0 | Y84: =IF($A84>0,SUMIF('Age profile (years)'!$CT84:$GF84,"<" & T84+0.5,'Asset data'!$CX84:$GJ84)-X84-W84,0) -> 0 | Z84: =IF($A84>0,SUMIF('Age profile (years)'!$CT84:$GF84,"<" & U84+0.5,'Asset data'!$CX84:$GJ84)-Y84-X84-W84,0) -> 0 | AA84: 0 | AB84: 0 | AC84: 0 | AD84: 0 | AE84: 0 | AF84: 0 | AI84: =IF($A84>0,'RRR hist-forc'!K84,0) -> 0 | AJ84: 0
A85: ='Asset data'!A85 -> 0 | B85: ='Asset data'!B85 -> 0 | C85: ='Asset data'!C85 -> 0 | D85: ='Asset data'!E85 -> POLE MOUNTED ; > 22 KV ; > 60 KVA AND < = 600 KVA | E85: 0 | F85: =IF(A85>0,SUM('Asset data'!J85:CV85),0) -> 0 | G85: =IF(A85>0,'Asset data'!F85,0) -> 0 | H85: =IF(A85>0,SUM('Asset data'!CX85:GJ85),0) -> 0 | I85: 0 | J85: 0 | K85: 0 | L85: 0 | M85: =IF($A85>0,SUMPRODUCT('Age profile (years)'!$CT85:$GF85,'Asset data'!$CX85:$GJ85)/H85-0.5,0) -> 0 | N85: 0 | O85: =IF($A85>0,'Asset data'!G85,0) -> 0 | P85: 0 | Q85: 0 | R85: 0 | S85: 0 | T85: 0 | U85: 0 | W85: =IF($A85>0,SUMIF('Age profile (years)'!$CT85:$GF85,"<" & R85+0.5,'Asset data'!$CX85:$GJ85),0) -> 0 | X85: =IF($A85>0,SUMIF('Age profile (years)'!$CT85:$GF85,"<" & S85+0.5,'Asset data'!$CX85:$GJ85)-W85,0) -> 0 | Y85: =IF($A85>0,SUMIF('Age profile (years)'!$CT85:$GF85,"<" & T85+0.5,'Asset data'!$CX85:$GJ85)-X85-W85,0) -> 0 | Z85: =IF($A85>0,SUMIF('Age profile (years)'!$CT85:$GF85,"<" & U85+0.5,'Asset data'!$CX85:$GJ85)-Y85-X85-W85,0) -> 0 | AA85: 0 | AB85: 0 | AC85: 0 | AD85: 0 | AE85: 0 | AF85: 0 | AI85: =IF($A85>0,'RRR hist-forc'!K85,0) -> 0 | AJ85: 0
A86: ='Asset data'!A86 -> 0 | B86: ='Asset data'!B86 -> 0 | C86: ='Asset data'!C86 -> 0 | D86: ='Asset data'!E86 -> POLE MOUNTED ; > 22 KV ; > 600 KVA | E86: 0 | F86: =IF(A86>0,SUM('Asset data'!J86:CV86),0) -> 0 | G86: =IF(A86>0,'Asset data'!F86,0) -> 0 | H86: =IF(A86>0,SUM('Asset data'!CX86:GJ86),0) -> 0 | I86: 0 | J86: 0 | K86: 0 | L86: 0 | M86: =IF($A86>0,SUMPRODUCT('Age profile (years)'!$CT86:$GF86,'Asset data'!$CX86:$GJ86)/H86-0.5,0) -> 0 | N86: 0 | O86: =IF($A86>0,'Asset data'!G86,0) -> 0 | P86: 0 | Q86: 0 | R86: 0 | S86: 0 | T86: 0 | U86: 0 | W86: =IF($A86>0,SUMIF('Age profile (years)'!$CT86:$GF86,"<" & R86+0.5,'Asset data'!$CX86:$GJ86),0) -> 0 | X86: =IF($A86>0,SUMIF('Age profile (years)'!$CT86:$GF86,"<" & S86+0.5,'Asset data'!$CX86:$GJ86)-W86,0) -> 0 | Y86: =IF($A86>0,SUMIF('Age profile (years)'!$CT86:$GF86,"<" & T86+0.5,'Asset data'!$CX86:$GJ86)-X86-W86,0) -> 0 | Z86: =IF($A86>0,SUMIF('Age profile (years)'!$CT86:$GF86,"<" & U86+0.5,'Asset data'!$CX86:$GJ86)-Y86-X86-W86,0) -> 0 | AA86: 0 | AB86: 0 | AC86: 0 | AD86: 0 | AE86: 0 | AF86: 0 | AI86: =IF($A86>0,'RRR hist-forc'!K86,0) -> 0 | AJ86: 0
A87: ='Asset data'!A87 -> 5 | B87: ='Asset data'!B87 -> 0 | C87: ='Asset data'!C87 -> 0 | D87: ='Asset data'!E87 -> KIOSK MOUNTED ; < = 22KV ; < = 60 KVA ; SINGLE PHASE | E87: =IF(A87>0,VLOOKUP(A87,IDtable,2),0) -> TRANSFORMERS | F87: =IF(A87>0,SUM('Asset data'!J87:CV87),0) -> 65 | G87: =IF(A87>0,'Asset data'!F87,0) -> 1.729225911 | H87: =IF(A87>0,SUM('Asset data'!CX87:GJ87),0) -> 112.3996842 | I87: =H87/$H$18/1000 -> 4.09517899e-06 | J87: =IF(RANK(0,I$21:I$205)=RANK(I87,I$21:I$205),0,RANK(I87,I$21:I$205)) -> 78 | K87: =IF(A87>0,H87/(VLOOKUP(A87,$A$6:$H$17,8)*1000),0) -> 4.522023156e-05 | L87: =IF($A87>0,H87/F87,0) -> 1.729225911 | M87: =IF($A87>0,SUMPRODUCT('Age profile (years)'!$CT87:$GF87,'Asset data'!$CX87:$GJ87)/H87-0.5,0) -> 38.54615385 | N87: =IF($A87>0,M87*H87,0) -> 4332.57552 | O87: =IF($A87>0,'Asset data'!G87,0) -> 45.8 | P87: =IF($A87>0,H87*O87,0) -> 5147.905537 | Q87: =IF($A87>0,(O87-M87)/O87,0) -> 0.1583809204 | R87: 4.58 | S87: 9.16 | T87: 27.48 | U87: 36.64 | W87: =IF($A87>0,SUMIF('Age profile (years)'!$CT87:$GF87,"<" & R87+0.5,'Asset data'!$CX87:$GJ87),0) -> 0 | X87: =IF($A87>0,SUMIF('Age profile (years)'!$CT87:$GF87,"<" & S87+0.5,'Asset data'!$CX87:$GJ87)-W87,0) -> 0 | Y87: =IF($A87>0,SUMIF('Age profile (years)'!$CT87:$GF87,"<" & T87+0.5,'Asset data'!$CX87:$GJ87)-X87-W87,0) -> 1.729225911 | Z87: =IF($A87>0,SUMIF('Age profile (years)'!$CT87:$GF87,"<" & U87+0.5,'Asset data'!$CX87:$GJ87)-Y87-X87-W87,0) -> 12.10458138 | AA87: =IF($A87>0,H87-Z87-Y87-X87-W87,0) -> 98.56587692 | AB87: =IF($A87>0,W87/$H87,0) -> 0 | AC87: =IF($A87>0,X87/$H87,0) -> 0 | AD87: =IF($A87>0,Y87/$H87,0) -> 0.01538461538 | AE87: =IF($A87>0,Z87/$H87,0) -> 0.1076923077 | AF87: =IF($A87>0,AA87/$H87,0) -> 0.8769230769 | AI87: =IF($A87>0,'RRR hist-forc'!K87,0) -> 45.8 | AJ87: =IF($A87>0,AI87*H87,0) -> 5147.905537
A88: ='Asset data'!A88 -> 5 | B88: ='Asset data'!B88 -> 0 | C88: ='Asset data'!C88 -> 0 | D88: ='Asset data'!E88 -> KIOSK MOUNTED ; < = 22KV ; > 60 KVA AND < = 600 KVA ; SINGLE PHASE | E88: TRANSFORMERS | F88: =IF(A88>0,SUM('Asset data'!J88:CV88),0) -> 11 | G88: =IF(A88>0,'Asset data'!F88,0) -> 37.67968809 | H88: =IF(A88>0,SUM('Asset data'!CX88:GJ88),0) -> 414.476569 | I88: 1.510107212e-05 | J88: 71 | K88: 0.0001667507036 | L88: 37.67968809 | M88: =IF($A88>0,SUMPRODUCT('Age profile (years)'!$CT88:$GF88,'Asset data'!$CX88:$GJ88)/H88-0.5,0) -> 28.77272727 | N88: 11925.62128 | O88: =IF($A88>0,'Asset data'!G88,0) -> 45.8 | P88: 18983.02686 | Q88: 0.3717745137 | R88: 4.58 | S88: 9.16 | T88: 27.48 | U88: 36.64 | W88: =IF($A88>0,SUMIF('Age profile (years)'!$CT88:$GF88,"<" & R88+0.5,'Asset data'!$CX88:$GJ88),0) -> 37.67968809 | X88: =IF($A88>0,SUMIF('Age profile (years)'!$CT88:$GF88,"<" & S88+0.5,'Asset data'!$CX88:$GJ88)-W88,0) -> 37.67968809 | Y88: =IF($A88>0,SUMIF('Age profile (years)'!$CT88:$GF88,"<" & T88+0.5,'Asset data'!$CX88:$GJ88)-X88-W88,0) -> 37.67968809 | Z88: =IF($A88>0,SUMIF('Age profile (years)'!$CT88:$GF88,"<" & U88+0.5,'Asset data'!$CX88:$GJ88)-Y88-X88-W88,0) -> 75.35937619 | AA88: 226.0781286 | AB88: 0.09090909091 | AC88: 0.09090909091 | AD88: 0.09090909091 | AE88: 0.1818181818 | AF88: 0.5454545455 | AI88: =IF($A88>0,'RRR hist-forc'!K88,0) -> 45.8 | AJ88: 18983.02686
A89: ='Asset data'!A89 -> 5 | B89: ='Asset data'!B89 -> 0 | C89: ='Asset data'!C89 -> 0 | D89: ='Asset data'!E89 -> KIOSK MOUNTED ; < = 22KV ; > 600 KVA ; SINGLE PHASE | E89: TRANSFORMERS | F89: =IF(A89>0,SUM('Asset data'!J89:CV89),0) -> 2 | G89: =IF(A89>0,'Asset data'!F89,0) -> 74.5247988 | H89: =IF(A89>0,SUM('Asset data'!CX89:GJ89),0) -> 149.0495976 | I89: 5.430484835e-06 | J89: 77 | K89: 5.996509123e-05 | L89: 74.5247988 | M89: =IF($A89>0,SUMPRODUCT('Age profile (years)'!$CT89:$GF89,'Asset data'!$CX89:$GJ89)/H89-0.5,0) -> 22.5 | N89: 3353.615946 | O89: =IF($A89>0,'Asset data'!G89,0) -> 45.8 | P89: 6826.47157 | Q89: 0.5087336245 | R89: 4.58 | S89: 9.16 | T89: 27.48 | U89: 36.64 | W89: =IF($A89>0,SUMIF('Age profile (years)'!$CT89:$GF89,"<" & R89+0.5,'Asset data'!$CX89:$GJ89),0) -> 0 | X89: =IF($A89>0,SUMIF('Age profile (years)'!$CT89:$GF89,"<" & S89+0.5,'Asset data'!$CX89:$GJ89)-W89,0) -> 0 | Y89: =IF($A89>0,SUMIF('Age profile (years)'!$CT89:$GF89,"<" & T89+0.5,'Asset data'!$CX89:$GJ89)-X89-W89,0) -> 149.0495976 | Z89: =IF($A89>0,SUMIF('Age profile (years)'!$CT89:$GF89,"<" & U89+0.5,'Asset data'!$CX89:$GJ89)-Y89-X89-W89,0) -> 0 | AA89: 0 | AB89: 0 | AC89: 0 | AD89: 1 | AE89: 0 | AF89: 0 | AI89: =IF($A89>0,'RRR hist-forc'!K89,0) -> 45.8 | AJ89: 6826.47157
A90: ='Asset data'!A90 -> 5 | B90: ='Asset data'!B90 -> 0 | C90: ='Asset data'!C90 -> 0 | D90: ='Asset data'!E90 -> KIOSK MOUNTED ; < = 22KV ; < = 60 KVA ; MULTIPLE PHASE | E90: TRANSFORMERS | F90: =IF(A90>0,SUM('Asset data'!J90:CV90),0) -> 151 | G90: =IF(A90>0,'Asset data'!F90,0) -> 20.44971324 | H90: =IF(A90>0,SUM('Asset data'!CX90:GJ90),0) -> 3087.906699 | I90: 0.0001125050371 | J90: 63 | K90: 0.001242315376 | L90: 20.44971324 | M90: =IF($A90>0,SUMPRODUCT('Age profile (years)'!$CT90:$GF90,'Asset data'!$CX90:$GJ90)/H90-0.5,0) -> 22.77152318 | N90: 70316.33897 | O90: =IF($A90>0,'Asset data'!G90,0) -> 45.8 | P90: 141426.1268 | Q90: 0.5028051708 | R90: 4.58 | S90: 9.16 | T90: 27.48 | U90: 36.64 | W90: =IF($A90>0,SUMIF('Age profile (years)'!$CT90:$GF90,"<" & R90+0.5,'Asset data'!$CX90:$GJ90),0) -> 81.79885296 | X90: =IF($A90>0,SUMIF('Age profile (years)'!$CT90:$GF90,"<" & S90+0.5,'Asset data'!$CX90:$GJ90)-W90,0) -> 0 | Y90: =IF($A90>0,SUMIF('Age profile (years)'!$CT90:$GF90,"<" & T90+0.5,'Asset data'!$CX90:$GJ90)-X90-W90,0) -> 1983.622184 | Z90: =IF($A90>0,SUMIF('Age profile (years)'!$CT90:$GF90,"<" & U90+0.5,'Asset data'!$CX90:$GJ90)-Y90-X90-W90,0) -> 920.2370958 | AA90: 102.2485662 | AB90: 0.02649006623 | AC90: 0 | AD90: 0.642384106 | AE90: 0.298013245 | AF90: 0.03311258278 | AI90: =IF($A90>0,'RRR hist-forc'!K90,0) -> 45.8 | AJ90: 141426.1268
A91: ='Asset data'!A91 -> 5 | B91: ='Asset data'!B91 -> 0 | C91: ='Asset data'!C91 -> 0 | D91: ='Asset data'!E91 -> KIOSK MOUNTED ; < = 22KV ; > 60 KVA AND < = 600 KVA ; MULTIPLE PHASE | E91: TRANSFORMERS | F91: =IF(A91>0,SUM('Asset data'!J91:CV91),0) -> 4183 | G91: =IF(A91>0,'Asset data'!F91,0) -> 37.67968809 | H91: =IF(A91>0,SUM('Asset data'!CX91:GJ91),0) -> 157614.1353 | I91: 0.005742525879 | J91: 27 | K91: 0.06341074485 | L91: 37.67968809 | M91: =IF($A91>0,SUMPRODUCT('Age profile (years)'!$CT91:$GF91,'Asset data'!$CX91:$GJ91)/H91-0.5,0) -> 27.96043509 | N91: 4406959.8 | O91: =IF($A91>0,'Asset data'!G91,0) -> 45.14129504 | P91: 7114906.183 | Q91: 0.3806018398 | R91: 4.514129504 | S91: 9.028259007 | T91: 27.08477702 | U91: 36.11303603 | W91: =IF($A91>0,SUMIF('Age profile (years)'!$CT91:$GF91,"<" & R91+0.5,'Asset data'!$CX91:$GJ91),0) -> 5538.91415 | X91: =IF($A91>0,SUMIF('Age profile (years)'!$CT91:$GF91,"<" & S91+0.5,'Asset data'!$CX91:$GJ91)-W91,0) -> 6443.226664 | Y91: =IF($A91>0,SUMIF('Age profile (years)'!$CT91:$GF91,"<" & T91+0.5,'Asset data'!$CX91:$GJ91)-X91-W91,0) -> 57197.76653 | Z91: =IF($A91>0,SUMIF('Age profile (years)'!$CT91:$GF91,"<" & U91+0.5,'Asset data'!$CX91:$GJ91)-Y91-X91-W91,0) -> 35042.10993 | AA91: 53392.11803 | AB91: 0.03514224241 | AC91: 0.04087975137 | AD91: 0.362897442 | AE91: 0.2223284724 | AF91: 0.3387520918 | AI91: =IF($A91>0,'RRR hist-forc'!K91,0) -> 45.14129504 | AJ91: 7114906.183
A92: ='Asset data'!A92 -> 5 | B92: ='Asset data'!B92 -> 0 | C92: ='Asset data'!C92 -> 0 | D92: ='Asset data'!E92 -> KIOSK MOUNTED ; < = 22KV ; > 600 KVA ; MULTIPLE PHASE | E92: TRANSFORMERS | F92: =IF(A92>0,SUM('Asset data'!J92:CV92),0) -> 1301 | G92: =IF(A92>0,'Asset data'!F92,0) -> 74.5247988 | H92: =IF(A92>0,SUM('Asset data'!CX92:GJ92),0) -> 96956.76324 | I92: 0.003532530385 | J92: 35 | K92: 0.03900729185 | L92: 74.5247988 | M92: =IF($A92>0,SUMPRODUCT('Age profile (years)'!$CT92:$GF92,'Asset data'!$CX92:$GJ92)/H92-0.5,0) -> 37.51460415 | N92: 3637294.593 | O92: =IF($A92>0,'Asset data'!G92,0) -> 49.87419153 | P92: 4835640.18 | Q92: 0.2478152928 | R92: 4.987419153 | S92: 9.974838306 | T92: 29.92451492 | U92: 39.89935322 | W92: =IF($A92>0,SUMIF('Age profile (years)'!$CT92:$GF92,"<" & R92+0.5,'Asset data'!$CX92:$GJ92),0) -> 670.7231892 | X92: =IF($A92>0,SUMIF('Age profile (years)'!$CT92:$GF92,"<" & S92+0.5,'Asset data'!$CX92:$GJ92)-W92,0) -> 1266.92158 | Y92: =IF($A92>0,SUMIF('Age profile (years)'!$CT92:$GF92,"<" & T92+0.5,'Asset data'!$CX92:$GJ92)-X92-W92,0) -> 17587.85252 | Z92: =IF($A92>0,SUMIF('Age profile (years)'!$CT92:$GF92,"<" & U92+0.5,'Asset data'!$CX92:$GJ92)-Y92-X92-W92,0) -> 24369.60921 | AA92: 53061.65675 | AB92: 0.006917755573 | AC92: 0.01306687164 | AD92: 0.1813989239 | AE92: 0.2513451191 | AF92: 0.5472713297 | AI92: =IF($A92>0,'RRR hist-forc'!K92,0) -> 49.87419153 | AJ92: 4835640.18
A93: ='Asset data'!A93 -> 0 | B93: ='Asset data'!B93 -> 0 | C93: ='Asset data'!C93 -> 0 | D93: ='Asset data'!E93 -> KIOSK MOUNTED ; > 22 KV ; < = 60 KVA | E93: 0 | F93: =IF(A93>0,SUM('Asset data'!J93:CV93),0) -> 0 | G93: =IF(A93>0,'Asset data'!F93,0) -> 0 | H93: =IF(A93>0,SUM('Asset data'!CX93:GJ93),0) -> 0 | I93: 0 | J93: 0 | K93: 0 | L93: 0 | M93: =IF($A93>0,SUMPRODUCT('Age profile (years)'!$CT93:$GF93,'Asset data'!$CX93:$GJ93)/H93-0.5,0) -> 0 | N93: 0 | O93: =IF($A93>0,'Asset data'!G93,0) -> 0 | P93: 0 | Q93: 0 | R93: 0 | S93: 0 | T93: 0 | U93: 0 | W93: =IF($A93>0,SUMIF('Age profile (years)'!$CT93:$GF93,"<" & R93+0.5,'Asset data'!$CX93:$GJ93),0) -> 0 | X93: =IF($A93>0,SUMIF('Age profile (years)'!$CT93:$GF93,"<" & S93+0.5,'Asset data'!$CX93:$GJ93)-W93,0) -> 0 | Y93: =IF($A93>0,SUMIF('Age profile (years)'!$CT93:$GF93,"<" & T93+0.5,'Asset data'!$CX93:$GJ93)-X93-W93,0) -> 0 | Z93: =IF($A93>0,SUMIF('Age profile (years)'!$CT93:$GF93,"<" & U93+0.5,'Asset data'!$CX93:$GJ93)-Y93-X93-W93,0) -> 0 | AA93: 0 | AB93: 0 | AC93: 0 | AD93: 0 | AE93: 0 | AF93: 0 | AI93: =IF($A93>0,'RRR hist-forc'!K93,0) -> 0 | AJ93: 0
A94: ='Asset data'!A94 -> 5 | B94: ='Asset data'!B94 -> 0 | C94: ='Asset data'!C94 -> 0 | D94: ='Asset data'!E94 -> KIOSK MOUNTED ; > 22 KV ; > 60 KVA AND < = 600 KVA | E94: TRANSFORMERS | F94: =IF(A94>0,SUM('Asset data'!J94:CV94),0) -> 9 | G94: =IF(A94>0,'Asset data'!F94,0) -> 37.67968809 | H94: =IF(A94>0,SUM('Asset data'!CX94:GJ94),0) -> 339.1171928 | I94: 1.235542264e-05 | J94: 72 | K94: 0.0001364323939 | L94: 37.67968809 | M94: =IF($A94>0,SUMPRODUCT('Age profile (years)'!$CT94:$GF94,'Asset data'!$CX94:$GJ94)/H94-0.5,0) -> 35.61111111 | N94: 12076.34003 | O94: =IF($A94>0,'Asset data'!G94,0) -> 45.8 | P94: 15531.56743 | Q94: 0.2224648229 | R94: 4.58 | S94: 9.16 | T94: 27.48 | U94: 36.64 | W94: =IF($A94>0,SUMIF('Age profile (years)'!$CT94:$GF94,"<" & R94+0.5,'Asset data'!$CX94:$GJ94),0) -> 0 | X94: =IF($A94>0,SUMIF('Age profile (years)'!$CT94:$GF94,"<" & S94+0.5,'Asset data'!$CX94:$GJ94)-W94,0) -> 0 | Y94: =IF($A94>0,SUMIF('Age profile (years)'!$CT94:$GF94,"<" & T94+0.5,'Asset data'!$CX94:$GJ94)-X94-W94,0) -> 0 | Z94: =IF($A94>0,SUMIF('Age profile (years)'!$CT94:$GF94,"<" & U94+0.5,'Asset data'!$CX94:$GJ94)-Y94-X94-W94,0) -> 188.3984405 | AA94: 150.7187524 | AB94: 0 | AC94: 0 | AD94: 0 | AE94: 0.5555555556 | AF94: 0.4444444444 | AI94: =IF($A94>0,'RRR hist-forc'!K94,0) -> 45.8 | AJ94: 15531.56743
A95: ='Asset data'!A95 -> 5 | B95: ='Asset data'!B95 -> 0 | C95: ='Asset data'!C95 -> 0 | D95: ='Asset data'!E95 -> KIOSK MOUNTED ; > 22 KV ; > 600 KVA | E95: TRANSFORMERS | F95: =IF(A95>0,SUM('Asset data'!J95:CV95),0) -> 40 | G95: =IF(A95>0,'Asset data'!F95,0) -> 74.5247988 | H95: =IF(A95>0,SUM('Asset data'!CX95:GJ95),0) -> 2980.991952 | I95: 0.0001086096967 | J95: 64 | K95: 0.001199301825 | L95: 74.5247988 | M95: =IF($A95>0,SUMPRODUCT('Age profile (years)'!$CT95:$GF95,'Asset data'!$CX95:$GJ95)/H95-0.5,0) -> 32.675 | N95: 97403.91203 | O95: =IF($A95>0,'Asset data'!G95,0) -> 45.8 | P95: 136529.4314 | Q95: 0.2865720524 | R95: 4.58 | S95: 9.16 | T95: 27.48 | U95: 36.64 | W95: =IF($A95>0,SUMIF('Age profile (years)'!$CT95:$GF95,"<" & R95+0.5,'Asset data'!$CX95:$GJ95),0) -> 74.5247988 | X95: =IF($A95>0,SUMIF('Age profile (years)'!$CT95:$GF95,"<" & S95+0.5,'Asset data'!$CX95:$GJ95)-W95,0) -> 0 | Y95: =IF($A95>0,SUMIF('Age profile (years)'!$CT95:$GF95,"<" & T95+0.5,'Asset data'!$CX95:$GJ95)-X95-W95,0) -> 149.0495976 | Z95: =IF($A95>0,SUMIF('Age profile (years)'!$CT95:$GF95,"<" & U95+0.5,'Asset data'!$CX95:$GJ95)-Y95-X95-W95,0) -> 1714.070372 | AA95: 1043.347183 | AB95: 0.025 | AC95: 0 | AD95: 0.05 | AE95: 0.575 | AF95: 0.35 | AI95: =IF($A95>0,'RRR hist-forc'!K95,0) -> 45.8 | AJ95: 136529.4314
A96: ='Asset data'!A96 -> 0 | B96: ='Asset data'!B96 -> 0 | C96: ='Asset data'!C96 -> 0 | D96: ='Asset data'!E96 -> KIOSK MOUNTED ; > 22 KV ; < = 60 KVA | E96: 0 | F96: =IF(A96>0,SUM('Asset data'!J96:CV96),0) -> 0 | G96: =IF(A96>0,'Asset data'!F96,0) -> 0 | H96: =IF(A96>0,SUM('Asset data'!CX96:GJ96),0) -> 0 | I96: 0 | J96: 0 | K96: 0 | L96: 0 | M96: =IF($A96>0,SUMPRODUCT('Age profile (years)'!$CT96:$GF96,'Asset data'!$CX96:$GJ96)/H96-0.5,0) -> 0 | N96: 0 | O96: =IF($A96>0,'Asset data'!G96,0) -> 0 | P96: 0 | Q96: 0 | R96: 0 | S96: 0 | T96: 0 | U96: 0 | W96: =IF($A96>0,SUMIF('Age profile (years)'!$CT96:$GF96,"<" & R96+0.5,'Asset data'!$CX96:$GJ96),0) -> 0 | X96: =IF($A96>0,SUMIF('Age profile (years)'!$CT96:$GF96,"<" & S96+0.5,'Asset data'!$CX96:$GJ96)-W96,0) -> 0 | Y96: =IF($A96>0,SUMIF('Age profile (years)'!$CT96:$GF96,"<" & T96+0.5,'Asset data'!$CX96:$GJ96)-X96-W96,0) -> 0 | Z96: =IF($A96>0,SUMIF('Age profile (years)'!$CT96:$GF96,"<" & U96+0.5,'Asset data'!$CX96:$GJ96)-Y96-X96-W96,0) -> 0 | AA96: 0 | AB96: 0 | AC96: 0 | AD96: 0 | AE96: 0 | AF96: 0 | AI96: =IF($A96>0,'RRR hist-forc'!K96,0) -> 0 | AJ96: 0
A97: ='Asset data'!A97 -> 0 | B97: ='Asset data'!B97 -> 0 | C97: ='Asset data'!C97 -> 0 | D97: ='Asset data'!E97 -> KIOSK MOUNTED ; > 22 KV ; > 60 KVA AND < = 600 KVA | E97: 0 | F97: =IF(A97>0,SUM('Asset data'!J97:CV97),0) -> 0 | G97: =IF(A97>0,'Asset data'!F97,0) -> 0 | H97: =IF(A97>0,SUM('Asset data'!CX97:GJ97),0) -> 0 | I97: 0 | J97: 0 | K97: 0 | L97: 0 | M97: =IF($A97>0,SUMPRODUCT('Age profile (years)'!$CT97:$GF97,'Asset data'!$CX97:$GJ97)/H97-0.5,0) -> 0 | N97: 0 | O97: =IF($A97>0,'Asset data'!G97,0) -> 0 | P97: 0 | Q97: 0 | R97: 0 | S97: 0 | T97: 0 | U97: 0 | W97: =IF($A97>0,SUMIF('Age profile (years)'!$CT97:$GF97,"<" & R97+0.5,'Asset data'!$CX97:$GJ97),0) -> 0 | X97: =IF($A97>0,SUMIF('Age profile (years)'!$CT97:$GF97,"<" & S97+0.5,'Asset data'!$CX97:$GJ97)-W97,0) -> 0 | Y97: =IF($A97>0,SUMIF('Age profile (years)'!$CT97:$GF97,"<" & T97+0.5,'Asset data'!$CX97:$GJ97)-X97-W97,0) -> 0 | Z97: =IF($A97>0,SUMIF('Age profile (years)'!$CT97:$GF97,"<" & U97+0.5,'Asset data'!$CX97:$GJ97)-Y97-X97-W97,0) -> 0 | AA97: 0 | AB97: 0 | AC97: 0 | AD97: 0 | AE97: 0 | AF97: 0 | AI97: =IF($A97>0,'RRR hist-forc'!K97,0) -> 0 | AJ97: 0
A98: ='Asset data'!A98 -> 0 | B98: ='Asset data'!B98 -> 0 | C98: ='Asset data'!C98 -> 0 | D98: ='Asset data'!E98 -> KIOSK MOUNTED ; > 22 KV ; > 600 KVA | E98: 0 | F98: =IF(A98>0,SUM('Asset data'!J98:CV98),0) -> 0 | G98: =IF(A98>0,'Asset data'!F98,0) -> 0 | H98: =IF(A98>0,SUM('Asset data'!CX98:GJ98),0) -> 0 | I98: 0 | J98: 0 | K98: 0 | L98: 0 | M98: =IF($A98>0,SUMPRODUCT('Age profile (years)'!$CT98:$GF98,'Asset data'!$CX98:$GJ98)/H98-0.5,0) -> 0 | N98: 0 | O98: =IF($A98>0,'Asset data'!G98,0) -> 0 | P98: 0 | Q98: 0 | R98: 0 | S98: 0 | T98: 0 | U98: 0 | W98: =IF($A98>0,SUMIF('Age profile (years)'!$CT98:$GF98,"<" & R98+0.5,'Asset data'!$CX98:$GJ98),0) -> 0 | X98: =IF($A98>0,SUMIF('Age profile (years)'!$CT98:$GF98,"<" & S98+0.5,'Asset data'!$CX98:$GJ98)-W98,0) -> 0 | Y98: =IF($A98>0,SUMIF('Age profile (years)'!$CT98:$GF98,"<" & T98+0.5,'Asset data'!$CX98:$GJ98)-X98-W98,0) -> 0 | Z98: =IF($A98>0,SUMIF('Age profile (years)'!$CT98:$GF98,"<" & U98+0.5,'Asset data'!$CX98:$GJ98)-Y98-X98-W98,0) -> 0 | AA98: 0 | AB98: 0 | AC98: 0 | AD98: 0 | AE98: 0 | AF98: 0 | AI98: =IF($A98>0,'RRR hist-forc'!K98,0) -> 0 | AJ98: 0
A99: ='Asset data'!A99 -> 0 | B99: ='Asset data'!B99 -> 0 | C99: ='Asset data'!C99 -> 0 | D99: ='Asset data'!E99 -> GROUND OUTDOOR / INDOOR CHAMBER MOUNTED ; ˂ 22 KV ; < = 60 KVA ; SINGLE PHASE | E99: 0 | F99: =IF(A99>0,SUM('Asset data'!J99:CV99),0) -> 0 | G99: =IF(A99>0,'Asset data'!F99,0) -> 0 | H99: =IF(A99>0,SUM('Asset data'!CX99:GJ99),0) -> 0 | I99: 0 | J99: 0 | K99: 0 | L99: 0 | M99: =IF($A99>0,SUMPRODUCT('Age profile (years)'!$CT99:$GF99,'Asset data'!$CX99:$GJ99)/H99-0.5,0) -> 0 | N99: 0 | O99: =IF($A99>0,'Asset data'!G99,0) -> 0 | P99: 0 | Q99: 0 | R99: 0 | S99: 0 | T99: 0 | U99: 0 | W99: =IF($A99>0,SUMIF('Age profile (years)'!$CT99:$GF99,"<" & R99+0.5,'Asset data'!$CX99:$GJ99),0) -> 0 | X99: =IF($A99>0,SUMIF('Age profile (years)'!$CT99:$GF99,"<" & S99+0.5,'Asset data'!$CX99:$GJ99)-W99,0) -> 0 | Y99: =IF($A99>0,SUMIF('Age profile (years)'!$CT99:$GF99,"<" & T99+0.5,'Asset data'!$CX99:$GJ99)-X99-W99,0) -> 0 | Z99: =IF($A99>0,SUMIF('Age profile (years)'!$CT99:$GF99,"<" & U99+0.5,'Asset data'!$CX99:$GJ99)-Y99-X99-W99,0) -> 0 | AA99: 0 | AB99: 0 | AC99: 0 | AD99: 0 | AE99: 0 | AF99: 0 | AI99: =IF($A99>0,'RRR hist-forc'!K99,0) -> 0 | AJ99: 0
A100: ='Asset data'!A100 -> 5 | B100: ='Asset data'!B100 -> 0 | C100: ='Asset data'!C100 -> 0 | D100: ='Asset data'!E100 -> GROUND OUTDOOR / INDOOR CHAMBER MOUNTED ; ˂ 22 KV ; > 60 KVA AND < = 600 KVA ; SINGLE PHASE | E100: TRANSFORMERS | F100: =IF(A100>0,SUM('Asset data'!J100:CV100),0) -> 2 | G100: =IF(A100>0,'Asset data'!F100,0) -> 48.66741272 | H100: =IF(A100>0,SUM('Asset data'!CX100:GJ100),0) -> 97.33482544 | I100: 3.546304733e-06 | J100: 79 | K100: 3.915939245e-05 | L100: 48.66741272 | M100: =IF($A100>0,SUMPRODUCT('Age profile (years)'!$CT100:$GF100,'Asset data'!$CX100:$GJ100)/H100-0.5,0) -> 22.5 | N100: 2190.033572 | O100: =IF($A100>0,'Asset data'!G100,0) -> 45.8 | P100: 4457.935005 | Q100: 0.5087336245 | R100: 4.58 | S100: 9.16 | T100: 27.48 | U100: =IF($A100>0,$O100-U$4*$O100,0) -> 36.64 | W100: =IF($A100>0,SUMIF('Age profile (years)'!$CT100:$GF100,"<" & R100+0.5,'Asset data'!$CX100:$GJ100),0) -> 0 | X100: =IF($A100>0,SUMIF('Age profile (years)'!$CT100:$GF100,"<" & S100+0.5,'Asset data'!$CX100:$GJ100)-W100,0) -> 0 | Y100: =IF($A100>0,SUMIF('Age profile (years)'!$CT100:$GF100,"<" & T100+0.5,'Asset data'!$CX100:$GJ100)-X100-W100,0) -> 97.33482544 | Z100: =IF($A100>0,SUMIF('Age profile (years)'!$CT100:$GF100,"<" & U100+0.5,'Asset data'!$CX100:$GJ100)-Y100-X100-W100,0) -> 0 | AA100: 0 | AB100: 0 | AC100: 0 | AD100: 1 | AE100: 0 | AF100: 0 | AI100: =IF($A100>0,'RRR hist-forc'!K100,0) -> 45.8 | AJ100: 4457.935005
A101: ='Asset data'!A101 -> 0 | B101: ='Asset data'!B101 -> 0 | C101: ='Asset data'!C101 -> 0 | D101: ='Asset data'!E101 -> GROUND OUTDOOR / INDOOR CHAMBER MOUNTED ; ˂ 22 KV ; > 600 KVA ; SINGLE PHASE | E101: 0 | F101: =IF(A101>0,SUM('Asset data'!J101:CV101),0) -> 0 | G101: =IF(A101>0,'Asset data'!F101,0) -> 0 | H101: =IF(A101>0,SUM('Asset data'!CX101:GJ101),0) -> 0 | I101: 0 | J101: 0 | K101: 0 | L101: 0 | M101: =IF($A101>0,SUMPRODUCT('Age profile (years)'!$CT101:$GF101,'Asset data'!$CX101:$GJ101)/H101-0.5,0) -> 0 | N101: 0 | O101: =IF($A101>0,'Asset data'!G101,0) -> 0 | P101: 0 | Q101: 0 | R101: 0 | S101: 0 | T101: 0 | U101: 0 | W101: =IF($A101>0,SUMIF('Age profile (years)'!$CT101:$GF101,"<" & R101+0.5,'Asset data'!$CX101:$GJ101),0) -> 0 | X101: =IF($A101>0,SUMIF('Age profile (years)'!$CT101:$GF101,"<" & S101+0.5,'Asset data'!$CX101:$GJ101)-W101,0) -> 0 | Y101: =IF($A101>0,SUMIF('Age profile (years)'!$CT101:$GF101,"<" & T101+0.5,'Asset data'!$CX101:$GJ101)-X101-W101,0) -> 0 | Z101: =IF($A101>0,SUMIF('Age profile (years)'!$CT101:$GF101,"<" & U101+0.5,'Asset data'!$CX101:$GJ101)-Y101-X101-W101,0) -> 0 | AA101: 0 | AB101: 0 | AC101: 0 | AD101: 0 | AE101: 0 | AF101: 0 | AI101: =IF($A101>0,'RRR hist-forc'!K101,0) -> 0 | AJ101: 0
A102: ='Asset data'!A102 -> 5 | B102: ='Asset data'!B102 -> 0 | C102: ='Asset data'!C102 -> 0 | D102: ='Asset data'!E102 -> GROUND OUTDOOR / INDOOR CHAMBER MOUNTED ; ˂ 22 KV ; < = 60 KVA ; MULTIPLE PHASE | E102: TRANSFORMERS | F102: =IF(A102>0,SUM('Asset data'!J102:CV102),0) -> 152 | G102: =IF(A102>0,'Asset data'!F102,0) -> 48.66741272 | H102: =IF(A102>0,SUM('Asset data'!CX102:GJ102),0) -> 7397.446734 | I102: 0.0002695191597 | J102: 60 | K102: 0.002976113827 | L102: 48.66741272 | M102: =IF($A102>0,SUMPRODUCT('Age profile (years)'!$CT102:$GF102,'Asset data'!$CX102:$GJ102)/H102-0.5,0) -> 10.625 | N102: 78597.87154 | O102: =IF($A102>0,'Asset data'!G102,0) -> 45.8 | P102: 338803.0604 | Q102: 0.7680131004 | R102: 4.58 | S102: 9.16 | T102: 27.48 | U102: 36.64 | W102: =IF($A102>0,SUMIF('Age profile (years)'!$CT102:$GF102,"<" & R102+0.5,'Asset data'!$CX102:$GJ102),0) -> 3066.047001 | X102: =IF($A102>0,SUMIF('Age profile (years)'!$CT102:$GF102,"<" & S102+0.5,'Asset data'!$CX102:$GJ102)-W102,0) -> 876.013429 | Y102: =IF($A102>0,SUMIF('Age profile (years)'!$CT102:$GF102,"<" & T102+0.5,'Asset data'!$CX102:$GJ102)-X102-W102,0) -> 2287.368398 | Z102: =IF($A102>0,SUMIF('Age profile (years)'!$CT102:$GF102,"<" & U102+0.5,'Asset data'!$CX102:$GJ102)-Y102-X102-W102,0) -> 876.013429 | AA102: 292.0044763 | AB102: 0.4144736842 | AC102: 0.1184210526 | AD102: 0.3092105263 | AE102: 0.1184210526 | AF102: 0.03947368421 | AI102: =IF($A102>0,'RRR hist-forc'!K102,0) -> 45.8 | AJ102: 338803.0604
A103: ='Asset data'!A103 -> 5 | B103: ='Asset data'!B103 -> 0 | C103: ='Asset data'!C103 -> 0 | D103: ='Asset data'!E103 -> GROUND OUTDOOR / INDOOR CHAMBER MOUNTED ; ˂ 22 KV ; > 60 KVA AND < = 600 KVA ; MULTIPLE PHASE | E103: TRANSFORMERS | F103: =IF(A103>0,SUM('Asset data'!J103:CV103),0) -> 418 | G103: =IF(A103>0,'Asset data'!F103,0) -> 48.66741272 | H103: =IF(A103>0,SUM('Asset data'!CX103:GJ103),0) -> 20342.97852 | I103: 0.0007411776893 | J103: 50 | K103: 0.008184313023 | L103: 48.66741272 | M103: =IF($A103>0,SUMPRODUCT('Age profile (years)'!$CT103:$GF103,'Asset data'!$CX103:$GJ103)/H103-0.5,0) -> 36.86842105 | N103: 750013.4974 | O103: =IF($A103>0,'Asset data'!G103,0) -> 59.43409573 | P103: 1209066.533 | Q103: 0.3796755785 | R103: 5.943409573 | S103: 11.88681915 | T103: 35.66045744 | U103: 47.54727658 | W103: =IF($A103>0,SUMIF('Age profile (years)'!$CT103:$GF103,"<" & R103+0.5,'Asset data'!$CX103:$GJ103),0) -> 730.0111908 | X103: =IF($A103>0,SUMIF('Age profile (years)'!$CT103:$GF103,"<" & S103+0.5,'Asset data'!$CX103:$GJ103)-W103,0) -> 1070.68308 | Y103: =IF($A103>0,SUMIF('Age profile (years)'!$CT103:$GF103,"<" & T103+0.5,'Asset data'!$CX103:$GJ103)-X103-W103,0) -> 7202.777083 | Z103: =IF($A103>0,SUMIF('Age profile (years)'!$CT103:$GF103,"<" & U103+0.5,'Asset data'!$CX103:$GJ103)-Y103-X103-W103,0) -> 2968.712176 | AA103: 8370.794988 | AB103: 0.03588516746 | AC103: 0.05263157895 | AD103: 0.3540669856 | AE103: 0.1459330144 | AF103: 0.4114832536 | AI103: =IF($A103>0,'RRR hist-forc'!K103,0) -> 59.43409573 | AJ103: 1209066.533
A104: ='Asset data'!A104 -> 5 | B104: ='Asset data'!B104 -> 0 | C104: ='Asset data'!C104 -> 0 | D104: ='Asset data'!E104 -> GROUND OUTDOOR / INDOOR CHAMBER MOUNTED ; ˂ 22 KV ; > 600 KVA ; MULTIPLE PHASE | E104: TRANSFORMERS | F104: =IF(A104>0,SUM('Asset data'!J104:CV104),0) -> 256 | G104: =IF(A104>0,'Asset data'!F104,0) -> 65.73402672 | H104: =IF(A104>0,SUM('Asset data'!CX104:GJ104),0) -> 16827.91084 | I104: 0.0006131094353 | J104: 53 | K104: 0.006770143798 | L104: 65.73402672 | M104: =IF($A104>0,SUMPRODUCT('Age profile (years)'!$CT104:$GF104,'Asset data'!$CX104:$GJ104)/H104-0.5,0) -> 40.1796875 | N104: 676140.1988 | O104: =IF($A104>0,'Asset data'!G104,0) -> 68.38654322 | P104: 1150802.652 | Q104: 0.4124620779 | R104: 6.838654322 | S104: 13.67730864 | T104: 41.03192593 | U104: 54.70923457 | W104: =IF($A104>0,SUMIF('Age profile (years)'!$CT104:$GF104,"<" & R104+0.5,'Asset data'!$CX104:$GJ104),0) -> 262.9361069 | X104: =IF($A104>0,SUMIF('Age profile (years)'!$CT104:$GF104,"<" & S104+0.5,'Asset data'!$CX104:$GJ104)-W104,0) -> 0 | Y104: =IF($A104>0,SUMIF('Age profile (years)'!$CT104:$GF104,"<" & T104+0.5,'Asset data'!$CX104:$GJ104)-X104-W104,0) -> 9071.295687 | Z104: =IF($A104>0,SUMIF('Age profile (years)'!$CT104:$GF104,"<" & U104+0.5,'Asset data'!$CX104:$GJ104)-Y104-X104-W104,0) -> 4864.317977 | AA104: 2629.361069 | AB104: 0.015625 | AC104: 0 | AD104: 0.5390625 | AE104: 0.2890625 | AF104: 0.15625 | AI104: =IF($A104>0,'RRR hist-forc'!K104,0) -> 68.38654322 | AJ104: 1150802.652
A105: ='Asset data'!A105 -> 5 | B105: ='Asset data'!B105 -> 0 | C105: ='Asset data'!C105 -> 0 | D105: ='Asset data'!E105 -> GROUND OUTDOOR / INDOOR CHAMBER MOUNTED ; > = 22 KV & < = 33 KV ; < = 15 MVA | E105: TRANSFORMERS | F105: =IF(A105>0,SUM('Asset data'!J105:CV105),0) -> 442 | G105: =IF(A105>0,'Asset data'!F105,0) -> 371.4539227 | H105: =IF(A105>0,SUM('Asset data'!CX105:GJ105),0) -> 164182.6339 | I105: 0.005981843076 | J105: 25 | K105: 0.06605335926 | L105: 371.4539227 | M105: =IF($A105>0,SUMPRODUCT('Age profile (years)'!$CT105:$GF105,'Asset data'!$CX105:$GJ105)/H105-0.5,0) -> 27.77375566 | N105: 4559968.356 | O105: =IF($A105>0,'Asset data'!G105,0) -> 55.63565443 | P105: 9134408.281 | Q105: 0.500792146 | R105: 5.563565443 | S105: 11.12713089 | T105: 33.38139266 | U105: 44.50852355 | W105: =IF($A105>0,SUMIF('Age profile (years)'!$CT105:$GF105,"<" & R105+0.5,'Asset data'!$CX105:$GJ105),0) -> 16343.9726 | X105: =IF($A105>0,SUMIF('Age profile (years)'!$CT105:$GF105,"<" & S105+0.5,'Asset data'!$CX105:$GJ105)-W105,0) -> 13743.79514 | Y105: =IF($A105>0,SUMIF('Age profile (years)'!$CT105:$GF105,"<" & T105+0.5,'Asset data'!$CX105:$GJ105)-X105-W105,0) -> 72062.06101 | Z105: =IF($A105>0,SUMIF('Age profile (years)'!$CT105:$GF105,"<" & U105+0.5,'Asset data'!$CX105:$GJ105)-Y105-X105-W105,0) -> 29344.8599 | AA105: 32687.9452 | AB105: 0.09954751131 | AC105: 0.08371040724 | AD105: 0.4389140271 | AE105: 0.1787330317 | AF105: 0.1990950226 | AI105: =IF($A105>0,'RRR hist-forc'!K105,0) -> 55.63565443 | AJ105: 9134408.281
A106: ='Asset data'!A106 -> 5 | B106: ='Asset data'!B106 -> 0 | C106: ='Asset data'!C106 -> 0 | D106: ='Asset data'!E106 -> GROUND OUTDOOR / INDOOR CHAMBER MOUNTED ; > = 22 KV & < = 33 KV ; > 15 MVA AND < = 40 MVA | E106: TRANSFORMERS | F106: =IF(A106>0,SUM('Asset data'!J106:CV106),0) -> 55 | G106: =IF(A106>0,'Asset data'!F106,0) -> 706.1700463 | H106: =IF(A106>0,SUM('Asset data'!CX106:GJ106),0) -> 38839.35254 | I106: 0.001415076044 | J106: 44 | K106: 0.01562570685 | L106: 706.1700463 | M106: =IF($A106>0,SUMPRODUCT('Age profile (years)'!$CT106:$GF106,'Asset data'!$CX106:$GJ106)/H106-0.5,0) -> 28.71818182 | N106: 1115395.588 | O106: =IF($A106>0,'Asset data'!G106,0) -> 48.23877026 | P106: 1873562.605 | Q106: 0.4046659635 | R106: 4.823877026 | S106: 9.647754053 | T106: 28.94326216 | U106: 38.59101621 | W106: =IF($A106>0,SUMIF('Age profile (years)'!$CT106:$GF106,"<" & R106+0.5,'Asset data'!$CX106:$GJ106),0) -> 4237.020278 | X106: =IF($A106>0,SUMIF('Age profile (years)'!$CT106:$GF106,"<" & S106+0.5,'Asset data'!$CX106:$GJ106)-W106,0) -> 1412.340093 | Y106: =IF($A106>0,SUMIF('Age profile (years)'!$CT106:$GF106,"<" & T106+0.5,'Asset data'!$CX106:$GJ106)-X106-W106,0) -> 12711.06083 | Z106: =IF($A106>0,SUMIF('Age profile (years)'!$CT106:$GF106,"<" & U106+0.5,'Asset data'!$CX106:$GJ106)-Y106-X106-W106,0) -> 5649.36037 | AA106: 14829.57097 | AB106: 0.1090909091 | AC106: 0.03636363636 | AD106: 0.3272727273 | AE106: 0.1454545455 | AF106: 0.3818181818 | AI106: =IF($A106>0,'RRR hist-forc'!K106,0) -> 48.23877026 | AJ106: 1873562.605
A107: ='Asset data'!A107 -> 5 | B107: ='Asset data'!B107 -> 0 | C107: ='Asset data'!C107 -> 0 | D107: ='Asset data'!E107 -> GROUND OUTDOOR / INDOOR CHAMBER MOUNTED ; > = 22 KV & < = 33 KV ; > 40 MVA | E107: TRANSFORMERS | F107: =IF(A107>0,SUM('Asset data'!J107:CV107),0) -> 2 | G107: =IF(A107>0,'Asset data'!F107,0) -> 1041.561122 | H107: =IF(A107>0,SUM('Asset data'!CX107:GJ107),0) -> 2083.122245 | I107: 7.589664073e-05 | J107: 66 | K107: 0.0008380741544 | L107: 1041.561122 | M107: =IF($A107>0,SUMPRODUCT('Age profile (years)'!$CT107:$GF107,'Asset data'!$CX107:$GJ107)/H107-0.5,0) -> 38.5 | N107: 80200.20643 | O107: =IF($A107>0,'Asset data'!G107,0) -> 45.8 | P107: 95406.99882 | Q107: 0.1593886463 | R107: 4.58 | S107: 9.16 | T107: 27.48 | U107: 36.64 | W107: =IF($A107>0,SUMIF('Age profile (years)'!$CT107:$GF107,"<" & R107+0.5,'Asset data'!$CX107:$GJ107),0) -> 0 | X107: =IF($A107>0,SUMIF('Age profile (years)'!$CT107:$GF107,"<" & S107+0.5,'Asset data'!$CX107:$GJ107)-W107,0) -> 0 | Y107: =IF($A107>0,SUMIF('Age profile (years)'!$CT107:$GF107,"<" & T107+0.5,'Asset data'!$CX107:$GJ107)-X107-W107,0) -> 0 | Z107: =IF($A107>0,SUMIF('Age profile (years)'!$CT107:$GF107,"<" & U107+0.5,'Asset data'!$CX107:$GJ107)-Y107-X107-W107,0) -> 0 | AA107: 2083.122245 | AB107: 0 | AC107: 0 | AD107: 0 | AE107: 0 | AF107: 1 | AI107: =IF($A107>0,'RRR hist-forc'!K107,0) -> 45.8 | AJ107: 95406.99882
A108: ='Asset data'!A108 -> 5 | B108: ='Asset data'!B108 -> 0 | C108: ='Asset data'!C108 -> 0 | D108: ='Asset data'!E108 -> GROUND OUTDOOR / INDOOR CHAMBER MOUNTED ; > 33 KV & < = 66 KV ; < = 15 MVA | E108: TRANSFORMERS | F108: =IF(A108>0,SUM('Asset data'!J108:CV108),0) -> 336 | G108: =IF(A108>0,'Asset data'!F108,0) -> 1041.561122 | H108: =IF(A108>0,SUM('Asset data'!CX108:GJ108),0) -> 349964.5371 | I108: 0.01275063564 | J108: 17 | K108: 0.1407964579 | L108: 1041.561122 | M108: =IF($A108>0,SUMPRODUCT('Age profile (years)'!$CT108:$GF108,'Asset data'!$CX108:$GJ108)/H108-0.5,0) -> 26.43452381 | N108: 9251145.89 | O108: =IF($A108>0,'Asset data'!G108,0) -> 58.83354216 | P108: 20589653.35 | Q108: 0.5506895754 | R108: 5.883354216 | S108: 11.76670843 | T108: 35.3001253 | U108: 47.06683373 | W108: =IF($A108>0,SUMIF('Age profile (years)'!$CT108:$GF108,"<" & R108+0.5,'Asset data'!$CX108:$GJ108),0) -> 49994.93388 | X108: =IF($A108>0,SUMIF('Age profile (years)'!$CT108:$GF108,"<" & S108+0.5,'Asset data'!$CX108:$GJ108)-W108,0) -> 56244.30061 | Y108: =IF($A108>0,SUMIF('Age profile (years)'!$CT108:$GF108,"<" & T108+0.5,'Asset data'!$CX108:$GJ108)-X108-W108,0) -> 128112.0181 | Z108: =IF($A108>0,SUMIF('Age profile (years)'!$CT108:$GF108,"<" & U108+0.5,'Asset data'!$CX108:$GJ108)-Y108-X108-W108,0) -> 33329.95592 | AA108: 82283.32867 | AB108: 0.1428571429 | AC108: 0.1607142857 | AD108: 0.3660714286 | AE108: 0.09523809524 | AF108: 0.2351190476 | AI108: =IF($A108>0,'RRR hist-forc'!K108,0) -> 58.83354216 | AJ108: 20589653.35
A109: ='Asset data'!A109 -> 5 | B109: ='Asset data'!B109 -> 0 | C109: ='Asset data'!C109 -> 0 | D109: ='Asset data'!E109 -> GROUND OUTDOOR / INDOOR CHAMBER MOUNTED ; > 33 KV & < = 66 KV ; > 15 MVA AND < = 40 MVA | E109: TRANSFORMERS | F109: =IF(A109>0,SUM('Asset data'!J109:CV109),0) -> 160 | G109: =IF(A109>0,'Asset data'!F109,0) -> 1417.405535 | H109: =IF(A109>0,SUM('Asset data'!CX109:GJ109),0) -> 226784.8855 | I109: 0.008262698468 | J109: 20 | K109: 0.09123926914 | L109: 1417.405535 | M109: =IF($A109>0,SUMPRODUCT('Age profile (years)'!$CT109:$GF109,'Asset data'!$CX109:$GJ109)/H109-0.5,0) -> 21.90625 | N109: 4968006.399 | O109: =IF($A109>0,'Asset data'!G109,0) -> 42.1445124 | P109: 9557738.419 | Q109: 0.4802110938 | R109: 4.21445124 | S109: 8.428902479 | T109: 25.28670744 | U109: 33.71560992 | W109: =IF($A109>0,SUMIF('Age profile (years)'!$CT109:$GF109,"<" & R109+0.5,'Asset data'!$CX109:$GJ109),0) -> 21261.08302 | X109: =IF($A109>0,SUMIF('Age profile (years)'!$CT109:$GF109,"<" & S109+0.5,'Asset data'!$CX109:$GJ109)-W109,0) -> 22678.48855 | Y109: =IF($A109>0,SUMIF('Age profile (years)'!$CT109:$GF109,"<" & T109+0.5,'Asset data'!$CX109:$GJ109)-X109-W109,0) -> 72287.68226 | Z109: =IF($A109>0,SUMIF('Age profile (years)'!$CT109:$GF109,"<" & U109+0.5,'Asset data'!$CX109:$GJ109)-Y109-X109-W109,0) -> 31182.92176 | AA109: 79374.70994 | AB109: 0.09375 | AC109: 0.1 | AD109: 0.31875 | AE109: 0.1375 | AF109: 0.35 | AI109: =IF($A109>0,'RRR hist-forc'!K109,0) -> 42.1445124 | AJ109: 9557738.419
A110: ='Asset data'!A110 -> 5 | B110: ='Asset data'!B110 -> 0 | C110: ='Asset data'!C110 -> 0 | D110: ='Asset data'!E110 -> GROUND OUTDOOR / INDOOR CHAMBER MOUNTED ; > 33 KV & < = 66 KV ; > 40 MVA | E110: TRANSFORMERS | F110: =IF(A110>0,SUM('Asset data'!J110:CV110),0) -> 2 | G110: =IF(A110>0,'Asset data'!F110,0) -> 108.1426761 | H110: =IF(A110>0,SUM('Asset data'!CX110:GJ110),0) -> 216.2853522 | I110: 7.88015764e-06 | J110: 74 | K110: 8.701513514e-05 | L110: 108.1426761 | M110: =IF($A110>0,SUMPRODUCT('Age profile (years)'!$CT110:$GF110,'Asset data'!$CX110:$GJ110)/H110-0.5,0) -> 37.5 | N110: 8110.700708 | O110: =IF($A110>0,'Asset data'!G110,0) -> 45.8 | P110: 9905.869131 | Q110: 0.1812227074 | R110: 4.58 | S110: 9.16 | T110: 27.48 | U110: 36.64 | W110: =IF($A110>0,SUMIF('Age profile (years)'!$CT110:$GF110,"<" & R110+0.5,'Asset data'!$CX110:$GJ110),0) -> 0 | X110: =IF($A110>0,SUMIF('Age profile (years)'!$CT110:$GF110,"<" & S110+0.5,'Asset data'!$CX110:$GJ110)-W110,0) -> 0 | Y110: =IF($A110>0,SUMIF('Age profile (years)'!$CT110:$GF110,"<" & T110+0.5,'Asset data'!$CX110:$GJ110)-X110-W110,0) -> 0 | Z110: =IF($A110>0,SUMIF('Age profile (years)'!$CT110:$GF110,"<" & U110+0.5,'Asset data'!$CX110:$GJ110)-Y110-X110-W110,0) -> 0 | AA110: 216.2853522 | AB110: 0 | AC110: 0 | AD110: 0 | AE110: 0 | AF110: 1 | AI110: =IF($A110>0,'RRR hist-forc'!K110,0) -> 45.8 | AJ110: 9905.869131
A111: ='Asset data'!A111 -> 5 | B111: ='Asset data'!B111 -> 0 | C111: ='Asset data'!C111 -> 0 | D111: ='Asset data'!E111 -> GROUND OUTDOOR / INDOOR CHAMBER MOUNTED ; > 66 KV & < = 132 KV ; < = 100 MVA | E111: TRANSFORMERS | F111: =IF(A111>0,SUM('Asset data'!J111:CV111),0) -> 85 | G111: =IF(A111>0,'Asset data'!F111,0) -> 2880.108325 | H111: =IF(A111>0,SUM('Asset data'!CX111:GJ111),0) -> 244809.2076 | I111: 0.008919398044 | J111: 19 | K111: 0.09849074874 | L111: 2880.108325 | M111: =IF($A111>0,SUMPRODUCT('Age profile (years)'!$CT111:$GF111,'Asset data'!$CX111:$GJ111)/H111-0.5,0) -> 42.75882353 | N111: 10467753.71 | O111: =IF($A111>0,'Asset data'!G111,0) -> 59.55989741 | P111: 14580811.29 | Q111: 0.2820870185 | R111: 5.955989741 | S111: 11.91197948 | T111: 35.73593845 | U111: 47.64791793 | W111: =IF($A111>0,SUMIF('Age profile (years)'!$CT111:$GF111,"<" & R111+0.5,'Asset data'!$CX111:$GJ111),0) -> 2880.108325 | X111: =IF($A111>0,SUMIF('Age profile (years)'!$CT111:$GF111,"<" & S111+0.5,'Asset data'!$CX111:$GJ111)-W111,0) -> 17280.64995 | Y111: =IF($A111>0,SUMIF('Age profile (years)'!$CT111:$GF111,"<" & T111+0.5,'Asset data'!$CX111:$GJ111)-X111-W111,0) -> 43201.62487 | Z111: =IF($A111>0,SUMIF('Age profile (years)'!$CT111:$GF111,"<" & U111+0.5,'Asset data'!$CX111:$GJ111)-Y111-X111-W111,0) -> 63362.38314 | AA111: 118084.4413 | AB111: 0.01176470588 | AC111: 0.07058823529 | AD111: 0.1764705882 | AE111: 0.2588235294 | AF111: 0.4823529412 | AI111: =IF($A111>0,'RRR hist-forc'!K111,0) -> 59.55989741 | AJ111: 14580811.29
A112: ='Asset data'!A112 -> 5 | B112: ='Asset data'!B112 -> 0 | C112: ='Asset data'!C112 -> 0 | D112: ='Asset data'!E112 -> GROUND OUTDOOR / INDOOR CHAMBER MOUNTED ; > 66 KV & < = 132 KV ; > 100 MVA | E112: TRANSFORMERS | F112: =IF(A112>0,SUM('Asset data'!J112:CV112),0) -> 3 | G112: =IF(A112>0,'Asset data'!F112,0) -> 2880.108325 | H112: =IF(A112>0,SUM('Asset data'!CX112:GJ112),0) -> 8640.324974 | I112: 0.0003148022839 | J112: 59 | K112: 0.003476144073 | L112: 2880.108325 | M112: =IF($A112>0,SUMPRODUCT('Age profile (years)'!$CT112:$GF112,'Asset data'!$CX112:$GJ112)/H112-0.5,0) -> 38.5 | N112: 332652.5115 | O112: =IF($A112>0,'Asset data'!G112,0) -> 45.8 | P112: 395726.8838 | Q112: 0.1593886463 | R112: 4.58 | S112: 9.16 | T112: 27.48 | U112: 36.64 | W112: =IF($A112>0,SUMIF('Age profile (years)'!$CT112:$GF112,"<" & R112+0.5,'Asset data'!$CX112:$GJ112),0) -> 0 | X112: =IF($A112>0,SUMIF('Age profile (years)'!$CT112:$GF112,"<" & S112+0.5,'Asset data'!$CX112:$GJ112)-W112,0) -> 0 | Y112: =IF($A112>0,SUMIF('Age profile (years)'!$CT112:$GF112,"<" & T112+0.5,'Asset data'!$CX112:$GJ112)-X112-W112,0) -> 0 | Z112: =IF($A112>0,SUMIF('Age profile (years)'!$CT112:$GF112,"<" & U112+0.5,'Asset data'!$CX112:$GJ112)-Y112-X112-W112,0) -> 0 | AA112: 8640.324974 | AB112: 0 | AC112: 0 | AD112: 0 | AE112: 0 | AF112: 1 | AI112: =IF($A112>0,'RRR hist-forc'!K112,0) -> 45.8 | AJ112: 395726.8838
A113: ='Asset data'!A113 -> 0 | B113: ='Asset data'!B113 -> 0 | C113: ='Asset data'!C113 -> 0 | D113: ='Asset data'!E113 -> GROUND OUTDOOR / INDOOR CHAMBER MOUNTED ; > 132 KV ; < = 100 MVA | E113: 0 | F113: =IF(A113>0,SUM('Asset data'!J113:CV113),0) -> 0 | G113: =IF(A113>0,'Asset data'!F113,0) -> 0 | H113: =IF(A113>0,SUM('Asset data'!CX113:GJ113),0) -> 0 | I113: 0 | J113: 0 | K113: 0 | L113: 0 | M113: =IF($A113>0,SUMPRODUCT('Age profile (years)'!$CT113:$GF113,'Asset data'!$CX113:$GJ113)/H113-0.5,0) -> 0 | N113: 0 | O113: =IF($A113>0,'Asset data'!G113,0) -> 0 | P113: 0 | Q113: 0 | R113: 0 | S113: 0 | T113: 0 | U113: 0 | W113: =IF($A113>0,SUMIF('Age profile (years)'!$CT113:$GF113,"<" & R113+0.5,'Asset data'!$CX113:$GJ113),0) -> 0 | X113: =IF($A113>0,SUMIF('Age profile (years)'!$CT113:$GF113,"<" & S113+0.5,'Asset data'!$CX113:$GJ113)-W113,0) -> 0 | Y113: =IF($A113>0,SUMIF('Age profile (years)'!$CT113:$GF113,"<" & T113+0.5,'Asset data'!$CX113:$GJ113)-X113-W113,0) -> 0 | Z113: =IF($A113>0,SUMIF('Age profile (years)'!$CT113:$GF113,"<" & U113+0.5,'Asset data'!$CX113:$GJ113)-Y113-X113-W113,0) -> 0 | AA113: 0 | AB113: 0 | AC113: 0 | AD113: 0 | AE113: 0 | AF113: 0 | AI113: =IF($A113>0,'RRR hist-forc'!K113,0) -> 0 | AJ113: 0
A114: ='Asset data'!A114 -> 0 | B114: ='Asset data'!B114 -> 0 | C114: ='Asset data'!C114 -> 0 | D114: ='Asset data'!E114 -> GROUND OUTDOOR / INDOOR CHAMBER MOUNTED ; > 132 KV ; > 100 MVA | E114: 0 | F114: =IF(A114>0,SUM('Asset data'!J114:CV114),0) -> 0 | G114: =IF(A114>0,'Asset data'!F114,0) -> 0 | H114: =IF(A114>0,SUM('Asset data'!CX114:GJ114),0) -> 0 | I114: 0 | J114: 0 | K114: 0 | L114: 0 | M114: =IF($A114>0,SUMPRODUCT('Age profile (years)'!$CT114:$GF114,'Asset data'!$CX114:$GJ114)/H114-0.5,0) -> 0 | N114: 0 | O114: =IF($A114>0,'Asset data'!G114,0) -> 0 | P114: 0 | Q114: 0 | R114: 0 | S114: 0 | T114: 0 | U114: 0 | W114: =IF($A114>0,SUMIF('Age profile (years)'!$CT114:$GF114,"<" & R114+0.5,'Asset data'!$CX114:$GJ114),0) -> 0 | X114: =IF($A114>0,SUMIF('Age profile (years)'!$CT114:$GF114,"<" & S114+0.5,'Asset data'!$CX114:$GJ114)-W114,0) -> 0 | Y114: =IF($A114>0,SUMIF('Age profile (years)'!$CT114:$GF114,"<" & T114+0.5,'Asset data'!$CX114:$GJ114)-X114-W114,0) -> 0 | Z114: =IF($A114>0,SUMIF('Age profile (years)'!$CT114:$GF114,"<" & U114+0.5,'Asset data'!$CX114:$GJ114)-Y114-X114-W114,0) -> 0 | AA114: 0 | AB114: 0 | AC114: 0 | AD114: 0 | AE114: 0 | AF114: 0 | AI114: =IF($A114>0,'RRR hist-forc'!K114,0) -> 0 | AJ114: 0
A115: ='Asset data'!A115 -> 5 | B115: ='Asset data'!B115 -> 0 | C115: ='Asset data'!C115 -> 0 | D115: ='Asset data'!E115 -> OTHER - REGULATORS | E115: TRANSFORMERS | F115: =IF(A115>0,SUM('Asset data'!J115:CV115),0) -> 734 | G115: =IF(A115>0,'Asset data'!F115,0) -> 97.47077413 | H115: =IF(A115>0,SUM('Asset data'!CX115:GJ115),0) -> 71543.54821 | I115: 0.002606623298 | J115: 38 | K115: 0.02878313974 | L115: 97.47077413 | M115: =IF($A115>0,SUMPRODUCT('Age profile (years)'!$CT115:$GF115,'Asset data'!$CX115:$GJ115)/H115-0.5,0) -> 29.49591281 | N115: 2110242.26 | O115: =IF($A115>0,'Asset data'!G115,0) -> 46.2805768 | P115: 3311076.677 | Q115: 0.3626718842 | R115: 4.62805768 | S115: 9.256115359 | T115: 27.76834608 | U115: 37.02446144 | W115: =IF($A115>0,SUMIF('Age profile (years)'!$CT115:$GF115,"<" & R115+0.5,'Asset data'!$CX115:$GJ115),0) -> 7017.895738 | X115: =IF($A115>0,SUMIF('Age profile (years)'!$CT115:$GF115,"<" & S115+0.5,'Asset data'!$CX115:$GJ115)-W115,0) -> 1657.00316 | Y115: =IF($A115>0,SUMIF('Age profile (years)'!$CT115:$GF115,"<" & T115+0.5,'Asset data'!$CX115:$GJ115)-X115-W115,0) -> 16570.0316 | Z115: =IF($A115>0,SUMIF('Age profile (years)'!$CT115:$GF115,"<" & U115+0.5,'Asset data'!$CX115:$GJ115)-Y115-X115-W115,0) -> 14815.55767 | AA115: 31483.06005 | AB115: 0.09809264305 | AC115: 0.02316076294 | AD115: 0.2316076294 | AE115: 0.2070844687 | AF115: 0.4400544959 | AI115: =IF($A115>0,'RRR hist-forc'!K115,0) -> 46.2805768 | AJ115: 3311076.677
A116: ='Asset data'!A116 -> 6 | B116: ='Asset data'!B116 -> 0 | C116: ='Asset data'!C116 -> 0 | D116: ='Asset data'!E116 -> ˂ = 11 KV ; FUSE | E116: SWITCHGEAR | F116: =IF(A116>0,SUM('Asset data'!J116:CV116),0) -> 336781 | G116: =IF(A116>0,'Asset data'!F116,0) -> 1.814611745 | H116: =IF(A116>0,SUM('Asset data'!CX116:GJ116),0) -> 611126.7582 | I116: 0.02226584067 | J116: 13 | K116: 0.1780594061 | L116: 1.814611745 | M116: =IF($A116>0,SUMPRODUCT('Age profile (years)'!$CT116:$GF116,'Asset data'!$CX116:$GJ116)/H116-0.5,0) -> 39.83045213 | N116: 24341455.09 | O116: =IF($A116>0,'Asset data'!G116,0) -> 68.23686221 | P116: 41701372.39 | Q116: 0.4162912707 | R116: 6.823686221 | S116: 13.64737244 | T116: 40.94211733 | U116: 54.58948977 | W116: =IF($A116>0,SUMIF('Age profile (years)'!$CT116:$GF116,"<" & R116+0.5,'Asset data'!$CX116:$GJ116),0) -> 18244.10649 | X116: =IF($A116>0,SUMIF('Age profile (years)'!$CT116:$GF116,"<" & S116+0.5,'Asset data'!$CX116:$GJ116)-W116,0) -> 28128.29666 | Y116: =IF($A116>0,SUMIF('Age profile (years)'!$CT116:$GF116,"<" & T116+0.5,'Asset data'!$CX116:$GJ116)-X116-W116,0) -> 267640.7155 | Z116: =IF($A116>0,SUMIF('Age profile (years)'!$CT116:$GF116,"<" & U116+0.5,'Asset data'!$CX116:$GJ116)-Y116-X116-W116,0) -> 132715.2592 | AA116: 164398.3803 | AB116: 0.02985322806 | AC116: 0.04602694333 | AD116: 0.4379463212 | AE116: 0.2171648638 | AF116: 0.2690086436 | AI116: =IF($A116>0,'RRR hist-forc'!K116,0) -> 68.23686221 | AJ116: 41701372.39
A117: ='Asset data'!A117 -> 6 | B117: ='Asset data'!B117 -> 0 | C117: ='Asset data'!C117 -> 0 | D117: ='Asset data'!E117 -> ˂ = 11 KV ; SWITCH | E117: SWITCHGEAR | F117: =IF(A117>0,SUM('Asset data'!J117:CV117),0) -> 47803 | G117: =IF(A117>0,'Asset data'!F117,0) -> 17.61893462 | H117: =IF(A117>0,SUM('Asset data'!CX117:GJ117),0) -> 842237.9315 | I117: 0.03068616345 | J117: 12 | K117: 0.24539653 | L117: 17.61893462 | M117: =IF($A117>0,SUMPRODUCT('Age profile (years)'!$CT117:$GF117,'Asset data'!$CX117:$GJ117)/H117-0.5,0) -> 44.35352384 | N117: 37356220.17 | O117: =IF($A117>0,'Asset data'!G117,0) -> 70.03866093 | P117: 58989216.9 | Q117: 0.3667279864 | R117: 7.003866093 | S117: 14.00773219 | T117: 42.02319656 | U117: 56.03092874 | W117: =IF($A117>0,SUMIF('Age profile (years)'!$CT117:$GF117,"<" & R117+0.5,'Asset data'!$CX117:$GJ117),0) -> 26604.59127 | X117: =IF($A117>0,SUMIF('Age profile (years)'!$CT117:$GF117,"<" & S117+0.5,'Asset data'!$CX117:$GJ117)-W117,0) -> 26375.54512 | Y117: =IF($A117>0,SUMIF('Age profile (years)'!$CT117:$GF117,"<" & T117+0.5,'Asset data'!$CX117:$GJ117)-X117-W117,0) -> 321756.984 | Z117: =IF($A117>0,SUMIF('Age profile (years)'!$CT117:$GF117,"<" & U117+0.5,'Asset data'!$CX117:$GJ117)-Y117-X117-W117,0) -> 160843.2541 | AA117: 306657.557 | AB117: 0.03158797565 | AC117: 0.03131602619 | AD117: 0.3820262327 | AE117: 0.190971278 | AF117: 0.3640984875 | AI117: =IF($A117>0,'RRR hist-forc'!K117,0) -> 70.03866093 | AJ117: 58989216.9
A118: ='Asset data'!A118 -> 6 | B118: ='Asset data'!B118 -> 0 | C118: ='Asset data'!C118 -> 0 | D118: ='Asset data'!E118 -> ˂ = 11 KV ; CIRCUIT BREAKER | E118: SWITCHGEAR | F118: =IF(A118>0,SUM('Asset data'!J118:CV118),0) -> 11486 | G118: =IF(A118>0,'Asset data'!F118,0) -> 104.6403156 | H118: =IF(A118>0,SUM('Asset data'!CX118:GJ118),0) -> 1201898.665 | I118: 0.04379007109 | J118: 8 | K118: 0.3501881724 | L118: 104.6403156 | M118: =IF($A118>0,SUMPRODUCT('Age profile (years)'!$CT118:$GF118,'Asset data'!$CX118:$GJ118)/H118-0.5,0) -> 38.53630507 | N118: 46316733.63 | O118: =IF($A118>0,'Asset data'!G118,0) -> 52.74697602 | P118: 63396520.08 | Q118: 0.2694120502 | R118: 5.274697602 | S118: 10.5493952 | T118: 31.64818561 | U118: 42.19758081 | W118: =IF($A118>0,SUMIF('Age profile (years)'!$CT118:$GF118,"<" & R118+0.5,'Asset data'!$CX118:$GJ118),0) -> 37775.15394 | X118: =IF($A118>0,SUMIF('Age profile (years)'!$CT118:$GF118,"<" & S118+0.5,'Asset data'!$CX118:$GJ118)-W118,0) -> 55250.08665 | Y118: =IF($A118>0,SUMIF('Age profile (years)'!$CT118:$GF118,"<" & T118+0.5,'Asset data'!$CX118:$GJ118)-X118-W118,0) -> 209803.8328 | Z118: =IF($A118>0,SUMIF('Age profile (years)'!$CT118:$GF118,"<" & U118+0.5,'Asset data'!$CX118:$GJ118)-Y118-X118-W118,0) -> 174644.6868 | AA118: 724424.9051 | AB118: 0.03142956643 | AC118: 0.04596900575 | AD118: 0.1745603343 | AE118: 0.1453073307 | AF118: 0.6027337628 | AI118: =IF($A118>0,'RRR hist-forc'!K118,0) -> 52.74697602 | AJ118: 63396520.08
A119: ='Asset data'!A119 -> 6 | B119: ='Asset data'!B119 -> 0 | C119: ='Asset data'!C119 -> 0 | D119: ='Asset data'!E119 -> > 11 KV & < = 22 KV ; SWITCH | E119: SWITCHGEAR | F119: =IF(A119>0,SUM('Asset data'!J119:CV119),0) -> 12413 | G119: =IF(A119>0,'Asset data'!F119,0) -> 17.80363101 | H119: =IF(A119>0,SUM('Asset data'!CX119:GJ119),0) -> 220996.4718 | I119: 0.008051802943 | J119: 21 | K119: 0.06439007945 | L119: 17.80363101 | M119: =IF($A119>0,SUMPRODUCT('Age profile (years)'!$CT119:$GF119,'Asset data'!$CX119:$GJ119)/H119-0.5,0) -> 46.69350681 | N119: 10319100.26 | O119: =IF($A119>0,'Asset data'!G119,0) -> 73.17544123 | P119: 16171514.33 | Q119: 0.3618964775 | R119: 7.317544123 | S119: 14.63508825 | T119: 43.90526474 | U119: 58.54035298 | W119: =IF($A119>0,SUMIF('Age profile (years)'!$CT119:$GF119,"<" & R119+0.5,'Asset data'!$CX119:$GJ119),0) -> 2029.613936 | X119: =IF($A119>0,SUMIF('Age profile (years)'!$CT119:$GF119,"<" & S119+0.5,'Asset data'!$CX119:$GJ119)-W119,0) -> 7584.346812 | Y119: =IF($A119>0,SUMIF('Age profile (years)'!$CT119:$GF119,"<" & T119+0.5,'Asset data'!$CX119:$GJ119)-X119-W119,0) -> 86596.86126 | Z119: =IF($A119>0,SUMIF('Age profile (years)'!$CT119:$GF119,"<" & U119+0.5,'Asset data'!$CX119:$GJ119)-Y119-X119-W119,0) -> 46876.96046 | AA119: 77908.68932 | AB119: 0.009183920084 | AC119: 0.03431885926 | AD119: 0.3918472569 | AE119: 0.2121163297 | AF119: 0.3525336341 | AI119: =IF($A119>0,'RRR hist-forc'!K119,0) -> 73.17544123 | AJ119: 16171514.33
A120: ='Asset data'!A120 -> 6 | B120: ='Asset data'!B120 -> 0 | C120: ='Asset data'!C120 -> 0 | D120: ='Asset data'!E120 -> > 11 KV & < = 22 KV ; CIRCUIT BREAKER | E120: SWITCHGEAR | F120: =IF(A120>0,SUM('Asset data'!J120:CV120),0) -> 2878 | G120: =IF(A120>0,'Asset data'!F120,0) -> 46.57083633 | H120: =IF(A120>0,SUM('Asset data'!CX120:GJ120),0) -> 134030.8669 | I120: 0.004883291214 | J120: 30 | K120: 0.0390515654 | L120: 46.57083633 | M120: =IF($A120>0,SUMPRODUCT('Age profile (years)'!$CT120:$GF120,'Asset data'!$CX120:$GJ120)/H120-0.5,0) -> 35.65913829 | N120: 4779425.22 | O120: =IF($A120>0,'Asset data'!G120,0) -> 50.07062164 | P120: 6711008.827 | Q120: 0.2878231362 | R120: 5.007062164 | S120: 10.01412433 | T120: 30.04237298 | U120: 40.05649731 | W120: =IF($A120>0,SUMIF('Age profile (years)'!$CT120:$GF120,"<" & R120+0.5,'Asset data'!$CX120:$GJ120),0) -> 10245.58399 | X120: =IF($A120>0,SUMIF('Age profile (years)'!$CT120:$GF120,"<" & S120+0.5,'Asset data'!$CX120:$GJ120)-W120,0) -> 3073.675197 | Y120: =IF($A120>0,SUMIF('Age profile (years)'!$CT120:$GF120,"<" & T120+0.5,'Asset data'!$CX120:$GJ120)-X120-W120,0) -> 22493.71395 | Z120: =IF($A120>0,SUMIF('Age profile (years)'!$CT120:$GF120,"<" & U120+0.5,'Asset data'!$CX120:$GJ120)-Y120-X120-W120,0) -> 22307.4306 | AA120: 75910.46321 | AB120: 0.07644197359 | AC120: 0.02293259208 | AD120: 0.1678248784 | AE120: 0.1664350243 | AF120: 0.5663655316 | AI120: =IF($A120>0,'RRR hist-forc'!K120,0) -> 50.07062164 | AJ120: 6711008.827
A121: ='Asset data'!A121 -> 6 | B121: ='Asset data'!B121 -> 0 | C121: ='Asset data'!C121 -> 0 | D121: ='Asset data'!E121 -> > 22 KV & < = 33 KV ; SWITCH | E121: SWITCHGEAR | F121: =IF(A121>0,SUM('Asset data'!J121:CV121),0) -> 1220 | G121: =IF(A121>0,'Asset data'!F121,0) -> 49.52972247 | H121: =IF(A121>0,SUM('Asset data'!CX121:GJ121),0) -> 60426.26141 | I121: 0.002201575191 | J121: 41 | K121: 0.01760594521 | L121: 49.52972247 | M121: =IF($A121>0,SUMPRODUCT('Age profile (years)'!$CT121:$GF121,'Asset data'!$CX121:$GJ121)/H121-0.5,0) -> 37.23688525 | N121: 2250085.762 | O121: =IF($A121>0,'Asset data'!G121,0) -> 53.87134054 | P121: 3255243.706 | Q121: 0.308781165 | R121: 5.387134054 | S121: 10.77426811 | T121: 32.32280432 | U121: 43.09707243 | W121: =IF($A121>0,SUMIF('Age profile (years)'!$CT121:$GF121,"<" & R121+0.5,'Asset data'!$CX121:$GJ121),0) -> 2179.307789 | X121: =IF($A121>0,SUMIF('Age profile (years)'!$CT121:$GF121,"<" & S121+0.5,'Asset data'!$CX121:$GJ121)-W121,0) -> 3120.372516 | Y121: =IF($A121>0,SUMIF('Age profile (years)'!$CT121:$GF121,"<" & T121+0.5,'Asset data'!$CX121:$GJ121)-X121-W121,0) -> 14413.14924 | Z121: =IF($A121>0,SUMIF('Age profile (years)'!$CT121:$GF121,"<" & U121+0.5,'Asset data'!$CX121:$GJ121)-Y121-X121-W121,0) -> 9063.939212 | AA121: 31649.49266 | AB121: 0.03606557377 | AC121: 0.05163934426 | AD121: 0.2385245902 | AE121: 0.15 | AF121: 0.5237704918 | AI121: =IF($A121>0,'RRR hist-forc'!K121,0) -> 53.87134054 | AJ121: 3255243.706
A122: ='Asset data'!A122 -> 6 | B122: ='Asset data'!B122 -> 0 | C122: ='Asset data'!C122 -> 0 | D122: ='Asset data'!E122 -> > 22 KV & < = 33 KV ; CIRCUIT BREAKER | E122: SWITCHGEAR | F122: =IF(A122>0,SUM('Asset data'!J122:CV122),0) -> 411 | G122: =IF(A122>0,'Asset data'!F122,0) -> 118.9990149 | H122: =IF(A122>0,SUM('Asset data'!CX122:GJ122),0) -> 48908.59511 | I122: 0.001781939625 | J122: 43 | K122: 0.01425012942 | L122: 118.9990149 | M122: =IF($A122>0,SUMPRODUCT('Age profile (years)'!$CT122:$GF122,'Asset data'!$CX122:$GJ122)/H122-0.5,0) -> 30.26642336 | N122: 1480288.245 | O122: =IF($A122>0,'Asset data'!G122,0) -> 41.6577508 | P122: 2037422.067 | Q122: 0.2734503717 | R122: 4.16577508 | S122: 8.33155016 | T122: 24.99465048 | U122: 33.32620064 | W122: =IF($A122>0,SUMIF('Age profile (years)'!$CT122:$GF122,"<" & R122+0.5,'Asset data'!$CX122:$GJ122),0) -> 2022.983253 | X122: =IF($A122>0,SUMIF('Age profile (years)'!$CT122:$GF122,"<" & S122+0.5,'Asset data'!$CX122:$GJ122)-W122,0) -> 475.9960595 | Y122: =IF($A122>0,SUMIF('Age profile (years)'!$CT122:$GF122,"<" & T122+0.5,'Asset data'!$CX122:$GJ122)-X122-W122,0) -> 6306.947788 | Z122: =IF($A122>0,SUMIF('Age profile (years)'!$CT122:$GF122,"<" & U122+0.5,'Asset data'!$CX122:$GJ122)-Y122-X122-W122,0) -> 11304.90641 | AA122: 28797.7616 | AB122: 0.04136253041 | AC122: 0.009732360097 | AD122: 0.1289537713 | AE122: 0.2311435523 | AF122: 0.5888077859 | AI122: =IF($A122>0,'RRR hist-forc'!K122,0) -> 41.6577508 | AJ122: 2037422.067
A123: ='Asset data'!A123 -> 6 | B123: ='Asset data'!B123 -> 0 | C123: ='Asset data'!C123 -> 0 | D123: ='Asset data'!E123 -> > 33 KV & < = 66 KV ; SWITCH | E123: SWITCHGEAR | F123: =IF(A123>0,SUM('Asset data'!J123:CV123),0) -> 1991 | G123: =IF(A123>0,'Asset data'!F123,0) -> 48.67594073 | H123: =IF(A123>0,SUM('Asset data'!CX123:GJ123),0) -> 96913.79798 | I123: 0.003530964986 | J123: 36 | K123: 0.02823704425 | L123: 48.67594073 | M123: =IF($A123>0,SUMPRODUCT('Age profile (years)'!$CT123:$GF123,'Asset data'!$CX123:$GJ123)/H123-0.5,0) -> 28.55524862 | N123: 2767397.596 | O123: =IF($A123>0,'Asset data'!G123,0) -> 41.76699097 | P123: 4047797.725 | Q123: 0.316320186 | R123: 4.176699097 | S123: 8.353398194 | T123: 25.06019458 | U123: 33.41359278 | W123: =IF($A123>0,SUMIF('Age profile (years)'!$CT123:$GF123,"<" & R123+0.5,'Asset data'!$CX123:$GJ123),0) -> 5938.464768 | X123: =IF($A123>0,SUMIF('Age profile (years)'!$CT123:$GF123,"<" & S123+0.5,'Asset data'!$CX123:$GJ123)-W123,0) -> 4137.454962 | Y123: =IF($A123>0,SUMIF('Age profile (years)'!$CT123:$GF123,"<" & T123+0.5,'Asset data'!$CX123:$GJ123)-X123-W123,0) -> 18010.09807 | Z123: =IF($A123>0,SUMIF('Age profile (years)'!$CT123:$GF123,"<" & U123+0.5,'Asset data'!$CX123:$GJ123)-Y123-X123-W123,0) -> 12412.36488 | AA123: 56415.4153 | AB123: 0.06127574083 | AC123: 0.04269211452 | AD123: 0.1858362632 | AE123: 0.1280763435 | AF123: 0.5821195379 | AI123: =IF($A123>0,'RRR hist-forc'!K123,0) -> 41.76699097 | AJ123: 4047797.725
A124: ='Asset data'!A124 -> 6 | B124: ='Asset data'!B124 -> 0 | C124: ='Asset data'!C124 -> 0 | D124: ='Asset data'!E124 -> > 33 KV & < = 66 KV ; CIRCUIT BREAKER | E124: SWITCHGEAR | F124: =IF(A124>0,SUM('Asset data'!J124:CV124),0) -> 669 | G124: =IF(A124>0,'Asset data'!F124,0) -> 103.1586564 | H124: =IF(A124>0,SUM('Asset data'!CX124:GJ124),0) -> 69013.14115 | I124: 0.002514430246 | J124: 39 | K124: 0.02010783976 | L124: 103.1586564 | M124: =IF($A124>0,SUMPRODUCT('Age profile (years)'!$CT124:$GF124,'Asset data'!$CX124:$GJ124)/H124-0.5,0) -> 27.87668161 | N124: 1923857.363 | O124: =IF($A124>0,'Asset data'!G124,0) -> 43.04350403 | P124: 2970567.419 | Q124: 0.3523603097 | R124: 4.304350403 | S124: 8.608700805 | T124: 25.82610242 | U124: 34.43480322 | W124: =IF($A124>0,SUMIF('Age profile (years)'!$CT124:$GF124,"<" & R124+0.5,'Asset data'!$CX124:$GJ124),0) -> 5054.774165 | X124: =IF($A124>0,SUMIF('Age profile (years)'!$CT124:$GF124,"<" & S124+0.5,'Asset data'!$CX124:$GJ124)-W124,0) -> 1031.586564 | Y124: =IF($A124>0,SUMIF('Age profile (years)'!$CT124:$GF124,"<" & T124+0.5,'Asset data'!$CX124:$GJ124)-X124-W124,0) -> 15680.11578 | Z124: =IF($A124>0,SUMIF('Age profile (years)'!$CT124:$GF124,"<" & U124+0.5,'Asset data'!$CX124:$GJ124)-Y124-X124-W124,0) -> 12585.35608 | AA124: 34661.30856 | AB124: 0.07324364723 | AC124: 0.01494768311 | AD124: 0.2272047833 | AE124: 0.1823617339 | AF124: 0.5022421525 | AI124: =IF($A124>0,'RRR hist-forc'!K124,0) -> 43.04350403 | AJ124: 2970567.419
A125: ='Asset data'!A125 -> 6 | B125: ='Asset data'!B125 -> 0 | C125: ='Asset data'!C125 -> 0 | D125: ='Asset data'!E125 -> > 66 KV & < = 132 KV ; SWITCH | E125: SWITCHGEAR | F125: =IF(A125>0,SUM('Asset data'!J125:CV125),0) -> 296 | G125: =IF(A125>0,'Asset data'!F125,0) -> 72.68816217 | H125: =IF(A125>0,SUM('Asset data'!CX125:GJ125),0) -> 21515.696 | I125: 0.0007839045709 | J125: 48 | K125: 0.006268866484 | L125: 72.68816217 | M125: =IF($A125>0,SUMPRODUCT('Age profile (years)'!$CT125:$GF125,'Asset data'!$CX125:$GJ125)/H125-0.5,0) -> 26.81418919 | N125: 576925.9431 | O125: =IF($A125>0,'Asset data'!G125,0) -> 38.33129117 | P125: 824724.4083 | Q125: 0.3004621455 | R125: 3.833129117 | S125: 7.666258235 | T125: 22.9987747 | U125: 30.66503294 | W125: =IF($A125>0,SUMIF('Age profile (years)'!$CT125:$GF125,"<" & R125+0.5,'Asset data'!$CX125:$GJ125),0) -> 872.257946 | X125: =IF($A125>0,SUMIF('Age profile (years)'!$CT125:$GF125,"<" & S125+0.5,'Asset data'!$CX125:$GJ125)-W125,0) -> 581.5052974 | Y125: =IF($A125>0,SUMIF('Age profile (years)'!$CT125:$GF125,"<" & T125+0.5,'Asset data'!$CX125:$GJ125)-X125-W125,0) -> 3125.590973 | Z125: =IF($A125>0,SUMIF('Age profile (years)'!$CT125:$GF125,"<" & U125+0.5,'Asset data'!$CX125:$GJ125)-Y125-X125-W125,0) -> 7923.009677 | AA125: 9013.332109 | AB125: 0.04054054054 | AC125: 0.02702702703 | AD125: 0.1452702703 | AE125: 0.3682432432 | AF125: 0.4189189189 | AI125: =IF($A125>0,'RRR hist-forc'!K125,0) -> 38.33129117 | AJ125: 824724.4083
A126: ='Asset data'!A126 -> 6 | B126: ='Asset data'!B126 -> 0 | C126: ='Asset data'!C126 -> 0 | D126: ='Asset data'!E126 -> > 66 KV & < = 132 KV ; CIRCUIT BREAKER | E126: SWITCHGEAR | F126: =IF(A126>0,SUM('Asset data'!J126:CV126),0) -> 144 | G126: =IF(A126>0,'Asset data'!F126,0) -> 127.2797802 | H126: =IF(A126>0,SUM('Asset data'!CX126:GJ126),0) -> 18328.28834 | I126: 0.000667774308 | J126: 52 | K126: 0.005340175493 | L126: 127.2797802 | M126: =IF($A126>0,SUMPRODUCT('Age profile (years)'!$CT126:$GF126,'Asset data'!$CX126:$GJ126)/H126-0.5,0) -> 24.34722222 | N126: 446242.9092 | O126: =IF($A126>0,'Asset data'!G126,0) -> 38.48520797 | P126: 705367.9886 | Q126: 0.3673615525 | R126: 3.848520797 | S126: 7.697041594 | T126: 23.09112478 | U126: 30.78816638 | W126: =IF($A126>0,SUMIF('Age profile (years)'!$CT126:$GF126,"<" & R126+0.5,'Asset data'!$CX126:$GJ126),0) -> 890.9584611 | X126: =IF($A126>0,SUMIF('Age profile (years)'!$CT126:$GF126,"<" & S126+0.5,'Asset data'!$CX126:$GJ126)-W126,0) -> 1527.357362 | Y126: =IF($A126>0,SUMIF('Age profile (years)'!$CT126:$GF126,"<" & T126+0.5,'Asset data'!$CX126:$GJ126)-X126-W126,0) -> 2545.595603 | Z126: =IF($A126>0,SUMIF('Age profile (years)'!$CT126:$GF126,"<" & U126+0.5,'Asset data'!$CX126:$GJ126)-Y126-X126-W126,0) -> 7000.387908 | AA126: 6363.989008 | AB126: 0.04861111111 | AC126: 0.08333333333 | AD126: 0.1388888889 | AE126: 0.3819444444 | AF126: 0.3472222222 | AI126: =IF($A126>0,'RRR hist-forc'!K126,0) -> 38.48520797 | AJ126: 705367.9886
A127: ='Asset data'!A127 -> 0 | B127: ='Asset data'!B127 -> 0 | C127: ='Asset data'!C127 -> 0 | D127: ='Asset data'!E127 -> > 132 KV ; SWITCH | E127: 0 | F127: =IF(A127>0,SUM('Asset data'!J127:CV127),0) -> 0 | G127: =IF(A127>0,'Asset data'!F127,0) -> 0 | H127: =IF(A127>0,SUM('Asset data'!CX127:GJ127),0) -> 0 | I127: 0 | J127: 0 | K127: 0 | L127: 0 | M127: =IF($A127>0,SUMPRODUCT('Age profile (years)'!$CT127:$GF127,'Asset data'!$CX127:$GJ127)/H127-0.5,0) -> 0 | N127: 0 | O127: =IF($A127>0,'Asset data'!G127,0) -> 0 | P127: 0 | Q127: 0 | R127: 0 | S127: 0 | T127: 0 | U127: 0 | W127: =IF($A127>0,SUMIF('Age profile (years)'!$CT127:$GF127,"<" & R127+0.5,'Asset data'!$CX127:$GJ127),0) -> 0 | X127: =IF($A127>0,SUMIF('Age profile (years)'!$CT127:$GF127,"<" & S127+0.5,'Asset data'!$CX127:$GJ127)-W127,0) -> 0 | Y127: =IF($A127>0,SUMIF('Age profile (years)'!$CT127:$GF127,"<" & T127+0.5,'Asset data'!$CX127:$GJ127)-X127-W127,0) -> 0 | Z127: =IF($A127>0,SUMIF('Age profile (years)'!$CT127:$GF127,"<" & U127+0.5,'Asset data'!$CX127:$GJ127)-Y127-X127-W127,0) -> 0 | AA127: 0 | AB127: 0 | AC127: 0 | AD127: 0 | AE127: 0 | AF127: 0 | AI127: =IF($A127>0,'RRR hist-forc'!K127,0) -> 0 | AJ127: 0
A128: ='Asset data'!A128 -> 0 | B128: ='Asset data'!B128 -> 0 | C128: ='Asset data'!C128 -> 0 | D128: ='Asset data'!E128 -> > 132 KV ; CIRCUIT BREAKER | E128: 0 | F128: =IF(A128>0,SUM('Asset data'!J128:CV128),0) -> 0 | G128: =IF(A128>0,'Asset data'!F128,0) -> 0 | H128: =IF(A128>0,SUM('Asset data'!CX128:GJ128),0) -> 0 | I128: 0 | J128: 0 | K128: 0 | L128: 0 | M128: =IF($A128>0,SUMPRODUCT('Age profile (years)'!$CT128:$GF128,'Asset data'!$CX128:$GJ128)/H128-0.5,0) -> 0 | N128: 0 | O128: =IF($A128>0,'Asset data'!G128,0) -> 0 | P128: 0 | Q128: 0 | R128: 0 | S128: 0 | T128: 0 | U128: 0 | W128: =IF($A128>0,SUMIF('Age profile (years)'!$CT128:$GF128,"<" & R128+0.5,'Asset data'!$CX128:$GJ128),0) -> 0 | X128: =IF($A128>0,SUMIF('Age profile (years)'!$CT128:$GF128,"<" & S128+0.5,'Asset data'!$CX128:$GJ128)-W128,0) -> 0 | Y128: =IF($A128>0,SUMIF('Age profile (years)'!$CT128:$GF128,"<" & T128+0.5,'Asset data'!$CX128:$GJ128)-X128-W128,0) -> 0 | Z128: =IF($A128>0,SUMIF('Age profile (years)'!$CT128:$GF128,"<" & U128+0.5,'Asset data'!$CX128:$GJ128)-Y128-X128-W128,0) -> 0 | AA128: 0 | AB128: 0 | AC128: 0 | AD128: 0 | AE128: 0 | AF128: 0 | AI128: =IF($A128>0,'RRR hist-forc'!K128,0) -> 0 | AJ128: 0
A129: ='Asset data'!A129 -> 6 | B129: ='Asset data'!B129 -> 0 | C129: ='Asset data'!C129 -> 0 | D129: ='Asset data'!E129 -> OTHER - > 11 KV & < = 22 KV ; FUSE | E129: SWITCHGEAR | F129: =IF(A129>0,SUM('Asset data'!J129:CV129),0) -> 51156 | G129: =IF(A129>0,'Asset data'!F129,0) -> 1.98778457 | H129: =IF(A129>0,SUM('Asset data'!CX129:GJ129),0) -> 101687.1075 | I129: 0.003704876121 | J129: 34 | K129: 0.02962780753 | L129: 1.98778457 | M129: =IF($A129>0,SUMPRODUCT('Age profile (years)'!$CT129:$GF129,'Asset data'!$CX129:$GJ129)/H129-0.5,0) -> 31.85168895 | N129: 3238906.118 | O129: =IF($A129>0,'Asset data'!G129,0) -> 61.58365112 | P129: 6262263.35 | Q129: 0.4827898578 | R129: 6.158365112 | S129: 12.31673022 | T129: 36.95019067 | U129: 49.2669209 | W129: =IF($A129>0,SUMIF('Age profile (years)'!$CT129:$GF129,"<" & R129+0.5,'Asset data'!$CX129:$GJ129),0) -> 5583.686858 | X129: =IF($A129>0,SUMIF('Age profile (years)'!$CT129:$GF129,"<" & S129+0.5,'Asset data'!$CX129:$GJ129)-W129,0) -> 11558.96728 | Y129: =IF($A129>0,SUMIF('Age profile (years)'!$CT129:$GF129,"<" & T129+0.5,'Asset data'!$CX129:$GJ129)-X129-W129,0) -> 44460.77748 | Z129: =IF($A129>0,SUMIF('Age profile (years)'!$CT129:$GF129,"<" & U129+0.5,'Asset data'!$CX129:$GJ129)-Y129-X129-W129,0) -> 19450.47202 | AA129: 20633.20384 | AB129: 0.05491046994 | AC129: 0.1136719055 | AD129: 0.4372312143 | AE129: 0.1912776605 | AF129: 0.2029087497 | AI129: =IF($A129>0,'RRR hist-forc'!K129,0) -> 61.58365112 | AJ129: 6262263.35
A130: ='Asset data'!A130 -> 6 | B130: ='Asset data'!B130 -> 0 | C130: ='Asset data'!C130 -> 0 | D130: ='Asset data'!E130 -> OTHER - > 22 KV & < = 33 KV ; FUSE | E130: SWITCHGEAR | F130: =IF(A130>0,SUM('Asset data'!J130:CV130),0) -> 1773 | G130: =IF(A130>0,'Asset data'!F130,0) -> 2.484730713 | H130: =IF(A130>0,SUM('Asset data'!CX130:GJ130),0) -> 4405.427554 | I130: 0.0001605076961 | J130: 62 | K130: 0.001283576285 | L130: 2.484730713 | M130: =IF($A130>0,SUMPRODUCT('Age profile (years)'!$CT130:$GF130,'Asset data'!$CX130:$GJ130)/H130-0.5,0) -> 29.04145516 | N130: 127940.0268 | O130: =IF($A130>0,'Asset data'!G130,0) -> 51.92432932 | P130: 228748.8711 | Q130: 0.4406965764 | R130: 5.192432932 | S130: 10.38486586 | T130: 31.15459759 | U130: 41.53946346 | W130: =IF($A130>0,SUMIF('Age profile (years)'!$CT130:$GF130,"<" & R130+0.5,'Asset data'!$CX130:$GJ130),0) -> 521.7934497 | X130: =IF($A130>0,SUMIF('Age profile (years)'!$CT130:$GF130,"<" & S130+0.5,'Asset data'!$CX130:$GJ130)-W130,0) -> 377.6790683 | Y130: =IF($A130>0,SUMIF('Age profile (years)'!$CT130:$GF130,"<" & T130+0.5,'Asset data'!$CX130:$GJ130)-X130-W130,0) -> 1150.43032 | Z130: =IF($A130>0,SUMIF('Age profile (years)'!$CT130:$GF130,"<" & U130+0.5,'Asset data'!$CX130:$GJ130)-Y130-X130-W130,0) -> 1227.456972 | AA130: 1128.067744 | AB130: 0.1184433164 | AC130: 0.08573040045 | AD130: 0.2611393119 | AE130: 0.2786238015 | AF130: 0.2560631698 | AI130: =IF($A130>0,'RRR hist-forc'!K130,0) -> 51.92432932 | AJ130: 228748.8711
A131: ='Asset data'!A131 -> 6 | B131: ='Asset data'!B131 -> 0 | C131: ='Asset data'!C131 -> 0 | D131: ='Asset data'!E131 -> OTHER - > 33 KV & < = 66 KV ; FUSE | E131: SWITCHGEAR | F131: =IF(A131>0,SUM('Asset data'!J131:CV131),0) -> 222 | G131: =IF(A131>0,'Asset data'!F131,0) -> 2.981676855 | H131: =IF(A131>0,SUM('Asset data'!CX131:GJ131),0) -> 661.9322619 | I131: 2.411689242e-05 | J131: 70 | K131: 0.0001928622235 | L131: 2.981676855 | M131: =IF($A131>0,SUMPRODUCT('Age profile (years)'!$CT131:$GF131,'Asset data'!$CX131:$GJ131)/H131-0.5,0) -> 35.46846847 | N131: 23477.72356 | O131: =IF($A131>0,'Asset data'!G131,0) -> 57.70453761 | P131: 38196.4951 | Q131: 0.3853435113 | R131: 5.770453761 | S131: 11.54090752 | T131: 34.62272257 | U131: 46.16363009 | W131: =IF($A131>0,SUMIF('Age profile (years)'!$CT131:$GF131,"<" & R131+0.5,'Asset data'!$CX131:$GJ131),0) -> 38.76179912 | X131: =IF($A131>0,SUMIF('Age profile (years)'!$CT131:$GF131,"<" & S131+0.5,'Asset data'!$CX131:$GJ131)-W131,0) -> 41.74347598 | Y131: =IF($A131>0,SUMIF('Age profile (years)'!$CT131:$GF131,"<" & T131+0.5,'Asset data'!$CX131:$GJ131)-X131-W131,0) -> 202.7540262 | Z131: =IF($A131>0,SUMIF('Age profile (years)'!$CT131:$GF131,"<" & U131+0.5,'Asset data'!$CX131:$GJ131)-Y131-X131-W131,0) -> 163.992227 | AA131: 214.6807336 | AB131: 0.05855855856 | AC131: 0.06306306306 | AD131: 0.3063063063 | AE131: 0.2477477477 | AF131: 0.3243243243 | AI131: =IF($A131>0,'RRR hist-forc'!K131,0) -> 57.70453761 | AJ131: 38196.4951
A132: ='Asset data'!A132 -> 0 | B132: ='Asset data'!B132 -> 0 | C132: ='Asset data'!C132 -> 0 | D132: ='Asset data'!E132 -> 0 | E132: 0 | F132: =IF(A132>0,SUM('Asset data'!J132:CV132),0) -> 0 | G132: =IF(A132>0,'Asset data'!F132,0) -> 0 | H132: =IF(A132>0,SUM('Asset data'!CX132:GJ132),0) -> 0 | I132: 0 | J132: 0 | K132: 0 | L132: 0 | M132: =IF($A132>0,SUMPRODUCT('Age profile (years)'!$CT132:$GF132,'Asset data'!$CX132:$GJ132)/H132-0.5,0) -> 0 | N132: 0 | O132: =IF($A132>0,'Asset data'!G132,0) -> 0 | P132: 0 | Q132: 0 | R132: 0 | S132: 0 | T132: 0 | U132: 0 | W132: =IF($A132>0,SUMIF('Age profile (years)'!$CT132:$GF132,"<" & R132+0.5,'Asset data'!$CX132:$GJ132),0) -> 0 | X132: =IF($A132>0,SUMIF('Age profile (years)'!$CT132:$GF132,"<" & S132+0.5,'Asset data'!$CX132:$GJ132)-W132,0) -> 0 | Y132: =IF($A132>0,SUMIF('Age profile (years)'!$CT132:$GF132,"<" & T132+0.5,'Asset data'!$CX132:$GJ132)-X132-W132,0) -> 0 | Z132: =IF($A132>0,SUMIF('Age profile (years)'!$CT132:$GF132,"<" & U132+0.5,'Asset data'!$CX132:$GJ132)-Y132-X132-W132,0) -> 0 | AA132: 0 | AB132: 0 | AC132: 0 | AD132: 0 | AE132: 0 | AF132: 0 | AI132: =IF($A132>0,'RRR hist-forc'!K132,0) -> 0 | AJ132: 0
A133: ='Asset data'!A133 -> 0 | B133: ='Asset data'!B133 -> 0 | C133: ='Asset data'!C133 -> 0 | D133: ='Asset data'!E133 -> 0 | E133: 0 | F133: =IF(A133>0,SUM('Asset data'!J133:CV133),0) -> 0 | G133: =IF(A133>0,'Asset data'!F133,0) -> 0 | H133: =IF(A133>0,SUM('Asset data'!CX133:GJ133),0) -> 0 | I133: 0 | J133: 0 | K133: 0 | L133: 0 | M133: =IF($A133>0,SUMPRODUCT('Age profile (years)'!$CT133:$GF133,'Asset data'!$CX133:$GJ133)/H133-0.5,0) -> 0 | N133: 0 | O133: =IF($A133>0,'Asset data'!G133,0) -> 0 | P133: 0 | Q133: 0 | R133: 0 | S133: 0 | T133: 0 | U133: 0 | W133: =IF($A133>0,SUMIF('Age profile (years)'!$CT133:$GF133,"<" & R133+0.5,'Asset data'!$CX133:$GJ133),0) -> 0 | X133: =IF($A133>0,SUMIF('Age profile (years)'!$CT133:$GF133,"<" & S133+0.5,'Asset data'!$CX133:$GJ133)-W133,0) -> 0 | Y133: =IF($A133>0,SUMIF('Age profile (years)'!$CT133:$GF133,"<" & T133+0.5,'Asset data'!$CX133:$GJ133)-X133-W133,0) -> 0 | Z133: =IF($A133>0,SUMIF('Age profile (years)'!$CT133:$GF133,"<" & U133+0.5,'Asset data'!$CX133:$GJ133)-Y133-X133-W133,0) -> 0 | AA133: 0 | AB133: 0 | AC133: 0 | AD133: 0 | AE133: 0 | AF133: 0 | AI133: =IF($A133>0,'RRR hist-forc'!K133,0) -> 0 | AJ133: 0
A134: ='Asset data'!A134 -> 0 | B134: ='Asset data'!B134 -> 0 | C134: ='Asset data'!C134 -> 0 | D134: ='Asset data'!E134 -> 0 | E134: 0 | F134: =IF(A134>0,SUM('Asset data'!J134:CV134),0) -> 0 | G134: =IF(A134>0,'Asset data'!F134,0) -> 0 | H134: =IF(A134>0,SUM('Asset data'!CX134:GJ134),0) -> 0 | I134: 0 | J134: 0 | K134: 0 | L134: 0 | M134: =IF($A134>0,SUMPRODUCT('Age profile (years)'!$CT134:$GF134,'Asset data'!$CX134:$GJ134)/H134-0.5,0) -> 0 | N134: 0 | O134: =IF($A134>0,'Asset data'!G134,0) -> 0 | P134: 0 | Q134: 0 | R134: 0 | S134: 0 | T134: 0 | U134: 0 | W134: =IF($A134>0,SUMIF('Age profile (years)'!$CT134:$GF134,"<" & R134+0.5,'Asset data'!$CX134:$GJ134),0) -> 0 | X134: =IF($A134>0,SUMIF('Age profile (years)'!$CT134:$GF134,"<" & S134+0.5,'Asset data'!$CX134:$GJ134)-W134,0) -> 0 | Y134: =IF($A134>0,SUMIF('Age profile (years)'!$CT134:$GF134,"<" & T134+0.5,'Asset data'!$CX134:$GJ134)-X134-W134,0) -> 0 | Z134: =IF($A134>0,SUMIF('Age profile (years)'!$CT134:$GF134,"<" & U134+0.5,'Asset data'!$CX134:$GJ134)-Y134-X134-W134,0) -> 0 | AA134: 0 | AB134: 0 | AC134: 0 | AD134: 0 | AE134: 0 | AF134: 0 | AI134: =IF($A134>0,'RRR hist-forc'!K134,0) -> 0 | AJ134: 0
A135: ='Asset data'!A135 -> 0 | B135: ='Asset data'!B135 -> 0 | C135: ='Asset data'!C135 -> 0 | D135: ='Asset data'!E135 -> 0 | E135: 0 | F135: =IF(A135>0,SUM('Asset data'!J135:CV135),0) -> 0 | G135: =IF(A135>0,'Asset data'!F135,0) -> 0 | H135: =IF(A135>0,SUM('Asset data'!CX135:GJ135),0) -> 0 | I135: 0 | J135: 0 | K135: 0 | L135: 0 | M135: =IF($A135>0,SUMPRODUCT('Age profile (years)'!$CT135:$GF135,'Asset data'!$CX135:$GJ135)/H135-0.5,0) -> 0 | N135: 0 | O135: =IF($A135>0,'Asset data'!G135,0) -> 0 | P135: 0 | Q135: 0 | R135: 0 | S135: 0 | T135: 0 | U135: 0 | W135: =IF($A135>0,SUMIF('Age profile (years)'!$CT135:$GF135,"<" & R135+0.5,'Asset data'!$CX135:$GJ135),0) -> 0 | X135: =IF($A135>0,SUMIF('Age profile (years)'!$CT135:$GF135,"<" & S135+0.5,'Asset data'!$CX135:$GJ135)-W135,0) -> 0 | Y135: =IF($A135>0,SUMIF('Age profile (years)'!$CT135:$GF135,"<" & T135+0.5,'Asset data'!$CX135:$GJ135)-X135-W135,0) -> 0 | Z135: =IF($A135>0,SUMIF('Age profile (years)'!$CT135:$GF135,"<" & U135+0.5,'Asset data'!$CX135:$GJ135)-Y135-X135-W135,0) -> 0 | AA135: 0 | AB135: 0 | AC135: 0 | AD135: 0 | AE135: 0 | AF135: 0 | AI135: =IF($A135>0,'RRR hist-forc'!K135,0) -> 0 | AJ135: 0
A136: ='Asset data'!A136 -> 0 | B136: ='Asset data'!B136 -> 0 | C136: ='Asset data'!C136 -> 0 | D136: ='Asset data'!E136 -> 0 | E136: 0 | F136: =IF(A136>0,SUM('Asset data'!J136:CV136),0) -> 0 | G136: =IF(A136>0,'Asset data'!F136,0) -> 0 | H136: =IF(A136>0,SUM('Asset data'!CX136:GJ136),0) -> 0 | I136: 0 | J136: 0 | K136: 0 | L136: 0 | M136: =IF($A136>0,SUMPRODUCT('Age profile (years)'!$CT136:$GF136,'Asset data'!$CX136:$GJ136)/H136-0.5,0) -> 0 | N136: 0 | O136: =IF($A136>0,'Asset data'!G136,0) -> 0 | P136: 0 | Q136: 0 | R136: 0 | S136: 0 | T136: 0 | U136: 0 | W136: =IF($A136>0,SUMIF('Age profile (years)'!$CT136:$GF136,"<" & R136+0.5,'Asset data'!$CX136:$GJ136),0) -> 0 | X136: =IF($A136>0,SUMIF('Age profile (years)'!$CT136:$GF136,"<" & S136+0.5,'Asset data'!$CX136:$GJ136)-W136,0) -> 0 | Y136: =IF($A136>0,SUMIF('Age profile (years)'!$CT136:$GF136,"<" & T136+0.5,'Asset data'!$CX136:$GJ136)-X136-W136,0) -> 0 | Z136: =IF($A136>0,SUMIF('Age profile (years)'!$CT136:$GF136,"<" & U136+0.5,'Asset data'!$CX136:$GJ136)-Y136-X136-W136,0) -> 0 | AA136: 0 | AB136: 0 | AC136: 0 | AD136: 0 | AE136: 0 | AF136: 0 | AI136: =IF($A136>0,'RRR hist-forc'!K136,0) -> 0 | AJ136: 0
A137: ='Asset data'!A137 -> 0 | B137: ='Asset data'!B137 -> 0 | C137: ='Asset data'!C137 -> 0 | D137: ='Asset data'!E137 -> 0 | E137: 0 | F137: =IF(A137>0,SUM('Asset data'!J137:CV137),0) -> 0 | G137: =IF(A137>0,'Asset data'!F137,0) -> 0 | H137: =IF(A137>0,SUM('Asset data'!CX137:GJ137),0) -> 0 | I137: 0 | J137: 0 | K137: 0 | L137: 0 | M137: =IF($A137>0,SUMPRODUCT('Age profile (years)'!$CT137:$GF137,'Asset data'!$CX137:$GJ137)/H137-0.5,0) -> 0 | N137: 0 | O137: =IF($A137>0,'Asset data'!G137,0) -> 0 | P137: 0 | Q137: 0 | R137: 0 | S137: 0 | T137: 0 | U137: 0 | W137: =IF($A137>0,SUMIF('Age profile (years)'!$CT137:$GF137,"<" & R137+0.5,'Asset data'!$CX137:$GJ137),0) -> 0 | X137: =IF($A137>0,SUMIF('Age profile (years)'!$CT137:$GF137,"<" & S137+0.5,'Asset data'!$CX137:$GJ137)-W137,0) -> 0 | Y137: =IF($A137>0,SUMIF('Age profile (years)'!$CT137:$GF137,"<" & T137+0.5,'Asset data'!$CX137:$GJ137)-X137-W137,0) -> 0 | Z137: =IF($A137>0,SUMIF('Age profile (years)'!$CT137:$GF137,"<" & U137+0.5,'Asset data'!$CX137:$GJ137)-Y137-X137-W137,0) -> 0 | AA137: 0 | AB137: 0 | AC137: 0 | AD137: 0 | AE137: 0 | AF137: 0 | AI137: =IF($A137>0,'RRR hist-forc'!K137,0) -> 0 | AJ137: 0
A138: ='Asset data'!A138 -> 0 | B138: ='Asset data'!B138 -> 0 | C138: ='Asset data'!C138 -> 0 | D138: ='Asset data'!E138 -> 0 | E138: 0 | F138: =IF(A138>0,SUM('Asset data'!J138:CV138),0) -> 0 | G138: =IF(A138>0,'Asset data'!F138,0) -> 0 | H138: =IF(A138>0,SUM('Asset data'!CX138:GJ138),0) -> 0 | I138: 0 | J138: 0 | K138: 0 | L138: 0 | M138: =IF($A138>0,SUMPRODUCT('Age profile (years)'!$CT138:$GF138,'Asset data'!$CX138:$GJ138)/H138-0.5,0) -> 0 | N138: 0 | O138: =IF($A138>0,'Asset data'!G138,0) -> 0 | P138: 0 | Q138: 0 | R138: 0 | S138: 0 | T138: 0 | U138: 0 | W138: =IF($A138>0,SUMIF('Age profile (years)'!$CT138:$GF138,"<" & R138+0.5,'Asset data'!$CX138:$GJ138),0) -> 0 | X138: =IF($A138>0,SUMIF('Age profile (years)'!$CT138:$GF138,"<" & S138+0.5,'Asset data'!$CX138:$GJ138)-W138,0) -> 0 | Y138: =IF($A138>0,SUMIF('Age profile (years)'!$CT138:$GF138,"<" & T138+0.5,'Asset data'!$CX138:$GJ138)-X138-W138,0) -> 0 | Z138: =IF($A138>0,SUMIF('Age profile (years)'!$CT138:$GF138,"<" & U138+0.5,'Asset data'!$CX138:$GJ138)-Y138-X138-W138,0) -> 0 | AA138: 0 | AB138: 0 | AC138: 0 | AD138: 0 | AE138: 0 | AF138: 0 | AI138: =IF($A138>0,'RRR hist-forc'!K138,0) -> 0 | AJ138: 0
A139: ='Asset data'!A139 -> 0 | B139: ='Asset data'!B139 -> 0 | C139: ='Asset data'!C139 -> 0 | D139: ='Asset data'!E139 -> 0 | E139: 0 | F139: =IF(A139>0,SUM('Asset data'!J139:CV139),0) -> 0 | G139: =IF(A139>0,'Asset data'!F139,0) -> 0 | H139: =IF(A139>0,SUM('Asset data'!CX139:GJ139),0) -> 0 | I139: 0 | J139: 0 | K139: 0 | L139: 0 | M139: =IF($A139>0,SUMPRODUCT('Age profile (years)'!$CT139:$GF139,'Asset data'!$CX139:$GJ139)/H139-0.5,0) -> 0 | N139: 0 | O139: =IF($A139>0,'Asset data'!G139,0) -> 0 | P139: 0 | Q139: 0 | R139: 0 | S139: 0 | T139: 0 | U139: 0 | W139: =IF($A139>0,SUMIF('Age profile (years)'!$CT139:$GF139,"<" & R139+0.5,'Asset data'!$CX139:$GJ139),0) -> 0 | X139: =IF($A139>0,SUMIF('Age profile (years)'!$CT139:$GF139,"<" & S139+0.5,'Asset data'!$CX139:$GJ139)-W139,0) -> 0 | Y139: =IF($A139>0,SUMIF('Age profile (years)'!$CT139:$GF139,"<" & T139+0.5,'Asset data'!$CX139:$GJ139)-X139-W139,0) -> 0 | Z139: =IF($A139>0,SUMIF('Age profile (years)'!$CT139:$GF139,"<" & U139+0.5,'Asset data'!$CX139:$GJ139)-Y139-X139-W139,0) -> 0 | AA139: 0 | AB139: 0 | AC139: 0 | AD139: 0 | AE139: 0 | AF139: 0 | AI139: =IF($A139>0,'RRR hist-forc'!K139,0) -> 0 | AJ139: 0
A140: ='Asset data'!A140 -> 0 | B140: ='Asset data'!B140 -> 0 | C140: ='Asset data'!C140 -> 0 | D140: ='Asset data'!E140 -> 0 | E140: 0 | F140: =IF(A140>0,SUM('Asset data'!J140:CV140),0) -> 0 | G140: =IF(A140>0,'Asset data'!F140,0) -> 0 | H140: =IF(A140>0,SUM('Asset data'!CX140:GJ140),0) -> 0 | I140: 0 | J140: 0 | K140: 0 | L140: 0 | M140: =IF($A140>0,SUMPRODUCT('Age profile (years)'!$CT140:$GF140,'Asset data'!$CX140:$GJ140)/H140-0.5,0) -> 0 | N140: 0 | O140: =IF($A140>0,'Asset data'!G140,0) -> 0 | P140: 0 | Q140: 0 | R140: 0 | S140: 0 | T140: 0 | U140: 0 | W140: =IF($A140>0,SUMIF('Age profile (years)'!$CT140:$GF140,"<" & R140+0.5,'Asset data'!$CX140:$GJ140),0) -> 0 | X140: =IF($A140>0,SUMIF('Age profile (years)'!$CT140:$GF140,"<" & S140+0.5,'Asset data'!$CX140:$GJ140)-W140,0) -> 0 | Y140: =IF($A140>0,SUMIF('Age profile (years)'!$CT140:$GF140,"<" & T140+0.5,'Asset data'!$CX140:$GJ140)-X140-W140,0) -> 0 | Z140: =IF($A140>0,SUMIF('Age profile (years)'!$CT140:$GF140,"<" & U140+0.5,'Asset data'!$CX140:$GJ140)-Y140-X140-W140,0) -> 0 | AA140: 0 | AB140: 0 | AC140: 0 | AD140: 0 | AE140: 0 | AF140: 0 | AI140: =IF($A140>0,'RRR hist-forc'!K140,0) -> 0 | AJ140: 0
A141: ='Asset data'!A141 -> 0 | B141: ='Asset data'!B141 -> 0 | C141: ='Asset data'!C141 -> 0 | D141: ='Asset data'!E141 -> 0 | E141: 0 | F141: =IF(A141>0,SUM('Asset data'!J141:CV141),0) -> 0 | G141: =IF(A141>0,'Asset data'!F141,0) -> 0 | H141: =IF(A141>0,SUM('Asset data'!CX141:GJ141),0) -> 0 | I141: 0 | J141: 0 | K141: 0 | L141: 0 | M141: =IF($A141>0,SUMPRODUCT('Age profile (years)'!$CT141:$GF141,'Asset data'!$CX141:$GJ141)/H141-0.5,0) -> 0 | N141: 0 | O141: =IF($A141>0,'Asset data'!G141,0) -> 0 | P141: 0 | Q141: 0 | R141: 0 | S141: 0 | T141: 0 | U141: 0 | W141: =IF($A141>0,SUMIF('Age profile (years)'!$CT141:$GF141,"<" & R141+0.5,'Asset data'!$CX141:$GJ141),0) -> 0 | X141: =IF($A141>0,SUMIF('Age profile (years)'!$CT141:$GF141,"<" & S141+0.5,'Asset data'!$CX141:$GJ141)-W141,0) -> 0 | Y141: =IF($A141>0,SUMIF('Age profile (years)'!$CT141:$GF141,"<" & T141+0.5,'Asset data'!$CX141:$GJ141)-X141-W141,0) -> 0 | Z141: =IF($A141>0,SUMIF('Age profile (years)'!$CT141:$GF141,"<" & U141+0.5,'Asset data'!$CX141:$GJ141)-Y141-X141-W141,0) -> 0 | AA141: 0 | AB141: 0 | AC141: 0 | AD141: 0 | AE141: 0 | AF141: 0 | AI141: =IF($A141>0,'RRR hist-forc'!K141,0) -> 0 | AJ141: 0
A142: ='Asset data'!A142 -> 0 | B142: ='Asset data'!B142 -> 0 | C142: ='Asset data'!C142 -> 0 | D142: ='Asset data'!E142 -> 0 | E142: 0 | F142: =IF(A142>0,SUM('Asset data'!J142:CV142),0) -> 0 | G142: =IF(A142>0,'Asset data'!F142,0) -> 0 | H142: =IF(A142>0,SUM('Asset data'!CX142:GJ142),0) -> 0 | I142: 0 | J142: 0 | K142: 0 | L142: 0 | M142: =IF($A142>0,SUMPRODUCT('Age profile (years)'!$CT142:$GF142,'Asset data'!$CX142:$GJ142)/H142-0.5,0) -> 0 | N142: 0 | O142: =IF($A142>0,'Asset data'!G142,0) -> 0 | P142: 0 | Q142: 0 | R142: 0 | S142: 0 | T142: 0 | U142: 0 | W142: =IF($A142>0,SUMIF('Age profile (years)'!$CT142:$GF142,"<" & R142+0.5,'Asset data'!$CX142:$GJ142),0) -> 0 | X142: =IF($A142>0,SUMIF('Age profile (years)'!$CT142:$GF142,"<" & S142+0.5,'Asset data'!$CX142:$GJ142)-W142,0) -> 0 | Y142: =IF($A142>0,SUMIF('Age profile (years)'!$CT142:$GF142,"<" & T142+0.5,'Asset data'!$CX142:$GJ142)-X142-W142,0) -> 0 | Z142: =IF($A142>0,SUMIF('Age profile (years)'!$CT142:$GF142,"<" & U142+0.5,'Asset data'!$CX142:$GJ142)-Y142-X142-W142,0) -> 0 | AA142: 0 | AB142: 0 | AC142: 0 | AD142: 0 | AE142: 0 | AF142: 0 | AI142: =IF($A142>0,'RRR hist-forc'!K142,0) -> 0 | AJ142: 0
A143: ='Asset data'!A143 -> 0 | B143: ='Asset data'!B143 -> 0 | C143: ='Asset data'!C143 -> 0 | D143: ='Asset data'!E143 -> 0 | E143: 0 | F143: =IF(A143>0,SUM('Asset data'!J143:CV143),0) -> 0 | G143: =IF(A143>0,'Asset data'!F143,0) -> 0 | H143: =IF(A143>0,SUM('Asset data'!CX143:GJ143),0) -> 0 | I143: 0 | J143: 0 | K143: 0 | L143: 0 | M143: =IF($A143>0,SUMPRODUCT('Age profile (years)'!$CT143:$GF143,'Asset data'!$CX143:$GJ143)/H143-0.5,0) -> 0 | N143: 0 | O143: =IF($A143>0,'Asset data'!G143,0) -> 0 | P143: 0 | Q143: 0 | R143: 0 | S143: 0 | T143: 0 | U143: 0 | W143: =IF($A143>0,SUMIF('Age profile (years)'!$CT143:$GF143,"<" & R143+0.5,'Asset data'!$CX143:$GJ143),0) -> 0 | X143: =IF($A143>0,SUMIF('Age profile (years)'!$CT143:$GF143,"<" & S143+0.5,'Asset data'!$CX143:$GJ143)-W143,0) -> 0 | Y143: =IF($A143>0,SUMIF('Age profile (years)'!$CT143:$GF143,"<" & T143+0.5,'Asset data'!$CX143:$GJ143)-X143-W143,0) -> 0 | Z143: =IF($A143>0,SUMIF('Age profile (years)'!$CT143:$GF143,"<" & U143+0.5,'Asset data'!$CX143:$GJ143)-Y143-X143-W143,0) -> 0 | AA143: 0 | AB143: 0 | AC143: 0 | AD143: 0 | AE143: 0 | AF143: 0 | AI143: =IF($A143>0,'RRR hist-forc'!K143,0) -> 0 | AJ143: 0
A144: ='Asset data'!A144 -> 0 | B144: ='Asset data'!B144 -> 0 | C144: ='Asset data'!C144 -> 0 | D144: ='Asset data'!E144 -> 0 | E144: 0 | F144: =IF(A144>0,SUM('Asset data'!J144:CV144),0) -> 0 | G144: =IF(A144>0,'Asset data'!F144,0) -> 0 | H144: =IF(A144>0,SUM('Asset data'!CX144:GJ144),0) -> 0 | I144: 0 | J144: 0 | K144: 0 | L144: 0 | M144: =IF($A144>0,SUMPRODUCT('Age profile (years)'!$CT144:$GF144,'Asset data'!$CX144:$GJ144)/H144-0.5,0) -> 0 | N144: 0 | O144: =IF($A144>0,'Asset data'!G144,0) -> 0 | P144: 0 | Q144: 0 | R144: 0 | S144: 0 | T144: 0 | U144: 0 | W144: =IF($A144>0,SUMIF('Age profile (years)'!$CT144:$GF144,"<" & R144+0.5,'Asset data'!$CX144:$GJ144),0) -> 0 | X144: =IF($A144>0,SUMIF('Age profile (years)'!$CT144:$GF144,"<" & S144+0.5,'Asset data'!$CX144:$GJ144)-W144,0) -> 0 | Y144: =IF($A144>0,SUMIF('Age profile (years)'!$CT144:$GF144,"<" & T144+0.5,'Asset data'!$CX144:$GJ144)-X144-W144,0) -> 0 | Z144: =IF($A144>0,SUMIF('Age profile (years)'!$CT144:$GF144,"<" & U144+0.5,'Asset data'!$CX144:$GJ144)-Y144-X144-W144,0) -> 0 | AA144: 0 | AB144: 0 | AC144: 0 | AD144: 0 | AE144: 0 | AF144: 0 | AI144: =IF($A144>0,'RRR hist-forc'!K144,0) -> 0 | AJ144: 0
A145: ='Asset data'!A145 -> 0 | B145: ='Asset data'!B145 -> 0 | C145: ='Asset data'!C145 -> 0 | D145: ='Asset data'!E145 -> 0 | E145: 0 | F145: =IF(A145>0,SUM('Asset data'!J145:CV145),0) -> 0 | G145: =IF(A145>0,'Asset data'!F145,0) -> 0 | H145: =IF(A145>0,SUM('Asset data'!CX145:GJ145),0) -> 0 | I145: 0 | J145: 0 | K145: 0 | L145: 0 | M145: =IF($A145>0,SUMPRODUCT('Age profile (years)'!$CT145:$GF145,'Asset data'!$CX145:$GJ145)/H145-0.5,0) -> 0 | N145: 0 | O145: =IF($A145>0,'Asset data'!G145,0) -> 0 | P145: 0 | Q145: 0 | R145: 0 | S145: 0 | T145: 0 | U145: 0 | W145: =IF($A145>0,SUMIF('Age profile (years)'!$CT145:$GF145,"<" & R145+0.5,'Asset data'!$CX145:$GJ145),0) -> 0 | X145: =IF($A145>0,SUMIF('Age profile (years)'!$CT145:$GF145,"<" & S145+0.5,'Asset data'!$CX145:$GJ145)-W145,0) -> 0 | Y145: =IF($A145>0,SUMIF('Age profile (years)'!$CT145:$GF145,"<" & T145+0.5,'Asset data'!$CX145:$GJ145)-X145-W145,0) -> 0 | Z145: =IF($A145>0,SUMIF('Age profile (years)'!$CT145:$GF145,"<" & U145+0.5,'Asset data'!$CX145:$GJ145)-Y145-X145-W145,0) -> 0 | AA145: 0 | AB145: 0 | AC145: 0 | AD145: 0 | AE145: 0 | AF145: 0 | AI145: =IF($A145>0,'RRR hist-forc'!K145,0) -> 0 | AJ145: 0
A146: ='Asset data'!A146 -> 0 | B146: ='Asset data'!B146 -> 0 | C146: ='Asset data'!C146 -> 0 | D146: ='Asset data'!E146 -> 0 | E146: 0 | F146: =IF(A146>0,SUM('Asset data'!J146:CV146),0) -> 0 | G146: =IF(A146>0,'Asset data'!F146,0) -> 0 | H146: =IF(A146>0,SUM('Asset data'!CX146:GJ146),0) -> 0 | I146: 0 | J146: 0 | K146: 0 | L146: 0 | M146: =IF($A146>0,SUMPRODUCT('Age profile (years)'!$CT146:$GF146,'Asset data'!$CX146:$GJ146)/H146-0.5,0) -> 0 | N146: 0 | O146: =IF($A146>0,'Asset data'!G146,0) -> 0 | P146: 0 | Q146: 0 | R146: 0 | S146: 0 | T146: 0 | U146: 0 | W146: =IF($A146>0,SUMIF('Age profile (years)'!$CT146:$GF146,"<" & R146+0.5,'Asset data'!$CX146:$GJ146),0) -> 0 | X146: =IF($A146>0,SUMIF('Age profile (years)'!$CT146:$GF146,"<" & S146+0.5,'Asset data'!$CX146:$GJ146)-W146,0) -> 0 | Y146: =IF($A146>0,SUMIF('Age profile (years)'!$CT146:$GF146,"<" & T146+0.5,'Asset data'!$CX146:$GJ146)-X146-W146,0) -> 0 | Z146: =IF($A146>0,SUMIF('Age profile (years)'!$CT146:$GF146,"<" & U146+0.5,'Asset data'!$CX146:$GJ146)-Y146-X146-W146,0) -> 0 | AA146: 0 | AB146: 0 | AC146: 0 | AD146: 0 | AE146: 0 | AF146: 0 | AI146: =IF($A146>0,'RRR hist-forc'!K146,0) -> 0 | AJ146: 0
A147: ='Asset data'!A147 -> 0 | B147: ='Asset data'!B147 -> 0 | C147: ='Asset data'!C147 -> 0 | D147: ='Asset data'!E147 -> 0 | E147: 0 | F147: =IF(A147>0,SUM('Asset data'!J147:CV147),0) -> 0 | G147: =IF(A147>0,'Asset data'!F147,0) -> 0 | H147: =IF(A147>0,SUM('Asset data'!CX147:GJ147),0) -> 0 | I147: 0 | J147: 0 | K147: 0 | L147: 0 | M147: =IF($A147>0,SUMPRODUCT('Age profile (years)'!$CT147:$GF147,'Asset data'!$CX147:$GJ147)/H147-0.5,0) -> 0 | N147: 0 | O147: =IF($A147>0,'Asset data'!G147,0) -> 0 | P147: 0 | Q147: 0 | R147: 0 | S147: 0 | T147: 0 | U147: 0 | W147: =IF($A147>0,SUMIF('Age profile (years)'!$CT147:$GF147,"<" & R147+0.5,'Asset data'!$CX147:$GJ147),0) -> 0 | X147: =IF($A147>0,SUMIF('Age profile (years)'!$CT147:$GF147,"<" & S147+0.5,'Asset data'!$CX147:$GJ147)-W147,0) -> 0 | Y147: =IF($A147>0,SUMIF('Age profile (years)'!$CT147:$GF147,"<" & T147+0.5,'Asset data'!$CX147:$GJ147)-X147-W147,0) -> 0 | Z147: =IF($A147>0,SUMIF('Age profile (years)'!$CT147:$GF147,"<" & U147+0.5,'Asset data'!$CX147:$GJ147)-Y147-X147-W147,0) -> 0 | AA147: 0 | AB147: 0 | AC147: 0 | AD147: 0 | AE147: 0 | AF147: 0 | AI147: =IF($A147>0,'RRR hist-forc'!K147,0) -> 0 | AJ147: 0
A148: ='Asset data'!A148 -> 0 | B148: ='Asset data'!B148 -> 0 | C148: ='Asset data'!C148 -> 0 | D148: ='Asset data'!E148 -> 0 | E148: 0 | F148: =IF(A148>0,SUM('Asset data'!J148:CV148),0) -> 0 | G148: =IF(A148>0,'Asset data'!F148,0) -> 0 | H148: =IF(A148>0,SUM('Asset data'!CX148:GJ148),0) -> 0 | I148: 0 | J148: 0 | K148: 0 | L148: 0 | M148: =IF($A148>0,SUMPRODUCT('Age profile (years)'!$CT148:$GF148,'Asset data'!$CX148:$GJ148)/H148-0.5,0) -> 0 | N148: 0 | O148: =IF($A148>0,'Asset data'!G148,0) -> 0 | P148: 0 | Q148: 0 | R148: 0 | S148: 0 | T148: 0 | U148: 0 | W148: =IF($A148>0,SUMIF('Age profile (years)'!$CT148:$GF148,"<" & R148+0.5,'Asset data'!$CX148:$GJ148),0) -> 0 | X148: =IF($A148>0,SUMIF('Age profile (years)'!$CT148:$GF148,"<" & S148+0.5,'Asset data'!$CX148:$GJ148)-W148,0) -> 0 | Y148: =IF($A148>0,SUMIF('Age profile (years)'!$CT148:$GF148,"<" & T148+0.5,'Asset data'!$CX148:$GJ148)-X148-W148,0) -> 0 | Z148: =IF($A148>0,SUMIF('Age profile (years)'!$CT148:$GF148,"<" & U148+0.5,'Asset data'!$CX148:$GJ148)-Y148-X148-W148,0) -> 0 | AA148: 0 | AB148: 0 | AC148: 0 | AD148: 0 | AE148: 0 | AF148: 0 | AI148: =IF($A148>0,'RRR hist-forc'!K148,0) -> 0 | AJ148: 0
AI206: =IF($A206>0,'RRR hist-forc'!K206,0) -> 0 | AJ206: =IF($A206>0,AI206*H206,0) -> 0

Sheet Asset data
A1: Meth all | D1: 3 | E1: =IF(D1=2,"all normal",IF(D1=1,"all deterministic","individual")) -> individual | L1: Profile type: | M1: 3 | N1: =VLOOKUP(APtype,IDtable,4) -> Installation date
F3: Unit | J3: Quantities | CX3: Replacement Cost (NOT depreciated)
F4: Cost | G4: Replacement life | I4: Rep | J4: =VLOOKUP(APtype,IDtable,4) -> Installation date | CX4: =VLOOKUP(APtype,IDtable,4) -> Installation date
A5: ID | B5: ID | C5: ID | D5: Asset category | E5: Asset ID | F5: $ ('000) | G5: mean | H5: SD | I5: Meth | J5: =IF(OR(APtype=1,APtype=2),0,IF(APtype=3,Now,9999)) -> 2013 | K5: =IF(OR(APtype=1,APtype=2),J5+1,IF(APtype=3,J5-1,9999)) -> 2012 | L5: 2011 | M5: 2010 | N5: 2009 | O5: 2008 | P5: 2007 | Q5: 2006 | R5: 2005 | S5: 2004 | T5: 2003 | U5: 2002 | V5: 2001 | W5: 2000 | X5: 1999 | Y5: 1998 | Z5: 1997 | AA5: 1996 | AB5: 1995 | AC5: 1994 | AD5: 1993 | AE5: 1992 | AF5: 1991 | AG5: 1990 | AH5: 1989 | AI5: 1988 | AJ5: 1987 | AK5: 1986 | AL5: 1985 | AM5: 1984 | AN5: 1983 | AO5: 1982 | AP5: 1981 | AQ5: =IF(OR(APtype=1,APtype=2),AP5+1,IF(APtype=3,AP5-1,9999)) -> 1980 | AR5: 1979 | AS5: 1978 | AT5: 1977 | AU5: 1976 | AV5: 1975 | AW5: 1974 | AX5: 1973 | AY5: 1972 | AZ5: 1971 | BA5: 1970 | BB5: 1969 | BC5: 1968 | BD5: 1967 | BE5: 1966 | BF5: 1965 | BG5: 1964 | BH5: 1963 | BI5: 1962 | BJ5: 1961 | BK5: 1960 | BL5: 1959 | BM5: 1958 | BN5: 1957 | BO5: 1956 | BP5: 1955 | BQ5: 1954 | BR5: 1953 | BS5: 1952 | BT5: 1951 | BU5: 1950 | BV5: 1949 | BW5: =IF(OR(APtype=1,APtype=2),BV5+1,IF(APtype=3,BV5-1,9999)) -> 1948 | BX5: 1947 | BY5: 1946 | BZ5: 1945 | CA5: 1944 | CB5: 1943 | CC5: 1942 | CD5: 1941 | CE5: 1940 | CF5: 1939 | CG5: 1938 | CH5: 1937 | CI5: 1936 | CJ5: 1935 | CK5: 1934 | CL5: 1933 | CM5: 1932 | CN5: 1931 | CO5: 1930 | CP5: 1929 | CQ5: 1928 | CR5: 1927 | CS5: 1926 | CT5: 1925 | CU5: 1924 | CV5: 1923 | CX5: =J5 -> 2013 | CY5: =K5 -> 2012 | CZ5: 2011 | DA5: 2010 | DB5: 2009 | DC5: 2008 | DD5: 2007 | DE5: 2006 | DF5: 2005 | DG5: 2004 | DH5: 2003 | DI5: 2002 | DJ5: 2001 | DK5: 2000 | DL5: 1999 | DM5: 1998 | DN5: 1997 | DO5: 1996 | DP5: 1995 | DQ5: 1994 | DR5: 1993 | DS5: 1992 | DT5: 1991 | DU5: 1990 | DV5: 1989 | DW5: 1988 | DX5: 1987 | DY5: 1986 | DZ5: 1985 | EA5: 1984 | EB5: 1983 | EC5: 1982 | ED5: 1981 | EE5: 1980 | EF5: 1979 | EG5: 1978 | EH5: 1977 | EI5: 1976 | EJ5: 1975 | EK5: 1974 | EL5: 1973 | EM5: 1972 | EN5: 1971 | EO5: 1970 | EP5: 1969 | EQ5: 1968 | ER5: 1967 | ES5: 1966 | ET5: 1965 | EU5: 1964 | EV5: 1963 | EW5: 1962 | EX5: 1961 | EY5: 1960 | EZ5: 1959 | FA5: 1958 | FB5: 1957 | FC5: 1956 | FD5: 1955 | FE5: 1954 | FF5: 1953 | FG5: 1952 | FH5: 1951 | FI5: 1950 | FJ5: 1949 | FK5: =BW5 -> 1948 | FL5: 1947 | FM5: 1946 | FN5: 1945 | FO5: 1944 | FP5: 1943 | FQ5: 1942 | FR5: 1941 | FS5: 1940 | FT5: 1939 | FU5: 1938 | FV5: 1937 | FW5: 1936 | FX5: 1935 | FY5: 1934 | FZ5: 1933 | GA5: 1932 | GB5: 1931 | GC5: 1930 | GD5: 1929 | GE5: 1928 | GF5: 1927 | GG5: 1926 | GH5: 1925 | GI5: 1924 | GJ5: 1923
D21: =IF(A21>0,VLOOKUP(A21,IDtable,2),"") ->  | CX21: =$F21*J21 -> 0 | CY21: =$F21*K21 -> 0 | CZ21: 0 | DA21: 0 | DB21: 0 | DC21: 0 | DD21: 0 | DE21: 0 | DF21: 0 | DG21: 0 | DH21: 0 | DI21: 0 | DJ21: 0 | DK21: 0 | DL21: 0 | DM21: 0 | DN21: 0 | DO21: 0 | DP21: 0 | DQ21: 0 | DR21: 0 | DS21: 0 | DT21: 0 | DU21: 0 | DV21: 0 | DW21: 0 | DX21: 0 | DY21: 0 | DZ21: 0 | EA21: 0 | EB21: 0 | EC21: 0 | ED21: 0 | EE21: 0 | EF21: 0 | EG21: 0 | EH21: 0 | EI21: 0 | EJ21: 0 | EK21: 0 | EL21: 0 | EM21: 0 | EN21: 0 | EO21: 0 | EP21: 0 | EQ21: 0 | ER21: 0 | ES21: 0 | ET21: 0 | EU21: 0 | EV21: 0 | EW21: 0 | EX21: 0 | EY21: 0 | EZ21: 0 | FA21: 0 | FB21: 0 | FC21: 0 | FD21: 0 | FE21: 0 | FF21: 0 | FG21: 0 | FH21: 0 | FI21: 0 | FJ21: 0 | FK21: =$F21*BW21 -> 0 | FL21: 0 | FM21: 0 | FN21: 0 | FO21: 0 | FP21: 0 | FQ21: 0 | FR21: 0 | FS21: 0 | FT21: 0 | FU21: 0 | FV21: 0 | FW21: 0 | FX21: 0 | FY21: 0 | FZ21: 0 | GA21: 0 | GB21: 0 | GC21: 0 | GD21: 0 | GE21: 0 | GF21: 0 | GG21: 0 | GH21: 0 | GI21: 0 | GJ21: 0
A22: =IF(SUM(J22:CV22)=0, 0,1) -> 1 | D22: POLES | E22: STAKING OF A WOODEN POLE | F22: 7.690046183 | G22: 23.3787276 | H22: 4.835155385 | I22: 2 | J22: 394 | K22: 635 | L22: 334 | M22: 838 | N22: 741 | O22: 837 | P22: 986 | Q22: 1074 | R22: 642 | S22: 773.0666667 | T22: 773.0666667 | U22: 773.0666667 | V22: 773.0666667 | W22: 773.0666667 | X22: 773.0666667 | Y22: 773.0666667 | Z22: 773.0666667 | AA22: 773.0666667 | AB22: 773.0666667 | AC22: 773.0666667 | AD22: 773.0666667 | AE22: 773.0666667 | AF22: 773.0666667 | AG22: 773.0666667 | AH22: 0 | AI22: 0 | AJ22: 0 | AK22: 0 | AL22: 0 | AM22: 0 | AN22: 0 | AO22: 0 | AP22: 0 | AQ22: 0 | AR22: 0 | AS22: 0 | AT22: 0 | AU22: 0 | AV22: 0 | AW22: 0 | AX22: 0 | AY22: 0 | AZ22: 0 | BA22: 0 | BB22: 0 | BC22: 0 | BD22: 0 | BE22: 0 | BF22: 0 | BG22: 0 | BH22: 0 | BI22: 0 | BJ22: 0 | BK22: 0 | BL22: 0 | BM22: 0 | BN22: 0 | BO22: 0 | BP22: 0 | BQ22: 0 | BR22: 0 | BS22: 0 | BT22: 0 | BU22: 0 | BV22: 0 | BW22: 0 | BX22: 0 | BY22: 0 | BZ22: 0 | CA22: 0 | CB22: 0 | CC22: 0 | CD22: 0 | CE22: 0 | CF22: 0 | CG22: 0 | CH22: 0 | CI22: 0 | CJ22: 0 | CK22: 0 | CL22: 0 | CM22: 0 | CN22: 0 | CO22: 0 | CP22: 0 | CQ22: 0 | CR22: 0 | CS22: 0 | CT22: 0 | CU22: 0 | CV22: 0 | CX22: =$F22*J22 -> 3029.878196 | CY22: =$F22*K22 -> 4883.179326 | CZ22: =$F22*L22 -> 2568.475425 | DA22: =$F22*M22 -> 6444.258702 | DB22: =$F22*N22 -> 5698.324222 | DC22: =$F22*O22 -> 6436.568655 | DD22: =$F22*P22 -> 7582.385537 | DE22: =$F22*Q22 -> 8259.109601 | DF22: =$F22*R22 -> 4937.00965 | DG22: =$F22*S22 -> 5944.918369 | DH22: =$F22*T22 -> 5944.918369 | DI22: =$F22*U22 -> 5944.918369 | DJ22: =$F22*V22 -> 5944.918369 | DK22: =$F22*W22 -> 5944.918369 | DL22: =$F22*X22 -> 5944.918369 | DM22: =$F22*Y22 -> 5944.918369 | DN22: =$F22*Z22 -> 5944.918369 | DO22: =$F22*AA22 -> 5944.918369 | DP22: =$F22*AB22 -> 5944.918369 | DQ22: =$F22*AC22 -> 5944.918369 | DR22: =$F22*AD22 -> 5944.918369 | DS22: =$F22*AE22 -> 5944.918369 | DT22: =$F22*AF22 -> 5944.918369 | DU22: =$F22*AG22 -> 5944.918369 | DV22: =$F22*AH22 -> 0 | DW22: =$F22*AI22 -> 0 | DX22: =$F22*AJ22 -> 0 | DY22: =$F22*AK22 -> 0 | DZ22: =$F22*AL22 -> 0 | EA22: =$F22*AM22 -> 0 | EB22: =$F22*AN22 -> 0 | EC22: =$F22*AO22 -> 0 | ED22: =$F22*AP22 -> 0 | EE22: =$F22*AQ22 -> 0 | EF22: =$F22*AR22 -> 0 | EG22: =$F22*AS22 -> 0 | EH22: =$F22*AT22 -> 0 | EI22: =$F22*AU22 -> 0 | EJ22: =$F22*AV22 -> 0 | EK22: =$F22*AW22 -> 0 | EL22: =$F22*AX22 -> 0 | EM22: =$F22*AY22 -> 0 | EN22: =$F22*AZ22 -> 0 | EO22: =$F22*BA22 -> 0 | EP22: =$F22*BB22 -> 0 | EQ22: =$F22*BC22 -> 0 | ER22: =$F22*BD22 -> 0 | ES22: =$F22*BE22 -> 0 | ET22: =$F22*BF22 -> 0 | EU22: =$F22*BG22 -> 0 | EV22: =$F22*BH22 -> 0 | EW22: =$F22*BI22 -> 0 | EX22: =$F22*BJ22 -> 0 | EY22: =$F22*BK22 -> 0 | EZ22: =$F22*BL22 -> 0 | FA22: =$F22*BM22 -> 0 | FB22: =$F22*BN22 -> 0 | FC22: =$F22*BO22 -> 0 | FD22: =$F22*BP22 -> 0 | FE22: =$F22*BQ22 -> 0 | FF22: =$F22*BR22 -> 0 | FG22: =$F22*BS22 -> 0 | FH22: =$F22*BT22 -> 0 | FI22: =$F22*BU22 -> 0 | FJ22: =$F22*BV22 -> 0 | FK22: =$F22*BW22 -> 0 | FL22: =$F22*BX22 -> 0 | FM22: =$F22*BY22 -> 0 | FN22: =$F22*BZ22 -> 0 | FO22: =$F22*CA22 -> 0 | FP22: =$F22*CB22 -> 0 | FQ22: =$F22*CC22 -> 0 | FR22: =$F22*CD22 -> 0 | FS22: =$F22*CE22 -> 0 | FT22: =$F22*CF22 -> 0 | FU22: =$F22*CG22 -> 0 | FV22: =$F22*CH22 -> 0 | FW22: =$F22*CI22 -> 0 | FX22: =$F22*CJ22 -> 0 | FY22: =$F22*CK22 -> 0 | FZ22: =$F22*CL22 -> 0 | GA22: =$F22*CM22 -> 0 | GB22: =$F22*CN22 -> 0 | GC22: =$F22*CO22 -> 0 | GD22: =$F22*CP22 -> 0 | GE22: =$F22*CQ22 -> 0 | GF22: =$F22*CR22 -> 0 | GG22: =$F22*CS22 -> 0 | GH22: =$F22*CT22 -> 0 | GI22: =$F22*CU22 -> 0 | GJ22: =$F22*CV22 -> 0
A23: =IF(SUM(J23:CV23)=0, 0,1) -> 1 | D23: POLES | E23: ˂ = 1 KV; WOOD | F23: 4.413900573 | G23: 70.44302896 | H23: 8.39303455 | I23: 2 | J23: 2298 | K23: 2185 | L23: 2207 | M23: 2016 | N23: 2302 | O23: 2718 | P23: 2852 | Q23: 2702 | R23: 3180 | S23: 3690 | T23: 2974 | U23: 2786 | V23: 3155 | W23: 3558 | X23: 2675 | Y23: 2612 | Z23: 2594 | AA23: 3895 | AB23: 5050 | AC23: 5791 | AD23: 6010 | AE23: 5903 | AF23: 7608 | AG23: 8601 | AH23: 7049 | AI23: 7436 | AJ23: 9213 | AK23: 6829 | AL23: 6581 | AM23: 6030 | AN23: 4505 | AO23: 6122 | AP23: 6264 | AQ23: 8368 | AR23: 5226 | AS23: 6038 | AT23: 7266 | AU23: 4717 | AV23: 7150 | AW23: 5962 | AX23: 6691 | AY23: 5511 | AZ23: 8656 | BA23: 14647 | BB23: 6072 | BC23: 5092 | BD23: 6269 | BE23: 14324 | BF23: 9306 | BG23: 3290 | BH23: 3248 | BI23: 1392 | BJ23: 6961 | BK23: 19709 | BL23: 1439 | BM23: 3404 | BN23: 1548 | BO23: 2063 | BP23: 7363 | BQ23: 1092 | BR23: 1482 | BS23: 3457 | BT23: 240 | BU23: 12527 | BV23: 598 | BW23: 391 | BX23: 358 | BY23: 215 | BZ23: 105 | CA23: 30 | CB23: 0 | CC23: 35 | CD23: 1 | CE23: 321 | CF23: 61 | CG23: 66 | CH23: 37 | CI23: 92 | CJ23: 43 | CK23: 13 | CL23: 1 | CM23: 1 | CN23: 15 | CO23: 1632 | CP23: 0 | CQ23: 10 | CR23: 1 | CS23: 0 | CT23: 46 | CU23: 0 | CV23: 1 | CX23: =$F23*J23 -> 10143.14352 | CY23: 9644.372753 | CZ23: 9741.478566 | DA23: 8898.423556 | DB23: 10160.79912 | DC23: 11996.98176 | DD23: 12588.44444 | DE23: 11926.35935 | DF23: 14036.20382 | DG23: 16287.29312 | DH23: 13126.94031 | DI23: 12297.127 | DJ23: 13925.85631 | DK23: 15704.65824 | DL23: 11807.18403 | DM23: 11529.1083 | DN23: 11449.65809 | DO23: 17192.14273 | DP23: 22290.1979 | DQ23: 25560.89822 | DR23: 26527.54245 | DS23: 26055.25509 | DT23: 33580.95556 | DU23: 37963.95883 | DV23: 31113.58514 | DW23: 32821.76466 | DX23: 40665.26598 | DY23: 30142.52702 | DZ23: 29047.87967 | EA23: 26615.82046 | EB23: 19884.62208 | EC23: 27021.89931 | ED23: 27648.67319 | EE23: 36935.52 | EF23: 23067.0444 | EG23: 26651.13166 | EH23: 32071.40157 | EI23: 20820.36901 | EJ23: 31559.3891 | EK23: 26315.67522 | EL23: 29533.40874 | EM23: 24325.00606 | EN23: 38206.72336 | EO23: 64650.4017 | EP23: 26801.20428 | EQ23: 22475.58172 | ER23: 27670.7427 | ES23: 63224.71181 | ET23: 41075.75874 | EU23: 14521.73289 | EV23: 14336.34906 | EW23: 6144.149598 | EX23: 30725.16189 | EY23: 86993.5664 | EZ23: 6351.602925 | FA23: 15024.91755 | FB23: 6832.718088 | FC23: 9105.876883 | FD23: 32499.54992 | FE23: 4819.979426 | FF23: 6541.40065 | FG23: 15258.85428 | FH23: 1059.336138 | FI23: 55292.93248 | FJ23: 2639.512543 | FK23: 1725.835124 | FL23: 1580.176405 | FM23: 948.9886233 | FN23: 463.4595602 | FO23: 132.4170172 | FP23: 0 | FQ23: 154.4865201 | FR23: 4.413900573 | FS23: 1416.862084 | FT23: 269.247935 | FU23: 291.3174378 | FV23: 163.3143212 | FW23: 406.0788528 | FX23: 189.7977247 | FY23: 57.38070746 | FZ23: 4.413900573 | GA23: 4.413900573 | GB23: 66.2085086 | GC23: 7203.485736 | GD23: 0 | GE23: 44.13900573 | GF23: 4.413900573 | GG23: 0 | GH23: 203.0394264 | GI23: 0 | GJ23: 4.413900573
A24: 1 | D24: POLES | E24: > 1 KV & < = 11 KV; WOOD | F24: 4.075240477 | G24: 69.29253284 | H24: 8.324213647 | I24: 2 | J24: 5444 | K24: 6433 | L24: 6775 | M24: 5139 | N24: 5205 | O24: 6009 | P24: 5518 | Q24: 6093 | R24: 5869 | S24: 6534 | T24: 5808 | U24: 5565 | V24: 5345 | W24: 5261 | X24: 3965 | Y24: 3708 | Z24: 3883 | AA24: 5067 | AB24: 6429 | AC24: 7681 | AD24: 7046 | AE24: 7428 | AF24: 9200 | AG24: 8610 | AH24: 8058 | AI24: 8652 | AJ24: 11042 | AK24: 9188 | AL24: 8084 | AM24: 6630 | AN24: 5737 | AO24: 7911 | AP24: 7656 | AQ24: 8958 | AR24: 5510 | AS24: 6708 | AT24: 8451 | AU24: 5981 | AV24: 7292 | AW24: 5519 | AX24: 5261 | AY24: 6184 | AZ24: 9446 | BA24: 18148 | BB24: 9671 | BC24: 4953 | BD24: 8064 | BE24: 11685 | BF24: 8339 | BG24: 3150 | BH24: 5230 | BI24: 4050 | BJ24: 9766 | BK24: 31249 | BL24: 3278 | BM24: 3252 | BN24: 3291 | BO24: 3195 | BP24: 10387 | BQ24: 1017 | BR24: 3754 | BS24: 5312 | BT24: 264 | BU24: 20789 | BV24: 469 | BW24: 335 | BX24: 399 | BY24: 210 | BZ24: 56 | CA24: 21 | CB24: 0 | CC24: 0 | CD24: 1 | CE24: 227 | CF24: 157 | CG24: 103 | CH24: 9 | CI24: 209 | CJ24: 8 | CK24: 8 | CL24: 1 | CM24: 0 | CN24: 2 | CO24: 72 | CP24: 0 | CQ24: 0 | CR24: 0 | CS24: 0 | CT24: 0 | CU24: 0 | CV24: 0 | CX24: 22185.60916 | CY24: 26216.02199 | CZ24: 27609.75423 | DA24: 20942.66081 | DB24: 21211.62668 | DC24: 24488.12003 | DD24: 22487.17695 | DE24: 24830.44023 | DF24: 23917.58636 | DG24: 26627.62128 | DH24: 23668.99669 | DI24: 22678.71326 | DJ24: 21782.16035 | DK24: 21439.84015 | DL24: 16158.32849 | DM24: 15110.99169 | DN24: 15824.15877 | DO24: 20649.2435 | DP24: 26199.72103 | DQ24: 31301.92211 | DR24: 28714.1444 | DS24: 30270.88627 | DT24: 37492.21239 | DU24: 35087.82051 | DV24: 32838.28777 | DW24: 35258.98061 | DX24: 44998.80535 | DY24: 37443.30951 | DZ24: 32944.24402 | EA24: 27018.84437 | EB24: 23379.65462 | EC24: 32239.22742 | ED24: 31200.0411 | EE24: 36506.0042 | EF24: 22454.57503 | EG24: 27336.71312 | EH24: 34439.85727 | EI24: 24374.0133 | EJ24: 29716.65356 | EK24: 22491.25219 | EL24: 21439.84015 | EM24: 25201.28711 | EN24: 38494.72155 | EO24: 73957.46418 | EP24: 39411.65066 | EQ24: 20184.66608 | ER24: 32862.73921 | ES24: 47619.18498 | ET24: 33983.43034 | EU24: 12837.0075 | EV24: 21313.5077 | EW24: 16504.72393 | EX24: 39798.7985 | EY24: 127347.1897 | EZ24: 13358.63828 | FA24: 13252.68203 | FB24: 13411.61641 | FC24: 13020.39333 | FD24: 42329.52284 | FE24: 4144.519566 | FF24: 15298.45275 | FG24: 21647.67742 | FH24: 1075.863486 | FI24: 84720.17429 | FJ24: 1911.287784 | FK24: 1365.20556 | FL24: 1626.02095 | FM24: 855.8005003 | FN24: 228.2134667 | FO24: 85.58005003 | FP24: 0 | FQ24: 0 | FR24: 4.075240477 | FS24: 925.0795884 | FT24: 639.812755 | FU24: 419.7497692 | FV24: 36.6771643 | FW24: 851.7252598 | FX24: 32.60192382 | FY24: 32.60192382 | FZ24: 4.075240477 | GA24: 0 | GB24: 8.150480955 | GC24: 293.4173144 | GD24: 0 | GE24: 0 | GF24: 0 | GG24: 0 | GH24: 0 | GI24: 0 | GJ24: 0
A25: 1 | D25: POLES | E25: ˃ 11 KV & < = 22 KV; WOOD | F25: 0.5085474211 | G25: 72.77223043 | H25: 8.530664126 | I25: 2 | J25: 2654 | K25: 2560 | L25: 2247 | M25: 1926 | N25: 1939 | O25: 2239 | P25: 2080 | Q25: 2473 | R25: 2524 | S25: 2789 | T25: 2378 | U25: 2686 | V25: 3867 | W25: 3029 | X25: 2388 | Y25: 1676 | Z25: 2265 | AA25: 2555 | AB25: 4211 | AC25: 4216 | AD25: 2813 | AE25: 4556 | AF25: 5202 | AG25: 5280 | AH25: 4243 | AI25: 5115 | AJ25: 7940 | AK25: 5406 | AL25: 4836 | AM25: 4410 | AN25: 3995 | AO25: 9739 | AP25: 7121 | AQ25: 7672 | AR25: 4277 | AS25: 5639 | AT25: 4618 | AU25: 3994 | AV25: 3763 | AW25: 3958 | AX25: 3538 | AY25: 3064 | AZ25: 3351 | BA25: 7390 | BB25: 4581 | BC25: 6404 | BD25: 4982 | BE25: 13618 | BF25: 16860 | BG25: 6696 | BH25: 3883 | BI25: 1582 | BJ25: 12474 | BK25: 10198 | BL25: 3641 | BM25: 4450 | BN25: 369 | BO25: 2411 | BP25: 9137 | BQ25: 2691 | BR25: 971 | BS25: 818 | BT25: 519 | BU25: 2379 | BV25: 144 | BW25: 179 | BX25: 35 | BY25: 18 | BZ25: 63 | CA25: 46 | CB25: 3 | CC25: 10 | CD25: 1 | CE25: 269 | CF25: 1 | CG25: 16 | CH25: 25 | CI25: 0 | CJ25: 0 | CK25: 1 | CL25: 1 | CM25: 5 | CN25: 0 | CO25: 3112 | CP25: 0 | CQ25: 0 | CR25: 0 | CS25: 0 | CT25: 0 | CU25: 0 | CV25: 0 | CX25: 1349.684856 | CY25: 1301.881398 | CZ25: 1142.706055 | DA25: 979.462333 | DB25: 986.0734494 | DC25: 1138.637676 | DD25: 1057.778636 | DE25: 1257.637772 | DF25: 1283.573691 | DG25: 1418.338757 | DH25: 1209.325767 | DI25: 1365.958373 | DJ25: 1966.552877 | DK25: 1540.390138 | DL25: 1214.411241 | DM25: 852.3254777 | DN25: 1151.859909 | DO25: 1299.338661 | DP25: 2141.49319 | DQ25: 2144.035927 | DR25: 1430.543895 | DS25: 2316.94205 | DT25: 2645.463684 | DU25: 2685.130383 | DV25: 2157.766708 | DW25: 2601.220059 | DX25: 4037.866523 | DY25: 2749.207358 | DZ25: 2459.335328 | EA25: 2242.694127 | EB25: 2031.646947 | EC25: 4952.743334 | ED25: 3621.366185 | EE25: 3901.575814 | EF25: 2175.05732 | EG25: 2867.698907 | EH25: 2348.47199 | EI25: 2031.1384 | EJ25: 1913.663945 | EK25: 2012.830693 | EL25: 1799.240776 | EM25: 1558.189298 | EN25: 1704.142408 | EO25: 3758.165442 | EP25: 2329.655736 | EQ25: 3256.737684 | ER25: 2533.583252 | ES25: 6925.39878 | ET25: 8574.109519 | EU25: 3405.233531 | EV25: 1974.689636 | EW25: 804.5220201 | EX25: 6343.62053 | EY25: 5186.1666 | EZ25: 1851.62116 | FA25: 2263.036024 | FB25: 187.6539984 | FC25: 1226.107832 | FD25: 4646.597786 | FE25: 1368.50111 | FF25: 493.7995459 | FG25: 415.9917904 | FH25: 263.9361115 | FI25: 1209.834315 | FJ25: 73.23082863 | FK25: 91.02998837 | FL25: 17.79915974 | FM25: 9.153853579 | FN25: 32.03848753 | FO25: 23.39318137 | FP25: 1.525642263 | FQ25: 5.085474211 | FR25: 0.5085474211 | FS25: 136.7992563 | FT25: 0.5085474211 | FU25: 8.136758737 | FV25: 12.71368553 | FW25: 0 | FX25: 0 | FY25: 0.5085474211 | FZ25: 0.5085474211 | GA25: 2.542737105 | GB25: 0 | GC25: 1582.599574 | GD25: 0 | GE25: 0 | GF25: 0 | GG25: 0 | GH25: 0 | GI25: 0 | GJ25: 0
A26: 1 | D26: POLES | E26: > 22 KV & < = 66 KV; WOOD | F26: 0.5085474211 | G26: 62.40175378 | H26: 7.89947807 | I26: 2 | J26: 172 | K26: 164 | L26: 126 | M26: 236 | N26: 120 | O26: 147 | P26: 229 | Q26: 151 | R26: 197 | S26: 229 | T26: 397 | U26: 273 | V26: 370 | W26: 372 | X26: 106 | Y26: 98 | Z26: 140 | AA26: 139 | AB26: 134 | AC26: 428 | AD26: 270 | AE26: 557 | AF26: 292 | AG26: 225 | AH26: 570 | AI26: 498 | AJ26: 334 | AK26: 488 | AL26: 409 | AM26: 646 | AN26: 368 | AO26: 722 | AP26: 1090 | AQ26: 689 | AR26: 248 | AS26: 798 | AT26: 389 | AU26: 326 | AV26: 312 | AW26: 312 | AX26: 240 | AY26: 267 | AZ26: 1376 | BA26: 1000 | BB26: 885 | BC26: 795 | BD26: 666 | BE26: 1124 | BF26: 855 | BG26: 265 | BH26: 61 | BI26: 527 | BJ26: 648 | BK26: 1370 | BL26: 79 | BM26: 136 | BN26: 122 | BO26: 163 | BP26: 152 | BQ26: 6 | BR26: 9 | BS26: -20 | BT26: 18 | BU26: 383 | BV26: 1 | BW26: 1 | BX26: 51 | BY26: 171 | BZ26: 41 | CA26: 0 | CB26: 0 | CC26: 0 | CD26: 0 | CE26: 0 | CF26: 0 | CG26: 0 | CH26: 3 | CI26: 1 | CJ26: 1 | CK26: 0 | CL26: 0 | CM26: 0 | CN26: 0 | CO26: 1 | CP26: 0 | CQ26: 0 | CR26: 0 | CS26: 0 | CT26: 1 | CU26: 0 | CV26: 2 | CX26: 87.47015642 | CY26: 83.40177705 | CZ26: 64.07697505 | DA26: 120.0171914 | DB26: 61.02569053 | DC26: 74.7564709 | DD26: 116.4573594 | DE26: 76.79066058 | DF26: 100.1838419 | DG26: 116.4573594 | DH26: 201.8933262 | DI26: 138.833446 | DJ26: 188.1625458 | DK26: 189.1796406 | DL26: 53.90602663 | DM26: 49.83764726 | DN26: 71.19663895 | DO26: 70.68809153 | DP26: 68.14535442 | DQ26: 217.6582962 | DR26: 137.3078037 | DS26: 283.2609135 | DT26: 148.495847 | DU26: 114.4231697 | DV26: 289.87203 | DW26: 253.2566157 | DX26: 169.8548386 | DY26: 248.1711415 | DZ26: 207.9958952 | EA26: 328.521634 | EB26: 187.145451 | EC26: 367.171238 | ED26: 554.316689 | EE26: 350.3891731 | EF26: 126.1197604 | EG26: 405.820842 | EH26: 197.8249468 | EI26: 165.7864593 | EJ26: 158.6667954 | EK26: 158.6667954 | EL26: 122.0513811 | EM26: 135.7821614 | EN26: 699.7612514 | EO26: 508.5474211 | EP26: 450.0644676 | EQ26: 404.2951997 | ER26: 338.6925824 | ES26: 571.6073013 | ET26: 434.808045 | EU26: 134.7650666 | EV26: 31.02139268 | EW26: 268.0044909 | EX26: 329.5387288 | EY26: 696.7099669 | EZ26: 40.17524626 | FA26: 69.16244926 | FB26: 62.04278537 | FC26: 82.89322963 | FD26: 77.299208 | FE26: 3.051284526 | FF26: 4.57692679 | FG26: -10.17094842 | FH26: 9.153853579 | FI26: 194.7736623 | FJ26: 0.5085474211 | FK26: 0.5085474211 | FL26: 25.93591847 | FM26: 86.961609 | FN26: 20.85044426 | FO26: 0 | FP26: 0 | FQ26: 0 | FR26: 0 | FS26: 0 | FT26: 0 | FU26: 0 | FV26: 1.525642263 | FW26: 0.5085474211 | FX26: 0.5085474211 | FY26: 0 | FZ26: 0 | GA26: 0 | GB26: 0 | GC26: 0.5085474211 | GD26: 0 | GE26: 0 | GF26: 0 | GG26: 0 | GH26: 0.5085474211 | GI26: 0 | GJ26: 1.017094842
A27: 1 | D27: POLES | E27: > 66 KV & < = 132 KV; WOOD | F27: 0.5085474211 | G27: 87.01765002 | H27: 9.328325146 | I27: 2 | J27: 306 | K27: 184 | L27: 176 | M27: 117 | N27: 144 | O27: 182 | P27: 409 | Q27: 282 | R27: 329 | S27: 302 | T27: 196 | U27: 295 | V27: 248 | W27: 276 | X27: 198 | Y27: 173 | Z27: 231 | AA27: 218 | AB27: 370 | AC27: 243 | AD27: 206 | AE27: 604 | AF27: 634 | AG27: 652 | AH27: 362 | AI27: 267 | AJ27: 541 | AK27: 333 | AL27: 162 | AM27: 686 | AN27: 818 | AO27: 3088 | AP27: 1078 | AQ27: 624 | AR27: 599 | AS27: 635 | AT27: 1252 | AU27: 359 | AV27: 258 | AW27: 500 | AX27: 286 | AY27: 687 | AZ27: 1463 | BA27: 2342 | BB27: 849 | BC27: 1826 | BD27: 2658 | BE27: 3058 | BF27: 4470 | BG27: 1736 | BH27: 1064 | BI27: 404 | BJ27: 1312 | BK27: 3183 | BL27: 92 | BM27: 114 | BN27: 15 | BO27: 134 | BP27: 1168 | BQ27: 142 | BR27: 3 | BS27: 614 | BT27: 2 | BU27: 1105 | BV27: 0 | BW27: 61 | BX27: 161 | BY27: 36 | BZ27: 164 | CA27: 0 | CB27: 29 | CC27: 0 | CD27: 0 | CE27: 81 | CF27: 0 | CG27: 0 | CH27: 107 | CI27: 15 | CJ27: 94 | CK27: 0 | CL27: 0 | CM27: 0 | CN27: 0 | CO27: 805 | CP27: 0 | CQ27: 0 | CR27: 0 | CS27: 0 | CT27: 0 | CU27: 0 | CV27: 0 | CX27: 155.6155108 | CY27: 93.57272548 | CZ27: 89.50434611 | DA27: 59.50004826 | DB27: 73.23082863 | DC27: 92.55563063 | DD27: 207.9958952 | DE27: 143.4103727 | DF27: 167.3121015 | DG27: 153.5813212 | DH27: 99.67529453 | DI27: 150.0214892 | DJ27: 126.1197604 | DK27: 140.3590882 | DL27: 100.6923894 | DM27: 87.97870384 | DN27: 117.4744543 | DO27: 110.8633378 | DP27: 188.1625458 | DQ27: 123.5770233 | DR27: 104.7607687 | DS27: 307.1626423 | DT27: 322.419065 | DU27: 331.5729185 | DV27: 184.0941664 | DW27: 135.7821614 | DX27: 275.1241548 | DY27: 169.3462912 | DZ27: 82.38468221 | EA27: 348.8635308 | EB27: 415.9917904 | EC27: 1570.394436 | ED27: 548.2141199 | EE27: 317.3335907 | EF27: 304.6199052 | EG27: 322.9276124 | EH27: 636.7013712 | EI27: 182.5685242 | EJ27: 131.2052346 | EK27: 254.2737105 | EL27: 145.4445624 | EM27: 349.3720783 | EN27: 744.004877 | EO27: 1191.01806 | EP27: 431.7567605 | EQ27: 928.6075909 | ER27: 1351.719045 | ES27: 1555.138014 | ET27: 2273.206972 | EU27: 882.838323 | EV27: 541.094456 | EW27: 205.4531581 | EX27: 667.2142164 | EY27: 1618.706441 | EZ27: 46.78636274 | FA27: 57.974406 | FB27: 7.628211316 | FC27: 68.14535442 | FD27: 593.9833878 | FE27: 72.21373379 | FF27: 1.525642263 | FG27: 312.2481165 | FH27: 1.017094842 | FI27: 561.9449003 | FJ27: 0 | FK27: 31.02139268 | FL27: 81.87613479 | FM27: 18.30770716 | FN27: 83.40177705 | FO27: 0 | FP27: 14.74787521 | FQ27: 0 | FR27: 0 | FS27: 41.19234111 | FT27: 0 | FU27: 0 | FV27: 54.41457405 | FW27: 7.628211316 | FX27: 47.80345758 | FY27: 0 | FZ27: 0 | GA27: 0 | GB27: 0 | GC27: 409.380674 | GD27: 0 | GE27: 0 | GF27: 0 | GG27: 0 | GH27: 0 | GI27: 0 | GJ27: 0
A28: 1 | D28: =IF(A28>0,VLOOKUP(A28,IDtable,2),"") -> POLES | E28: > 132 KV; WOOD | F28: 9.50423381 | G28: 53.8 | H28: 7.334848328 | I28: 2 | J28: 0 | K28: 0 | L28: 0 | M28: 0 | N28: 0 | O28: 1 | P28: 0 | Q28: 0 | R28: 0 | S28: 0 | T28: 2 | U28: 0 | V28: 0 | W28: 0 | X28: 0 | Y28: 0 | Z28: 0 | AA28: 2 | AB28: 1 | AC28: 0 | AD28: 0 | AE28: 1 | AF28: 0 | AG28: 2 | AH28: 0 | AI28: 1 | AJ28: 1 | AK28: 1 | AL28: 0 | AM28: 1 | AN28: 0 | AO28: 0 | AP28: 0 | AQ28: 0 | AR28: 0 | AS28: 0 | AT28: 0 | AU28: 0 | AV28: 0 | AW28: 1 | AX28: 0 | AY28: 0 | AZ28: 1 | BA28: 0 | BB28: 1 | BC28: 0 | BD28: 0 | BE28: 0 | BF28: 0 | BG28: 1 | BH28: 1 | BI28: 0 | BJ28: 4 | BK28: 0 | BL28: 0 | BM28: 1 | BN28: 0 | BO28: 0 | BP28: 0 | BQ28: 0 | BR28: 0 | BS28: 0 | BT28: 0 | BU28: 0 | BV28: 0 | BW28: 0 | BX28: 0 | BY28: 0 | BZ28: 0 | CA28: 0 | CB28: 0 | CC28: 0 | CD28: 0 | CE28: 0 | CF28: 0 | CG28: 0 | CH28: 0 | CI28: 0 | CJ28: 0 | CK28: 0 | CL28: 0 | CM28: 0 | CN28: 0 | CO28: 0 | CP28: 0 | CQ28: 0 | CR28: 0 | CS28: 0 | CT28: 0 | CU28: 0 | CV28: 0 | CX28: 0 | CY28: 0 | CZ28: 0 | DA28: 0 | DB28: 0 | DC28: 9.50423381 | DD28: 0 | DE28: 0 | DF28: 0 | DG28: 0 | DH28: 19.00846762 | DI28: 0 | DJ28: 0 | DK28: 0 | DL28: 0 | DM28: 0 | DN28: 0 | DO28: 19.00846762 | DP28: 9.50423381 | DQ28: 0 | DR28: 0 | DS28: 9.50423381 | DT28: 0 | DU28: 19.00846762 | DV28: 0 | DW28: 9.50423381 | DX28: 9.50423381 | DY28: 9.50423381 | DZ28: 0 | EA28: 9.50423381 | EB28: 0 | EC28: 0 | ED28: 0 | EE28: 0 | EF28: 0 | EG28: 0 | EH28: 0 | EI28: 0 | EJ28: 0 | EK28: 9.50423381 | EL28: 0 | EM28: 0 | EN28: 9.50423381 | EO28: 0 | EP28: 9.50423381 | EQ28: 0 | ER28: 0 | ES28: 0 | ET28: 0 | EU28: 9.50423381 | EV28: 9.50423381 | EW28: 0 | EX28: 38.01693524 | EY28: 0 | EZ28: 0 | FA28: 9.50423381 | FB28: 0 | FC28: 0 | FD28: 0 | FE28: 0 | FF28: 0 | FG28: 0 | FH28: 0 | FI28: 0 | FJ28: 0 | FK28: 0 | FL28: 0 | FM28: 0 | FN28: 0 | FO28: 0 | FP28: 0 | FQ28: 0 | FR28: 0 | FS28: 0 | FT28: 0 | FU28: 0 | FV28: 0 | FW28: 0 | FX28: 0 | FY28: 0 | FZ28: 0 | GA28: 0 | GB28: 0 | GC28: 0 | GD28: 0 | GE28: 0 | GF28: 0 | GG28: 0 | GH28: 0 | GI28: 0 | GJ28: 0
A29: 1 | D29: POLES | E29: ˂ = 1 KV; CONCRETE | F29: 9.643251227 | G29: 42.98224653 | H29: 6.556084695 | I29: 2 | J29: 176 | K29: 238 | L29: 326 | M29: 267 | N29: 272 | O29: 309 | P29: 290 | Q29: 192 | R29: 285 | S29: 248 | T29: 272 | U29: 360 | V29: 353 | W29: 547 | X29: 175 | Y29: 288 | Z29: 285 | AA29: 423 | AB29: 798 | AC29: 592 | AD29: 601 | AE29: 484 | AF29: 635 | AG29: 488 | AH29: 571 | AI29: 386 | AJ29: 319 | AK29: 368 | AL29: 173 | AM29: 94 | AN29: 72 | AO29: 20 | AP29: 42 | AQ29: 83 | AR29: 20 | AS29: 15 | AT29: 13 | AU29: 5 | AV29: 9 | AW29: 1 | AX29: 15 | AY29: 0 | AZ29: 19 | BA29: 12 | BB29: 5 | BC29: 9 | BD29: 3 | BE29: 32 | BF29: 35 | BG29: 2 | BH29: 2 | BI29: 1 | BJ29: 10 | BK29: 83 | BL29: 0 | BM29: 5 | BN29: 1 | BO29: 4 | BP29: 4 | BQ29: 0 | BR29: 0 | BS29: 5 | BT29: 0 | BU29: 33 | BV29: 0 | BW29: 4 | BX29: 0 | BY29: 0 | BZ29: 0 | CA29: 0 | CB29: 0 | CC29: 0 | CD29: 0 | CE29: 4 | CF29: 0 | CG29: 0 | CH29: 0 | CI29: 0 | CJ29: 0 | CK29: 0 | CL29: 0 | CM29: 0 | CN29: 0 | CO29: 2 | CP29: 0 | CQ29: 0 | CR29: 0 | CS29: 0 | CT29: 0 | CU29: 0 | CV29: 0 | CX29: 1697.212216 | CY29: 2295.093792 | CZ29: 3143.6999 | DA29: 2574.748078 | DB29: 2622.964334 | DC29: 2979.764629 | DD29: 2796.542856 | DE29: 1851.504236 | DF29: 2748.3266 | DG29: 2391.526304 | DH29: 2622.964334 | DI29: 3471.570442 | DJ29: 3404.067683 | DK29: 5274.858421 | DL29: 1687.568965 | DM29: 2777.256353 | DN29: 2748.3266 | DO29: 4079.095269 | DP29: 7695.314479 | DQ29: 5708.804726 | DR29: 5795.593988 | DS29: 4667.333594 | DT29: 6123.464529 | DU29: 4705.906599 | DV29: 5506.296451 | DW29: 3722.294974 | DX29: 3076.197141 | DY29: 3548.716452 | DZ29: 1668.282462 | EA29: 906.4656154 | EB29: 694.3140884 | EC29: 192.8650245 | ED29: 405.0165515 | EE29: 800.3898519 | EF29: 192.8650245 | EG29: 144.6487684 | EH29: 125.362266 | EI29: 48.21625614 | EJ29: 86.78926104 | EK29: 9.643251227 | EL29: 144.6487684 | EM29: 0 | EN29: 183.2217733 | EO29: 115.7190147 | EP29: 48.21625614 | EQ29: 86.78926104 | ER29: 28.92975368 | ES29: 308.5840393 | ET29: 337.513793 | EU29: 19.28650245 | EV29: 19.28650245 | EW29: 9.643251227 | EX29: 96.43251227 | EY29: 800.3898519 | EZ29: 0 | FA29: 48.21625614 | FB29: 9.643251227 | FC29: 38.57300491 | FD29: 38.57300491 | FE29: 0 | FF29: 0 | FG29: 48.21625614 | FH29: 0 | FI29: 318.2272905 | FJ29: 0 | FK29: 38.57300491 | FL29: 0 | FM29: 0 | FN29: 0 | FO29: 0 | FP29: 0 | FQ29: 0 | FR29: 0 | FS29: 38.57300491 | FT29: 0 | FU29: 0 | FV29: 0 | FW29: 0 | FX29: 0 | FY29: 0 | FZ29: 0 | GA29: 0 | GB29: 0 | GC29: 19.28650245 | GD29: 0 | GE29: 0 | GF29: 0 | GG29: 0 | GH29: 0 | GI29: 0 | GJ29: 0
A30: 1 | D30: POLES | E30: > 1 KV & < = 11 KV; CONCRETE | F30: 11.4509847 | G30: 45.29859293 | H30: 6.730422939 | I30: 2 | J30: 218 | K30: 463 | L30: 397 | M30: 320 | N30: 378 | O30: 518 | P30: 558 | Q30: 552 | R30: 691 | S30: 552 | T30: 603 | U30: 739 | V30: 732 | W30: 823 | X30: 424 | Y30: 456 | Z30: 521 | AA30: 701 | AB30: 1088 | AC30: 1243 | AD30: 1152 | AE30: 845 | AF30: 1673 | AG30: 1072 | AH30: 986 | AI30: 1377 | AJ30: 1465 | AK30: 754 | AL30: 412 | AM30: 186 | AN30: 211 | AO30: 81 | AP30: 22 | AQ30: 76 | AR30: 8 | AS30: 5 | AT30: 5 | AU30: 3 | AV30: 3 | AW30: 3 | AX30: 2 | AY30: 1 | AZ30: 2 | BA30: 3 | BB30: 3 | BC30: 3 | BD30: 8 | BE30: 26 | BF30: 5 | BG30: 1 | BH30: 0 | BI30: 5 | BJ30: 79 | BK30: 14 | BL30: 2 | BM30: 0 | BN30: 3 | BO30: 0 | BP30: 0 | BQ30: 0 | BR30: 1 | BS30: 23 | BT30: 1 | BU30: 39 | BV30: 0 | BW30: 0 | BX30: 0 | BY30: 0 | BZ30: 0 | CA30: 0 | CB30: 0 | CC30: 0 | CD30: 0 | CE30: 8 | CF30: 0 | CG30: 0 | CH30: 0 | CI30: 0 | CJ30: 0 | CK30: 0 | CL30: 0 | CM30: 0 | CN30: 0 | CO30: 4 | CP30: 0 | CQ30: 0 | CR30: 0 | CS30: 0 | CT30: 0 | CU30: 0 | CV30: 0 | CX30: 2496.314664 | CY30: 5301.805915 | CZ30: 4546.040925 | DA30: 3664.315103 | DB30: 4328.472215 | DC30: 5931.610073 | DD30: 6389.649461 | DE30: 6320.943553 | DF30: 7912.630425 | DG30: 6320.943553 | DH30: 6904.943772 | DI30: 8462.277691 | DJ30: 8382.120798 | DK30: 9424.160405 | DL30: 4855.217511 | DM30: 5221.649022 | DN30: 5965.963027 | DO30: 8027.140272 | DP30: 12458.67135 | DQ30: 14233.57398 | DR30: 13191.53437 | DS30: 9676.082069 | DT30: 19157.4974 | DU30: 12275.45559 | DV30: 11290.67091 | DW30: 15768.00593 | DX30: 16775.69258 | DY30: 8634.042461 | DZ30: 4717.805695 | EA30: 2129.883154 | EB30: 2416.157771 | EC30: 927.5297604 | ED30: 251.9216633 | EE30: 870.274837 | EF30: 91.60787757 | EG30: 57.25492348 | EH30: 57.25492348 | EI30: 34.35295409 | EJ30: 34.35295409 | EK30: 34.35295409 | EL30: 22.90196939 | EM30: 11.4509847 | EN30: 22.90196939 | EO30: 34.35295409 | EP30: 34.35295409 | EQ30: 34.35295409 | ER30: 91.60787757 | ES30: 297.7256021 | ET30: 57.25492348 | EU30: 11.4509847 | EV30: 0 | EW30: 57.25492348 | EX30: 904.627791 | EY30: 160.3137858 | EZ30: 22.90196939 | FA30: 0 | FB30: 34.35295409 | FC30: 0 | FD30: 0 | FE30: 0 | FF30: 11.4509847 | FG30: 263.372648 | FH30: 11.4509847 | FI30: 446.5884032 | FJ30: 0 | FK30: 0 | FL30: 0 | FM30: 0 | FN30: 0 | FO30: 0 | FP30: 0 | FQ30: 0 | FR30: 0 | FS30: 91.60787757 | FT30: 0 | FU30: 0 | FV30: 0 | FW30: 0 | FX30: 0 | FY30: 0 | FZ30: 0 | GA30: 0 | GB30: 0 | GC30: 45.80393879 | GD30: 0 | GE30: 0 | GF30: 0 | GG30: 0 | GH30: 0 | GI30: 0 | GJ30: 0
A31: 1 | D31: POLES | E31: ˃ 11 KV & < = 22 KV; CONCRETE | F31: 12.04637442 | G31: 43.4453513 | H31: 6.59130877 | I31: 2 | J31: 217 | K31: 483 | L31: 694 | M31: 512 | N31: 603 | O31: 648 | P31: 890 | Q31: 1247 | R31: 955 | S31: 875 | T31: 742 | U31: 1080 | V31: 1212 | W31: 1005 | X31: 475 | Y31: 658 | Z31: 786 | AA31: 905 | AB31: 3580 | AC31: 5019 | AD31: 1996 | AE31: 2352 | AF31: 403 | AG31: 743 | AH31: 3277 | AI31: 3904 | AJ31: 2714 | AK31: 2379 | AL31: 1920 | AM31: 1639 | AN31: 440 | AO31: 543 | AP31: 86 | AQ31: 249 | AR31: 15 | AS31: 12 | AT31: 22 | AU31: 6 | AV31: 9 | AW31: 10 | AX31: 9 | AY31: 9 | AZ31: 15 | BA31: 19 | BB31: 14 | BC31: 40 | BD31: 7 | BE31: 25 | BF31: 158 | BG31: 7 | BH31: 2 | BI31: 1 | BJ31: 3 | BK31: 45 | BL31: 19 | BM31: 25 | BN31: 0 | BO31: 0 | BP31: 4 | BQ31: 0 | BR31: 0 | BS31: 1 | BT31: 0 | BU31: 12 | BV31: 1 | BW31: 0 | BX31: 0 | BY31: 0 | BZ31: 0 | CA31: 0 | CB31: 0 | CC31: 0 | CD31: 0 | CE31: 35 | CF31: 0 | CG31: 0 | CH31: 0 | CI31: 0 | CJ31: 0 | CK31: 0 | CL31: 0 | CM31: 0 | CN31: 0 | CO31: 1 | CP31: 0 | CQ31: 0 | CR31: 0 | CS31: 0 | CT31: 0 | CU31: 0 | CV31: 0 | CX31: 2614.063249 | CY31: 5818.398844 | CZ31: 8360.183846 | DA31: 6167.743702 | DB31: 7263.963774 | DC31: 7806.050623 | DD31: 10721.27323 | DE31: 15021.8289 | DF31: 11504.28757 | DG31: 10540.57762 | DH31: 8938.409818 | DI31: 13010.08437 | DJ31: 14600.20579 | DK31: 12106.60629 | DL31: 5722.027849 | DM31: 7926.514367 | DN31: 9468.450293 | DO31: 10901.96885 | DP31: 43126.02042 | DQ31: 60460.7532 | DR31: 24044.56334 | DS31: 28333.07263 | DT31: 4854.688891 | DU31: 8950.456193 | DV31: 39475.96897 | DW31: 47029.04573 | DX31: 32693.86017 | DY31: 28658.32474 | DZ31: 23129.03888 | EA31: 19744.00767 | EB31: 5300.404744 | EC31: 6541.181309 | ED31: 1035.9882 | EE31: 2999.54723 | EF31: 180.6956163 | EG31: 144.556493 | EH31: 265.0202372 | EI31: 72.27824651 | EJ31: 108.4173698 | EK31: 120.4637442 | EL31: 108.4173698 | EM31: 108.4173698 | EN31: 180.6956163 | EO31: 228.8811139 | EP31: 168.6492419 | EQ31: 481.8549767 | ER31: 84.32462093 | ES31: 301.1593605 | ET31: 1903.327158 | EU31: 84.32462093 | EV31: 24.09274884 | EW31: 12.04637442 | EX31: 36.13912325 | EY31: 542.0868488 | EZ31: 228.8811139 | FA31: 301.1593605 | FB31: 0 | FC31: 0 | FD31: 48.18549767 | FE31: 0 | FF31: 0 | FG31: 12.04637442 | FH31: 0 | FI31: 144.556493 | FJ31: 12.04637442 | FK31: 0 | FL31: 0 | FM31: 0 | FN31: 0 | FO31: 0 | FP31: 0 | FQ31: 0 | FR31: 0 | FS31: 421.6231046 | FT31: 0 | FU31: 0 | FV31: 0 | FW31: 0 | FX31: 0 | FY31: 0 | FZ31: 0 | GA31: 0 | GB31: 0 | GC31: 12.04637442 | GD31: 0 | GE31: 0 | GF31: 0 | GG31: 0 | GH31: 0 | GI31: 0 | GJ31: 0
A32: 1 | D32: POLES | E32: > 22 KV & < = 66 KV; CONCRETE | F32: 20.18874088 | G32: 39.98179659 | H32: 6.323116051 | I32: 2 | J32: 123 | K32: 124 | L32: 190 | M32: 325 | N32: 283 | O32: 271 | P32: 187 | Q32: 238 | R32: 222 | S32: 131 | T32: 132 | U32: 213 | V32: 381 | W32: 548 | X32: 138 | Y32: 182 | Z32: 117 | AA32: 73 | AB32: 637 | AC32: 1291 | AD32: 793 | AE32: 579 | AF32: 367 | AG32: 293 | AH32: 239 | AI32: 140 | AJ32: 614 | AK32: 148 | AL32: 204 | AM32: 151 | AN32: 3 | AO32: 672 | AP32: 9 | AQ32: 2 | AR32: 0 | AS32: 2 | AT32: 0 | AU32: 9 | AV32: 1 | AW32: 1 | AX32: 0 | AY32: 0 | AZ32: 2 | BA32: 3 | BB32: 0 | BC32: 5 | BD32: 10 | BE32: 8 | BF32: 2 | BG32: 0 | BH32: 1 | BI32: 0 | BJ32: 1 | BK32: 0 | BL32: 1 | BM32: 0 | BN32: 0 | BO32: 2 | BP32: 0 | BQ32: 0 | BR32: 0 | BS32: 0 | BT32: 0 | BU32: 0 | BV32: 0 | BW32: 0 | BX32: 0 | BY32: 0 | BZ32: 0 | CA32: 0 | CB32: 0 | CC32: 0 | CD32: 0 | CE32: 0 | CF32: 0 | CG32: 0 | CH32: 0 | CI32: 0 | CJ32: 0 | CK32: 0 | CL32: 0 | CM32: 0 | CN32: 0 | CO32: 0 | CP32: 0 | CQ32: 0 | CR32: 0 | CS32: 0 | CT32: 0 | CU32: 0 | CV32: 0 | CX32: 2483.215128 | CY32: 2503.403869 | CZ32: 3835.860767 | DA32: 6561.340786 | DB32: 5713.413669 | DC32: 5471.148779 | DD32: 3775.294545 | DE32: 4804.92033 | DF32: 4481.900476 | DG32: 2644.725055 | DH32: 2664.913796 | DI32: 4300.201808 | DJ32: 7691.910276 | DK32: 11063.43 | DL32: 2786.046242 | DM32: 3674.35084 | DN32: 2362.082683 | DO32: 1473.778084 | DP32: 12860.22794 | DQ32: 26063.66448 | DR32: 16009.67152 | DS32: 11689.28097 | DT32: 7409.267904 | DU32: 5915.301078 | DV32: 4825.109071 | DW32: 2826.423723 | DX32: 12395.8869 | DY32: 2987.93365 | DZ32: 4118.50314 | EA32: 3048.499873 | EB32: 60.56622264 | EC32: 13566.83387 | ED32: 181.6986679 | EE32: 40.37748176 | EF32: 0 | EG32: 40.37748176 | EH32: 0 | EI32: 181.6986679 | EJ32: 20.18874088 | EK32: 20.18874088 | EL32: 0 | EM32: 0 | EN32: 40.37748176 | EO32: 60.56622264 | EP32: 0 | EQ32: 100.9437044 | ER32: 201.8874088 | ES32: 161.5099271 | ET32: 40.37748176 | EU32: 0 | EV32: 20.18874088 | EW32: 0 | EX32: 20.18874088 | EY32: 0 | EZ32: 20.18874088 | FA32: 0 | FB32: 0 | FC32: 40.37748176 | FD32: 0 | FE32: 0 | FF32: 0 | FG32: 0 | FH32: 0 | FI32: 0 | FJ32: 0 | FK32: 0 | FL32: 0 | FM32: 0 | FN32: 0 | FO32: 0 | FP32: 0 | FQ32: 0 | FR32: 0 | FS32: 0 | FT32: 0 | FU32: 0 | FV32: 0 | FW32: 0 | FX32: 0 | FY32: 0 | FZ32: 0 | GA32: 0 | GB32: 0 | GC32: 0 | GD32: 0 | GE32: 0 | GF32: 0 | GG32: 0 | GH32: 0 | GI32: 0 | GJ32: 0
A33: 1 | D33: POLES | E33: > 66 KV & < = 132 KV; CONCRETE | F33: 14.41742799 | G33: 38.67900718 | H33: 6.219244905 | I33: 2 | J33: 411 | K33: 176 | L33: 608 | M33: 55 | N33: 148 | O33: 103 | P33: 99 | Q33: 212 | R33: 615 | S33: 786 | T33: 47 | U33: 91 | V33: 71 | W33: 80 | X33: 5 | Y33: 44 | Z33: 379 | AA33: 102 | AB33: 77 | AC33: 95 | AD33: 442 | AE33: 217 | AF33: 1418 | AG33: 177 | AH33: 265 | AI33: 1459 | AJ33: 633 | AK33: 166 | AL33: 1222 | AM33: 360 | AN33: 86 | AO33: 518 | AP33: 123 | AQ33: 7 | AR33: 1 | AS33: 3 | AT33: 1 | AU33: 0 | AV33: 0 | AW33: 1 | AX33: 5 | AY33: 0 | AZ33: 0 | BA33: 2 | BB33: 1 | BC33: 1 | BD33: 2 | BE33: 9 | BF33: 8 | BG33: 3 | BH33: 1 | BI33: 0 | BJ33: 1 | BK33: 0 | BL33: 0 | BM33: 0 | BN33: 0 | BO33: 0 | BP33: 0 | BQ33: 0 | BR33: 0 | BS33: 0 | BT33: 0 | BU33: 1 | BV33: 0 | BW33: 0 | BX33: 0 | BY33: 0 | BZ33: 0 | CA33: 0 | CB33: 0 | CC33: 0 | CD33: 0 | CE33: 5 | CF33: 0 | CG33: 0 | CH33: 0 | CI33: 0 | CJ33: 0 | CK33: 0 | CL33: 0 | CM33: 0 | CN33: 0 | CO33: 0 | CP33: 0 | CQ33: 0 | CR33: 0 | CS33: 0 | CT33: 0 | CU33: 0 | CV33: 0 | CX33: 5925.562905 | CY33: 2537.467327 | CZ33: 8765.796219 | DA33: 792.9585396 | DB33: 2133.779343 | DC33: 1484.995083 | DD33: 1427.325371 | DE33: 3056.494734 | DF33: 8866.718215 | DG33: 11332.0984 | DH33: 677.6191156 | DI33: 1311.985947 | DJ33: 1023.637387 | DK33: 1153.394239 | DL33: 72.08713996 | DM33: 634.3668317 | DN33: 5464.205209 | DO33: 1470.577655 | DP33: 1110.141955 | DQ33: 1369.655659 | DR33: 6372.503173 | DS33: 3128.581874 | DT33: 20443.91289 | DU33: 2551.884755 | DV33: 3820.618418 | DW33: 21035.02744 | DX33: 9126.231919 | DY33: 2393.293047 | DZ33: 17618.09701 | EA33: 5190.274077 | EB33: 1239.898807 | EC33: 7468.2277 | ED33: 1773.343643 | EE33: 100.9219959 | EF33: 14.41742799 | EG33: 43.25228398 | EH33: 14.41742799 | EI33: 0 | EJ33: 0 | EK33: 14.41742799 | EL33: 72.08713996 | EM33: 0 | EN33: 0 | EO33: 28.83485598 | EP33: 14.41742799 | EQ33: 14.41742799 | ER33: 28.83485598 | ES33: 129.7568519 | ET33: 115.3394239 | EU33: 43.25228398 | EV33: 14.41742799 | EW33: 0 | EX33: 14.41742799 | EY33: 0 | EZ33: 0 | FA33: 0 | FB33: 0 | FC33: 0 | FD33: 0 | FE33: 0 | FF33: 0 | FG33: 0 | FH33: 0 | FI33: 14.41742799 | FJ33: 0 | FK33: 0 | FL33: 0 | FM33: 0 | FN33: 0 | FO33: 0 | FP33: 0 | FQ33: 0 | FR33: 0 | FS33: 72.08713996 | FT33: 0 | FU33: 0 | FV33: 0 | FW33: 0 | FX33: 0 | FY33: 0 | FZ33: 0 | GA33: 0 | GB33: 0 | GC33: 0 | GD33: 0 | GE33: 0 | GF33: 0 | GG33: 0 | GH33: 0 | GI33: 0 | GJ33: 0
E34: > 132 KV; CONCRETE | F34: 0 | G34: 0 | H34: 0 | I34: 2 | J34: 0 | K34: 0 | L34: 0 | M34: 0 | N34: 0 | O34: 0 | P34: 0 | Q34: 0 | R34: 0 | S34: 0 | T34: 0 | U34: 0 | V34: 0 | W34: 0 | X34: 0 | Y34: 0 | Z34: 0 | AA34: 0 | AB34: 0 | AC34: 0 | AD34: 0 | AE34: 0 | AF34: 0 | AG34: 0 | AH34: 0 | AI34: 0 | AJ34: 0 | AK34: 0 | AL34: 0 | AM34: 0 | AN34: 0 | AO34: 0 | AP34: 0 | AQ34: 0 | AR34: 0 | AS34: 0 | AT34: 0 | AU34: 0 | AV34: 0 | AW34: 0 | AX34: 0 | AY34: 0 | AZ34: 0 | BA34: 0 | BB34: 0 | BC34: 0 | BD34: 0 | BE34: 0 | BF34: 0 | BG34: 0 | BH34: 0 | BI34: 0 | BJ34: 0 | BK34: 0 | BL34: 0 | BM34: 0 | BN34: 0 | BO34: 0 | BP34: 0 | BQ34: 0 | BR34: 0 | BS34: 0 | BT34: 0 | BU34: 0 | BV34: 0 | BW34: 0 | BX34: 0 | BY34: 0 | BZ34: 0 | CA34: 0 | CB34: 0 | CC34: 0 | CD34: 0 | CE34: 0 | CF34: 0 | CG34: 0 | CH34: 0 | CI34: 0 | CJ34: 0 | CK34: 0 | CL34: 0 | CM34: 0 | CN34: 0 | CO34: 0 | CP34: 0 | CQ34: 0 | CR34: 0 | CS34: 0 | CT34: 0 | CU34: 0 | CV34: 0 | CX34: 0 | CY34: 0 | CZ34: 0 | DA34: 0 | DB34: 0 | DC34: 0 | DD34: 0 | DE34: 0 | DF34: 0 | DG34: 0 | DH34: 0 | DI34: 0 | DJ34: 0 | DK34: 0 | DL34: 0 | DM34: 0 | DN34: 0 | DO34: 0 | DP34: 0 | DQ34: 0 | DR34: 0 | DS34: 0 | DT34: 0 | DU34: 0 | DV34: 0 | DW34: 0 | DX34: 0 | DY34: 0 | DZ34: 0 | EA34: 0 | EB34: 0 | EC34: 0 | ED34: 0 | EE34: 0 | EF34: 0 | EG34: 0 | EH34: 0 | EI34: 0 | EJ34: 0 | EK34: 0 | EL34: 0 | EM34: 0 | EN34: 0 | EO34: 0 | EP34: 0 | EQ34: 0 | ER34: 0 | ES34: 0 | ET34: 0 | EU34: 0 | EV34: 0 | EW34: 0 | EX34: 0 | EY34: 0 | EZ34: 0 | FA34: 0 | FB34: 0 | FC34: 0 | FD34: 0 | FE34: 0 | FF34: 0 | FG34: 0 | FH34: 0 | FI34: 0 | FJ34: 0 | FK34: 0 | FL34: 0 | FM34: 0 | FN34: 0 | FO34: 0 | FP34: 0 | FQ34: 0 | FR34: 0 | FS34: 0 | FT34: 0 | FU34: 0 | FV34: 0 | FW34: 0 | FX34: 0 | FY34: 0 | FZ34: 0 | GA34: 0 | GB34: 0 | GC34: 0 | GD34: 0 | GE34: 0 | GF34: 0 | GG34: 0 | GH34: 0 | GI34: 0 | GJ34: 0
A35: 1 | D35: POLES | E35: ˂ = 1 KV; STEEL | F35: 8.35319239 | G35: 72.04154775 | H35: 8.487729246 | I35: 2 | J35: 479 | K35: 91 | L35: 298 | M35: 404 | N35: 408 | O35: 694 | P35: 166 | Q35: 233 | R35: 210 | S35: 350 | T35: 251 | U35: 399 | V35: 308 | W35: 1533 | X35: 503 | Y35: 150 | Z35: 97 | AA35: 181 | AB35: 468 | AC35: 115 | AD35: 207 | AE35: 218 | AF35: 153 | AG35: 730 | AH35: 145 | AI35: 128 | AJ35: 64 | AK35: 44 | AL35: 217 | AM35: 84 | AN35: 34 | AO35: 49 | AP35: 57 | AQ35: 1266 | AR35: 30 | AS35: 26 | AT35: 145 | AU35: 28 | AV35: 116 | AW35: 48 | AX35: 28 | AY35: 18 | AZ35: 21 | BA35: 390 | BB35: 50 | BC35: 28 | BD35: 31 | BE35: 334 | BF35: 252 | BG35: 49 | BH35: 51 | BI35: 8 | BJ35: 33 | BK35: 269 | BL35: 17 | BM35: 22 | BN35: 40 | BO35: 19 | BP35: 60 | BQ35: 0 | BR35: 61 | BS35: 33 | BT35: 0 | BU35: 340 | BV35: 1 | BW35: 6 | BX35: 13 | BY35: 7 | BZ35: 0 | CA35: 0 | CB35: 0 | CC35: 0 | CD35: 0 | CE35: 482 | CF35: 0 | CG35: 0 | CH35: 0 | CI35: 0 | CJ35: 0 | CK35: 0 | CL35: 0 | CM35: 0 | CN35: 0 | CO35: 10 | CP35: 0 | CQ35: 0 | CR35: 0 | CS35: 0 | CT35: 1 | CU35: 0 | CV35: 1 | CX35: 4001.179155 | CY35: 760.1405075 | CZ35: 2489.251332 | DA35: 3374.689726 | DB35: 3408.102495 | DC35: 5797.115519 | DD35: 1386.629937 | DE35: 1946.293827 | DF35: 1754.170402 | DG35: 2923.617337 | DH35: 2096.65129 | DI35: 3332.923764 | DJ35: 2572.783256 | DK35: 12805.44393 | DL35: 4201.655772 | DM35: 1252.978859 | DN35: 810.2596619 | DO35: 1511.927823 | DP35: 3909.294039 | DQ35: 960.6171249 | DR35: 1729.110825 | DS35: 1820.995941 | DT35: 1278.038436 | DU35: 6097.830445 | DV35: 1211.212897 | DW35: 1069.208626 | DX35: 534.604313 | DY35: 367.5404652 | DZ35: 1812.642749 | EA35: 701.6681608 | EB35: 284.0085413 | EC35: 409.3064271 | ED35: 476.1319662 | EE35: 10575.14157 | EF35: 250.5957717 | EG35: 217.1830021 | EH35: 1211.212897 | EI35: 233.8893869 | EJ35: 968.9703173 | EK35: 400.9532347 | EL35: 233.8893869 | EM35: 150.357463 | EN35: 175.4170402 | EO35: 3257.745032 | EP35: 417.6596195 | EQ35: 233.8893869 | ER35: 258.9489641 | ES35: 2789.966258 | ET35: 2105.004482 | EU35: 409.3064271 | EV35: 426.0128119 | EW35: 66.82553912 | EX35: 275.6553489 | EY35: 2247.008753 | EZ35: 142.0042706 | FA35: 183.7702326 | FB35: 334.1276956 | FC35: 158.7106554 | FD35: 501.1915434 | FE35: 0 | FF35: 509.5447358 | FG35: 275.6553489 | FH35: 0 | FI35: 2840.085413 | FJ35: 8.35319239 | FK35: 50.11915434 | FL35: 108.5915011 | FM35: 58.47234673 | FN35: 0 | FO35: 0 | FP35: 0 | FQ35: 0 | FR35: 0 | FS35: 4026.238732 | FT35: 0 | FU35: 0 | FV35: 0 | FW35: 0 | FX35: 0 | FY35: 0 | FZ35: 0 | GA35: 0 | GB35: 0 | GC35: 83.5319239 | GD35: 0 | GE35: 0 | GF35: 0 | GG35: 0 | GH35: 8.35319239 | GI35: 0 | GJ35: 8.35319239
A36: 1 | D36: POLES | E36: > 1 KV & < = 11 KV; STEEL | F36: 8.502050356 | G36: 29.86838242 | H36: 5.465197381 | I36: 2 | J36: 761 | K36: 1382 | L36: 936 | M36: 633 | N36: 1022 | O36: 544 | P36: 273 | Q36: 51 | R36: 8 | S36: 14 | T36: 6 | U36: 0 | V36: 5 | W36: 22 | X36: 9 | Y36: 9 | Z36: 13 | AA36: 3 | AB36: 1 | AC36: 2 | AD36: 3 | AE36: 1 | AF36: 0 | AG36: 15 | AH36: 3 | AI36: 4 | AJ36: 4 | AK36: 2 | AL36: 3 | AM36: 1 | AN36: 2 | AO36: 1 | AP36: 0 | AQ36: 12 | AR36: 0 | AS36: 0 | AT36: 15 | AU36: 2 | AV36: 4 | AW36: 0 | AX36: 1 | AY36: 1 | AZ36: 3 | BA36: 9 | BB36: 1 | BC36: 1 | BD36: 1 | BE36: 59 | BF36: 5 | BG36: 0 | BH36: 0 | BI36: 19 | BJ36: 4 | BK36: 13 | BL36: 0 | BM36: 10 | BN36: 0 | BO36: 1 | BP36: 8 | BQ36: 0 | BR36: 0 | BS36: 3 | BT36: 0 | BU36: 8 | BV36: 0 | BW36: 0 | BX36: 0 | BY36: 0 | BZ36: 0 | CA36: 0 | CB36: 0 | CC36: 0 | CD36: 0 | CE36: 0 | CF36: 0 | CG36: 0 | CH36: 0 | CI36: 0 | CJ36: 0 | CK36: 0 | CL36: 0 | CM36: 0 | CN36: 0 | CO36: 0 | CP36: 0 | CQ36: 0 | CR36: 0 | CS36: 0 | CT36: 0 | CU36: 0 | CV36: 0 | CX36: 6470.060321 | CY36: 11749.83359 | CZ36: 7957.919133 | DA36: 5381.797876 | DB36: 8689.095464 | DC36: 4625.115394 | DD36: 2321.059747 | DE36: 433.6045682 | DF36: 68.01640285 | DG36: 119.028705 | DH36: 51.01230214 | DI36: 0 | DJ36: 42.51025178 | DK36: 187.0451078 | DL36: 76.51845321 | DM36: 76.51845321 | DN36: 110.5266546 | DO36: 25.50615107 | DP36: 8.502050356 | DQ36: 17.00410071 | DR36: 25.50615107 | DS36: 8.502050356 | DT36: 0 | DU36: 127.5307553 | DV36: 25.50615107 | DW36: 34.00820143 | DX36: 34.00820143 | DY36: 17.00410071 | DZ36: 25.50615107 | EA36: 8.502050356 | EB36: 17.00410071 | EC36: 8.502050356 | ED36: 0 | EE36: 102.0246043 | EF36: 0 | EG36: 0 | EH36: 127.5307553 | EI36: 17.00410071 | EJ36: 34.00820143 | EK36: 0 | EL36: 8.502050356 | EM36: 8.502050356 | EN36: 25.50615107 | EO36: 76.51845321 | EP36: 8.502050356 | EQ36: 8.502050356 | ER36: 8.502050356 | ES36: 501.620971 | ET36: 42.51025178 | EU36: 0 | EV36: 0 | EW36: 161.5389568 | EX36: 34.00820143 | EY36: 110.5266546 | EZ36: 0 | FA36: 85.02050356 | FB36: 0 | FC36: 8.502050356 | FD36: 68.01640285 | FE36: 0 | FF36: 0 | FG36: 25.50615107 | FH36: 0 | FI36: 68.01640285 | FJ36: 0 | FK36: 0 | FL36: 0 | FM36: 0 | FN36: 0 | FO36: 0 | FP36: 0 | FQ36: 0 | FR36: 0 | FS36: 0 | FT36: 0 | FU36: 0 | FV36: 0 | FW36: 0 | FX36: 0 | FY36: 0 | FZ36: 0 | GA36: 0 | GB36: 0 | GC36: 0 | GD36: 0 | GE36: 0 | GF36: 0 | GG36: 0 | GH36: 0 | GI36: 0 | GJ36: 0
A37: 1 | D37: POLES | E37: ˃ 11 KV & < = 22 KV; STEEL | F37: 9.224428936 | G37: 9.092886853 | H37: 3.015441403 | I37: 2 | J37: 1584 | K37: 2206 | L37: 1711 | M37: 785 | N37: 1134 | O37: 775 | P37: 449 | Q37: 220 | R37: 5 | S37: 1 | T37: 2 | U37: 3 | V37: 3 | W37: 24 | X37: 0 | Y37: 1 | Z37: 0 | AA37: 1 | AB37: 3 | AC37: 3 | AD37: 3 | AE37: 1 | AF37: 1 | AG37: 10 | AH37: 0 | AI37: 3 | AJ37: 8 | AK37: 2 | AL37: 2 | AM37: 2 | AN37: 1 | AO37: 8 | AP37: 9 | AQ37: 48 | AR37: 1 | AS37: 3 | AT37: 4 | AU37: 2 | AV37: 12 | AW37: 3 | AX37: 1 | AY37: 0 | AZ37: 0 | BA37: 6 | BB37: 4 | BC37: 7 | BD37: 43 | BE37: 3 | BF37: 16 | BG37: 5 | BH37: 0 | BI37: 4 | BJ37: 5 | BK37: 23 | BL37: 3 | BM37: 5 | BN37: 0 | BO37: 1 | BP37: 1 | BQ37: 0 | BR37: 0 | BS37: 0 | BT37: 0 | BU37: 1 | BV37: 0 | BW37: 0 | BX37: 0 | BY37: 0 | BZ37: 0 | CA37: 0 | CB37: 0 | CC37: 0 | CD37: 0 | CE37: 10 | CF37: 0 | CG37: 0 | CH37: 0 | CI37: 0 | CJ37: 0 | CK37: 0 | CL37: 0 | CM37: 0 | CN37: 0 | CO37: 0 | CP37: 0 | CQ37: 0 | CR37: 0 | CS37: 0 | CT37: 0 | CU37: 0 | CV37: 0 | CX37: 14611.49543 | CY37: 20349.09023 | CZ37: 15782.99791 | DA37: 7241.176715 | DB37: 10460.50241 | DC37: 7148.932425 | DD37: 4141.768592 | DE37: 2029.374366 | DF37: 46.12214468 | DG37: 9.224428936 | DH37: 18.44885787 | DI37: 27.67328681 | DJ37: 27.67328681 | DK37: 221.3862945 | DL37: 0 | DM37: 9.224428936 | DN37: 0 | DO37: 9.224428936 | DP37: 27.67328681 | DQ37: 27.67328681 | DR37: 27.67328681 | DS37: 9.224428936 | DT37: 9.224428936 | DU37: 92.24428936 | DV37: 0 | DW37: 27.67328681 | DX37: 73.79543149 | DY37: 18.44885787 | DZ37: 18.44885787 | EA37: 18.44885787 | EB37: 9.224428936 | EC37: 73.79543149 | ED37: 83.01986042 | EE37: 442.7725889 | EF37: 9.224428936 | EG37: 27.67328681 | EH37: 36.89771574 | EI37: 18.44885787 | EJ37: 110.6931472 | EK37: 27.67328681 | EL37: 9.224428936 | EM37: 0 | EN37: 0 | EO37: 55.34657362 | EP37: 36.89771574 | EQ37: 64.57100255 | ER37: 396.6504442 | ES37: 27.67328681 | ET37: 147.590863 | EU37: 46.12214468 | EV37: 0 | EW37: 36.89771574 | EX37: 46.12214468 | EY37: 212.1618655 | EZ37: 27.67328681 | FA37: 46.12214468 | FB37: 0 | FC37: 9.224428936 | FD37: 9.224428936 | FE37: 0 | FF37: 0 | FG37: 0 | FH37: 0 | FI37: 9.224428936 | FJ37: 0 | FK37: 0 | FL37: 0 | FM37: 0 | FN37: 0 | FO37: 0 | FP37: 0 | FQ37: 0 | FR37: 0 | FS37: 92.24428936 | FT37: 0 | FU37: 0 | FV37: 0 | FW37: 0 | FX37: 0 | FY37: 0 | FZ37: 0 | GA37: 0 | GB37: 0 | GC37: 0 | GD37: 0 | GE37: 0 | GF37: 0 | GG37: 0 | GH37: 0 | GI37: 0 | GJ37: 0
A38: 1 | D38: POLES | E38: > 22 KV & < = 66 KV; STEEL | F38: 19.83449594 | G38: 9.162386895 | H38: 3.026943491 | I38: 2 | J38: 106 | K38: 84 | L38: 266 | M38: 64 | N38: 30 | O38: 34 | P38: 272 | Q38: 86 | R38: 9 | S38: 1 | T38: 1 | U38: 0 | V38: 0 | W38: 23 | X38: 2 | Y38: 1 | Z38: 1 | AA38: 0 | AB38: 7 | AC38: 1 | AD38: 10 | AE38: 0 | AF38: 0 | AG38: 1 | AH38: 0 | AI38: 0 | AJ38: 0 | AK38: 0 | AL38: 0 | AM38: 0 | AN38: 0 | AO38: 0 | AP38: 0 | AQ38: 0 | AR38: 0 | AS38: 0 | AT38: 0 | AU38: 0 | AV38: 0 | AW38: 1 | AX38: 0 | AY38: 0 | AZ38: 0 | BA38: 2 | BB38: 0 | BC38: 2 | BD38: 0 | BE38: 0 | BF38: 0 | BG38: 0 | BH38: 0 | BI38: 0 | BJ38: 0 | BK38: 0 | BL38: 2 | BM38: 0 | BN38: 0 | BO38: 0 | BP38: 1 | BQ38: 0 | BR38: 0 | BS38: 0 | BT38: 0 | BU38: 0 | BV38: 0 | BW38: 0 | BX38: 0 | BY38: 0 | BZ38: 0 | CA38: 0 | CB38: 0 | CC38: 0 | CD38: 0 | CE38: 0 | CF38: 0 | CG38: 0 | CH38: 4 | CI38: 0 | CJ38: 0 | CK38: 0 | CL38: 0 | CM38: 0 | CN38: 0 | CO38: 0 | CP38: 0 | CQ38: 0 | CR38: 0 | CS38: 0 | CT38: 0 | CU38: 0 | CV38: 0 | CX38: 2102.45657 | CY38: 1666.097659 | CZ38: 5275.975921 | DA38: 1269.40774 | DB38: 595.0348783 | DC38: 674.3728621 | DD38: 5394.982897 | DE38: 1705.766651 | DF38: 178.5104635 | DG38: 19.83449594 | DH38: 19.83449594 | DI38: 0 | DJ38: 0 | DK38: 456.1934067 | DL38: 39.66899189 | DM38: 19.83449594 | DN38: 19.83449594 | DO38: 0 | DP38: 138.8414716 | DQ38: 19.83449594 | DR38: 198.3449594 | DS38: 0 | DT38: 0 | DU38: 19.83449594 | DV38: 0 | DW38: 0 | DX38: 0 | DY38: 0 | DZ38: 0 | EA38: 0 | EB38: 0 | EC38: 0 | ED38: 0 | EE38: 0 | EF38: 0 | EG38: 0 | EH38: 0 | EI38: 0 | EJ38: 0 | EK38: 19.83449594 | EL38: 0 | EM38: 0 | EN38: 0 | EO38: 39.66899189 | EP38: 0 | EQ38: 39.66899189 | ER38: 0 | ES38: 0 | ET38: 0 | EU38: 0 | EV38: 0 | EW38: 0 | EX38: 0 | EY38: 0 | EZ38: 39.66899189 | FA38: 0 | FB38: 0 | FC38: 0 | FD38: 19.83449594 | FE38: 0 | FF38: 0 | FG38: 0 | FH38: 0 | FI38: 0 | FJ38: 0 | FK38: 0 | FL38: 0 | FM38: 0 | FN38: 0 | FO38: 0 | FP38: 0 | FQ38: 0 | FR38: 0 | FS38: 0 | FT38: 0 | FU38: 0 | FV38: 79.33798377 | FW38: 0 | FX38: 0 | FY38: 0 | FZ38: 0 | GA38: 0 | GB38: 0 | GC38: 0 | GD38: 0 | GE38: 0 | GF38: 0 | GG38: 0 | GH38: 0 | GI38: 0 | GJ38: 0
A39: 1 | D39: POLES | E39: > 66 KV & < = 132 KV; STEEL | F39: 15.08079068 | G39: 63.07717371 | H39: 7.942113932 | I39: 2 | J39: 322 | K39: 406 | L39: 545 | M39: 108 | N39: 217 | O39: 210 | P39: 72 | Q39: 15 | R39: 301 | S39: 2 | T39: 0 | U39: 0 | V39: 0 | W39: 4 | X39: 0 | Y39: 2 | Z39: 0 | AA39: 0 | AB39: 0 | AC39: 30 | AD39: 0 | AE39: 2 | AF39: 0 | AG39: 2 | AH39: 0 | AI39: 2 | AJ39: 0 | AK39: 0 | AL39: 2 | AM39: 0 | AN39: 0 | AO39: 0 | AP39: 0 | AQ39: 2 | AR39: 0 | AS39: 3 | AT39: 0 | AU39: 0 | AV39: 2 | AW39: 0 | AX39: 25 | AY39: 0 | AZ39: 1 | BA39: 1 | BB39: 0 | BC39: 1 | BD39: 0 | BE39: 5 | BF39: 0 | BG39: 6 | BH39: 2 | BI39: 0 | BJ39: 1 | BK39: 11 | BL39: 0 | BM39: 0 | BN39: 0 | BO39: 0 | BP39: 2 | BQ39: 0 | BR39: 0 | BS39: 0 | BT39: 0 | BU39: 71 | BV39: 0 | BW39: 0 | BX39: 0 | BY39: 0 | BZ39: 0 | CA39: 0 | CB39: 0 | CC39: 0 | CD39: 0 | CE39: 0 | CF39: 0 | CG39: 0 | CH39: 0 | CI39: 0 | CJ39: 0 | CK39: 0 | CL39: 0 | CM39: 0 | CN39: 0 | CO39: 0 | CP39: 0 | CQ39: 9 | CR39: 0 | CS39: 0 | CT39: 0 | CU39: 0 | CV39: 0 | CX39: 4856.0146 | CY39: 6122.801017 | CZ39: 8219.030922 | DA39: 1628.725394 | DB39: 3272.531578 | DC39: 3166.966043 | DD39: 1085.816929 | DE39: 226.2118602 | DF39: 4539.317996 | DG39: 30.16158137 | DH39: 0 | DI39: 0 | DJ39: 0 | DK39: 60.32316273 | DL39: 0 | DM39: 30.16158137 | DN39: 0 | DO39: 0 | DP39: 0 | DQ39: 452.4237205 | DR39: 0 | DS39: 30.16158137 | DT39: 0 | DU39: 30.16158137 | DV39: 0 | DW39: 30.16158137 | DX39: 0 | DY39: 0 | DZ39: 30.16158137 | EA39: 0 | EB39: 0 | EC39: 0 | ED39: 0 | EE39: 30.16158137 | EF39: 0 | EG39: 45.24237205 | EH39: 0 | EI39: 0 | EJ39: 30.16158137 | EK39: 0 | EL39: 377.0197671 | EM39: 0 | EN39: 15.08079068 | EO39: 15.08079068 | EP39: 0 | EQ39: 15.08079068 | ER39: 0 | ES39: 75.40395342 | ET39: 0 | EU39: 90.4847441 | EV39: 30.16158137 | EW39: 0 | EX39: 15.08079068 | EY39: 165.8886975 | EZ39: 0 | FA39: 0 | FB39: 0 | FC39: 0 | FD39: 30.16158137 | FE39: 0 | FF39: 0 | FG39: 0 | FH39: 0 | FI39: 1070.736139 | FJ39: 0 | FK39: 0 | FL39: 0 | FM39: 0 | FN39: 0 | FO39: 0 | FP39: 0 | FQ39: 0 | FR39: 0 | FS39: 0 | FT39: 0 | FU39: 0 | FV39: 0 | FW39: 0 | FX39: 0 | FY39: 0 | FZ39: 0 | GA39: 0 | GB39: 0 | GC39: 0 | GD39: 0 | GE39: 135.7271161 | GF39: 0 | GG39: 0 | GH39: 0 | GI39: 0 | GJ39: 0
A40: 1 | D40: POLES | E40: > 132 KV; STEEL | F40: 15.08079068 | G40: 53.8 | H40: 7.334848328 | I40: 2 | J40: 0 | K40: 0 | L40: 0 | M40: 0 | N40: 0 | O40: 0 | P40: 0 | Q40: 0 | R40: 0 | S40: 0 | T40: 0 | U40: 0 | V40: 0 | W40: 0 | X40: 0 | Y40: 0 | Z40: 0 | AA40: 0 | AB40: 0 | AC40: 0 | AD40: 0 | AE40: 0 | AF40: 0 | AG40: 0 | AH40: 0 | AI40: 0 | AJ40: 0 | AK40: 0 | AL40: 0 | AM40: 0 | AN40: 0 | AO40: 0 | AP40: 0 | AQ40: 0 | AR40: 0 | AS40: 0 | AT40: 0 | AU40: 0 | AV40: 0 | AW40: 0 | AX40: 0 | AY40: 0 | AZ40: 0 | BA40: 0 | BB40: 0 | BC40: 0 | BD40: 0 | BE40: 0 | BF40: 10 | BG40: 0 | BH40: 0 | BI40: 0 | BJ40: 0 | BK40: 0 | BL40: 0 | BM40: 0 | BN40: 0 | BO40: 0 | BP40: 0 | BQ40: 0 | BR40: 0 | BS40: 0 | BT40: 0 | BU40: 0 | BV40: 0 | BW40: 0 | BX40: 0 | BY40: 0 | BZ40: 0 | CA40: 0 | CB40: 0 | CC40: 0 | CD40: 0 | CE40: 0 | CF40: 0 | CG40: 0 | CH40: 0 | CI40: 0 | CJ40: 0 | CK40: 0 | CL40: 0 | CM40: 0 | CN40: 0 | CO40: 0 | CP40: 0 | CQ40: 0 | CR40: 0 | CS40: 0 | CT40: 0 | CU40: 0 | CV40: 0 | CX40: 0 | CY40: 0 | CZ40: 0 | DA40: 0 | DB40: 0 | DC40: 0 | DD40: 0 | DE40: 0 | DF40: 0 | DG40: 0 | DH40: 0 | DI40: 0 | DJ40: 0 | DK40: 0 | DL40: 0 | DM40: 0 | DN40: 0 | DO40: 0 | DP40: 0 | DQ40: 0 | DR40: 0 | DS40: 0 | DT40: 0 | DU40: 0 | DV40: 0 | DW40: 0 | DX40: 0 | DY40: 0 | DZ40: 0 | EA40: 0 | EB40: 0 | EC40: 0 | ED40: 0 | EE40: 0 | EF40: 0 | EG40: 0 | EH40: 0 | EI40: 0 | EJ40: 0 | EK40: 0 | EL40: 0 | EM40: 0 | EN40: 0 | EO40: 0 | EP40: 0 | EQ40: 0 | ER40: 0 | ES40: 0 | ET40: 150.8079068 | EU40: 0 | EV40: 0 | EW40: 0 | EX40: 0 | EY40: 0 | EZ40: 0 | FA40: 0 | FB40: 0 | FC40: 0 | FD40: 0 | FE40: 0 | FF40: 0 | FG40: 0 | FH40: 0 | FI40: 0 | FJ40: 0 | FK40: 0 | FL40: 0 | FM40: 0 | FN40: 0 | FO40: 0 | FP40: 0 | FQ40: 0 | FR40: 0 | FS40: 0 | FT40: 0 | FU40: 0 | FV40: 0 | FW40: 0 | FX40: 0 | FY40: 0 | FZ40: 0 | GA40: 0 | GB40: 0 | GC40: 0 | GD40: 0 | GE40: 0 | GF40: 0 | GG40: 0 | GH40: 0 | GI40: 0 | GJ40: 0
A41: 1 | D41: POLES | E41: OTHER - BOLLARDS | F41: 5.340912193 | G41: 68.82510457 | H41: 8.296089715 | I41: 2 | J41: 172 | K41: 186 | L41: 123 | M41: 82 | N41: 126 | O41: 118 | P41: 120 | Q41: 101 | R41: 128 | S41: 159 | T41: 116 | U41: 118 | V41: 106 | W41: 154 | X41: 100 | Y41: 114 | Z41: 94 | AA41: 108 | AB41: 176 | AC41: 225 | AD41: 234 | AE41: 252 | AF41: 305 | AG41: 285 | AH41: 295 | AI41: 241 | AJ41: 312 | AK41: 260 | AL41: 216 | AM41: 191 | AN41: 143 | AO41: 262 | AP41: 234 | AQ41: 321 | AR41: 193 | AS41: 173 | AT41: 246 | AU41: 143 | AV41: 246 | AW41: 181 | AX41: 215 | AY41: 183 | AZ41: 311 | BA41: 474 | BB41: 312 | BC41: 235 | BD41: 174 | BE41: 449 | BF41: 290 | BG41: 89 | BH41: 91 | BI41: 60 | BJ41: 148 | BK41: 471 | BL41: 37 | BM41: 50 | BN41: 30 | BO41: 38 | BP41: 206 | BQ41: 38 | BR41: 20 | BS41: 126 | BT41: 8 | BU41: 354 | BV41: 24 | BW41: 5 | BX41: 8 | BY41: 6 | BZ41: 3 | CA41: 2 | CB41: 1 | CC41: 3 | CD41: 0 | CE41: 14 | CF41: 2 | CG41: 2 | CH41: 0 | CI41: 3 | CJ41: 0 | CK41: 0 | CL41: 0 | CM41: 0 | CN41: 0 | CO41: 61 | CP41: 0 | CQ41: 0 | CR41: 0 | CS41: 0 | CT41: 0 | CU41: 0 | CV41: 0 | CX41: 918.6368973 | CY41: 993.409668 | CZ41: 656.9321998 | DA41: 437.9547999 | DB41: 672.9549364 | DC41: 630.2276388 | DD41: 640.9094632 | DE41: 539.4321315 | DF41: 683.6367608 | DG41: 849.2050388 | DH41: 619.5458144 | DI41: 630.2276388 | DJ41: 566.1366925 | DK41: 822.5004778 | DL41: 534.0912193 | DM41: 608.8639901 | DN41: 502.0457462 | DO41: 576.8185169 | DP41: 940.000546 | DQ41: 1201.705244 | DR41: 1249.773453 | DS41: 1345.909873 | DT41: 1628.978219 | DU41: 1522.159975 | DV41: 1575.569097 | DW41: 1287.159839 | DX41: 1666.364604 | DY41: 1388.63717 | DZ41: 1153.637034 | EA41: 1020.114229 | EB41: 763.7504437 | EC41: 1399.318995 | ED41: 1249.773453 | EE41: 1714.432814 | EF41: 1030.796053 | EG41: 923.9778095 | EH41: 1313.8644 | EI41: 763.7504437 | EJ41: 1313.8644 | EK41: 966.705107 | EL41: 1148.296122 | EM41: 977.3869314 | EN41: 1661.023692 | EO41: 2531.59238 | EP41: 1666.364604 | EQ41: 1255.114365 | ER41: 929.3187217 | ES41: 2398.069575 | ET41: 1548.864536 | EU41: 475.3411852 | EV41: 486.0230096 | EW41: 320.4547316 | EX41: 790.4550046 | EY41: 2515.569643 | EZ41: 197.6137512 | FA41: 267.0456097 | FB41: 160.2273658 | FC41: 202.9546634 | FD41: 1100.227912 | FE41: 202.9546634 | FF41: 106.8182439 | FG41: 672.9549364 | FH41: 42.72729755 | FI41: 1890.682916 | FJ41: 128.1818926 | FK41: 26.70456097 | FL41: 42.72729755 | FM41: 32.04547316 | FN41: 16.02273658 | FO41: 10.68182439 | FP41: 5.340912193 | FQ41: 16.02273658 | FR41: 0 | FS41: 74.77277071 | FT41: 10.68182439 | FU41: 10.68182439 | FV41: 0 | FW41: 16.02273658 | FX41: 0 | FY41: 0 | FZ41: 0 | GA41: 0 | GB41: 0 | GC41: 325.7956438 | GD41: 0 | GE41: 0 | GF41: 0 | GG41: 0 | GH41: 0 | GI41: 0 | GJ41: 0
A42: 2 | D42: OVERHEAD CONDUCTORS | E42: ˂ = 1 KV | F42: 58.89030058 | G42: 76.11975903 | H42: 8.724663835 | I42: 2 | J42: 482.5925354 | K42: 662.0773847 | L42: 648.2216463 | M42: 585.3570897 | N42: 688.725769 | O42: 573.3727946 | P42: 531.388641 | Q42: 613.4264974 | R42: 524.5914401 | S42: 552.4519517 | T42: 534.9689067 | U42: 476.4957797 | V42: 1388.430495 | W42: 249.6827734 | X42: 217.2990322 | Y42: 213.1478234 | Z42: 246.1116217 | AA42: 314.438069 | AB42: 516.2506477 | AC42: 548.5925293 | AD42: 536.4463692 | AE42: 938.0269359 | AF42: 592.3119533 | AG42: 644.3153442 | AH42: 547.8786738 | AI42: 486.3669572 | AJ42: 597.398637 | AK42: 520.1035902 | AL42: 506.9862985 | AM42: 476.203467 | AN42: 342.2952812 | AO42: 523.7408904 | AP42: 603.1078147 | AQ42: 568.7945301 | AR42: 374.8944438 | AS42: 405.4377096 | AT42: 520.3930293 | AU42: 371.232774 | AV42: 397.2190806 | AW42: 395.3542673 | AX42: 304.369631 | AY42: 368.3655312 | AZ42: 593.7105186 | BA42: 603.3440599 | BB42: 482.3699403 | BC42: 410.5600992 | BD42: 326.0649704 | BE42: 559.508131 | BF42: 416.402951 | BG42: 278.2617166 | BH42: 156.914991 | BI42: 209.0420535 | BJ42: 408.5936361 | BK42: 749.0789451 | BL42: 132.3621497 | BM42: 118.0697377 | BN42: 140.9249839 | BO42: 71.81059982 | BP42: 292.6547117 | BQ42: 45.13267012 | BR42: 17.22211584 | BS42: 19.41803762 | BT42: 8.555930087 | BU42: 481.9542569 | BV42: 23.29765017 | BW42: 2.92303177 | BX42: 6.218953658 | BY42: 8.590366456 | BZ42: 10.80252738 | CA42: 0 | CB42: 1.760912822 | CC42: 1.853272689 | CD42: 10.69337567 | CE42: 5.018407349 | CF42: 2.010742043 | CG42: 0.9552785461 | CH42: 0 | CI42: 3.494838222 | CJ42: 0 | CK42: 0 | CL42: 0 | CM42: 0.1431790746 | CN42: 0 | CO42: 57.71324463 | CP42: 0 | CQ42: 0 | CR42: 0 | CS42: 0 | CT42: 0 | CU42: 0 | CV42: 1.424376156 | CX42: 28420.01947 | CY42: 38989.93619 | CZ42: 38173.96759 | DA42: 34471.85496 | DB42: 40559.26755 | DC42: 33766.09622 | DD42: 31293.63679 | DE42: 36124.87082 | DF42: 30893.34759 | DG42: 32534.06149 | DH42: 31504.47972 | DI42: 28060.97969 | DJ42: 81765.08917 | DK42: 14703.89357 | DL42: 12796.80532 | DM42: 12552.33939 | DN42: 14493.58738 | DO42: 18517.3524 | DP42: 30402.15581 | DQ42: 32306.77895 | DR42: 31591.48793 | DS42: 55240.68821 | DT42: 34881.42897 | DU42: 37943.92429 | DV42: 32264.73978 | DW42: 28642.2963 | DX42: 35180.9853 | DY42: 30629.05676 | DZ42: 29856.57551 | EA42: 28043.76531 | EB42: 20157.872 | EC42: 30843.25846 | ED42: 35517.20049 | EE42: 33496.48085 | EF42: 22077.64648 | EG42: 23876.34859 | EH42: 30646.10192 | EI42: 21862.00964 | EJ42: 23392.35105 | EK42: 23282.53164 | EL42: 17924.41905 | EM42: 21693.15686 | EN42: 34963.7909 | EO42: 35531.11304 | EP42: 28406.91078 | EQ42: 24178.00765 | ER42: 19202.06412 | ES42: 32949.60201 | ET42: 24522.09494 | EU42: 16386.91613 | EV42: 9240.770984 | EW42: 12310.54936 | EX42: 24062.20205 | EY42: 44113.48423 | EZ42: 7794.846782 | FA42: 6953.162344 | FB42: 8299.114664 | FC42: 4228.947808 | FD42: 17234.52394 | FE42: 2657.876509 | FF42: 1014.215579 | FG42: 1143.534072 | FH42: 503.8612946 | FI42: 28382.43105 | FJ42: 1372.005622 | FK42: 172.1382195 | FL42: 366.2360502 | FM42: 505.8892627 | FN42: 636.1640847 | FO42: 0 | FP42: 103.7006854 | FQ42: 109.1397857 | FR42: 629.7361074 | FS42: 295.5355172 | FT42: 118.4132033 | FU42: 56.25664071 | FV42: 0 | FW42: 205.8120734 | FX42: 0 | FY42: 0 | FZ42: 0 | GA42: 8.431858742 | GB42: 0 | GC42: 3398.750324 | GD42: 0 | GE42: 0 | GF42: 0 | GG42: 0 | GH42: 0 | GI42: 0 | GJ42: 83.88193995
A43: 2 | D43: OVERHEAD CONDUCTORS | E43: > 1 KV & < = 11 KV | F43: 70.16466111 | G43: 78.44010057 | H43: 8.856641608 | I43: 2 | J43: 967.3111317 | K43: 929.8939417 | L43: 765.1937467 | M43: 740.3647748 | N43: 693.2692876 | O43: 512.4615747 | P43: 467.2095648 | Q43: 617.1184957 | R43: 695.5995335 | S43: 614.1548219 | T43: 616.4457312 | U43: 1043.695169 | V43: 670.3968785 | W43: 146.1920011 | X43: 55.54778012 | Y43: 57.25505179 | Z43: 75.60457312 | AA43: 93.09167006 | AB43: 146.4671794 | AC43: 174.3047776 | AD43: 149.2584294 | AE43: 191.0516466 | AF43: 234.1804334 | AG43: 287.0897305 | AH43: 249.2430122 | AI43: 310.2726591 | AJ43: 319.8553122 | AK43: 275.7195959 | AL43: 217.9350241 | AM43: 164.7612881 | AN43: 228.8560189 | AO43: 246.3627721 | AP43: 266.1002165 | AQ43: 332.740076 | AR43: 222.9261558 | AS43: 279.4047636 | AT43: 629.3797669 | AU43: 334.9563441 | AV43: 428.7805068 | AW43: 469.5322485 | AX43: 463.7578512 | AY43: 694.5152075 | AZ43: 1076.798604 | BA43: 2174.449525 | BB43: 1664.677931 | BC43: 804.4521369 | BD43: 3064.413904 | BE43: 1287.628562 | BF43: 2150.834773 | BG43: 1567.450105 | BH43: 791.318992 | BI43: 1185.905686 | BJ43: 4535.317579 | BK43: 8674.245347 | BL43: 817.9882899 | BM43: 1245.736608 | BN43: 921.3349765 | BO43: 996.0490681 | BP43: 3773.546512 | BQ43: 429.6598743 | BR43: 1374.827119 | BS43: 1835.486566 | BT43: 1167.093325 | BU43: 9671.893722 | BV43: 143.2061243 | BW43: 180.7441607 | BX43: 204.8124219 | BY43: 173.6922741 | BZ43: 90.06348753 | CA43: 32.0838732 | CB43: 0 | CC43: 0 | CD43: 31.59648143 | CE43: 513.7548577 | CF43: 132.4462686 | CG43: 124.4156355 | CH43: 46.3938957 | CI43: 140.9761741 | CJ43: 18.0347236 | CK43: 3.962177666 | CL43: 63.3384345 | CM43: 0.9683802734 | CN43: 37.90591709 | CO43: 81.09327256 | CP43: 0 | CQ43: 0 | CR43: 0 | CS43: 0 | CT43: 0 | CU43: 0 | CV43: 0 | CX43: 67871.05774 | CY43: 65245.69328 | CZ43: 53689.55992 | DA43: 51947.44352 | DB43: 48643.00462 | DC43: 35956.69272 | DD43: 32781.60078 | DE43: 43299.91011 | DF43: 48806.50553 | DG43: 43091.96495 | DH43: 43252.70582 | DI43: 73230.51781 | DJ43: 47038.16978 | DK43: 10257.51222 | DL43: 3897.491167 | DM43: 4017.281305 | DN43: 5304.769251 | DO43: 6531.745482 | DP43: 10276.82001 | DQ43: 12230.03565 | DR43: 10472.66712 | DS43: 13405.07404 | DT43: 16431.19075 | DU43: 20143.55365 | DV43: 17488.05148 | DW43: 21770.17598 | DX43: 22442.53958 | DY43: 19345.77201 | DZ43: 15291.33711 | EA43: 11560.41994 | EB43: 16057.60501 | EC43: 17285.96041 | ED43: 18670.83151 | EE43: 23346.59467 | EF43: 15641.53817 | EG43: 19604.34055 | EH43: 44160.21805 | EI43: 23502.09837 | EJ43: 30085.23895 | EK43: 32944.57109 | EL43: 32539.41246 | EM43: 48730.42417 | EN43: 75553.20914 | EO43: 152569.514 | EP43: 116801.5629 | EQ43: 56444.11156 | ER43: 215013.5631 | ES43: 90346.02168 | ET43: 150912.5929 | EU43: 109979.6054 | EV43: 55522.6289 | EW43: 83208.67054 | EX43: 318219.0209 | EY43: 608625.4851 | EZ43: 57393.87115 | FA43: 87406.68694 | FB43: 64645.15639 | FC43: 69887.44531 | FD43: 264769.6122 | FE43: 30146.93947 | FF43: 96464.27889 | FG43: 128786.2928 | FH43: 81888.7076 | FI43: 678625.1453 | FJ43: 10048.00918 | FK43: 12681.85278 | FL43: 14370.59417 | FM43: 12187.05955 | FN43: 6319.274081 | FO43: 2251.15409 | FP43: 0 | FQ43: 0 | FR43: 2216.956411 | FS43: 36047.43548 | FT43: 9293.047548 | FU43: 8729.580901 | FV43: 3255.211969 | FW43: 9891.545479 | FX43: 1265.400269 | FY43: 278.0048532 | FZ43: 4444.119792 | GA43: 67.9460737 | GB43: 2659.655827 | GC43: 5689.881987 | GD43: 0 | GE43: 0 | GF43: 0 | GG43: 0 | GH43: 0 | GI43: 0 | GJ43: 0
A44: 2 | D44: OVERHEAD CONDUCTORS | E44: ˃ 11 KV & < = 22 KV ; SWER | F44: 36.24075581 | G44: 93.91419993 | H44: 9.690933904 | I44: 2 | J44: 36.35170279 | K44: 25.38029935 | L44: 11.15692109 | M44: 28.19981521 | N44: 18.53196012 | O44: 132.5457929 | P44: 215.2620673 | Q44: 115.6353565 | R44: 33.35814217 | S44: 27.23663906 | T44: 193.101998 | U44: 211.8209965 | V44: 106.1668987 | W44: 27.26349433 | X44: 5.955550887 | Y44: 14.59776911 | Z44: 9.566433662 | AA44: 60.64896222 | AB44: 1609.752102 | AC44: 966.3561404 | AD44: 940.6005079 | AE44: 129.4500844 | AF44: 34.51654703 | AG44: 128.7962073 | AH44: 328.3207018 | AI44: 691.8524079 | AJ44: 92.61847926 | AK44: 132.7097757 | AL44: 223.9234712 | AM44: 352.9651008 | AN44: 444.2901898 | AO44: 602.7260505 | AP44: 952.5625828 | AQ44: 920.8569834 | AR44: 33.41301369 | AS44: 500.8071842 | AT44: 119.8892437 | AU44: 195.0180557 | AV44: 214.115085 | AW44: 398.2514211 | AX44: 85.75996579 | AY44: 129.049379 | AZ44: 471.3411993 | BA44: 445.1100017 | BB44: 173.0443089 | BC44: 137.0795454 | BD44: 1294.101533 | BE44: 1372.435429 | BF44: 2493.105122 | BG44: 2496.60268 | BH44: 811.6393949 | BI44: 459.2680782 | BJ44: 1798.2804 | BK44: 2026.177512 | BL44: 59.79278082 | BM44: 294.2498366 | BN44: 6.104892204 | BO44: 266.3722263 | BP44: 389.3597444 | BQ44: 36.97053353 | BR44: 646.1416412 | BS44: 303.3889046 | BT44: 182.6049433 | BU44: 452.4386781 | BV44: 0 | BW44: 54.42237329 | BX44: 0 | BY44: 0 | BZ44: 34.07984549 | CA44: 0 | CB44: 0 | CC44: 0 | CD44: 0 | CE44: 1287.020755 | CF44: 0 | CG44: 0 | CH44: 0 | CI44: 0 | CJ44: 0 | CK44: 0 | CL44: 0 | CM44: 0 | CN44: 206.1157718 | CO44: 0 | CP44: 0 | CQ44: 0 | CR44: 0 | CS44: 0 | CT44: 0 | CU44: 0 | CV44: 0 | CX44: 1317.413184 | CY44: 919.801231 | CZ44: 404.3352527 | DA44: 1021.982617 | DB44: 671.6122414 | DC44: 4803.559715 | DD44: 7801.260014 | DE44: 4190.712719 | DF44: 1208.924284 | DG44: 987.0763854 | DH44: 6998.162355 | DI44: 7676.553011 | DJ44: 3847.56865 | DK44: 988.0496405 | DL44: 215.8336654 | DM44: 529.0341855 | DN44: 346.6947863 | DO44: 2197.96423 | DP44: 58338.63284 | DQ44: 35021.47691 | DR44: 34088.07332 | DS44: 4691.368897 | DT44: 1250.905752 | DU44: 4667.671896 | DV44: 11898.59038 | DW44: 25073.25417 | DX44: 3356.56369 | DY44: 4809.502573 | DZ44: 8115.155839 | EA44: 12791.72203 | EB44: 16101.41228 | EC44: 21843.24762 | ED44: 34521.58796 | EE44: 33372.55307 | EF44: 1210.91287 | EG44: 18149.63087 | EH44: 4344.876804 | EI44: 7067.601734 | EJ44: 7759.692509 | EK44: 14432.9325 | EL44: 3108.005978 | EM44: 4676.847033 | EN44: 17081.76131 | EO44: 16131.12288 | EP44: 6271.256544 | EQ44: 4967.866331 | ER44: 46899.21764 | ES44: 49738.09725 | ET44: 90352.01393 | EU44: 90478.76807 | EV44: 29414.42511 | EW44: 16644.22227 | EX44: 65171.04085 | EY44: 73430.20444 | EZ44: 2166.935569 | FA44: 10663.83647 | FB44: 221.2459076 | FC44: 9653.530806 | FD44: 14110.69142 | FE44: 1339.840078 | FF44: 23416.66144 | FG44: 10995.04321 | FH44: 6617.741159 | FI44: 16396.71965 | FJ44: 0 | FK44: 1972.307941 | FL44: 0 | FM44: 0 | FN44: 1235.079358 | FO44: 0 | FP44: 0 | FQ44: 0 | FR44: 0 | FS44: 46642.60489 | FT44: 0 | FU44: 0 | FV44: 0 | FW44: 0 | FX44: 0 | FY44: 0 | FZ44: 0 | GA44: 0 | GB44: 7469.791355 | GC44: 0 | GD44: 0 | GE44: 0 | GF44: 0 | GG44: 0 | GH44: 0 | GI44: 0 | GJ44: 0
A45: 2 | D45: OVERHEAD CONDUCTORS | E45: ˃ 11 KV & < = 22 KV ; SINGLE-PHASE | F45: 73.23463169 | G45: 86.33438851 | H45: 9.291630024 | I45: 2 | J45: 73.77298859 | K45: 76.96244766 | L45: 30.73732694 | M45: 62.88639647 | N45: 63.34098677 | O45: 145.2493723 | P45: 187.5152556 | Q45: 124.592375 | R45: 132.2856463 | S45: 108.7973907 | T45: 88.89107373 | U45: 194.5817122 | V45: 138.3264631 | W45: 29.47419729 | X45: 16.69981465 | Y45: 9.568003003 | Z45: 20.93233853 | AA45: 36.31362782 | AB45: 42.60285725 | AC45: 33.7290127 | AD45: 28.40528667 | AE45: 42.34954234 | AF45: 46.08251281 | AG45: 47.00817213 | AH45: 77.91171648 | AI45: 67.36646312 | AJ45: 103.8117061 | AK45: 61.63880542 | AL45: 45.80689314 | AM45: 61.73168912 | AN45: 67.28595642 | AO45: 85.77091025 | AP45: 77.93231965 | AQ45: 432.5869403 | AR45: 61.83685366 | AS45: 119.0363931 | AT45: 89.26229299 | AU45: 99.26842012 | AV45: 108.5874196 | AW45: 86.08573534 | AX45: 93.12350181 | AY45: 100.3569373 | AZ45: 152.2339737 | BA45: 336.1960652 | BB45: 251.1078198 | BC45: 338.0979281 | BD45: 1149.234497 | BE45: 1161.049917 | BF45: 951.5367744 | BG45: 508.6318937 | BH45: 303.5734868 | BI45: 446.0561366 | BJ45: 1810.247061 | BK45: 1977.235435 | BL45: 1026.992399 | BM45: 555.1553261 | BN45: 260.981414 | BO45: 879.2102118 | BP45: 1853.114653 | BQ45: 693.3967417 | BR45: 155.9282713 | BS45: 121.7454291 | BT45: 31.24259294 | BU45: 1506.895906 | BV45: 60.39891501 | BW45: 10.2558629 | BX45: 3.709130477 | BY45: 6.951183488 | BZ45: 12.28907399 | CA45: 34.85964543 | CB45: 0 | CC45: 0 | CD45: 1.377612036 | CE45: 238.380261 | CF45: 15.38441564 | CG45: 0 | CH45: 9.725677552 | CI45: 0 | CJ45: 0 | CK45: 0 | CL45: 0 | CM45: 0 | CN45: 505.8407827 | CO45: 131.7694059 | CP45: 0 | CQ45: 0 | CR45: 0 | CS45: 0 | CT45: 0 | CU45: 0 | CV45: 0 | CX45: 5402.737648 | CY45: 5636.316509 | CZ45: 2251.036818 | DA45: 4605.462084 | DB45: 4638.753837 | DC45: 10637.28428 | DD45: 13732.61068 | DE45: 9124.476695 | DF45: 9687.890588 | DG45: 7967.736834 | DH45: 6509.905046 | DI45: 14250.12003 | DJ45: 10130.28758 | DK45: 2158.531983 | DL45: 1223.004776 | DM45: 700.7091759 | DN45: 1532.972103 | DO45: 2659.415159 | DP45: 3120.00456 | DQ45: 2470.131823 | DR45: 2080.250707 | DS45: 3101.453135 | DT45: 3374.835853 | DU45: 3442.626172 | DV45: 5705.835861 | DW45: 4933.558115 | DX45: 7602.612065 | DY45: 4514.095213 | DZ45: 3354.650948 | EA45: 4520.897517 | EB45: 4927.662237 | EC45: 6281.401022 | ED45: 5707.344726 | EE45: 31680.34525 | EF45: 4528.599203 | EG45: 8717.58641 | EH45: 6537.091151 | EI45: 7269.886186 | EJ45: 7952.359683 | EK45: 6304.457122 | EL45: 6819.865357 | EM45: 7349.603342 | EN45: 11148.79899 | EO45: 24621.19501 | EP45: 18389.7887 | EQ45: 24760.47724 | ER45: 84163.76511 | ES45: 85029.06306 | ET45: 69685.44522 | EU45: 37249.4694 | EV45: 22232.0925 | EW45: 32666.75688 | EX45: 132572.7768 | EY45: 144802.1089 | EZ45: 75211.41009 | FA45: 40656.59584 | FB45: 19112.87773 | FC45: 64388.63604 | FD45: 135712.1691 | FE45: 50780.655 | FF45: 11419.34952 | FG45: 8915.981661 | FH45: 2288.039787 | FI45: 110356.9667 | FJ45: 4423.292295 | FK45: 751.0843424 | FL45: 271.6368044 | FM45: 509.0673626 | FN45: 899.9858077 | FO45: 2552.933294 | FP45: 0 | FQ45: 0 | FR45: 100.8889101 | FS45: 17457.69062 | FT45: 1126.672013 | FU45: 0 | FV45: 712.2564134 | FW45: 0 | FX45: 0 | FY45: 0 | FZ45: 0 | GA45: 0 | GB45: 37045.06342 | GC45: 9650.083907 | GD45: 0 | GE45: 0 | GF45: 0 | GG45: 0 | GH45: 0 | GI45: 0 | GJ45: 0
A46: 2 | D46: OVERHEAD CONDUCTORS | E46: ˃ 11 KV & < = 22 KV ; MULTIPLE-PHASE | F46: 62.52225782 | G46: 86.33438851 | H46: 9.291630024 | I46: 2 | J46: 283.8859771 | K46: 225.4022383 | L46: 253.5003818 | M46: 193.7322259 | N46: 146.8310799 | O46: 274.2410538 | P46: 240.946435 | Q46: 192.0086124 | R46: 95.30368307 | S46: 79.00834633 | T46: 186.0441373 | U46: 239.5831993 | V46: 214.896432 | W46: 57.23971262 | X46: 13.5738896 | Y46: 14.74563883 | Z46: 24.65913353 | AA46: 35.64805258 | AB46: 21.58204357 | AC46: 24.27955771 | AD46: 27.29136126 | AE46: 30.66057682 | AF46: 53.33143998 | AG46: 54.26762299 | AH46: 61.65334399 | AI46: 71.58016981 | AJ46: 61.6498023 | AK46: 67.78792674 | AL46: 133.6753634 | AM46: 38.98875241 | AN46: 76.31565373 | AO46: 171.2301984 | AP46: 137.2059745 | AQ46: 243.588228 | AR46: 103.1030813 | AS46: 120.3805804 | AT46: 177.848687 | AU46: 107.9612887 | AV46: 160.312092 | AW46: 111.9635307 | AX46: 127.025749 | AY46: 79.28132636 | AZ46: 107.2165556 | BA46: 343.7591994 | BB46: 178.3164195 | BC46: 300.9543527 | BD46: 1253.220993 | BE46: 948.2436074 | BF46: 1464.904555 | BG46: 624.87469 | BH46: 344.9480553 | BI46: 129.9886509 | BJ46: 1589.954272 | BK46: 2248.645529 | BL46: 557.8064241 | BM46: 718.8283898 | BN46: 135.0300241 | BO46: 701.0725753 | BP46: 1046.742754 | BQ46: 419.2679706 | BR46: 215.9762241 | BS46: 81.69668244 | BT46: 34.12569268 | BU46: 731.5080999 | BV46: 61.73269309 | BW46: 24.59062082 | BX46: 7.633702695 | BY46: 11.66548833 | BZ46: 28.3923846 | CA46: 158.5498697 | CB46: 0.5748554981 | CC46: 0.8007177735 | CD46: 0 | CE46: 902.212065 | CF46: 6.555781958 | CG46: 0 | CH46: 15.70548007 | CI46: 0 | CJ46: 0 | CK46: 0 | CL46: 0 | CM46: 0 | CN46: 417.24428 | CO46: 192.0920698 | CP46: 0 | CQ46: 0 | CR46: 0 | CS46: 0 | CT46: 0 | CU46: 0 | CV46: 0 | CX46: 17749.19225 | CY46: 14092.65686 | CZ46: 15849.41623 | DA46: 12112.57618 | DB46: 9180.210637 | DC46: 17146.16987 | DD46: 15064.51513 | DE46: 12004.81197 | DF46: 5958.601444 | DG46: 4939.7802 | DH46: 11631.89952 | DI46: 14979.28256 | DJ46: 13435.81013 | DK46: 3578.75607 | DL46: 848.6702252 | DM46: 921.9306325 | DN46: 1541.744704 | DO46: 2228.796735 | DP46: 1349.358093 | DQ46: 1518.012767 | DR46: 1706.317525 | DS46: 1916.968489 | DT46: 3334.402041 | DU46: 3392.934316 | DV46: 3854.706269 | DW46: 4475.353832 | DX46: 3854.484834 | DY46: 4238.254233 | DZ46: 8357.685536 | EA46: 2437.66483 | EB46: 4771.426979 | EC46: 10705.69861 | ED46: 8578.427311 | EE46: 15229.68599 | EF46: 6446.237429 | EG46: 7526.465682 | EH46: 11119.50146 | EI46: 6749.983528 | EJ46: 10023.07395 | EK46: 7000.21273 | EL46: 7941.936628 | EM46: 4956.847527 | EN46: 6703.421131 | EO46: 21492.6013 | EP46: 11148.74515 | EQ46: 18816.34563 | ER46: 78354.20601 | ES46: 59286.3313 | ET46: 91589.14031 | EU46: 39068.57648 | EV46: 21566.93125 | EW46: 8127.183943 | EX46: 99407.53095 | EY46: 140590.3955 | EZ46: 34875.31706 | FA46: 44942.77392 | FB46: 8442.381981 | FC46: 43832.64031 | FD46: 65444.72036 | FE46: 26213.58016 | FF46: 13503.32117 | FG46: 5107.861043 | FH46: 2133.615356 | FI46: 45735.53802 | FJ46: 3859.667354 | FK46: 1537.461135 | FL46: 477.276328 | FM46: 729.3526689 | FN46: 1775.15599 | FO46: 9912.895834 | FP46: 35.94126366 | FQ46: 50.06268308 | FR46: 0 | FS46: 56408.33534 | FT46: 409.8822898 | FU46: 0 | FV46: 981.9420743 | FW46: 0 | FX46: 0 | FY46: 0 | FZ46: 0 | GA46: 0 | GB46: 26087.05445 | GC46: 12010.02992 | GD46: 0 | GE46: 0 | GF46: 0 | GG46: 0 | GH46: 0 | GI46: 0 | GJ46: 0
A47: 2 | D47: OVERHEAD CONDUCTORS | E47: > 22 KV & < = 66 KV | F47: 228.5221839 | G47: 102.7406311 | H47: 10.13610532 | I47: 2 | J47: 175.5381052 | K47: 72.64827379 | L47: 136.9237732 | M47: 101.2279899 | N47: 82.19651759 | O47: 76.26125432 | P47: 60.59702114 | Q47: 183.2532869 | R47: 212.0044011 | S47: 62.97697637 | T47: 79.7556631 | U47: 88.99019752 | V47: 420.4148425 | W47: 20.86307378 | X47: 1.019073897 | Y47: 246.601883 | Z47: 14.41577215 | AA47: 0.8209559998 | AB47: 79.74776461 | AC47: 118.676918 | AD47: 98.07994548 | AE47: 157.3971828 | AF47: 53.4804114 | AG47: 73.11313234 | AH47: 48.31332814 | AI47: 67.43422099 | AJ47: 182.632451 | AK47: 301.8287514 | AL47: 289.0424058 | AM47: 162.1770707 | AN47: 66.1867314 | AO47: 215.8288974 | AP47: 132.0706802 | AQ47: 98.17703765 | AR47: 119.7551378 | AS47: 113.2182069 | AT47: 208.3812753 | AU47: 74.56882206 | AV47: 85.85270392 | AW47: 149.0688624 | AX47: 73.05045101 | AY47: 127.4331433 | AZ47: 326.4182795 | BA47: 280.5409626 | BB47: 364.8639359 | BC47: 262.094649 | BD47: 808.4707558 | BE47: 930.5772923 | BF47: 625.6011299 | BG47: 236.1537018 | BH47: 284.9715105 | BI47: 263.9454723 | BJ47: 445.8204495 | BK47: 974.6241479 | BL47: 143.7265756 | BM47: 74.64932697 | BN47: 27.35108539 | BO47: 71.26549897 | BP47: 370.0421718 | BQ47: 32.99907424 | BR47: 0 | BS47: 219.5995453 | BT47: 8.462317186 | BU47: 517.8256984 | BV47: 0 | BW47: 24.01383268 | BX47: 85.27740495 | BY47: 4.076795215 | BZ47: 77.82822333 | CA47: 0 | CB47: 3.59814477 | CC47: 0 | CD47: 0 | CE47: 0 | CF47: 0 | CG47: 0 | CH47: 21.01574752 | CI47: 3.912251391 | CJ47: 47.84094012 | CK47: 0 | CL47: 0 | CM47: 0 | CN47: 20.084458 | CO47: 160.2090011 | CP47: 0 | CQ47: 83.1746717 | CR47: 0 | CS47: 0 | CT47: 0 | CU47: 0 | CV47: 0 | CX47: 40114.35115 | CY47: 16601.74218 | CZ47: 31290.11968 | DA47: 23132.84132 | DB47: 18783.72771 | DC47: 17427.38838 | DD47: 13847.76361 | DE47: 41877.44132 | DF47: 48447.70873 | DG47: 14391.63618 | DH47: 18225.93831 | DI47: 20336.23428 | DJ47: 96074.11795 | DK47: 4767.675184 | DL47: 232.8809924 | DM47: 56354.00086 | DN47: 3294.323733 | DO47: 187.6066579 | DP47: 18224.13333 | DQ47: 27120.30847 | DR47: 22413.44334 | DS47: 35968.74795 | DT47: 12221.46041 | DU47: 16707.97267 | DV47: 11040.66726 | DW47: 15410.21545 | DX47: 41735.56656 | DY47: 68974.56543 | DZ47: 66052.60182 | EA47: 37061.05837 | EB47: 15125.1364 | EC47: 49321.69098 | ED47: 30181.08027 | EE47: 22435.63105 | EF47: 27366.70562 | EG47: 25872.87189 | EH47: 47619.74412 | EI47: 17040.63007 | EJ47: 19619.24739 | EK47: 34065.54198 | EL47: 16693.6486 | EM47: 29121.30021 | EN47: 74593.8181 | EO47: 64109.83344 | EP47: 83379.50345 | EQ47: 59894.44158 | ER47: 184753.5027 | ES47: 212657.5551 | ET47: 142963.7365 | EU47: 53966.35968 | EV47: 65122.31192 | EW47: 60317.39577 | EX47: 101879.8627 | EY47: 222723.2388 | EZ47: 32844.71094 | FA47: 17059.02723 | FB47: 6250.329764 | FC47: 16285.74746 | FD47: 84562.84523 | FE47: 7541.020511 | FF47: 0 | FG47: 50183.36766 | FH47: 1933.827204 | FI47: 118334.6595 | FJ47: 0 | FK47: 5487.693487 | FL47: 19487.77882 | FM47: 931.6381459 | FN47: 17785.47556 | FO47: 0 | FP47: 822.2559007 | FQ47: 0 | FR47: 0 | FS47: 0 | FT47: 0 | FU47: 0 | FV47: 4802.56452 | FW47: 894.0362318 | FX47: 10932.71612 | FY47: 0 | FZ47: 0 | GA47: 0 | GB47: 4589.744205 | GC47: 36611.31081 | GD47: 0 | GE47: 19007.25762 | GF47: 0 | GG47: 0 | GH47: 0 | GI47: 0 | GJ47: 0
A48: 2 | D48: OVERHEAD CONDUCTORS | E48: > 66 KV & < = 132 KV | F48: 57.83349437 | G48: 80.21742442 | H48: 8.956418057 | I48: 2 | J48: 36.58895286 | K48: 65.86674071 | L48: 15.47769824 | M48: 2.951507425 | N48: 4.404724275 | O48: 1.179610894 | P48: 0.2492660855 | Q48: 122.0087476 | R48: 0 | S48: 0 | T48: 0 | U48: 0 | V48: 11.86070665 | W48: 0 | X48: 0 | Y48: 29.10522199 | Z48: 75.45543525 | AA48: 2.197133111 | AB48: 8.960765473 | AC48: 22.08439762 | AD48: 41.19329117 | AE48: 220.0842444 | AF48: 9.479207495 | AG48: 5.709994122 | AH48: 46.47232571 | AI48: 48.08146992 | AJ48: 80.69697045 | AK48: 48.69714899 | AL48: 0 | AM48: 119.3022533 | AN48: 220.2265546 | AO48: 0 | AP48: 0 | AQ48: 0 | AR48: 0.1106770048 | AS48: 94.70066312 | AT48: 0 | AU48: 0 | AV48: 0 | AW48: 0 | AX48: 21.49549704 | AY48: 9.979806458 | AZ48: 0.1566513272 | BA48: 0 | BB48: 10.47723602 | BC48: 76.8153458 | BD48: 28.31693171 | BE48: 311.1078177 | BF48: 44.91989438 | BG48: 0 | BH48: 0 | BI48: 0 | BJ48: 0 | BK48: 0 | BL48: 0 | BM48: 95.13313956 | BN48: 0 | BO48: 0 | BP48: 0 | BQ48: 0 | BR48: 0 | BS48: 0 | BT48: 0 | BU48: 2.174244441 | BV48: 0 | BW48: 0 | BX48: 0 | BY48: 0 | BZ48: 0 | CA48: 0 | CB48: 0 | CC48: 0 | CD48: 0 | CE48: 0 | CF48: 0 | CG48: 0 | CH48: 0 | CI48: 0 | CJ48: 0 | CK48: 0 | CL48: 0 | CM48: 0 | CN48: 0 | CO48: 0 | CP48: 0 | CQ48: 0 | CR48: 0 | CS48: 0 | CT48: 0 | CU48: 0 | CV48: 0 | CX48: 2116.066999 | CY48: 3809.303778 | CZ48: 895.1293739 | DA48: 170.695988 | DB48: 254.7405966 | DC48: 68.22101999 | DD48: 14.41592875 | DE48: 7056.192217 | DF48: 0 | DG48: 0 | DH48: 0 | DI48: 0 | DJ48: 685.9461111 | DK48: 0 | DL48: 0 | DM48: 1683.256692 | DN48: 4363.85149 | DO48: 127.0678854 | DP48: 518.2323796 | DQ48: 1277.217885 | DR48: 2382.351973 | DS48: 12728.24091 | DT48: 548.2156933 | DU48: 330.2289129 | DV48: 2687.656987 | DW48: 2780.71942 | DX48: 4666.987786 | DY48: 2816.326292 | DZ48: 0 | EA48: 6899.666193 | EB48: 12736.47121 | EC48: 0 | ED48: 0 | EE48: 0 | EF48: 6.400837935 | EG48: 5476.870268 | EH48: 0 | EI48: 0 | EJ48: 0 | EK48: 0 | EL48: 1243.159707 | EM48: 577.1670806 | EN48: 9.059693648 | EO48: 0 | EP48: 605.9351706 | EQ48: 4442.499869 | ER48: 1637.667111 | ES48: 17992.45223 | ET48: 2597.874459 | EU48: 0 | EV48: 0 | EW48: 0 | EX48: 0 | EY48: 0 | EZ48: 0 | FA48: 5501.881891 | FB48: 0 | FC48: 0 | FD48: 0 | FE48: 0 | FF48: 0 | FG48: 0 | FH48: 0 | FI48: 125.7441536 | FJ48: 0 | FK48: 0 | FL48: 0 | FM48: 0 | FN48: 0 | FO48: 0 | FP48: 0 | FQ48: 0 | FR48: 0 | FS48: 0 | FT48: 0 | FU48: 0 | FV48: 0 | FW48: 0 | FX48: 0 | FY48: 0 | FZ48: 0 | GA48: 0 | GB48: 0 | GC48: 0 | GD48: 0 | GE48: 0 | GF48: 0 | GG48: 0 | GH48: 0 | GI48: 0 | GJ48: 0
A49: 2 | D49: OVERHEAD CONDUCTORS | E49: > 132 KV | F49: 57.83349437 | G49: 54.9 | H49: 7.409453421 | I49: 2 | J49: 0 | K49: 0 | L49: 0 | M49: 0 | N49: 0 | O49: 0 | P49: 0 | Q49: 0 | R49: 0 | S49: 0 | T49: 0 | U49: 0 | V49: 0 | W49: 0 | X49: 0 | Y49: 0 | Z49: 0 | AA49: 0 | AB49: 0 | AC49: 0 | AD49: 0 | AE49: 0 | AF49: 0 | AG49: 0 | AH49: 0 | AI49: 0 | AJ49: 0 | AK49: 2.972 | AL49: 0 | AM49: 0 | AN49: 0 | AO49: 0 | AP49: 0 | AQ49: 0 | AR49: 0 | AS49: 0 | AT49: 0 | AU49: 0 | AV49: 0 | AW49: 0 | AX49: 0 | AY49: 0 | AZ49: 0 | BA49: 0 | BB49: 0 | BC49: 0 | BD49: 0 | BE49: 0 | BF49: 0 | BG49: 0 | BH49: 0 | BI49: 0 | BJ49: 0 | BK49: 0 | BL49: 0 | BM49: 0 | BN49: 0 | BO49: 0 | BP49: 0 | BQ49: 0 | BR49: 0 | BS49: 0 | BT49: 0 | BU49: 0 | BV49: 0 | BW49: 0 | BX49: 0 | BY49: 0 | BZ49: 0 | CA49: 0 | CB49: 0 | CC49: 0 | CD49: 0 | CE49: 0 | CF49: 0 | CG49: 0 | CH49: 0 | CI49: 0 | CJ49: 0 | CK49: 0 | CL49: 0 | CM49: 0 | CN49: 0 | CO49: 0 | CP49: 0 | CQ49: 0 | CR49: 0 | CS49: 0 | CT49: 0 | CU49: 0 | CV49: 0 | CX49: 0 | CY49: 0 | CZ49: 0 | DA49: 0 | DB49: 0 | DC49: 0 | DD49: 0 | DE49: 0 | DF49: 0 | DG49: 0 | DH49: 0 | DI49: 0 | DJ49: 0 | DK49: 0 | DL49: 0 | DM49: 0 | DN49: 0 | DO49: 0 | DP49: 0 | DQ49: 0 | DR49: 0 | DS49: 0 | DT49: 0 | DU49: 0 | DV49: 0 | DW49: 0 | DX49: 0 | DY49: 171.8811453 | DZ49: 0 | EA49: 0 | EB49: 0 | EC49: 0 | ED49: 0 | EE49: 0 | EF49: 0 | EG49: 0 | EH49: 0 | EI49: 0 | EJ49: 0 | EK49: 0 | EL49: 0 | EM49: 0 | EN49: 0 | EO49: 0 | EP49: 0 | EQ49: 0 | ER49: 0 | ES49: 0 | ET49: 0 | EU49: 0 | EV49: 0 | EW49: 0 | EX49: 0 | EY49: 0 | EZ49: 0 | FA49: 0 | FB49: 0 | FC49: 0 | FD49: 0 | FE49: 0 | FF49: 0 | FG49: 0 | FH49: 0 | FI49: 0 | FJ49: 0 | FK49: 0 | FL49: 0 | FM49: 0 | FN49: 0 | FO49: 0 | FP49: 0 | FQ49: 0 | FR49: 0 | FS49: 0 | FT49: 0 | FU49: 0 | FV49: 0 | FW49: 0 | FX49: 0 | FY49: 0 | FZ49: 0 | GA49: 0 | GB49: 0 | GC49: 0 | GD49: 0 | GE49: 0 | GF49: 0 | GG49: 0 | GH49: 0 | GI49: 0 | GJ49: 0
E50: OTHER - PLEASE ADD A ROW IF NECESSARY AND NOMINATE THE CATEGORY | F50: 0 | G50: 0 | H50: 0 | I50: 2 | J50: 0 | K50: 0 | L50: 0 | M50: 0 | N50: 0 | O50: 0 | P50: 0 | Q50: 0 | R50: 0 | S50: 0 | T50: 0 | U50: 0 | V50: 0 | W50: 0 | X50: 0 | Y50: 0 | Z50: 0 | AA50: 0 | AB50: 0 | AC50: 0 | AD50: 0 | AE50: 0 | AF50: 0 | AG50: 0 | AH50: 0 | AI50: 0 | AJ50: 0 | AK50: 0 | AL50: 0 | AM50: 0 | AN50: 0 | AO50: 0 | AP50: 0 | AQ50: 0 | AR50: 0 | AS50: 0 | AT50: 0 | AU50: 0 | AV50: 0 | AW50: 0 | AX50: 0 | AY50: 0 | AZ50: 0 | BA50: 0 | BB50: 0 | BC50: 0 | BD50: 0 | BE50: 0 | BF50: 0 | BG50: 0 | BH50: 0 | BI50: 0 | BJ50: 0 | BK50: 0 | BL50: 0 | BM50: 0 | BN50: 0 | BO50: 0 | BP50: 0 | BQ50: 0 | BR50: 0 | BS50: 0 | BT50: 0 | BU50: 0 | BV50: 0 | BW50: 0 | BX50: 0 | BY50: 0 | BZ50: 0 | CA50: 0 | CB50: 0 | CC50: 0 | CD50: 0 | CE50: 0 | CF50: 0 | CG50: 0 | CH50: 0 | CI50: 0 | CJ50: 0 | CK50: 0 | CL50: 0 | CM50: 0 | CN50: 0 | CO50: 0 | CP50: 0 | CQ50: 0 | CR50: 0 | CS50: 0 | CT50: 0 | CU50: 0 | CV50: 0 | CX50: 0 | CY50: 0 | CZ50: 0 | DA50: 0 | DB50: 0 | DC50: 0 | DD50: 0 | DE50: 0 | DF50: 0 | DG50: 0 | DH50: 0 | DI50: 0 | DJ50: 0 | DK50: 0 | DL50: 0 | DM50: 0 | DN50: 0 | DO50: 0 | DP50: 0 | DQ50: 0 | DR50: 0 | DS50: 0 | DT50: 0 | DU50: 0 | DV50: 0 | DW50: 0 | DX50: 0 | DY50: 0 | DZ50: 0 | EA50: 0 | EB50: 0 | EC50: 0 | ED50: 0 | EE50: 0 | EF50: 0 | EG50: 0 | EH50: 0 | EI50: 0 | EJ50: 0 | EK50: 0 | EL50: 0 | EM50: 0 | EN50: 0 | EO50: 0 | EP50: 0 | EQ50: 0 | ER50: 0 | ES50: 0 | ET50: 0 | EU50: 0 | EV50: 0 | EW50: 0 | EX50: 0 | EY50: 0 | EZ50: 0 | FA50: 0 | FB50: 0 | FC50: 0 | FD50: 0 | FE50: 0 | FF50: 0 | FG50: 0 | FH50: 0 | FI50: 0 | FJ50: 0 | FK50: 0 | FL50: 0 | FM50: 0 | FN50: 0 | FO50: 0 | FP50: 0 | FQ50: 0 | FR50: 0 | FS50: 0 | FT50: 0 | FU50: 0 | FV50: 0 | FW50: 0 | FX50: 0 | FY50: 0 | FZ50: 0 | GA50: 0 | GB50: 0 | GC50: 0 | GD50: 0 | GE50: 0 | GF50: 0 | GG50: 0 | GH50: 0 | GI50: 0 | GJ50: 0
A51: 3 | D51: UNDERGROUND CABLES | E51: ˂ = 1 KV | F51: 206.7605506 | G51: 73.82129211 | H51: 8.591931803 | I51: 2 | J51: 196.8283853 | K51: 251.4777371 | L51: 242.50779 | M51: 241.9245807 | N51: 327.5279071 | O51: 354.7612728 | P51: 303.815954 | Q51: 411.8947178 | R51: 358.6012274 | S51: 374.6829869 | T51: 232.7558078 | U51: 267.4745516 | V51: 137.2794016 | W51: 78.03485812 | X51: 62.65742739 | Y51: 56.77731798 | Z51: 46.67367125 | AA51: 58.40527456 | AB51: 62.24305216 | AC51: 69.0814935 | AD51: 80.57242296 | AE51: 88.82355 | AF51: 99.54637788 | AG51: 82.05708877 | AH51: 74.25005189 | AI51: 36.88743104 | AJ51: 46.84591572 | AK51: 65.50057008 | AL51: 41.95468176 | AM51: 36.08067323 | AN51: 50.22345871 | AO51: 90.01827467 | AP51: 90.94510597 | AQ51: 92.11130498 | AR51: 51.08631295 | AS51: 55.48549058 | AT51: 58.78953074 | AU51: 54.50910924 | AV51: 63.15819299 | AW51: 49.14163211 | AX51: 31.17120503 | AY51: 26.39389256 | AZ51: 33.09276989 | BA51: 50.1945197 | BB51: 31.38662609 | BC51: 25.22574354 | BD51: 15.80825605 | BE51: 44.75669287 | BF51: 6.373471027 | BG51: 4.346869556 | BH51: 4.681564646 | BI51: 3.212257372 | BJ51: 5.080967589 | BK51: 16.19242692 | BL51: 1.406782529 | BM51: 0.6497613547 | BN51: 5.290257018 | BO51: 1.171947349 | BP51: 18.4405985 | BQ51: 3.710854721 | BR51: 0.5604028727 | BS51: 2.179326693 | BT51: 1.645709956 | BU51: 14.94774888 | BV51: 3.915017286 | BW51: 1.08276204 | BX51: 0.05402907733 | BY51: 0 | BZ51: 0 | CA51: 0 | CB51: 0 | CC51: 0 | CD51: 0.83046779 | CE51: 0 | CF51: 1.130489406 | CG51: 0 | CH51: 0 | CI51: 0 | CJ51: 0 | CK51: 0 | CL51: 0 | CM51: 0 | CN51: 0 | CO51: 0.0679906255 | CP51: 0 | CQ51: 0 | CR51: 0 | CS51: 0 | CT51: 0 | CU51: 0 | CV51: 0 | CX51: 40696.34531 | CY51: 51995.67538 | CZ51: 50141.0442 | DA51: 50020.45952 | DB51: 67719.85041 | DC51: 73350.63611 | DD51: 62817.15394 | DE51: 85163.57864 | DF51: 74144.58723 | DG51: 77469.66068 | DH51: 48124.71897 | DI51: 55303.18556 | DJ51: 28383.96466 | DK51: 16134.53023 | DL51: 12955.08419 | DM51: 11739.30953 | DN51: 9650.273968 | DO51: 12075.90673 | DP51: 12869.40774 | DQ51: 14283.32763 | DR51: 16659.19854 | DS51: 18365.20611 | DT51: 20582.2639 | DU51: 16966.16886 | DV51: 15351.98161 | DW51: 7626.865553 | DX51: 9685.887329 | DY51: 13542.93394 | DZ51: 8674.573103 | EA51: 7460.059864 | EB51: 10384.22998 | EC51: 18612.22804 | ED51: 18803.86019 | EE51: 19044.98414 | EF51: 10562.6342 | EG51: 11472.21058 | EH51: 12155.35575 | EI51: 11270.33344 | EJ51: 13058.62276 | EK51: 10160.55091 | EL51: 6444.975515 | EM51: 5457.215758 | EN51: 6842.279324 | EO51: 10378.24653 | EP51: 6489.516093 | EQ51: 5215.688623 | ER51: 3268.523726 | ES51: 9253.918461 | ET51: 1317.782379 | EU51: 898.7611429 | EV51: 967.962884 | EW51: 664.1681029 | EX51: 1050.543656 | EY51: 3347.955105 | EZ51: 290.8671302 | FA51: 134.3450155 | FB51: 1093.816454 | FC51: 242.3124792 | FD51: 3812.7883 | FE51: 767.2583653 | FF51: 115.8692065 | FG51: 450.5987871 | FH51: 340.2678967 | FI51: 3090.604789 | FJ51: 809.4711297 | FK51: 223.8724756 | FL51: 11.17108178 | FM51: 0 | FN51: 0 | FO51: 0 | FP51: 0 | FQ51: 0 | FR51: 171.7079775 | FS51: 0 | FT51: 233.7406121 | FU51: 0 | FV51: 0 | FW51: 0 | FX51: 0 | FY51: 0 | FZ51: 0 | GA51: 0 | GB51: 0 | GC51: 14.05777916 | GD51: 0 | GE51: 0 | GF51: 0 | GG51: 0 | GH51: 0 | GI51: 0 | GJ51: 0
A52: 3 | D52: UNDERGROUND CABLES | E52: > 1 KV & < = 11 KV | F52: 572.790279 | G52: 61.25949713 | H52: 7.826844647 | I52: 2 | J52: 153.41805 | K52: 127.1689836 | L52: 115.0431923 | M52: 143.5780949 | N52: 180.7737816 | O52: 196.2940432 | P52: 151.93925 | Q52: 151.0515725 | R52: 135.766534 | S52: 113.9474287 | T52: 64.05383099 | U52: 83.49655128 | V52: 41.76356312 | W52: 34.52008658 | X52: 13.85942346 | Y52: 5.405999968 | Z52: 8.396839353 | AA52: 33.75615812 | AB52: 13.36320224 | AC52: 7.705664452 | AD52: 10.65651425 | AE52: 9.090889891 | AF52: 20.99116387 | AG52: 11.30144243 | AH52: 7.505773239 | AI52: 5.79671224 | AJ52: 3.979049699 | AK52: 9.051239152 | AL52: 3.455870776 | AM52: 9.711531878 | AN52: 6.827259721 | AO52: 8.012842412 | AP52: 12.28682552 | AQ52: 3.318200722 | AR52: 2.606526317 | AS52: 4.073884255 | AT52: 4.677002679 | AU52: 5.199424576 | AV52: 5.922856509 | AW52: 2.750365224 | AX52: 4.48666828 | AY52: 0.4949143036 | AZ52: 1.200928858 | BA52: 2.336461985 | BB52: 9.773630321 | BC52: 6.072844118 | BD52: 0.3481732165 | BE52: 0.0711837058 | BF52: 0 | BG52: 0 | BH52: 0.004880141321 | BI52: 0 | BJ52: 0 | BK52: 0.08926317976 | BL52: 0 | BM52: 0 | BN52: 0 | BO52: 0 | BP52: 1.192800132 | BQ52: 0 | BR52: 0 | BS52: 0 | BT52: 2.096255831 | BU52: 0.7876851408 | BV52: 0 | BW52: 0 | BX52: 0 | BY52: 0 | BZ52: 0 | CA52: 0 | CB52: 0 | CC52: 0 | CD52: 0.06838599286 | CE52: 0 | CF52: 0 | CG52: 0 | CH52: 0.2283485945 | CI52: 0 | CJ52: 0 | CK52: 0 | CL52: 0 | CM52: 0 | CN52: 0 | CO52: 0 | CP52: 0 | CQ52: 0 | CR52: 0 | CS52: 0 | CT52: 0 | CU52: 0 | CV52: 0 | CX52: 87876.36767 | CY52: 72841.15761 | CZ52: 65895.6222 | DA52: 82240.13702 | DB52: 103545.4648 | DC52: 112435.3198 | DD52: 87029.32543 | DE52: 86520.87235 | DF52: 77765.75091 | DG52: 65267.97948 | DH52: 36689.41173 | DI52: 47826.01291 | DJ52: 23921.76297 | DK52: 19772.77002 | DL52: 7938.543032 | DM52: 3096.50423 | DN52: 4809.627956 | DO52: 19335.19923 | DP52: 7654.312341 | DQ52: 4413.729692 | DR52: 6103.947769 | DS52: 5207.173357 | DT52: 12023.53461 | DU52: 6473.356365 | DV52: 4299.233948 | DW52: 3320.300421 | DX52: 2279.160987 | DY52: 5184.461799 | DZ52: 1979.489186 | EA52: 5562.671054 | EB52: 3910.588 | EC52: 4589.678241 | ED52: 7037.77422 | EE52: 1900.633117 | EF52: 1492.992936 | EG52: 2333.481299 | EH52: 2678.941669 | EI52: 2978.179853 | EJ52: 3392.554632 | EK52: 1575.382464 | EL52: 2569.919976 | EM52: 283.4821021 | EN52: 687.8803757 | EO52: 1338.302713 | EP52: 5598.240439 | EQ52: 3478.466077 | ER52: 199.4302338 | ES52: 40.77333471 | ET52: 0 | EU52: 0 | EV52: 2.795297509 | EW52: 0 | EX52: 0 | EY52: 51.12908164 | EZ52: 0 | FA52: 0 | FB52: 0 | FC52: 0 | FD52: 683.2243206 | FE52: 0 | FF52: 0 | FG52: 0 | FH52: 1200.714962 | FI52: 451.1783916 | FJ52: 0 | FK52: 0 | FL52: 0 | FM52: 0 | FN52: 0 | FO52: 0 | FP52: 0 | FQ52: 0 | FR52: 39.17083193 | FS52: 0 | FT52: 0 | FU52: 0 | FV52: 130.7958552 | FW52: 0 | FX52: 0 | FY52: 0 | FZ52: 0 | GA52: 0 | GB52: 0 | GC52: 0 | GD52: 0 | GE52: 0 | GF52: 0 | GG52: 0 | GH52: 0 | GI52: 0 | GJ52: 0
A53: 3 | D53: =IF(A53>0,VLOOKUP(A53,IDtable,2),"") -> UNDERGROUND CABLES | E53: > 11 KV & < = 22 KV | F53: 588.1384003 | G53: 45.49129639 | H53: 6.744723596 | I53: 2 | J53: 19.87171293 | K53: 21.41384287 | L53: 9.843585733 | M53: 15.32313551 | N53: 29.37228139 | O53: 24.97722534 | P53: 28.42712739 | Q53: 38.32763333 | R53: 40.68822843 | S53: 7.893340495 | T53: 4.229018362 | U53: 3.152329851 | V53: 1.890998499 | W53: 5.791982466 | X53: 2.247687718 | Y53: 0.4952203003 | Z53: 1.609975564 | AA53: 0.4627183254 | AB53: 19.24660726 | AC53: 1.839670314 | AD53: 0.596381381 | AE53: 2.058630846 | AF53: 4.41886256 | AG53: 8.928928788 | AH53: 1.087164763 | AI53: 0.7864249568 | AJ53: 1.283714042 | AK53: 0.3679832932 | AL53: 0.1902768659 | AM53: 0.7732349714 | AN53: 0.08692889506 | AO53: 0.7882664651 | AP53: 1.008560313 | AQ53: 1.082109023 | AR53: 0.3165314781 | AS53: 1.041307883 | AT53: 1.22318192 | AU53: 0.6396002528 | AV53: 0.1184389857 | AW53: 2.478024784 | AX53: 0.1333680242 | AY53: 0 | AZ53: 0.03019825631 | BA53: 0.0428542768 | BB53: 0 | BC53: 0.07799131947 | BD53: 0 | BE53: 0.003245937689 | BF53: 0.02829297309 | BG53: 0 | BH53: 0 | BI53: 0 | BJ53: 0 | BK53: 0.006068316336 | BL53: 0 | BM53: 0 | BN53: 0 | BO53: 0 | BP53: 0 | BQ53: 0 | BR53: 0 | BS53: 0 | BT53: 0 | BU53: 0 | BV53: 0 | BW53: 0 | BX53: 0 | BY53: 0 | BZ53: 0 | CA53: 0 | CB53: 0 | CC53: 0 | CD53: 0 | CE53: 0 | CF53: 0 | CG53: 0 | CH53: 0 | CI53: 0 | CJ53: 0 | CK53: 0 | CL53: 0 | CM53: 0 | CN53: 0 | CO53: 0 | CP53: 0 | CQ53: 0 | CR53: 0 | CS53: 0 | CT53: 0 | CU53: 0 | CV53: 0 | CX53: 11687.31745 | CY53: 12594.30329 | CZ53: 5789.390766 | DA53: 9012.124405 | DB53: 17274.96659 | DC53: 14690.06535 | DD53: 16719.08523 | DE53: 22541.95295 | DF53: 23930.30958 | DG53: 4642.376652 | DH53: 2487.248094 | DI53: 1854.006236 | DJ53: 1112.168832 | DK53: 3406.487302 | DL53: 1321.951459 | DM53: 291.2580752 | DN53: 946.8884525 | DO53: 272.1424156 | DP53: 11319.6688 | DQ53: 1081.980755 | DR53: 350.7547914 | DS53: 1210.759853 | DT53: 2598.902757 | DU53: 5251.445893 | DV53: 639.4033443 | DW53: 462.526716 | DX53: 755.0015231 | DY53: 216.4251054 | DZ53: 111.9091315 | EA53: 454.7691791 | EB53: 51.12622128 | EC53: 463.6097778 | ED53: 593.1730488 | EE53: 636.4298698 | EF53: 186.1643172 | EG53: 612.4331522 | EH53: 719.4002576 | EI53: 376.1734695 | EJ53: 69.6585156 | EK53: 1457.421532 | EL53: 78.43885638 | EM53: 0 | EN53: 17.76075415 | EO53: 25.2042458 | EP53: 0 | EQ53: 45.86968987 | ER53: 0 | ES53: 1.9090606 | ET53: 16.64018393 | EU53: 0 | EV53: 0 | EW53: 0 | EX53: 0 | EY53: 3.569009862 | EZ53: 0 | FA53: 0 | FB53: 0 | FC53: 0 | FD53: 0 | FE53: 0 | FF53: 0 | FG53: 0 | FH53: 0 | FI53: 0 | FJ53: 0 | FK53: 0 | FL53: 0 | FM53: 0 | FN53: 0 | FO53: 0 | FP53: 0 | FQ53: 0 | FR53: 0 | FS53: 0 | FT53: 0 | FU53: 0 | FV53: 0 | FW53: 0 | FX53: 0 | FY53: 0 | FZ53: 0 | GA53: 0 | GB53: 0 | GC53: 0 | GD53: 0 | GE53: 0 | GF53: 0 | GG53: 0 | GH53: 0 | GI53: 0 | GJ53: 0
A54: 3 | D54: UNDERGROUND CABLES | E54: > 22 KV & < = 33 KV | F54: 488.4063137 | G54: 63.84500055 | H54: 7.990306662 | I54: 2 | J54: 0.7044751621 | K54: 0.9729054562 | L54: 0.4737500768 | M54: 3.015950443 | N54: 1.309036147 | O54: 1.506624163 | P54: 0.6444394259 | Q54: 6.083098626 | R54: 0.8680563392 | S54: 0 | T54: 1.198483825 | U54: 14.94637607 | V54: 0 | W54: 0.1088673751 | X54: 0 | Y54: 0 | Z54: 0 | AA54: 3.769923198 | AB54: 0.04048481755 | AC54: 0.06527573436 | AD54: 0 | AE54: 0 | AF54: 0 | AG54: 0 | AH54: 0 | AI54: 0 | AJ54: 0 | AK54: 7.299785976 | AL54: 3.110020457 | AM54: 0 | AN54: 0 | AO54: 0.04366271016 | AP54: 0 | AQ54: 0.2738972405 | AR54: 0 | AS54: 0 | AT54: 0 | AU54: 0 | AV54: 0 | AW54: 0 | AX54: 0 | AY54: 0 | AZ54: 0 | BA54: 0.07669027465 | BB54: 0 | BC54: 0 | BD54: 0 | BE54: 0 | BF54: 0 | BG54: 1.241907328 | BH54: 0 | BI54: 0.1120212242 | BJ54: 0 | BK54: 0 | BL54: 0 | BM54: 0 | BN54: 0 | BO54: 0 | BP54: 0 | BQ54: 0 | BR54: 0 | BS54: 0 | BT54: 0 | BU54: 0 | BV54: 0 | BW54: 0 | BX54: 0 | BY54: 0 | BZ54: 0 | CA54: 0 | CB54: 0 | CC54: 0 | CD54: 0 | CE54: 0 | CF54: 0 | CG54: 0 | CH54: 0 | CI54: 0 | CJ54: 0 | CK54: 0 | CL54: 0 | CM54: 0 | CN54: 0 | CO54: 0 | CP54: 0 | CQ54: 0 | CR54: 0 | CS54: 0 | CT54: 0 | CU54: 0 | CV54: 0 | CX54: 344.070117 | CY54: 475.1731675 | CZ54: 231.3825286 | DA54: 1473.009238 | DB54: 639.3415193 | DC54: 735.8447538 | DD54: 314.7482844 | DE54: 2971.023776 | DF54: 423.9641967 | DG54: 0 | DH54: 585.3470668 | DI54: 7299.904437 | DJ54: 0 | DK54: 53.17151334 | DL54: 0 | DM54: 0 | DN54: 0 | DO54: 1841.254292 | DP54: 19.7730405 | DQ54: 31.88108079 | DR54: 0 | DS54: 0 | DT54: 0 | DU54: 0 | DV54: 0 | DW54: 0 | DX54: 0 | DY54: 3565.261559 | DZ54: 1518.953627 | EA54: 0 | EB54: 0 | EC54: 21.32514331 | ED54: 0 | EE54: 133.7731415 | EF54: 0 | EG54: 0 | EH54: 0 | EI54: 0 | EJ54: 0 | EK54: 0 | EL54: 0 | EM54: 0 | EN54: 0 | EO54: 37.45601434 | EP54: 0 | EQ54: 0 | ER54: 0 | ES54: 0 | ET54: 0 | EU54: 606.5553798 | EV54: 0 | EW54: 54.71187316 | EX54: 0 | EY54: 0 | EZ54: 0 | FA54: 0 | FB54: 0 | FC54: 0 | FD54: 0 | FE54: 0 | FF54: 0 | FG54: 0 | FH54: 0 | FI54: 0 | FJ54: 0 | FK54: 0 | FL54: 0 | FM54: 0 | FN54: 0 | FO54: 0 | FP54: 0 | FQ54: 0 | FR54: 0 | FS54: 0 | FT54: 0 | FU54: 0 | FV54: 0 | FW54: 0 | FX54: 0 | FY54: 0 | FZ54: 0 | GA54: 0 | GB54: 0 | GC54: 0 | GD54: 0 | GE54: 0 | GF54: 0 | GG54: 0 | GH54: 0 | GI54: 0 | GJ54: 0
A55: 3 | D55: UNDERGROUND CABLES | E55: > 33 KV & < = 66 KV | F55: 890.0393333 | G55: 54.9 | H55: 7.409453421 | I55: 2 | J55: 0.8722220288 | K55: 0.3224884827 | L55: 2.919815712 | M55: 4.567565959 | N55: 2.645858633 | O55: 1.811203154 | P55: 2.726263194 | Q55: 1.567161178 | R55: 0.2212905176 | S55: 2.645110732 | T55: 0.2624063445 | U55: 0.9584883416 | V55: 0 | W55: 0 | X55: 0 | Y55: 0 | Z55: 0 | AA55: 0 | AB55: 0 | AC55: 0 | AD55: 0 | AE55: 0 | AF55: 0 | AG55: 0 | AH55: 0 | AI55: 0 | AJ55: 0 | AK55: 0 | AL55: 0 | AM55: 0 | AN55: 0 | AO55: 0 | AP55: 0 | AQ55: 0 | AR55: 0.1379549632 | AS55: 0 | AT55: 0 | AU55: 0 | AV55: 0.5737899905 | AW55: 0 | AX55: 0 | AY55: 0 | AZ55: 0 | BA55: 0 | BB55: 0 | BC55: 0 | BD55: 0 | BE55: 0 | BF55: 0.5187358124 | BG55: 0 | BH55: 0 | BI55: 0 | BJ55: 0 | BK55: 0 | BL55: 0 | BM55: 0 | BN55: 0 | BO55: 0 | BP55: 0 | BQ55: 0 | BR55: 0 | BS55: 0 | BT55: 0 | BU55: 0.2969771647 | BV55: 0 | BW55: 0 | BX55: 0 | BY55: 0 | BZ55: 0 | CA55: 0 | CB55: 0 | CC55: 0 | CD55: 0 | CE55: 0 | CF55: 0 | CG55: 0 | CH55: 0 | CI55: 0 | CJ55: 0 | CK55: 0 | CL55: 0 | CM55: 0 | CN55: 0 | CO55: 0 | CP55: 0 | CQ55: 0 | CR55: 0 | CS55: 0 | CT55: 0 | CU55: 0 | CV55: 0 | CX55: 776.311913 | CY55: 287.0274341 | CZ55: 2598.75083 | DA55: 4065.313361 | DB55: 2354.918254 | DC55: 1612.042048 | DD55: 2426.481476 | DE55: 1394.83509 | DF55: 196.9572648 | DG55: 2354.252593 | DH55: 233.5519679 | DI55: 853.0923246 | DJ55: 0 | DK55: 0 | DL55: 0 | DM55: 0 | DN55: 0 | DO55: 0 | DP55: 0 | DQ55: 0 | DR55: 0 | DS55: 0 | DT55: 0 | DU55: 0 | DV55: 0 | DW55: 0 | DX55: 0 | DY55: 0 | DZ55: 0 | EA55: 0 | EB55: 0 | EC55: 0 | ED55: 0 | EE55: 0 | EF55: 122.7853435 | EG55: 0 | EH55: 0 | EI55: 0 | EJ55: 510.6956606 | EK55: 0 | EL55: 0 | EM55: 0 | EN55: 0 | EO55: 0 | EP55: 0 | EQ55: 0 | ER55: 0 | ES55: 0 | ET55: 461.6952767 | EU55: 0 | EV55: 0 | EW55: 0 | EX55: 0 | EY55: 0 | EZ55: 0 | FA55: 0 | FB55: 0 | FC55: 0 | FD55: 0 | FE55: 0 | FF55: 0 | FG55: 0 | FH55: 0 | FI55: 264.3213577 | FJ55: 0 | FK55: 0 | FL55: 0 | FM55: 0 | FN55: 0 | FO55: 0 | FP55: 0 | FQ55: 0 | FR55: 0 | FS55: 0 | FT55: 0 | FU55: 0 | FV55: 0 | FW55: 0 | FX55: 0 | FY55: 0 | FZ55: 0 | GA55: 0 | GB55: 0 | GC55: 0 | GD55: 0 | GE55: 0 | GF55: 0 | GG55: 0 | GH55: 0 | GI55: 0 | GJ55: 0
A56: 3 | D56: UNDERGROUND CABLES | E56: > 66 KV & < = 132 KV | F56: 1101.501908 | G56: 45.08567255 | H56: 6.714586551 | I56: 2 | J56: 5.484241987 | K56: 0 | L56: 0 | M56: 0 | N56: 0 | O56: 0 | P56: 0 | Q56: 0 | R56: 0 | S56: 0 | T56: 0 | U56: 0 | V56: 0 | W56: 0 | X56: 0 | Y56: 0 | Z56: 4.247750449 | AA56: 0 | AB56: 0 | AC56: 0 | AD56: 0 | AE56: 0 | AF56: 0 | AG56: 0 | AH56: 0 | AI56: 0 | AJ56: 0 | AK56: 0 | AL56: 0 | AM56: 0 | AN56: 0 | AO56: 0 | AP56: 0 | AQ56: 0 | AR56: 0 | AS56: 0 | AT56: 0 | AU56: 0 | AV56: 0 | AW56: 0 | AX56: 0 | AY56: 0 | AZ56: 0 | BA56: 0 | BB56: 0 | BC56: 0 | BD56: 0 | BE56: 0 | BF56: 0 | BG56: 0 | BH56: 0 | BI56: 0 | BJ56: 0 | BK56: 0 | BL56: 0 | BM56: 0 | BN56: 0 | BO56: 0 | BP56: 0 | BQ56: 0 | BR56: 0 | BS56: 0 | BT56: 0 | BU56: 0 | BV56: 0 | BW56: 0 | BX56: 0 | BY56: 0 | BZ56: 0 | CA56: 0 | CB56: 0 | CC56: 0 | CD56: 0 | CE56: 0 | CF56: 0 | CG56: 0 | CH56: 0 | CI56: 0 | CJ56: 0 | CK56: 0 | CL56: 0 | CM56: 0 | CN56: 0 | CO56: 0 | CP56: 0 | CQ56: 0 | CR56: 0 | CS56: 0 | CT56: 0 | CU56: 0 | CV56: 0 | CX56: 6040.903015 | CY56: 0 | CZ56: 0 | DA56: 0 | DB56: 0 | DC56: 0 | DD56: 0 | DE56: 0 | DF56: 0 | DG56: 0 | DH56: 0 | DI56: 0 | DJ56: 0 | DK56: 0 | DL56: 0 | DM56: 0 | DN56: 4678.905226 | DO56: 0 | DP56: 0 | DQ56: 0 | DR56: 0 | DS56: 0 | DT56: 0 | DU56: 0 | DV56: 0 | DW56: 0 | DX56: 0 | DY56: 0 | DZ56: 0 | EA56: 0 | EB56: 0 | EC56: 0 | ED56: 0 | EE56: 0 | EF56: 0 | EG56: 0 | EH56: 0 | EI56: 0 | EJ56: 0 | EK56: 0 | EL56: 0 | EM56: 0 | EN56: 0 | EO56: 0 | EP56: 0 | EQ56: 0 | ER56: 0 | ES56: 0 | ET56: 0 | EU56: 0 | EV56: 0 | EW56: 0 | EX56: 0 | EY56: 0 | EZ56: 0 | FA56: 0 | FB56: 0 | FC56: 0 | FD56: 0 | FE56: 0 | FF56: 0 | FG56: 0 | FH56: 0 | FI56: 0 | FJ56: 0 | FK56: 0 | FL56: 0 | FM56: 0 | FN56: 0 | FO56: 0 | FP56: 0 | FQ56: 0 | FR56: 0 | FS56: 0 | FT56: 0 | FU56: 0 | FV56: 0 | FW56: 0 | FX56: 0 | FY56: 0 | FZ56: 0 | GA56: 0 | GB56: 0 | GC56: 0 | GD56: 0 | GE56: 0 | GF56: 0 | GG56: 0 | GH56: 0 | GI56: 0 | GJ56: 0
E57: > 132 KV | F57: 0 | G57: 54.9 | H57: 7.409453421 | I57: 2 | J57: 0 | K57: 0 | L57: 0 | M57: 0 | N57: 0 | O57: 0 | P57: 0 | Q57: 0 | R57: 0 | S57: 0 | T57: 0 | U57: 0 | V57: 0 | W57: 0 | X57: 0 | Y57: 0 | Z57: 0 | AA57: 0 | AB57: 0 | AC57: 0 | AD57: 0 | AE57: 0 | AF57: 0 | AG57: 0 | AH57: 0 | AI57: 0 | AJ57: 0 | AK57: 0 | AL57: 0 | AM57: 0 | AN57: 0 | AO57: 0 | AP57: 0 | AQ57: 0 | AR57: 0 | AS57: 0 | AT57: 0 | AU57: 0 | AV57: 0 | AW57: 0 | AX57: 0 | AY57: 0 | AZ57: 0 | BA57: 0 | BB57: 0 | BC57: 0 | BD57: 0 | BE57: 0 | BF57: 0 | BG57: 0 | BH57: 0 | BI57: 0 | BJ57: 0 | BK57: 0 | BL57: 0 | BM57: 0 | BN57: 0 | BO57: 0 | BP57: 0 | BQ57: 0 | BR57: 0 | BS57: 0 | BT57: 0 | BU57: 0 | BV57: 0 | BW57: 0 | BX57: 0 | BY57: 0 | BZ57: 0 | CA57: 0 | CB57: 0 | CC57: 0 | CD57: 0 | CE57: 0 | CF57: 0 | CG57: 0 | CH57: 0 | CI57: 0 | CJ57: 0 | CK57: 0 | CL57: 0 | CM57: 0 | CN57: 0 | CO57: 0 | CP57: 0 | CQ57: 0 | CR57: 0 | CS57: 0 | CT57: 0 | CU57: 0 | CV57: 0 | CX57: 0 | CY57: 0 | CZ57: 0 | DA57: 0 | DB57: 0 | DC57: 0 | DD57: 0 | DE57: 0 | DF57: 0 | DG57: 0 | DH57: 0 | DI57: 0 | DJ57: 0 | DK57: 0 | DL57: 0 | DM57: 0 | DN57: 0 | DO57: 0 | DP57: 0 | DQ57: 0 | DR57: 0 | DS57: 0 | DT57: 0 | DU57: 0 | DV57: 0 | DW57: 0 | DX57: 0 | DY57: 0 | DZ57: 0 | EA57: 0 | EB57: 0 | EC57: 0 | ED57: 0 | EE57: 0 | EF57: 0 | EG57: 0 | EH57: 0 | EI57: 0 | EJ57: 0 | EK57: 0 | EL57: 0 | EM57: 0 | EN57: 0 | EO57: 0 | EP57: 0 | EQ57: 0 | ER57: 0 | ES57: 0 | ET57: 0 | EU57: 0 | EV57: 0 | EW57: 0 | EX57: 0 | EY57: 0 | EZ57: 0 | FA57: 0 | FB57: 0 | FC57: 0 | FD57: 0 | FE57: 0 | FF57: 0 | FG57: 0 | FH57: 0 | FI57: 0 | FJ57: 0 | FK57: 0 | FL57: 0 | FM57: 0 | FN57: 0 | FO57: 0 | FP57: 0 | FQ57: 0 | FR57: 0 | FS57: 0 | FT57: 0 | FU57: 0 | FV57: 0 | FW57: 0 | FX57: 0 | FY57: 0 | FZ57: 0 | GA57: 0 | GB57: 0 | GC57: 0 | GD57: 0 | GE57: 0 | GF57: 0 | GG57: 0 | GH57: 0 | GI57: 0 | GJ57: 0
E58: OTHER - PLEASE ADD A ROW IF NECESSARY AND NOMINATE THE CATEGORY | F58: 0 | G58: 0 | H58: 0 | I58: 2 | J58: 0 | K58: 0 | L58: 0 | M58: 0 | N58: 0 | O58: 0 | P58: 0 | Q58: 0 | R58: 0 | S58: 0 | T58: 0 | U58: 0 | V58: 0 | W58: 0 | X58: 0 | Y58: 0 | Z58: 0 | AA58: 0 | AB58: 0 | AC58: 0 | AD58: 0 | AE58: 0 | AF58: 0 | AG58: 0 | AH58: 0 | AI58: 0 | AJ58: 0 | AK58: 0 | AL58: 0 | AM58: 0 | AN58: 0 | AO58: 0 | AP58: 0 | AQ58: 0 | AR58: 0 | AS58: 0 | AT58: 0 | AU58: 0 | AV58: 0 | AW58: 0 | AX58: 0 | AY58: 0 | AZ58: 0 | BA58: 0 | BB58: 0 | BC58: 0 | BD58: 0 | BE58: 0 | BF58: 0 | BG58: 0 | BH58: 0 | BI58: 0 | BJ58: 0 | BK58: 0 | BL58: 0 | BM58: 0 | BN58: 0 | BO58: 0 | BP58: 0 | BQ58: 0 | BR58: 0 | BS58: 0 | BT58: 0 | BU58: 0 | BV58: 0 | BW58: 0 | BX58: 0 | BY58: 0 | BZ58: 0 | CA58: 0 | CB58: 0 | CC58: 0 | CD58: 0 | CE58: 0 | CF58: 0 | CG58: 0 | CH58: 0 | CI58: 0 | CJ58: 0 | CK58: 0 | CL58: 0 | CM58: 0 | CN58: 0 | CO58: 0 | CP58: 0 | CQ58: 0 | CR58: 0 | CS58: 0 | CT58: 0 | CU58: 0 | CV58: 0 | CX58: 0 | CY58: 0 | CZ58: 0 | DA58: 0 | DB58: 0 | DC58: 0 | DD58: 0 | DE58: 0 | DF58: 0 | DG58: 0 | DH58: 0 | DI58: 0 | DJ58: 0 | DK58: 0 | DL58: 0 | DM58: 0 | DN58: 0 | DO58: 0 | DP58: 0 | DQ58: 0 | DR58: 0 | DS58: 0 | DT58: 0 | DU58: 0 | DV58: 0 | DW58: 0 | DX58: 0 | DY58: 0 | DZ58: 0 | EA58: 0 | EB58: 0 | EC58: 0 | ED58: 0 | EE58: 0 | EF58: 0 | EG58: 0 | EH58: 0 | EI58: 0 | EJ58: 0 | EK58: 0 | EL58: 0 | EM58: 0 | EN58: 0 | EO58: 0 | EP58: 0 | EQ58: 0 | ER58: 0 | ES58: 0 | ET58: 0 | EU58: 0 | EV58: 0 | EW58: 0 | EX58: 0 | EY58: 0 | EZ58: 0 | FA58: 0 | FB58: 0 | FC58: 0 | FD58: 0 | FE58: 0 | FF58: 0 | FG58: 0 | FH58: 0 | FI58: 0 | FJ58: 0 | FK58: 0 | FL58: 0 | FM58: 0 | FN58: 0 | FO58: 0 | FP58: 0 | FQ58: 0 | FR58: 0 | FS58: 0 | FT58: 0 | FU58: 0 | FV58: 0 | FW58: 0 | FX58: 0 | FY58: 0 | FZ58: 0 | GA58: 0 | GB58: 0 | GC58: 0 | GD58: 0 | GE58: 0 | GF58: 0 | GG58: 0 | GH58: 0 | GI58: 0 | GJ58: 0
A59: 4 | D59: SERVICE LINES | E59: ˂ = 11 KV ; RESIDENTIAL ; SIMPLE TYPE | F59: 0.8119375765 | G59: 61.00035839 | H59: 7.81027262 | I59: 2 | J59: 380.0167162 | K59: 537.7122602 | L59: 661.9798105 | M59: 278.4592701 | N59: 414.7314162 | O59: 649.6653819 | P59: 238.0595226 | Q59: 194.1957574 | R59: 136.2358796 | S59: 160.2863841 | T59: 1022.397336 | U59: 332.3707762 | V59: 116.2040826 | W59: 86.15945918 | X59: 56.06094909 | Y59: 60.03246652 | Z59: 94.55590357 | AA59: 107.4593237 | AB59: 156.2431687 | AC59: 149.0448204 | AD59: 161.5421794 | AE59: 202.3753685 | AF59: 199.1182505 | AG59: 241.9607429 | AH59: 170.0054346 | AI59: 177.2488658 | AJ59: 186.2185166 | AK59: 168.69593 | AL59: 178.6566111 | AM59: 130.9991674 | AN59: 155.9739684 | AO59: 201.2259337 | AP59: 201.3041264 | AQ59: 222.9534604 | AR59: 132.4993279 | AS59: 164.4588183 | AT59: 183.2995215 | AU59: 192.4308402 | AV59: 254.4145025 | AW59: 249.3936627 | AX59: 216.2337659 | AY59: 234.4704629 | AZ59: 326.3066012 | BA59: 470.893494 | BB59: 223.3138631 | BC59: 193.9998249 | BD59: 401.3268849 | BE59: 162.3828925 | BF59: 363.952383 | BG59: 109.8390059 | BH59: 30.40462676 | BI59: 59.2397545 | BJ59: 230.2714858 | BK59: 338.3464941 | BL59: 11.69136713 | BM59: 80.53518622 | BN59: 28.48629291 | BO59: 62.65001367 | BP59: 115.8964028 | BQ59: 9.105003818 | BR59: 30.93385142 | BS59: 78.97354765 | BT59: 37.43265906 | BU59: 251.7059455 | BV59: 30.28106144 | BW59: 9.311075331 | BX59: 4.51244756 | BY59: 12.38541033 | BZ59: 1.59101521 | CA59: 0.436785035 | CB59: 2.341445649 | CC59: 0 | CD59: 0.8027798815 | CE59: 4.886759528 | CF59: 1.030360798 | CG59: 0.09149652127 | CH59: 1.130187483 | CI59: 1.672787841 | CJ59: 0.1427034519 | CK59: 0.2932689756 | CL59: 0 | CM59: 0.02760829339 | CN59: 29.65724229 | CO59: 10.6187402 | CP59: 0 | CQ59: 0 | CR59: 0.0681735081 | CS59: 0.4910631299 | CT59: 0.1149168635 | CU59: 0 | CV59: 0.2000392309 | CX59: 308.5498516 | CY59: 436.5887894 | CZ59: 537.486283 | DA59: 226.0915449 | DB59: 336.7360209 | DC59: 527.4877358 | DD59: 193.2894718 | DE59: 157.6748326 | DF59: 110.6150299 | DG59: 130.1425383 | DH59: 830.1228149 | DI59: 269.8643226 | DJ59: 94.35046119 | DK59: 69.95610248 | DL59: 45.51799114 | DM59: 48.74261538 | DN59: 76.77349119 | DO59: 87.25026285 | DP59: 126.8596997 | DQ59: 121.0150902 | DR59: 131.1621656 | DS59: 164.3161662 | DT59: 161.6715898 | DU59: 196.4570192 | DV59: 138.0338006 | DW59: 143.9150145 | DX59: 151.1978111 | DY59: 136.9705646 | DZ59: 145.0580158 | EA59: 106.3631465 | EB59: 126.6411259 | EC59: 163.3828969 | ED59: 163.4463846 | EE59: 181.0242923 | EF59: 107.5811832 | EG59: 133.5302943 | EH59: 148.8277693 | EI59: 156.24183 | EJ59: 206.5686946 | EK59: 202.4920861 | EL59: 175.5683198 | EM59: 190.3753794 | EN59: 264.940591 | EO59: 382.3361223 | EP59: 181.3169168 | EQ59: 157.5157477 | ER59: 325.8523783 | ES59: 131.8447722 | ET59: 295.5066158 | EU59: 89.18241625 | EV59: 24.68665897 | EW59: 48.0989827 | EX59: 186.9660721 | EY59: 274.7162324 | EZ59: 9.492660294 | FA59: 65.38954392 | FB59: 23.12909163 | FC59: 50.86790027 | FD59: 94.10064444 | FE59: 7.392694734 | FF59: 25.11635636 | FG59: 64.12159089 | FH59: 30.39298248 | FI59: 204.3695154 | FJ59: 24.58633164 | FK59: 7.560011939 | FL59: 3.663825736 | FM59: 10.05618005 | FN59: 1.291805034 | FO59: 0.3546421828 | FP59: 1.901107706 | FQ59: 0 | FR59: 0.6518071514 | FS59: 3.967743688 | FT59: 0.8365886494 | FU59: 0.07428946374 | FV59: 0.9176416857 | FW59: 1.358199305 | FX59: 0.1158662949 | FY59: 0.2381161013 | FZ59: 0 | GA59: 0.02241621083 | GB59: 24.07982943 | GC59: 8.62175418 | GD59: 0 | GE59: 0 | GF59: 0.05535263295 | GG59: 0.3987126076 | GH59: 0.09330531969 | GI59: 0 | GJ59: 0.1624193684
A60: 4 | D60: SERVICE LINES | E60: ˂ = 11 KV ; COMMERCIAL & INDUSTRIAL ; SIMPLE TYPE | F60: 0.8444150262 | G60: 56.48497163 | H60: 7.51564845 | I60: 2 | J60: 40.23899823 | K60: 56.53093927 | L60: 54.55479532 | M60: 27.68212068 | N60: 61.76799983 | O60: 60.17925633 | P60: 29.79049407 | Q60: 28.74122577 | R60: 20.94685379 | S60: 25.22986697 | T60: 104.7756663 | U60: 32.48796205 | V60: 33.15138125 | W60: 16.20967593 | X60: 9.07169058 | Y60: 10.57621498 | Z60: 15.47068112 | AA60: 19.81680171 | AB60: 22.15958474 | AC60: 21.58815844 | AD60: 22.65701152 | AE60: 25.38205253 | AF60: 29.31078606 | AG60: 24.10499415 | AH60: 19.4760713 | AI60: 24.52599784 | AJ60: 26.45313658 | AK60: 25.3311085 | AL60: 24.17627411 | AM60: 17.28503159 | AN60: 17.68597328 | AO60: 28.35421345 | AP60: 25.48847591 | AQ60: 35.16353554 | AR60: 18.33966756 | AS60: 22.23166283 | AT60: 24.69926963 | AU60: 20.08124499 | AV60: 25.74902811 | AW60: 21.49778053 | AX60: 17.50595278 | AY60: 25.18797161 | AZ60: 34.72902842 | BA60: 57.97802218 | BB60: 21.61079972 | BC60: 19.89291531 | BD60: 44.36280789 | BE60: 21.88163468 | BF60: 42.86732197 | BG60: 11.3468109 | BH60: 2.407377816 | BI60: 6.271621438 | BJ60: 29.21553316 | BK60: 50.65371921 | BL60: 1.784604401 | BM60: 10.49483969 | BN60: 3.793425457 | BO60: 5.012104508 | BP60: 19.48300158 | BQ60: 1.398253805 | BR60: 3.509185011 | BS60: 7.517255323 | BT60: 4.417284216 | BU60: 29.48747653 | BV60: 6.464517098 | BW60: 1.867791852 | BX60: 1.016365319 | BY60: 1.387650465 | BZ60: 0.2792034894 | CA60: 0.021849156 | CB60: 0.04526606587 | CC60: 0.06383606933 | CD60: 0.7813796586 | CE60: 3.263355396 | CF60: 0.07637534483 | CG60: 0.07193527131 | CH60: 0.09154930208 | CI60: 0 | CJ60: 0 | CK60: 0.1401246754 | CL60: 0 | CM60: 0 | CN60: 1.299645358 | CO60: 1.354653012 | CP60: 0 | CQ60: 0 | CR60: 0 | CS60: 0.02373147263 | CT60: 0.03160814872 | CU60: 0 | CV60: 0 | CX60: 33.97841474 | CY60: 47.73557456 | CZ60: 46.06688892 | DA60: 23.37519866 | DB60: 52.1578272 | DC60: 50.81626831 | DD60: 25.15554083 | DE60: 24.26952291 | DF60: 17.6878381 | DG60: 21.30447878 | DH60: 88.47414699 | DI60: 27.43332333 | DJ60: 27.99352447 | DK60: 13.68769392 | DL60: 7.660271839 | DM60: 8.930714852 | DN60: 13.0636756 | DO60: 16.73360514 | DP60: 18.71188633 | DQ60: 18.22936538 | DR60: 19.13192097 | DS60: 21.43298655 | DT60: 24.75046818 | DU60: 20.35461927 | DV60: 16.44588726 | DW60: 20.71012111 | DX60: 22.33742602 | DY60: 21.38996865 | DZ60: 20.41480914 | EA60: 14.5957404 | EB60: 14.93430159 | EC60: 23.94272389 | ED60: 21.52285205 | EE60: 29.69261778 | EF60: 15.48629087 | EG60: 18.77275015 | EH60: 20.85643441 | EI60: 16.95690502 | EJ60: 21.74286625 | EK60: 18.15304891 | EL60: 14.78228957 | EM60: 21.26910171 | EN60: 29.32571344 | EO60: 48.95751312 | EP60: 18.24848401 | EQ60: 16.79787661 | ER60: 37.46062159 | ES60: 18.47718113 | ET60: 36.1978108 | EU60: 9.581417625 | EV60: 2.032826002 | EW60: 5.295851381 | EX60: 24.6700352 | EY60: 42.77276163 | EZ60: 1.506946772 | FA60: 8.862000333 | FB60: 3.203225457 | FC60: 4.23229636 | FD60: 16.45173929 | FE60: 1.180706524 | FF60: 2.963208553 | FG60: 6.34768335 | FH60: 3.730021167 | FI60: 24.89966827 | FJ60: 5.458735375 | FK60: 1.577191505 | FL60: 0.8582341478 | FM60: 1.171752904 | FN60: 0.2357636218 | FO60: 0.01844975564 | FP60: 0.0382233462 | FQ60: 0.05390413616 | FR60: 0.6598087249 | FS60: 2.755626333 | FT60: 0.06449248881 | FU60: 0.06074322401 | FV60: 0.07730560632 | FW60: 0 | FX60: 0 | FY60: 0.1183233814 | FZ60: 0 | GA60: 0 | GB60: 1.097440069 | GC60: 1.143889359 | GD60: 0 | GE60: 0 | GF60: 0 | GG60: 0.02003921209 | GH60: 0.02669039573 | GI60: 0 | GJ60: 0
A61: 4 | D61: SERVICE LINES | E61: ˂ = 11 KV ; RESIDENTIAL ; COMPLEX TYPE | F61: 0.8119375765 | G61: 53.8 | H61: 7.334848328 | I61: 2 | J61: 15.11206538 | K61: 26.95307373 | L61: 26.32749988 | M61: 9.667739612 | N61: 16.13409328 | O61: 19.38814972 | P61: 9.597327278 | Q61: 11.21262612 | R61: 6.544818871 | S61: 11.30909609 | T61: 27.11481761 | U61: 12.28784321 | V61: 9.127768008 | W61: 6.066275028 | X61: 3.901353671 | Y61: 3.02266395 | Z61: 5.057274384 | AA61: 7.117546501 | AB61: 9.607401902 | AC61: 10.17200793 | AD61: 11.92568249 | AE61: 11.12522239 | AF61: 14.78555276 | AG61: 17.28601617 | AH61: 15.31698487 | AI61: 16.63970377 | AJ61: 17.7323081 | AK61: 16.56006311 | AL61: 14.18121003 | AM61: 10.38807612 | AN61: 10.15821556 | AO61: 13.36391863 | AP61: 15.87891086 | AQ61: 18.11954853 | AR61: 11.63748 | AS61: 15.00767507 | AT61: 18.05031312 | AU61: 10.49158815 | AV61: 16.08540755 | AW61: 14.73699028 | AX61: 12.95810938 | AY61: 13.75682119 | AZ61: 25.47645332 | BA61: 43.9525346 | BB61: 16.21716593 | BC61: 14.73429061 | BD61: 42.01891296 | BE61: 16.63157062 | BF61: 28.61002734 | BG61: 12.35050648 | BH61: 4.477610044 | BI61: 5.110554684 | BJ61: 29.97717551 | BK61: 57.53314581 | BL61: 2.976558927 | BM61: 10.39895769 | BN61: 3.606044342 | BO61: 6.626683591 | BP61: 17.52633547 | BQ61: 2.746326968 | BR61: 5.276664559 | BS61: 10.22142915 | BT61: 6.52671284 | BU61: 28.70777603 | BV61: 3.466060386 | BW61: 1.06298765 | BX61: 0.8703346412 | BY61: 2.474045164 | BZ61: 0.3193634003 | CA61: 0.1130607825 | CB61: 0.3446921236 | CC61: 0 | CD61: 0.09063543616 | CE61: 1.73173947 | CF61: 0.2765423979 | CG61: 0.5328901885 | CH61: 0.0413946792 | CI61: 0.4792463476 | CJ61: 0 | CK61: 0.04079288303 | CL61: 0 | CM61: 0 | CN61: 3.328354896 | CO61: 2.714989905 | CP61: 0 | CQ61: 0 | CR61: 0 | CS61: 0.0474232726 | CT61: 0.04737353746 | CU61: 0 | CV61: 0 | CX61: 12.27005374 | CY61: 21.88421336 | CZ61: 21.37628645 | DA61: 7.849601071 | DB61: 13.0998766 | DC61: 15.74196729 | DD61: 7.792430651 | DE61: 9.103952476 | DF61: 5.313984373 | DG61: 9.182280069 | DH61: 22.0155393 | DI61: 9.976961634 | DJ61: 7.411177835 | DK61: 4.925436645 | DL61: 3.167655645 | DM61: 2.454214443 | DN61: 4.106191107 | DO61: 5.779003456 | DP61: 7.800610617 | DQ61: 8.25903547 | DR61: 9.682909739 | DS61: 9.032986107 | DT61: 12.00494588 | DU61: 14.03516608 | DV61: 12.43643558 | DW61: 13.51040075 | DX61: 14.39752726 | DY61: 13.44573751 | DZ61: 11.51425731 | EA61: 8.434469351 | EB61: 8.247836921 | EC61: 10.8506677 | ED61: 12.8926844 | EE61: 14.71194232 | EF61: 9.448907307 | EG61: 12.18529532 | EH61: 14.65572749 | EI61: 8.518514656 | EJ61: 13.06034683 | EK61: 11.96551617 | EL61: 10.52117593 | EM61: 11.16968005 | EN61: 20.68528976 | EO61: 35.68671442 | EP61: 13.1673264 | EQ61: 11.96332421 | ER61: 34.11673436 | ES61: 13.50379715 | ET61: 23.22955626 | EU61: 10.0278403 | EV61: 3.635539848 | EW61: 4.149451385 | EX61: 24.33959523 | EY61: 46.71332298 | EZ61: 2.416780041 | FA61: 8.443304507 | FB61: 2.927882904 | FC61: 5.380453415 | FD61: 14.23029035 | FE61: 2.229846063 | FF61: 4.284322234 | FG61: 8.299162411 | FH61: 5.299283406 | FI61: 23.3089221 | FJ61: 2.81422467 | FK61: 0.8630796165 | FL61: 0.7066573994 | FM61: 2.008770235 | FN61: 0.2593031452 | FO61: 0.09179829773 | FP61: 0.2798684875 | FQ61: 0 | FR61: 0.07359031639 | FS61: 1.406064348 | FT61: 0.2245351644 | FU61: 0.4326735682 | FV61: 0.03360989551 | FW61: 0.389118118 | FX61: 0 | FY61: 0.03312127459 | FZ61: 0 | GA61: 0 | GB61: 2.702416408 | GC61: 2.204402324 | GD61: 0 | GE61: 0 | GF61: 0 | GG61: 0.03850473703 | GH61: 0.0384643552 | GI61: 0 | GJ61: 0
E62: ˂ = 11 KV ; COMMERCIAL & INDUSTRIAL ; COMPLEX TYPE | F62: 0 | G62: 53.8 | H62: 7.334848328 | I62: 2 | J62: 0 | K62: 0 | L62: 0 | M62: 0 | N62: 0 | O62: 0 | P62: 0 | Q62: 0 | R62: 0 | S62: 0 | T62: 0 | U62: 0 | V62: 0 | W62: 0 | X62: 0 | Y62: 0 | Z62: 0 | AA62: 0 | AB62: 0 | AC62: 0 | AD62: 0 | AE62: 0 | AF62: 0 | AG62: 0 | AH62: 0 | AI62: 0 | AJ62: 0 | AK62: 0 | AL62: 0 | AM62: 0 | AN62: 0 | AO62: 0 | AP62: 0 | AQ62: 0 | AR62: 0 | AS62: 0 | AT62: 0 | AU62: 0 | AV62: 0 | AW62: 0 | AX62: 0 | AY62: 0 | AZ62: 0 | BA62: 0 | BB62: 0 | BC62: 0 | BD62: 0 | BE62: 0 | BF62: 0 | BG62: 0 | BH62: 0 | BI62: 0 | BJ62: 0 | BK62: 0 | BL62: 0 | BM62: 0 | BN62: 0 | BO62: 0 | BP62: 0 | BQ62: 0 | BR62: 0 | BS62: 0 | BT62: 0 | BU62: 0 | BV62: 0 | BW62: 0 | BX62: 0 | BY62: 0 | BZ62: 0 | CA62: 0 | CB62: 0 | CC62: 0 | CD62: 0 | CE62: 0 | CF62: 0 | CG62: 0 | CH62: 0 | CI62: 0 | CJ62: 0 | CK62: 0 | CL62: 0 | CM62: 0 | CN62: 0 | CO62: 0 | CP62: 0 | CQ62: 0 | CR62: 0 | CS62: 0 | CT62: 0 | CU62: 0 | CV62: 0 | CX62: 0 | CY62: 0 | CZ62: 0 | DA62: 0 | DB62: 0 | DC62: 0 | DD62: 0 | DE62: 0 | DF62: 0 | DG62: 0 | DH62: 0 | DI62: 0 | DJ62: 0 | DK62: 0 | DL62: 0 | DM62: 0 | DN62: 0 | DO62: 0 | DP62: 0 | DQ62: 0 | DR62: 0 | DS62: 0 | DT62: 0 | DU62: 0 | DV62: 0 | DW62: 0 | DX62: 0 | DY62: 0 | DZ62: 0 | EA62: 0 | EB62: 0 | EC62: 0 | ED62: 0 | EE62: 0 | EF62: 0 | EG62: 0 | EH62: 0 | EI62: 0 | EJ62: 0 | EK62: 0 | EL62: 0 | EM62: 0 | EN62: 0 | EO62: 0 | EP62: 0 | EQ62: 0 | ER62: 0 | ES62: 0 | ET62: 0 | EU62: 0 | EV62: 0 | EW62: 0 | EX62: 0 | EY62: 0 | EZ62: 0 | FA62: 0 | FB62: 0 | FC62: 0 | FD62: 0 | FE62: 0 | FF62: 0 | FG62: 0 | FH62: 0 | FI62: 0 | FJ62: 0 | FK62: 0 | FL62: 0 | FM62: 0 | FN62: 0 | FO62: 0 | FP62: 0 | FQ62: 0 | FR62: 0 | FS62: 0 | FT62: 0 | FU62: 0 | FV62: 0 | FW62: 0 | FX62: 0 | FY62: 0 | FZ62: 0 | GA62: 0 | GB62: 0 | GC62: 0 | GD62: 0 | GE62: 0 | GF62: 0 | GG62: 0 | GH62: 0 | GI62: 0 | GJ62: 0
E63: ˂ = 11 KV ; SUBDIVISION ; COMPLEX TYPE | F63: 0 | G63: 53.8 | H63: 7.334848328 | I63: 2 | J63: 0 | K63: 0 | L63: 0 | M63: 0 | N63: 0 | O63: 0 | P63: 0 | Q63: 0 | R63: 0 | S63: 0 | T63: 0 | U63: 0 | V63: 0 | W63: 0 | X63: 0 | Y63: 0 | Z63: 0 | AA63: 0 | AB63: 0 | AC63: 0 | AD63: 0 | AE63: 0 | AF63: 0 | AG63: 0 | AH63: 0 | AI63: 0 | AJ63: 0 | AK63: 0 | AL63: 0 | AM63: 0 | AN63: 0 | AO63: 0 | AP63: 0 | AQ63: 0 | AR63: 0 | AS63: 0 | AT63: 0 | AU63: 0 | AV63: 0 | AW63: 0 | AX63: 0 | AY63: 0 | AZ63: 0 | BA63: 0 | BB63: 0 | BC63: 0 | BD63: 0 | BE63: 0 | BF63: 0 | BG63: 0 | BH63: 0 | BI63: 0 | BJ63: 0 | BK63: 0 | BL63: 0 | BM63: 0 | BN63: 0 | BO63: 0 | BP63: 0 | BQ63: 0 | BR63: 0 | BS63: 0 | BT63: 0 | BU63: 0 | BV63: 0 | BW63: 0 | BX63: 0 | BY63: 0 | BZ63: 0 | CA63: 0 | CB63: 0 | CC63: 0 | CD63: 0 | CE63: 0 | CF63: 0 | CG63: 0 | CH63: 0 | CI63: 0 | CJ63: 0 | CK63: 0 | CL63: 0 | CM63: 0 | CN63: 0 | CO63: 0 | CP63: 0 | CQ63: 0 | CR63: 0 | CS63: 0 | CT63: 0 | CU63: 0 | CV63: 0 | CX63: 0 | CY63: 0 | CZ63: 0 | DA63: 0 | DB63: 0 | DC63: 0 | DD63: 0 | DE63: 0 | DF63: 0 | DG63: 0 | DH63: 0 | DI63: 0 | DJ63: 0 | DK63: 0 | DL63: 0 | DM63: 0 | DN63: 0 | DO63: 0 | DP63: 0 | DQ63: 0 | DR63: 0 | DS63: 0 | DT63: 0 | DU63: 0 | DV63: 0 | DW63: 0 | DX63: 0 | DY63: 0 | DZ63: 0 | EA63: 0 | EB63: 0 | EC63: 0 | ED63: 0 | EE63: 0 | EF63: 0 | EG63: 0 | EH63: 0 | EI63: 0 | EJ63: 0 | EK63: 0 | EL63: 0 | EM63: 0 | EN63: 0 | EO63: 0 | EP63: 0 | EQ63: 0 | ER63: 0 | ES63: 0 | ET63: 0 | EU63: 0 | EV63: 0 | EW63: 0 | EX63: 0 | EY63: 0 | EZ63: 0 | FA63: 0 | FB63: 0 | FC63: 0 | FD63: 0 | FE63: 0 | FF63: 0 | FG63: 0 | FH63: 0 | FI63: 0 | FJ63: 0 | FK63: 0 | FL63: 0 | FM63: 0 | FN63: 0 | FO63: 0 | FP63: 0 | FQ63: 0 | FR63: 0 | FS63: 0 | FT63: 0 | FU63: 0 | FV63: 0 | FW63: 0 | FX63: 0 | FY63: 0 | FZ63: 0 | GA63: 0 | GB63: 0 | GC63: 0 | GD63: 0 | GE63: 0 | GF63: 0 | GG63: 0 | GH63: 0 | GI63: 0 | GJ63: 0
E64: > 11 KV & < = 22 KV ; COMMERCIAL & INDUSTRIAL | F64: 0 | G64: 53.8 | H64: 7.334848328 | I64: 2 | J64: 0 | K64: 0 | L64: 0 | M64: 0 | N64: 0 | O64: 0 | P64: 0 | Q64: 0 | R64: 0 | S64: 0 | T64: 0 | U64: 0 | V64: 0 | W64: 0 | X64: 0 | Y64: 0 | Z64: 0 | AA64: 0 | AB64: 0 | AC64: 0 | AD64: 0 | AE64: 0 | AF64: 0 | AG64: 0 | AH64: 0 | AI64: 0 | AJ64: 0 | AK64: 0 | AL64: 0 | AM64: 0 | AN64: 0 | AO64: 0 | AP64: 0 | AQ64: 0 | AR64: 0 | AS64: 0 | AT64: 0 | AU64: 0 | AV64: 0 | AW64: 0 | AX64: 0 | AY64: 0 | AZ64: 0 | BA64: 0 | BB64: 0 | BC64: 0 | BD64: 0 | BE64: 0 | BF64: 0 | BG64: 0 | BH64: 0 | BI64: 0 | BJ64: 0 | BK64: 0 | BL64: 0 | BM64: 0 | BN64: 0 | BO64: 0 | BP64: 0 | BQ64: 0 | BR64: 0 | BS64: 0 | BT64: 0 | BU64: 0 | BV64: 0 | BW64: 0 | BX64: 0 | BY64: 0 | BZ64: 0 | CA64: 0 | CB64: 0 | CC64: 0 | CD64: 0 | CE64: 0 | CF64: 0 | CG64: 0 | CH64: 0 | CI64: 0 | CJ64: 0 | CK64: 0 | CL64: 0 | CM64: 0 | CN64: 0 | CO64: 0 | CP64: 0 | CQ64: 0 | CR64: 0 | CS64: 0 | CT64: 0 | CU64: 0 | CV64: 0 | CX64: 0 | CY64: 0 | CZ64: 0 | DA64: 0 | DB64: 0 | DC64: 0 | DD64: 0 | DE64: 0 | DF64: 0 | DG64: 0 | DH64: 0 | DI64: 0 | DJ64: 0 | DK64: 0 | DL64: 0 | DM64: 0 | DN64: 0 | DO64: 0 | DP64: 0 | DQ64: 0 | DR64: 0 | DS64: 0 | DT64: 0 | DU64: 0 | DV64: 0 | DW64: 0 | DX64: 0 | DY64: 0 | DZ64: 0 | EA64: 0 | EB64: 0 | EC64: 0 | ED64: 0 | EE64: 0 | EF64: 0 | EG64: 0 | EH64: 0 | EI64: 0 | EJ64: 0 | EK64: 0 | EL64: 0 | EM64: 0 | EN64: 0 | EO64: 0 | EP64: 0 | EQ64: 0 | ER64: 0 | ES64: 0 | ET64: 0 | EU64: 0 | EV64: 0 | EW64: 0 | EX64: 0 | EY64: 0 | EZ64: 0 | FA64: 0 | FB64: 0 | FC64: 0 | FD64: 0 | FE64: 0 | FF64: 0 | FG64: 0 | FH64: 0 | FI64: 0 | FJ64: 0 | FK64: 0 | FL64: 0 | FM64: 0 | FN64: 0 | FO64: 0 | FP64: 0 | FQ64: 0 | FR64: 0 | FS64: 0 | FT64: 0 | FU64: 0 | FV64: 0 | FW64: 0 | FX64: 0 | FY64: 0 | FZ64: 0 | GA64: 0 | GB64: 0 | GC64: 0 | GD64: 0 | GE64: 0 | GF64: 0 | GG64: 0 | GH64: 0 | GI64: 0 | GJ64: 0
E65: > 11 KV & < = 22 KV ; SUBDIVISION | F65: 0 | G65: 53.8 | H65: 7.334848328 | I65: 2 | J65: 0 | K65: 0 | L65: 0 | M65: 0 | N65: 0 | O65: 0 | P65: 0 | Q65: 0 | R65: 0 | S65: 0 | T65: 0 | U65: 0 | V65: 0 | W65: 0 | X65: 0 | Y65: 0 | Z65: 0 | AA65: 0 | AB65: 0 | AC65: 0 | AD65: 0 | AE65: 0 | AF65: 0 | AG65: 0 | AH65: 0 | AI65: 0 | AJ65: 0 | AK65: 0 | AL65: 0 | AM65: 0 | AN65: 0 | AO65: 0 | AP65: 0 | AQ65: 0 | AR65: 0 | AS65: 0 | AT65: 0 | AU65: 0 | AV65: 0 | AW65: 0 | AX65: 0 | AY65: 0 | AZ65: 0 | BA65: 0 | BB65: 0 | BC65: 0 | BD65: 0 | BE65: 0 | BF65: 0 | BG65: 0 | BH65: 0 | BI65: 0 | BJ65: 0 | BK65: 0 | BL65: 0 | BM65: 0 | BN65: 0 | BO65: 0 | BP65: 0 | BQ65: 0 | BR65: 0 | BS65: 0 | BT65: 0 | BU65: 0 | BV65: 0 | BW65: 0 | BX65: 0 | BY65: 0 | BZ65: 0 | CA65: 0 | CB65: 0 | CC65: 0 | CD65: 0 | CE65: 0 | CF65: 0 | CG65: 0 | CH65: 0 | CI65: 0 | CJ65: 0 | CK65: 0 | CL65: 0 | CM65: 0 | CN65: 0 | CO65: 0 | CP65: 0 | CQ65: 0 | CR65: 0 | CS65: 0 | CT65: 0 | CU65: 0 | CV65: 0 | CX65: 0 | CY65: 0 | CZ65: 0 | DA65: 0 | DB65: 0 | DC65: 0 | DD65: 0 | DE65: 0 | DF65: 0 | DG65: 0 | DH65: 0 | DI65: 0 | DJ65: 0 | DK65: 0 | DL65: 0 | DM65: 0 | DN65: 0 | DO65: 0 | DP65: 0 | DQ65: 0 | DR65: 0 | DS65: 0 | DT65: 0 | DU65: 0 | DV65: 0 | DW65: 0 | DX65: 0 | DY65: 0 | DZ65: 0 | EA65: 0 | EB65: 0 | EC65: 0 | ED65: 0 | EE65: 0 | EF65: 0 | EG65: 0 | EH65: 0 | EI65: 0 | EJ65: 0 | EK65: 0 | EL65: 0 | EM65: 0 | EN65: 0 | EO65: 0 | EP65: 0 | EQ65: 0 | ER65: 0 | ES65: 0 | ET65: 0 | EU65: 0 | EV65: 0 | EW65: 0 | EX65: 0 | EY65: 0 | EZ65: 0 | FA65: 0 | FB65: 0 | FC65: 0 | FD65: 0 | FE65: 0 | FF65: 0 | FG65: 0 | FH65: 0 | FI65: 0 | FJ65: 0 | FK65: 0 | FL65: 0 | FM65: 0 | FN65: 0 | FO65: 0 | FP65: 0 | FQ65: 0 | FR65: 0 | FS65: 0 | FT65: 0 | FU65: 0 | FV65: 0 | FW65: 0 | FX65: 0 | FY65: 0 | FZ65: 0 | GA65: 0 | GB65: 0 | GC65: 0 | GD65: 0 | GE65: 0 | GF65: 0 | GG65: 0 | GH65: 0 | GI65: 0 | GJ65: 0
